Workbook

Sheet 2019 Legal Max
F1: Col 1 | I1: Col 2 | L1: Col 3 | P1: Col 4 | Q1: Col 5 | R1: Col 6 | S1: Col 7 | T1: Col 8 | Y1: Col 9 | Z1: Col 10 | AA1: Col 11 | AD1: Col 13 | AE1: Col 14 | AF1: Col 15 | AG1: Col 16 | AH1: Col 17 | AI1: Col 18 | AJ1: Col 19 | AK1: Col 20 | AM1: Col 21 | AN1: Col 22 | AO1: Col 23 | AP1: Col 24 | AR1: Col 26 | AS1: Col 27 | AT1: Col 28 | AU1: Col 29 | AW1: Col 30 | AX1: Col 31 | AY1: Col 32 | AZ1: Col 33 | BA1: Col 34 | BG1: Col 36 | BH1: Col 37 | BI1: Col 38 | BM1: Col 39 | BN1: Col 40 | BO1: Col 41 | BP1: Col 42 | BQ1: Col 43 | BR1: Col 44 | BS1: Col 45
B2: 2019-07-02 | C2: FINAL | D2: Updated | E2: Updated | M2: (Info Only) | N2: (Info Only) | O2: (Info Only) | AC2: N/A | AQ2: N/A | AV2: (Info Only) | AW2: (Info Only) | BB2: N/A | BU2: Table I - Low & High Enrollment | CE2: Table II - Transportation | CN2: Table III - Tax Appeal Amounts | CT2: Table IV High Density At Risk | CX2: LOB Transfers
A3: USD # | B3: County | C3: District Name | D3: FTE Enroll (incl K, excl 4yr old at-risk & virtual) 9/20/2015 | E3: FTE Enroll (incl K, excl 4yr old at-risk & virtual) 2/20/2016 | F3: FTE Enroll (incl K, excl 4yr old at-risk & virtual) 9/20/2015 2/20/2016 | G3: FTE Enroll (incl K, exc 4yr old at-risk & virtual) 9/20/2016 | H3: FTE Enroll (incl K, excl 4yr old at-risk & virtual) 2/20/2017 | I3: FTE Enroll (incl K, exc. 4yr old at-risk & virtual ) 9/20/2016 2/20/2017 | J3: FTE Enroll (incl K, Exc 4yr old at-risk & virtual) 9/20/2017 | K3: FTE Enroll (Inc K, excl 4yr old at-risk & virtual) 2/20/2018 | L3: FTE Enroll (inc K, excl 4yr old at-risk & virtual) 9/20/2017 2/20/2018 | M3: FTE Enroll (excl 4yr old at-risk & virtual) 9/20/2018 | N3: FTE Enroll (excl 4yr old at-risk & virtual) 2/20/2019 | O3: FTE Enroll (excl 4yr old at-risk & virtual) 9/20/2018 2/20/2019 | P3: Adjusted Enrollment | Q3: 4yr Old At Risk (9/20 + 2/20) | R3: 2017-18 Kindergarten (9/20 + 2/20) | S3: Total Adjusted Enrollment (incl 4yr AR & KDG) | T3: Low and High Enrollment WTD FTE | U3: 2018-19 Bilingual Contact Hours (9/20 + 2/20) | V3: Bilingual Contact Hours WTD FTE | W3: 2018-19 Bilingual Headcount (9/20 + 2/20) | X3: Bilingual Headcount WTD FTE | Y3: Bilingual (max Hrs or Hdct) WTD FTE | Z3: 2018-19 Career /Tech Ed Contact Hours (9/20 + 2/20) | AA3: Career /Tech Ed WTD FTE | AB3: Funded Headcount (excl virtual) (9/20 + 2/20) | AC3: Free Lunch 10% (Guaranteed) | AD3: Free Lunch (9/20 + 2/20) | AE3: At-Risk (Free Lunch) WTD FTE | AF3: High Density At-Risk (USD) | AG3: High Density At-Risk (School) | AH3: High Density At-Risk WTD FTE | AI3: School Faciltiies FTE (9/20 + 2/20) | AJ3: School Facilities WTD FTE | AK3: Transportation FTE > = 2.5 Miles (9/20 + 2/20) | AM3: 2018-19 Transportation Aid | AN3: 2016-17 Transportation Aid | AO3: Transportation WTD FTE | AP3: Ancillary WTD FTE | AQ3: Declining Enrollment WTD FTE | AR3: Cost of Living WTD FTE | AS3: Special Education State Aid | AT3: Special Education WTD FTE | AU3: KAMS FTE | AV3: WTD FTE (excl COLA; incl SPED) | AW3: WTD FTE (excl SPED) | AX3: Virtual Full-Time FTE | AY3: Virtual Part-Time FTE | AZ3: Virtual Credits (19yrs & Older) | BA3: Virtual State Aid | BB3: Extraordinary Need Aid | BC3: Sequence Number | BD3: Audit | BE3: Republished | BF3: Info Only General Fund (excl SPED) | BG3: Computed General Fund | BH3: Adopted General Fund | BI3: Legal Max General Fund (before reductions) | BJ3: Prior Year Budget Law Violation | BK3: Prior Year Trans Audit Adjust | BL3: Prior Year Virtual Credits Audit Adj | BM3: Prior Year Total Reductions | BN3: 2018-19 Adjusted Legal General Fund Budget | BO3: 2018-19 LOB Base General Fund | BP3: 2018-19 LOB Authorized Percent | BQ3: Computed Local Option Budget | BR3: Adopted Local Option Budget | BS3: Legal Max Local Option Budget | BT3: LOB Percent Used | BU3: 0-99.9 | BY3: 100-299.9 | CC3: 300-1621.9 | CD3: 1622 and higher | CE3: Area in Square Miles | CF3: Density Figure Range | CG3: Order ID | CH3: Per Capita | CI3: Base Change (Factor A) | CJ3: Factor Per Capita Allowance (Factor B) | CK3: Factor per Capita times Constant (Factor C) | CL3: Factor per Capita Allowance times the Variable (Factor D) | CM3: Trans Weighted FTE | CN3: Board of Tax Appeals (Ancillary) | CO3: Board of Tax Appeals (Declining Enrollment) | CP3: Form 150-Board of Tax Appeals (Cost of Living) | CQ3: Cost of Living Authorized Percent | CR3: Max Computed Cost of Living | CS3: Cost of Living Authority | CT3: 2018-19 Percent of Free Lunch (Current Year) | CU3: Ftee Lunch >=50% | CV3: Free Lunch >=35% <50% | CW3: Total WTD FTE (inc. SPED) | CX3: At-Risk LOB Transfer | CY3: Bilingual LOB Transfer
A4: Total | C4: STATE TOTALS | D4: =SUM(D5:D290) -> 450667.9 | E4: 573 | F4: 451240.9 | G4: 465178.6 | H4: 445.5 | I4: 465624.1 | J4: 465655.5 | K4: 566.5 | L4: 466222 | M4: 464884.7 | N4: 464.8 | O4: 465349.5 | P4: 469691.4 | Q4: 4032 | R4: 6 | S4: 473729.4 | T4: 54688.1 | U4: 143073.7 | V4: 9418.7 | W4: 49092 | X4: 9083.2 | Y4: 10167.4 | Z4: 108874 | AA4: 9073.3 | AB4: 479595 | AC4: 0 | AD4: 179638 | AE4: 86945.8 | AF4: 11143 | AG4: 11605.5 | AH4: 12220.4 | AI4: 12558.7 | AJ4: 3140 | AK4: 130127.8 | AM4: =SUM(AM5:AM290) -> 92451979 | AN4: 101223247 | AO4: 24746.9 | AP4: 7571 | AQ4: 0 | AR4: 6421.7 | AS4: 479347115 | AT4: 115089.4 | AU4: 42 | AV4: 797413.7 | AW4: 688746 | AX4: 5637 | AY4: 913.4 | AZ4: 3295.75 | BA4: 32074481 | BB4: 0 | BF4: =SUM(BF5:BF290) -> 2900701641 | BG4: 3380048993 | BH4: 3453991581 | BI4: 3380048160 | BJ4: 0 | BK4: -4330267 | BL4: -269783 | BM4: -4600050 | BN4: 3375448110 | BO4: 3585321087 | BP4: 88.25 | BQ4: 1118606548 | BR4: 1131888915 | BS4: 1113635498 | BT4: =SUM(BT5:BT290)/296 -> 0.2956 | BU4: =SUM(BU5:BU290) -> 468.2 | BY4: =SUM(BY5:BY290) -> 9296.3 | CC4: =SUM(CC5:CC290) -> 32422 | CD4: 12501.6 | CE4: 82019.7 | CF4: 1320.63 | CG4: 7695 | CH4: =SUM(CH5:CH290) -> 300760 | CI4: =SUM(CI5:CI290) -> 286 | CJ4: =SUM(CJ5:CJ290) -> 92451979 | CK4: =SUM(CK5:CK290) -> 92451979 | CL4: =SUM(CL5:CL290) -> 92451979 | CM4: 22197.4 | CN4: 31533091 | CO4: 0 | CP4: 27008966 | CQ4: 0.4701 | CR4: =SUM(CR5:CR290) -> 32803354 | CS4: =SUM(CS5:CS290) -> 26746186 | CT4: =AD5/AB5 -> 0.4768 | CU4: =SUM(CU5:CU290) -> 9226.8 | CV4: =SUM(CV5:CV290) -> 1916.2 | CW4: =SUM(CW5:CW290) -> 803835.4 | CX4: =SUM(CX5:CX290) -> 119979878 | CY4: 14033094
A5: 101 | B5: Neosho | C5: Erie-Galesburg | D5: 503 | E5: 0 | F5: =D5+E5 -> 503 | G5: 506 | H5: 0 | I5: =G5+H5 -> 506 | J5: 514.5 | K5: 0 | L5: =J5+K5 -> 514.5 | M5: =IF(ISNA(VLOOKUP($CZ5,'Audit Values'!$A$2:$BW$363,2,FALSE)),'Preliminary SO66'!C4,VLOOKUP($CZ5,'Audit Values'!$A$2:$BW$363,73,FALSE)) -> 491.5 | N5: =IF(ISNA(VLOOKUP($CZ5,'Audit Values'!$A$2:$BW$363,2,FALSE)),'Preliminary SO66'!F4,VLOOKUP($CZ5,'Audit Values'!$A$2:$BW$363,4,FALSE)) -> 0 | O5: =M5+N5 -> 491.5 | P5: =IF('Military Provision'!J6="YES", MAX('2019 Legal Max'!L5,'2019 Legal Max'!I5,AVERAGE('2019 Legal Max'!F5,'2019 Legal Max'!I5,'2019 Legal Max'!L5)), MAX(L5, I5)) -> 514.5 | Q5: =IF(ISNA(VLOOKUP($CZ5,'Audit Values'!$A$2:$BU$351,2,FALSE)),'Preliminary SO66'!AL4,VLOOKUP($CZ5,'Audit Values'!$A$2:$BU$3953,58,FALSE)) -> 0 | R5: 0 | S5: =P5+Q5+R5 -> 514.5 | T5: =MAX(BU5, BY5, CC5, CD5) -> 211.6 | U5: =IF(ISNA(VLOOKUP($CZ5,'Audit Values'!$A$2:$BW$315,2,FALSE)),'Preliminary SO66'!AM4,VLOOKUP($CZ5,'Audit Values'!$A$2:$BW$315,62,FALSE)) -> 1.3 | V5: =(U5/6)*'Weighting Factors'!$Q$7 -> 0.1 | W5: =IF(ISNA(VLOOKUP($CZ5,'Audit Values'!$A$2:$BW$351,2,FALSE)),'Preliminary SO66'!AN4,VLOOKUP($CZ5,'Audit Values'!$A$2:$BW$351,61,FALSE)) -> 8 | X5: =W5*'Weighting Factors'!$Q$8 -> 1.5 | Y5: =MAX(V5,X5) -> 1.5 | Z5: =IF(ISNA(VLOOKUP($CZ5,'Audit Values'!$A$2:$BW$315,2,FALSE)),'Preliminary SO66'!AO4,VLOOKUP($CZ5,'Audit Values'!$A$2:$BW$315,60,FALSE)) -> 98.5 | AA5: =Z5/6*'Weighting Factors'!$Q$6 -> 8.2 | AB5: =IF(ISNA(VLOOKUP($CZ5,'Audit Values'!$A$2:$BU$351,2,FALSE)),'Preliminary SO66'!AS4,VLOOKUP($CZ5,'Audit Values'!$A$2:$BU$351,63,FALSE)) -> 495 | AC5: =IF(ISNA(VLOOKUP($CZ5,'Audit Values'!$A$2:$BU$49,2,FALSE)),'Preliminary SO66'!AT4,VLOOKUP($CZ5,'Audit Values'!$A$2:$BU$49,63,FALSE)) -> 0 | AD5: =IF(ISNA(VLOOKUP($CZ5,'Audit Values'!$A$2:$BU$351,2,FALSE)),'Preliminary SO66'!AP4,VLOOKUP($CZ5,'Audit Values'!$A$2:$BU$351,64,FALSE)) -> 236 | AE5: =IF(A5=207, AD5,MAX(AC5,AD5))*'Weighting Factors'!$Q$9 -> 114.2 | AF5: =MAX(CU5,CV5) -> 20.9 | AG5: =IF(ISNA(VLOOKUP($CZ5,'Audit Values'!$A$2:$BW$351,2,FALSE)),'Preliminary SO66'!AG4,VLOOKUP($CZ5,'Audit Values'!$A$2:$BW$351,70,FALSE)) -> 18.2 | AH5: =MAX(AF5, AG5) -> 20.9 | AI5: =IF(ISNA(VLOOKUP($CZ5,'Audit Values'!$A$2:$BU$351,2,FALSE)),'Preliminary SO66'!AQ4,VLOOKUP($CZ5,'Audit Values'!$A$2:$BU$351,65,FALSE)) -> 0 | AJ5: =AI5*'Weighting Factors'!$Q$10 -> 0 | AK5: =IF(ISNA(VLOOKUP($CZ5,'Audit Values'!$A$2:$BU$351,2,FALSE)),'Preliminary SO66'!AR4,VLOOKUP($CZ5,'Audit Values'!$A$2:$BU$351,66,FALSE)) -> 256 | AM5: =CL5 -> 258560 | AN5: 303923 | AO5: =MAX(AN5, AM5)/'Weighting Factors'!$Q$5 -> 73 | AP5: =CN5/'Weighting Factors'!$Q$5 -> 0 | AQ5: 0 | AR5: =CS5/'Weighting Factors'!$Q$5 -> 0 | AS5: 694175 | AT5: =AS5/'Weighting Factors'!$Q$5 -> 166.7 | AU5: =IF(ISNA(VLOOKUP($CZ5,'Audit Values'!$A$2:$BU$351,2,FALSE)),'Preliminary SO66'!X4,VLOOKUP($CZ5,'Audit Values'!$A$2:$BU$351,47,FALSE)) -> 0 | AV5: =SUM(S5+T5+Y5+AA5+AE5+AH5+AJ5++AO5+AP5+AQ5+AT5+AU5) -> 1110.6 | AW5: =SUM(S5+T5+Y5+AA5+AE5+AH5+AJ5++AO5+AP5+AQ5+AR5+AU5) -> 943.9 | AX5: =IF(ISNA(VLOOKUP($CZ5,'Audit Values'!$A$2:$BU$351,2,FALSE)),'Preliminary SO66'!AA4,VLOOKUP($CZ5,'Audit Values'!$A$2:$BU$351,41,FALSE)) -> 0 | AY5: =IF(ISNA(VLOOKUP($CZ5,'Audit Values'!$A$2:$BU$351,2,FALSE)),'Preliminary SO66'!AB4,VLOOKUP($CZ5,'Audit Values'!$A$2:$BU$351,42,FALSE)) -> 0 | AZ5: 0 | BA5: =SUM(AX5*'Weighting Factors'!$T$10)+('2019 Legal Max'!AY5*'Weighting Factors'!$T$11)+('2019 Legal Max'!AZ5*'Weighting Factors'!$T$12) -> 0 | BB5: 0 | BC5: =IF(ISNA(VLOOKUP($CZ5,'Audit Values'!$A$2:$BU$351,2,FALSE)),"",IF(AND('Weighting Factors'!H5>0,VLOOKUP($CZ5,'Audit Values'!$A$2:$BU$351,51,FALSE)<'Weighting Factors'!H5),'Weighting Factors'!H5,VLOOKUP($CZ5,'Audit Values'!$A$2:$BU$351,50,FALSE))) -> 19 | BD5: =IF(ISNA(VLOOKUP($CZ5,'Audit Values'!$A$2:$BV$351,2,FALSE)),"",VLOOKUP($CZ5,'Audit Values'!$A$2:$BV$351,51,FALSE)) -> A | BE5: =IF('Weighting Factors'!H5="","",IF('Weighting Factors'!J5="Pending","PX","R")) ->  | BF5: =SUM((S5+T5+Y5+AA5+AE5+AH5+AJ5++AO5+AP5+AQ5+AU5+AR5)*'Weighting Factors'!$Q$5)+'2019 Legal Max'!BA5+'2019 Legal Max'!BB5 -> 3931344 | BG5: =SUM((AV5+AR5)*'Weighting Factors'!$Q$5)+BA5+'2019 Legal Max'!BB5 -> 4625649 | BH5: =IF('Weighting Factors'!H5>0,'Weighting Factors'!H5,'Preliminary SO66'!AV4) -> 4835149 | BI5: =MIN(BG5,BH5) -> 4625649 | BK5: ='Weighting Factors'!F5 -> 0 | BL5: ='Weighting Factors'!E5 -> 0 | BM5: =SUM(BJ5:BL5) -> 0 | BN5: =BI5+BM5 -> 4625649 | BO5: =SUM((S5+T5+Y5+AA5+AE5+AH5+AJ5++AO5+AP5+AQ5+AR5)*'Weighting Factors'!Q$12)+(MAX(AS5,'Weighting Factors'!B5)) -> 4969278 | BP5: 0.3 | BQ5: =BO5*BP5 -> 1490783 | BR5: 1547896 | BS5: =MIN(BQ5,BR5) -> 1490783 | BT5: =BS5/BO5 -> 0.3 | BU5: =ROUND(IF(S5<=99.9,(S5*1.014331),0),1) -> 0 | BV5: =AND(S5>99.9,S5<=299.9) -> FALSE | BW5: =IF(BV5=TRUE,ROUND((S5-100)*9.655,3),0) -> 0 | BX5: =IF(BV5=TRUE,ROUND(((7337-BW5)/3642.4)-1,6),0) -> 0 | BY5: =ROUND(BX5*S5,1) -> 0 | BZ5: =AND(S5>299.9,S5<=1621.9) -> TRUE | CA5: =IF(BZ5=TRUE,ROUND((S5-300)*1.2375,4),0) -> 265.4438 | CB5: =IF(BZ5=TRUE,ROUND(((5406-CA5)/3642.4)-1,6),0) -> 0.41131 | CC5: =ROUND(CB5*S5,1) -> 211.6 | CD5: =ROUND(IF(S5>=1622,(S5*0.03504),0),1) -> 0 | CE5: 325 | CF5: =AK5/CE5 -> 0.788 | CG5: =IF(CF5<0.06,1,IF(CF5>=18.29,52,MATCH(CF5-0.001,'Weighting Factors'!$Y$5:$Y$156)+1)) -> 29 | CH5: =VLOOKUP(CG5, 'Weighting Factors'!$W$5:$Z$56,4) -> 1010 | CI5: =('Weighting Factors'!$Q$5/'Weighting Factors'!$Q$14) -> 1 | CJ5: =AK5*CH5 -> 258560 | CK5: =CJ5*'Weighting Factors'!$S$7 -> 258560 | CL5: =CK5*CI5 -> 258560 | CM5: =AM5/'Weighting Factors'!$Q$5 -> 62.1 | CN5: 0 | CO5: 0 | CP5: 0 | CQ5: 0 | CR5: =SUM((AV5*'Weighting Factors'!$Q$5)+'2019 Legal Max'!BA5)*CQ5 -> 0 | CS5: =IF(CP5>CR5,CR5,CP5) -> 0 | CT5: =AD5/AB5 -> 0.4768 | CU5: =IF(CT5>=50%,AD5*10.5%,0) -> 0 | CV5: =IF(AND(CT5>35%,CT5<50%),AD5*(CT5-35%)*0.7,0) -> 20.9 | CW5: =AW5+AT5 -> 1110.6 | CX5: ='LOB Transfers'!G4 -> 153252 | CY5: ='LOB Transfers'!J4 -> 2087 | CZ5: D0101
A6: 102 | B6: Gray | C6: Cimmaron-Ensign | D6: 619 | E6: 0 | F6: 619 | G6: 640.5 | H6: 0 | I6: 640.5 | J6: 638.2 | K6: 0 | L6: 638.2 | M6: =IF(ISNA(VLOOKUP($CZ6,'Audit Values'!$A$2:$BW$363,2,FALSE)),'Preliminary SO66'!C5,VLOOKUP($CZ6,'Audit Values'!$A$2:$BW$363,73,FALSE)) -> 659.1 | N6: =IF(ISNA(VLOOKUP($CZ6,'Audit Values'!$A$2:$BW$363,2,FALSE)),'Preliminary SO66'!F5,VLOOKUP($CZ6,'Audit Values'!$A$2:$BW$363,4,FALSE)) -> 0 | O6: 659.1 | P6: =IF('Military Provision'!J7="YES", MAX('2019 Legal Max'!L6,'2019 Legal Max'!I6,AVERAGE('2019 Legal Max'!F6,'2019 Legal Max'!I6,'2019 Legal Max'!L6)), MAX(L6, I6)) -> 640.5 | Q6: =IF(ISNA(VLOOKUP($CZ6,'Audit Values'!$A$2:$BU$351,2,FALSE)),'Preliminary SO66'!AL5,VLOOKUP($CZ6,'Audit Values'!$A$2:$BU$3953,58,FALSE)) -> 8.5 | R6: 0 | S6: 649 | T6: 237.3 | U6: =IF(ISNA(VLOOKUP($CZ6,'Audit Values'!$A$2:$BW$315,2,FALSE)),'Preliminary SO66'!AM5,VLOOKUP($CZ6,'Audit Values'!$A$2:$BW$315,62,FALSE)) -> 737.8 | V6: =(U6/6)*'Weighting Factors'!$Q$7 -> 48.6 | W6: =IF(ISNA(VLOOKUP($CZ6,'Audit Values'!$A$2:$BW$351,2,FALSE)),'Preliminary SO66'!AN5,VLOOKUP($CZ6,'Audit Values'!$A$2:$BW$351,61,FALSE)) -> 145 | X6: =W6*'Weighting Factors'!$Q$8 -> 26.8 | Y6: 48.6 | Z6: =IF(ISNA(VLOOKUP($CZ6,'Audit Values'!$A$2:$BW$315,2,FALSE)),'Preliminary SO66'!AO5,VLOOKUP($CZ6,'Audit Values'!$A$2:$BW$315,60,FALSE)) -> 180.6 | AA6: =Z6/6*'Weighting Factors'!$Q$6 -> 15.1 | AB6: =IF(ISNA(VLOOKUP($CZ6,'Audit Values'!$A$2:$BU$351,2,FALSE)),'Preliminary SO66'!AS5,VLOOKUP($CZ6,'Audit Values'!$A$2:$BU$351,63,FALSE)) -> 679 | AC6: 0 | AD6: =IF(ISNA(VLOOKUP($CZ6,'Audit Values'!$A$2:$BU$351,2,FALSE)),'Preliminary SO66'!AP5,VLOOKUP($CZ6,'Audit Values'!$A$2:$BU$351,64,FALSE)) -> 212 | AE6: =IF(A6=207, AD6,MAX(AC6,AD6))*'Weighting Factors'!$Q$9 -> 102.6 | AF6: 0 | AG6: =IF(ISNA(VLOOKUP($CZ6,'Audit Values'!$A$2:$BW$351,2,FALSE)),'Preliminary SO66'!AG5,VLOOKUP($CZ6,'Audit Values'!$A$2:$BW$351,70,FALSE)) -> 1 | AH6: 1 | AI6: =IF(ISNA(VLOOKUP($CZ6,'Audit Values'!$A$2:$BU$351,2,FALSE)),'Preliminary SO66'!AQ5,VLOOKUP($CZ6,'Audit Values'!$A$2:$BU$351,65,FALSE)) -> 0 | AJ6: =AI6*'Weighting Factors'!$Q$10 -> 0 | AK6: =IF(ISNA(VLOOKUP($CZ6,'Audit Values'!$A$2:$BU$351,2,FALSE)),'Preliminary SO66'!AR5,VLOOKUP($CZ6,'Audit Values'!$A$2:$BU$351,66,FALSE)) -> 99 | AM6: 128700 | AN6: 154850 | AO6: =MAX(AN6, AM6)/'Weighting Factors'!$Q$5 -> 37.2 | AP6: =CN6/'Weighting Factors'!$Q$5 -> 0 | AQ6: 0 | AR6: =CS6/'Weighting Factors'!$Q$5 -> 0 | AS6: 451649 | AT6: =AS6/'Weighting Factors'!$Q$5 -> 108.4 | AU6: =IF(ISNA(VLOOKUP($CZ6,'Audit Values'!$A$2:$BU$351,2,FALSE)),'Preliminary SO66'!X5,VLOOKUP($CZ6,'Audit Values'!$A$2:$BU$351,47,FALSE)) -> 0 | AV6: 1199.2 | AW6: 1090.8 | AX6: =IF(ISNA(VLOOKUP($CZ6,'Audit Values'!$A$2:$BU$351,2,FALSE)),'Preliminary SO66'!AA5,VLOOKUP($CZ6,'Audit Values'!$A$2:$BU$351,41,FALSE)) -> 0 | AY6: =IF(ISNA(VLOOKUP($CZ6,'Audit Values'!$A$2:$BU$351,2,FALSE)),'Preliminary SO66'!AB5,VLOOKUP($CZ6,'Audit Values'!$A$2:$BU$351,42,FALSE)) -> 0 | AZ6: 0 | BA6: =SUM(AX6*'Weighting Factors'!$T$10)+('2019 Legal Max'!AY6*'Weighting Factors'!$T$11)+('2019 Legal Max'!AZ6*'Weighting Factors'!$T$12) -> 0 | BB6: 0 | BC6: =IF(ISNA(VLOOKUP($CZ6,'Audit Values'!$A$2:$BU$351,2,FALSE)),"",IF(AND('Weighting Factors'!H6>0,VLOOKUP($CZ6,'Audit Values'!$A$2:$BU$351,51,FALSE)<'Weighting Factors'!H6),'Weighting Factors'!H6,VLOOKUP($CZ6,'Audit Values'!$A$2:$BU$351,50,FALSE))) -> 12 | BD6: =IF(ISNA(VLOOKUP($CZ6,'Audit Values'!$A$2:$BV$351,2,FALSE)),"",VLOOKUP($CZ6,'Audit Values'!$A$2:$BV$351,51,FALSE)) -> A | BE6: =IF('Weighting Factors'!H6="","",IF('Weighting Factors'!J6="Pending","PX","R")) ->  | BF6: =SUM((S6+T6+Y6+AA6+AE6+AH6+AJ6++AO6+AP6+AQ6+AU6+AR6)*'Weighting Factors'!$Q$5)+'2019 Legal Max'!BA6+'2019 Legal Max'!BB6 -> 4543182 | BG6: =SUM((AV6+AR6)*'Weighting Factors'!$Q$5)+BA6+'2019 Legal Max'!BB6 -> 4994668 | BH6: =IF('Weighting Factors'!H6>0,'Weighting Factors'!H6,'Preliminary SO66'!AV5) -> 5111288 | BI6: =MIN(BG6,BH6) -> 4994668 | BK6: ='Weighting Factors'!F6 -> 0 | BL6: ='Weighting Factors'!E6 -> 0 | BM6: 0 | BN6: 4994668 | BO6: =SUM((S6+T6+Y6+AA6+AE6+AH6+AJ6++AO6+AP6+AQ6+AR6)*'Weighting Factors'!Q$12)+(MAX(AS6,'Weighting Factors'!B6)) -> 5436075 | BP6: 0.3 | BQ6: 1630823 | BR6: 1640065 | BS6: 1630823 | BT6: 0.3 | BU6: 0 | BV6: FALSE | BW6: 0 | BX6: 0 | BY6: 0 | BZ6: TRUE | CA6: 431.8875 | CB6: 0.365614 | CC6: 237.3 | CD6: 0 | CE6: 538 | CF6: 0.184 | CG6: =IF(CF6<0.06,1,IF(CF6>=18.29,52,MATCH(CF6-0.001,'Weighting Factors'!$Y$5:$Y$156)+1)) -> 14 | CH6: =VLOOKUP(CG6, 'Weighting Factors'!$W$5:$Z$56,4) -> 1300 | CI6: =('Weighting Factors'!$Q$5/'Weighting Factors'!$Q$14) -> 1 | CJ6: 128700 | CK6: =CJ6*'Weighting Factors'!$S$7 -> 128700 | CL6: 128700 | CM6: =AM6/'Weighting Factors'!$Q$5 -> 30.9 | CN6: 0 | CO6: 0 | CP6: 0 | CQ6: 0 | CR6: =SUM((AV6*'Weighting Factors'!$Q$5)+'2019 Legal Max'!BA6)*CQ6 -> 0 | CS6: 0 | CT6: 0.3122 | CU6: 0 | CV6: 0 | CW6: 1199.2 | CX6: ='LOB Transfers'!G5 -> 140577 | CY6: ='LOB Transfers'!J5 -> 66538 | CZ6: D0102
A7: 103 | B7: Cheyenne | C7: Cheylin | D7: 133.5 | E7: 0 | F7: 133.5 | G7: 127 | H7: 0 | I7: 127 | J7: 128.5 | K7: 0 | L7: 128.5 | M7: =IF(ISNA(VLOOKUP($CZ7,'Audit Values'!$A$2:$BW$363,2,FALSE)),'Preliminary SO66'!C6,VLOOKUP($CZ7,'Audit Values'!$A$2:$BW$363,73,FALSE)) -> 126.5 | N7: =IF(ISNA(VLOOKUP($CZ7,'Audit Values'!$A$2:$BW$363,2,FALSE)),'Preliminary SO66'!F6,VLOOKUP($CZ7,'Audit Values'!$A$2:$BW$363,4,FALSE)) -> 0 | O7: 126.5 | P7: =IF('Military Provision'!J8="YES", MAX('2019 Legal Max'!L7,'2019 Legal Max'!I7,AVERAGE('2019 Legal Max'!F7,'2019 Legal Max'!I7,'2019 Legal Max'!L7)), MAX(L7, I7)) -> 128.5 | Q7: =IF(ISNA(VLOOKUP($CZ7,'Audit Values'!$A$2:$BU$351,2,FALSE)),'Preliminary SO66'!AL6,VLOOKUP($CZ7,'Audit Values'!$A$2:$BU$3953,58,FALSE)) -> 0 | R7: 0 | S7: 128.5 | T7: 120.6 | U7: =IF(ISNA(VLOOKUP($CZ7,'Audit Values'!$A$2:$BW$315,2,FALSE)),'Preliminary SO66'!AM6,VLOOKUP($CZ7,'Audit Values'!$A$2:$BW$315,62,FALSE)) -> 142.6 | V7: =(U7/6)*'Weighting Factors'!$Q$7 -> 9.4 | W7: =IF(ISNA(VLOOKUP($CZ7,'Audit Values'!$A$2:$BW$351,2,FALSE)),'Preliminary SO66'!AN6,VLOOKUP($CZ7,'Audit Values'!$A$2:$BW$351,61,FALSE)) -> 30 | X7: =W7*'Weighting Factors'!$Q$8 -> 5.6 | Y7: 9.4 | Z7: =IF(ISNA(VLOOKUP($CZ7,'Audit Values'!$A$2:$BW$315,2,FALSE)),'Preliminary SO66'!AO6,VLOOKUP($CZ7,'Audit Values'!$A$2:$BW$315,60,FALSE)) -> 58.4 | AA7: =Z7/6*'Weighting Factors'!$Q$6 -> 4.9 | AB7: =IF(ISNA(VLOOKUP($CZ7,'Audit Values'!$A$2:$BU$351,2,FALSE)),'Preliminary SO66'!AS6,VLOOKUP($CZ7,'Audit Values'!$A$2:$BU$351,63,FALSE)) -> 127 | AC7: 0 | AD7: =IF(ISNA(VLOOKUP($CZ7,'Audit Values'!$A$2:$BU$351,2,FALSE)),'Preliminary SO66'!AP6,VLOOKUP($CZ7,'Audit Values'!$A$2:$BU$351,64,FALSE)) -> 59 | AE7: =IF(A7=207, AD7,MAX(AC7,AD7))*'Weighting Factors'!$Q$9 -> 28.6 | AF7: 4.7 | AG7: =IF(ISNA(VLOOKUP($CZ7,'Audit Values'!$A$2:$BW$351,2,FALSE)),'Preliminary SO66'!AG6,VLOOKUP($CZ7,'Audit Values'!$A$2:$BW$351,70,FALSE)) -> 4.8 | AH7: 4.8 | AI7: =IF(ISNA(VLOOKUP($CZ7,'Audit Values'!$A$2:$BU$351,2,FALSE)),'Preliminary SO66'!AQ6,VLOOKUP($CZ7,'Audit Values'!$A$2:$BU$351,65,FALSE)) -> 0 | AJ7: =AI7*'Weighting Factors'!$Q$10 -> 0 | AK7: =IF(ISNA(VLOOKUP($CZ7,'Audit Values'!$A$2:$BU$351,2,FALSE)),'Preliminary SO66'!AR6,VLOOKUP($CZ7,'Audit Values'!$A$2:$BU$351,66,FALSE)) -> 55 | AM7: 82500 | AN7: 105545 | AO7: =MAX(AN7, AM7)/'Weighting Factors'!$Q$5 -> 25.3 | AP7: =CN7/'Weighting Factors'!$Q$5 -> 0 | AQ7: 0 | AR7: =CS7/'Weighting Factors'!$Q$5 -> 0 | AS7: 136937 | AT7: =AS7/'Weighting Factors'!$Q$5 -> 32.9 | AU7: =IF(ISNA(VLOOKUP($CZ7,'Audit Values'!$A$2:$BU$351,2,FALSE)),'Preliminary SO66'!X6,VLOOKUP($CZ7,'Audit Values'!$A$2:$BU$351,47,FALSE)) -> 0 | AV7: 355 | AW7: 322.1 | AX7: =IF(ISNA(VLOOKUP($CZ7,'Audit Values'!$A$2:$BU$351,2,FALSE)),'Preliminary SO66'!AA6,VLOOKUP($CZ7,'Audit Values'!$A$2:$BU$351,41,FALSE)) -> 0 | AY7: =IF(ISNA(VLOOKUP($CZ7,'Audit Values'!$A$2:$BU$351,2,FALSE)),'Preliminary SO66'!AB6,VLOOKUP($CZ7,'Audit Values'!$A$2:$BU$351,42,FALSE)) -> 0 | AZ7: 0 | BA7: =SUM(AX7*'Weighting Factors'!$T$10)+('2019 Legal Max'!AY7*'Weighting Factors'!$T$11)+('2019 Legal Max'!AZ7*'Weighting Factors'!$T$12) -> 0 | BB7: 0 | BC7: =IF(ISNA(VLOOKUP($CZ7,'Audit Values'!$A$2:$BU$351,2,FALSE)),"",IF(AND('Weighting Factors'!H7>0,VLOOKUP($CZ7,'Audit Values'!$A$2:$BU$351,51,FALSE)<'Weighting Factors'!H7),'Weighting Factors'!H7,VLOOKUP($CZ7,'Audit Values'!$A$2:$BU$351,50,FALSE))) -> 16 | BD7: =IF(ISNA(VLOOKUP($CZ7,'Audit Values'!$A$2:$BV$351,2,FALSE)),"",VLOOKUP($CZ7,'Audit Values'!$A$2:$BV$351,51,FALSE)) -> A | BE7: =IF('Weighting Factors'!H7="","",IF('Weighting Factors'!J7="Pending","PX","R")) ->  | BF7: =SUM((S7+T7+Y7+AA7+AE7+AH7+AJ7++AO7+AP7+AQ7+AU7+AR7)*'Weighting Factors'!$Q$5)+'2019 Legal Max'!BA7+'2019 Legal Max'!BB7 -> 1341547 | BG7: =SUM((AV7+AR7)*'Weighting Factors'!$Q$5)+BA7+'2019 Legal Max'!BB7 -> 1478575 | BH7: =IF('Weighting Factors'!H7>0,'Weighting Factors'!H7,'Preliminary SO66'!AV6) -> 1589364 | BI7: 1478575 | BK7: ='Weighting Factors'!F7 -> -13187 | BL7: ='Weighting Factors'!E7 -> 0 | BM7: -13187 | BN7: 1465388 | BO7: =SUM((S7+T7+Y7+AA7+AE7+AH7+AJ7++AO7+AP7+AQ7+AR7)*'Weighting Factors'!Q$12)+(MAX(AS7,'Weighting Factors'!B7)) -> 1636484 | BP7: 0.3 | BQ7: 490945 | BR7: 509803 | BS7: 490945 | BT7: 0.3 | BU7: 0 | BV7: TRUE | BW7: 275.168 | BX7: 0.938785 | BY7: 120.6 | BZ7: FALSE | CA7: 0 | CB7: 0 | CC7: 0 | CD7: 0 | CE7: 688 | CF7: 0.08 | CG7: =IF(CF7<0.06,1,IF(CF7>=18.29,52,MATCH(CF7-0.001,'Weighting Factors'!$Y$5:$Y$156)+1)) -> 4 | CH7: =VLOOKUP(CG7, 'Weighting Factors'!$W$5:$Z$56,4) -> 1500 | CI7: =('Weighting Factors'!$Q$5/'Weighting Factors'!$Q$14) -> 1 | CJ7: 82500 | CK7: =CJ7*'Weighting Factors'!$S$7 -> 82500 | CL7: 82500 | CM7: =AM7/'Weighting Factors'!$Q$5 -> 19.8 | CN7: 0 | CO7: 0 | CP7: 0 | CQ7: 0 | CR7: =SUM((AV7*'Weighting Factors'!$Q$5)+'2019 Legal Max'!BA7)*CQ7 -> 0 | CS7: 0 | CT7: 0.4646 | CU7: 0 | CV7: 4.7 | CW7: 355 | CX7: ='LOB Transfers'!G6 -> 39570 | CY7: ='LOB Transfers'!J6 -> 13010 | CZ7: D0103
A8: 105 | B8: Rawlins | C8: Rawlins County | D8: 333.4 | E8: 0 | F8: 333.4 | G8: 335 | H8: 0 | I8: 335 | J8: 329.5 | K8: 0 | L8: 329.5 | M8: =IF(ISNA(VLOOKUP($CZ8,'Audit Values'!$A$2:$BW$363,2,FALSE)),'Preliminary SO66'!C7,VLOOKUP($CZ8,'Audit Values'!$A$2:$BW$363,73,FALSE)) -> 353.9 | N8: =IF(ISNA(VLOOKUP($CZ8,'Audit Values'!$A$2:$BW$363,2,FALSE)),'Preliminary SO66'!F7,VLOOKUP($CZ8,'Audit Values'!$A$2:$BW$363,4,FALSE)) -> 0 | O8: 353.9 | P8: =IF('Military Provision'!J9="YES", MAX('2019 Legal Max'!L8,'2019 Legal Max'!I8,AVERAGE('2019 Legal Max'!F8,'2019 Legal Max'!I8,'2019 Legal Max'!L8)), MAX(L8, I8)) -> 335 | Q8: =IF(ISNA(VLOOKUP($CZ8,'Audit Values'!$A$2:$BU$351,2,FALSE)),'Preliminary SO66'!AL7,VLOOKUP($CZ8,'Audit Values'!$A$2:$BU$3953,58,FALSE)) -> 0 | R8: 0 | S8: 335 | T8: 158.2 | U8: =IF(ISNA(VLOOKUP($CZ8,'Audit Values'!$A$2:$BW$315,2,FALSE)),'Preliminary SO66'!AM7,VLOOKUP($CZ8,'Audit Values'!$A$2:$BW$315,62,FALSE)) -> 65.1 | V8: =(U8/6)*'Weighting Factors'!$Q$7 -> 4.3 | W8: =IF(ISNA(VLOOKUP($CZ8,'Audit Values'!$A$2:$BW$351,2,FALSE)),'Preliminary SO66'!AN7,VLOOKUP($CZ8,'Audit Values'!$A$2:$BW$351,61,FALSE)) -> 28 | X8: =W8*'Weighting Factors'!$Q$8 -> 5.2 | Y8: 5.2 | Z8: =IF(ISNA(VLOOKUP($CZ8,'Audit Values'!$A$2:$BW$315,2,FALSE)),'Preliminary SO66'!AO7,VLOOKUP($CZ8,'Audit Values'!$A$2:$BW$315,60,FALSE)) -> 101.3 | AA8: =Z8/6*'Weighting Factors'!$Q$6 -> 8.4 | AB8: =IF(ISNA(VLOOKUP($CZ8,'Audit Values'!$A$2:$BU$351,2,FALSE)),'Preliminary SO66'!AS7,VLOOKUP($CZ8,'Audit Values'!$A$2:$BU$351,63,FALSE)) -> 356 | AC8: 0 | AD8: =IF(ISNA(VLOOKUP($CZ8,'Audit Values'!$A$2:$BU$351,2,FALSE)),'Preliminary SO66'!AP7,VLOOKUP($CZ8,'Audit Values'!$A$2:$BU$351,64,FALSE)) -> 152 | AE8: =IF(A8=207, AD8,MAX(AC8,AD8))*'Weighting Factors'!$Q$9 -> 73.6 | AF8: 8.2 | AG8: =IF(ISNA(VLOOKUP($CZ8,'Audit Values'!$A$2:$BW$351,2,FALSE)),'Preliminary SO66'!AG7,VLOOKUP($CZ8,'Audit Values'!$A$2:$BW$351,70,FALSE)) -> 8.2 | AH8: 8.2 | AI8: =IF(ISNA(VLOOKUP($CZ8,'Audit Values'!$A$2:$BU$351,2,FALSE)),'Preliminary SO66'!AQ7,VLOOKUP($CZ8,'Audit Values'!$A$2:$BU$351,65,FALSE)) -> 0 | AJ8: =AI8*'Weighting Factors'!$Q$10 -> 0 | AK8: =IF(ISNA(VLOOKUP($CZ8,'Audit Values'!$A$2:$BU$351,2,FALSE)),'Preliminary SO66'!AR7,VLOOKUP($CZ8,'Audit Values'!$A$2:$BU$351,66,FALSE)) -> 126.5 | AM8: 166980 | AN8: 196837 | AO8: =MAX(AN8, AM8)/'Weighting Factors'!$Q$5 -> 47.3 | AP8: =CN8/'Weighting Factors'!$Q$5 -> 0 | AQ8: 0 | AR8: =CS8/'Weighting Factors'!$Q$5 -> 0 | AS8: 276934 | AT8: =AS8/'Weighting Factors'!$Q$5 -> 66.5 | AU8: =IF(ISNA(VLOOKUP($CZ8,'Audit Values'!$A$2:$BU$351,2,FALSE)),'Preliminary SO66'!X7,VLOOKUP($CZ8,'Audit Values'!$A$2:$BU$351,47,FALSE)) -> 0 | AV8: 702.4 | AW8: 635.9 | AX8: =IF(ISNA(VLOOKUP($CZ8,'Audit Values'!$A$2:$BU$351,2,FALSE)),'Preliminary SO66'!AA7,VLOOKUP($CZ8,'Audit Values'!$A$2:$BU$351,41,FALSE)) -> 0 | AY8: =IF(ISNA(VLOOKUP($CZ8,'Audit Values'!$A$2:$BU$351,2,FALSE)),'Preliminary SO66'!AB7,VLOOKUP($CZ8,'Audit Values'!$A$2:$BU$351,42,FALSE)) -> 0 | AZ8: 0 | BA8: =SUM(AX8*'Weighting Factors'!$T$10)+('2019 Legal Max'!AY8*'Weighting Factors'!$T$11)+('2019 Legal Max'!AZ8*'Weighting Factors'!$T$12) -> 0 | BB8: 0 | BC8: =IF(ISNA(VLOOKUP($CZ8,'Audit Values'!$A$2:$BU$351,2,FALSE)),"",IF(AND('Weighting Factors'!H8>0,VLOOKUP($CZ8,'Audit Values'!$A$2:$BU$351,51,FALSE)<'Weighting Factors'!H8),'Weighting Factors'!H8,VLOOKUP($CZ8,'Audit Values'!$A$2:$BU$351,50,FALSE))) -> 17 | BD8: =IF(ISNA(VLOOKUP($CZ8,'Audit Values'!$A$2:$BV$351,2,FALSE)),"",VLOOKUP($CZ8,'Audit Values'!$A$2:$BV$351,51,FALSE)) -> A | BE8: =IF('Weighting Factors'!H8="","",IF('Weighting Factors'!J8="Pending","PX","R")) -> R | BF8: =SUM((S8+T8+Y8+AA8+AE8+AH8+AJ8++AO8+AP8+AQ8+AU8+AR8)*'Weighting Factors'!$Q$5)+'2019 Legal Max'!BA8+'2019 Legal Max'!BB8 -> 2648524 | BG8: =SUM((AV8+AR8)*'Weighting Factors'!$Q$5)+BA8+'2019 Legal Max'!BB8 -> 2925496 | BH8: =IF('Weighting Factors'!H8>0,'Weighting Factors'!H8,'Preliminary SO66'!AV7) -> 2982557 | BI8: 2925496 | BK8: ='Weighting Factors'!F8 -> 0 | BL8: ='Weighting Factors'!E8 -> 0 | BM8: 0 | BN8: 2925496 | BO8: =SUM((S8+T8+Y8+AA8+AE8+AH8+AJ8++AO8+AP8+AQ8+AR8)*'Weighting Factors'!Q$12)+(MAX(AS8,'Weighting Factors'!B8)) -> 3188794 | BP8: 0.3 | BQ8: 956638 | BR8: 950711 | BS8: 950711 | BT8: 0.2981 | BU8: 0 | BV8: FALSE | BW8: 0 | BX8: 0 | BY8: 0 | BZ8: TRUE | CA8: 43.3125 | CB8: 0.472295 | CC8: 158.2 | CD8: 0 | CE8: 740.1 | CF8: 0.171 | CG8: =IF(CF8<0.06,1,IF(CF8>=18.29,52,MATCH(CF8-0.001,'Weighting Factors'!$Y$5:$Y$156)+1)) -> 13 | CH8: =VLOOKUP(CG8, 'Weighting Factors'!$W$5:$Z$56,4) -> 1320 | CI8: =('Weighting Factors'!$Q$5/'Weighting Factors'!$Q$14) -> 1 | CJ8: 166980 | CK8: =CJ8*'Weighting Factors'!$S$7 -> 166980 | CL8: 166980 | CM8: =AM8/'Weighting Factors'!$Q$5 -> 40.1 | CN8: 0 | CO8: 0 | CP8: 0 | CQ8: 0 | CR8: =SUM((AV8*'Weighting Factors'!$Q$5)+'2019 Legal Max'!BA8)*CQ8 -> 0 | CS8: 0 | CT8: 0.427 | CU8: 0 | CV8: 8.2 | CW8: 702.4 | CX8: ='LOB Transfers'!G7 -> 99635 | CY8: ='LOB Transfers'!J7 -> 7035 | CZ8: D0105
A9: 106 | B9: Ness | C9: Western Plains | D9: 104 | E9: 0 | F9: 104 | G9: 105.8 | H9: 0 | I9: 105.8 | J9: 94.5 | K9: 0 | L9: 94.5 | M9: =IF(ISNA(VLOOKUP($CZ9,'Audit Values'!$A$2:$BW$363,2,FALSE)),'Preliminary SO66'!C8,VLOOKUP($CZ9,'Audit Values'!$A$2:$BW$363,73,FALSE)) -> 99.5 | N9: =IF(ISNA(VLOOKUP($CZ9,'Audit Values'!$A$2:$BW$363,2,FALSE)),'Preliminary SO66'!F8,VLOOKUP($CZ9,'Audit Values'!$A$2:$BW$363,4,FALSE)) -> 0 | O9: 99.5 | P9: =IF('Military Provision'!J10="YES", MAX('2019 Legal Max'!L9,'2019 Legal Max'!I9,AVERAGE('2019 Legal Max'!F9,'2019 Legal Max'!I9,'2019 Legal Max'!L9)), MAX(L9, I9)) -> 105.8 | Q9: =IF(ISNA(VLOOKUP($CZ9,'Audit Values'!$A$2:$BU$351,2,FALSE)),'Preliminary SO66'!AL8,VLOOKUP($CZ9,'Audit Values'!$A$2:$BU$3953,58,FALSE)) -> 3 | R9: 0 | S9: 108.8 | T9: 107.8 | U9: =IF(ISNA(VLOOKUP($CZ9,'Audit Values'!$A$2:$BW$315,2,FALSE)),'Preliminary SO66'!AM8,VLOOKUP($CZ9,'Audit Values'!$A$2:$BW$315,62,FALSE)) -> 110.3 | V9: =(U9/6)*'Weighting Factors'!$Q$7 -> 7.3 | W9: =IF(ISNA(VLOOKUP($CZ9,'Audit Values'!$A$2:$BW$351,2,FALSE)),'Preliminary SO66'!AN8,VLOOKUP($CZ9,'Audit Values'!$A$2:$BW$351,61,FALSE)) -> 23 | X9: =W9*'Weighting Factors'!$Q$8 -> 4.3 | Y9: 7.3 | Z9: =IF(ISNA(VLOOKUP($CZ9,'Audit Values'!$A$2:$BW$315,2,FALSE)),'Preliminary SO66'!AO8,VLOOKUP($CZ9,'Audit Values'!$A$2:$BW$315,60,FALSE)) -> 82.6 | AA9: =Z9/6*'Weighting Factors'!$Q$6 -> 6.9 | AB9: =IF(ISNA(VLOOKUP($CZ9,'Audit Values'!$A$2:$BU$351,2,FALSE)),'Preliminary SO66'!AS8,VLOOKUP($CZ9,'Audit Values'!$A$2:$BU$351,63,FALSE)) -> 107 | AC9: 0 | AD9: =IF(ISNA(VLOOKUP($CZ9,'Audit Values'!$A$2:$BU$351,2,FALSE)),'Preliminary SO66'!AP8,VLOOKUP($CZ9,'Audit Values'!$A$2:$BU$351,64,FALSE)) -> 66 | AE9: =IF(A9=207, AD9,MAX(AC9,AD9))*'Weighting Factors'!$Q$9 -> 31.9 | AF9: 6.9 | AG9: =IF(ISNA(VLOOKUP($CZ9,'Audit Values'!$A$2:$BW$351,2,FALSE)),'Preliminary SO66'!AG8,VLOOKUP($CZ9,'Audit Values'!$A$2:$BW$351,70,FALSE)) -> 5.6 | AH9: 6.9 | AI9: =IF(ISNA(VLOOKUP($CZ9,'Audit Values'!$A$2:$BU$351,2,FALSE)),'Preliminary SO66'!AQ8,VLOOKUP($CZ9,'Audit Values'!$A$2:$BU$351,65,FALSE)) -> 0 | AJ9: =AI9*'Weighting Factors'!$Q$10 -> 0 | AK9: =IF(ISNA(VLOOKUP($CZ9,'Audit Values'!$A$2:$BU$351,2,FALSE)),'Preliminary SO66'!AR8,VLOOKUP($CZ9,'Audit Values'!$A$2:$BU$351,66,FALSE)) -> 40 | AM9: 63200 | AN9: 98996 | AO9: =MAX(AN9, AM9)/'Weighting Factors'!$Q$5 -> 23.8 | AP9: =CN9/'Weighting Factors'!$Q$5 -> 0 | AQ9: 0 | AR9: =CS9/'Weighting Factors'!$Q$5 -> 0 | AS9: 68633 | AT9: =AS9/'Weighting Factors'!$Q$5 -> 16.5 | AU9: =IF(ISNA(VLOOKUP($CZ9,'Audit Values'!$A$2:$BU$351,2,FALSE)),'Preliminary SO66'!X8,VLOOKUP($CZ9,'Audit Values'!$A$2:$BU$351,47,FALSE)) -> 0 | AV9: 309.9 | AW9: 293.4 | AX9: =IF(ISNA(VLOOKUP($CZ9,'Audit Values'!$A$2:$BU$351,2,FALSE)),'Preliminary SO66'!AA8,VLOOKUP($CZ9,'Audit Values'!$A$2:$BU$351,41,FALSE)) -> 0 | AY9: =IF(ISNA(VLOOKUP($CZ9,'Audit Values'!$A$2:$BU$351,2,FALSE)),'Preliminary SO66'!AB8,VLOOKUP($CZ9,'Audit Values'!$A$2:$BU$351,42,FALSE)) -> 0 | AZ9: 0 | BA9: =SUM(AX9*'Weighting Factors'!$T$10)+('2019 Legal Max'!AY9*'Weighting Factors'!$T$11)+('2019 Legal Max'!AZ9*'Weighting Factors'!$T$12) -> 0 | BB9: 0 | BC9: =IF(ISNA(VLOOKUP($CZ9,'Audit Values'!$A$2:$BU$351,2,FALSE)),"",IF(AND('Weighting Factors'!H9>0,VLOOKUP($CZ9,'Audit Values'!$A$2:$BU$351,51,FALSE)<'Weighting Factors'!H9),'Weighting Factors'!H9,VLOOKUP($CZ9,'Audit Values'!$A$2:$BU$351,50,FALSE))) -> 18 | BD9: =IF(ISNA(VLOOKUP($CZ9,'Audit Values'!$A$2:$BV$351,2,FALSE)),"",VLOOKUP($CZ9,'Audit Values'!$A$2:$BV$351,51,FALSE)) -> A | BE9: =IF('Weighting Factors'!H9="","",IF('Weighting Factors'!J9="Pending","PX","R")) ->  | BF9: =SUM((S9+T9+Y9+AA9+AE9+AH9+AJ9++AO9+AP9+AQ9+AU9+AR9)*'Weighting Factors'!$Q$5)+'2019 Legal Max'!BA9+'2019 Legal Max'!BB9 -> 1222011 | BG9: =SUM((AV9+AR9)*'Weighting Factors'!$Q$5)+BA9+'2019 Legal Max'!BB9 -> 1290734 | BH9: =IF('Weighting Factors'!H9>0,'Weighting Factors'!H9,'Preliminary SO66'!AV8) -> 1294066 | BI9: 1290734 | BK9: ='Weighting Factors'!F9 -> -49409 | BL9: ='Weighting Factors'!E9 -> 0 | BM9: -49409 | BN9: 1241325 | BO9: =SUM((S9+T9+Y9+AA9+AE9+AH9+AJ9++AO9+AP9+AQ9+AR9)*'Weighting Factors'!Q$12)+(MAX(AS9,'Weighting Factors'!B9)) -> 1468708 | BP9: 0.33 | BQ9: 484674 | BR9: 475635 | BS9: 475635 | BT9: 0.3238 | BU9: 0 | BV9: TRUE | BW9: 84.964 | BX9: 0.991005 | BY9: 107.8 | BZ9: FALSE | CA9: 0 | CB9: 0 | CC9: 0 | CD9: 0 | CE9: 601.2 | CF9: 0.067 | CG9: =IF(CF9<0.06,1,IF(CF9>=18.29,52,MATCH(CF9-0.001,'Weighting Factors'!$Y$5:$Y$156)+1)) -> 2 | CH9: =VLOOKUP(CG9, 'Weighting Factors'!$W$5:$Z$56,4) -> 1580 | CI9: =('Weighting Factors'!$Q$5/'Weighting Factors'!$Q$14) -> 1 | CJ9: 63200 | CK9: =CJ9*'Weighting Factors'!$S$7 -> 63200 | CL9: 63200 | CM9: =AM9/'Weighting Factors'!$Q$5 -> 15.2 | CN9: 0 | CO9: 0 | CP9: 0 | CQ9: 0 | CR9: =SUM((AV9*'Weighting Factors'!$Q$5)+'2019 Legal Max'!BA9)*CQ9 -> 0 | CS9: 0 | CT9: 0.6168 | CU9: 6.9 | CV9: 0 | CW9: 309.9 | CX9: ='LOB Transfers'!G8 -> 49418 | CY9: ='LOB Transfers'!J8 -> 11320 | CZ9: D0106
A10: 107 | B10: Jewell | C10: Rock Hills | D10: 269.5 | E10: 0 | F10: 269.5 | G10: 295 | H10: 0 | I10: 295 | J10: 302.5 | K10: 0 | L10: 302.5 | M10: =IF(ISNA(VLOOKUP($CZ10,'Audit Values'!$A$2:$BW$363,2,FALSE)),'Preliminary SO66'!C9,VLOOKUP($CZ10,'Audit Values'!$A$2:$BW$363,73,FALSE)) -> 293.5 | N10: =IF(ISNA(VLOOKUP($CZ10,'Audit Values'!$A$2:$BW$363,2,FALSE)),'Preliminary SO66'!F9,VLOOKUP($CZ10,'Audit Values'!$A$2:$BW$363,4,FALSE)) -> 0 | O10: 293.5 | P10: =IF('Military Provision'!J11="YES", MAX('2019 Legal Max'!L10,'2019 Legal Max'!I10,AVERAGE('2019 Legal Max'!F10,'2019 Legal Max'!I10,'2019 Legal Max'!L10)), MAX(L10, I10)) -> 302.5 | Q10: =IF(ISNA(VLOOKUP($CZ10,'Audit Values'!$A$2:$BU$351,2,FALSE)),'Preliminary SO66'!AL9,VLOOKUP($CZ10,'Audit Values'!$A$2:$BU$3953,58,FALSE)) -> 4.5 | R10: 0 | S10: 307 | T10: 147.9 | U10: =IF(ISNA(VLOOKUP($CZ10,'Audit Values'!$A$2:$BW$315,2,FALSE)),'Preliminary SO66'!AM9,VLOOKUP($CZ10,'Audit Values'!$A$2:$BW$315,62,FALSE)) -> 0 | V10: =(U10/6)*'Weighting Factors'!$Q$7 -> 0 | W10: =IF(ISNA(VLOOKUP($CZ10,'Audit Values'!$A$2:$BW$351,2,FALSE)),'Preliminary SO66'!AN9,VLOOKUP($CZ10,'Audit Values'!$A$2:$BW$351,61,FALSE)) -> 0 | X10: =W10*'Weighting Factors'!$Q$8 -> 0 | Y10: 0 | Z10: =IF(ISNA(VLOOKUP($CZ10,'Audit Values'!$A$2:$BW$315,2,FALSE)),'Preliminary SO66'!AO9,VLOOKUP($CZ10,'Audit Values'!$A$2:$BW$315,60,FALSE)) -> 62.6 | AA10: =Z10/6*'Weighting Factors'!$Q$6 -> 5.2 | AB10: =IF(ISNA(VLOOKUP($CZ10,'Audit Values'!$A$2:$BU$351,2,FALSE)),'Preliminary SO66'!AS9,VLOOKUP($CZ10,'Audit Values'!$A$2:$BU$351,63,FALSE)) -> 304 | AC10: 0 | AD10: =IF(ISNA(VLOOKUP($CZ10,'Audit Values'!$A$2:$BU$351,2,FALSE)),'Preliminary SO66'!AP9,VLOOKUP($CZ10,'Audit Values'!$A$2:$BU$351,64,FALSE)) -> 143 | AE10: =IF(A10=207, AD10,MAX(AC10,AD10))*'Weighting Factors'!$Q$9 -> 69.2 | AF10: 12.1 | AG10: =IF(ISNA(VLOOKUP($CZ10,'Audit Values'!$A$2:$BW$351,2,FALSE)),'Preliminary SO66'!AG9,VLOOKUP($CZ10,'Audit Values'!$A$2:$BW$351,70,FALSE)) -> 12.1 | AH10: 12.1 | AI10: =IF(ISNA(VLOOKUP($CZ10,'Audit Values'!$A$2:$BU$351,2,FALSE)),'Preliminary SO66'!AQ9,VLOOKUP($CZ10,'Audit Values'!$A$2:$BU$351,65,FALSE)) -> 0 | AJ10: =AI10*'Weighting Factors'!$Q$10 -> 0 | AK10: =IF(ISNA(VLOOKUP($CZ10,'Audit Values'!$A$2:$BU$351,2,FALSE)),'Preliminary SO66'!AR9,VLOOKUP($CZ10,'Audit Values'!$A$2:$BU$351,66,FALSE)) -> 138 | AM10: 179400 | AN10: 228038 | AO10: =MAX(AN10, AM10)/'Weighting Factors'!$Q$5 -> 54.8 | AP10: =CN10/'Weighting Factors'!$Q$5 -> 0 | AQ10: 0 | AR10: =CS10/'Weighting Factors'!$Q$5 -> 0 | AS10: 355410 | AT10: =AS10/'Weighting Factors'!$Q$5 -> 85.3 | AU10: =IF(ISNA(VLOOKUP($CZ10,'Audit Values'!$A$2:$BU$351,2,FALSE)),'Preliminary SO66'!X9,VLOOKUP($CZ10,'Audit Values'!$A$2:$BU$351,47,FALSE)) -> 0 | AV10: 681.5 | AW10: 596.2 | AX10: =IF(ISNA(VLOOKUP($CZ10,'Audit Values'!$A$2:$BU$351,2,FALSE)),'Preliminary SO66'!AA9,VLOOKUP($CZ10,'Audit Values'!$A$2:$BU$351,41,FALSE)) -> 1 | AY10: =IF(ISNA(VLOOKUP($CZ10,'Audit Values'!$A$2:$BU$351,2,FALSE)),'Preliminary SO66'!AB9,VLOOKUP($CZ10,'Audit Values'!$A$2:$BU$351,42,FALSE)) -> 0 | AZ10: 0 | BA10: =SUM(AX10*'Weighting Factors'!$T$10)+('2019 Legal Max'!AY10*'Weighting Factors'!$T$11)+('2019 Legal Max'!AZ10*'Weighting Factors'!$T$12) -> 5000 | BB10: 0 | BC10: =IF(ISNA(VLOOKUP($CZ10,'Audit Values'!$A$2:$BU$351,2,FALSE)),"",IF(AND('Weighting Factors'!H10>0,VLOOKUP($CZ10,'Audit Values'!$A$2:$BU$351,51,FALSE)<'Weighting Factors'!H10),'Weighting Factors'!H10,VLOOKUP($CZ10,'Audit Values'!$A$2:$BU$351,50,FALSE))) -> 18 | BD10: =IF(ISNA(VLOOKUP($CZ10,'Audit Values'!$A$2:$BV$351,2,FALSE)),"",VLOOKUP($CZ10,'Audit Values'!$A$2:$BV$351,51,FALSE)) -> A | BE10: =IF('Weighting Factors'!H10="","",IF('Weighting Factors'!J10="Pending","PX","R")) ->  | BF10: =SUM((S10+T10+Y10+AA10+AE10+AH10+AJ10++AO10+AP10+AQ10+AU10+AR10)*'Weighting Factors'!$Q$5)+'2019 Legal Max'!BA10+'2019 Legal Max'!BB10 -> 2488173 | BG10: =SUM((AV10+AR10)*'Weighting Factors'!$Q$5)+BA10+'2019 Legal Max'!BB10 -> 2843448 | BH10: =IF('Weighting Factors'!H10>0,'Weighting Factors'!H10,'Preliminary SO66'!AV9) -> 2997551 | BI10: 2843448 | BK10: ='Weighting Factors'!F10 -> 0 | BL10: ='Weighting Factors'!E10 -> 0 | BM10: 0 | BN10: 2843448 | BO10: =SUM((S10+T10+Y10+AA10+AE10+AH10+AJ10++AO10+AP10+AQ10+AR10)*'Weighting Factors'!Q$12)+(MAX(AS10,'Weighting Factors'!B10)) -> 3032348 | BP10: 0.3 | BQ10: 909704 | BR10: 800000 | BS10: 800000 | BT10: 0.2638 | BU10: 0 | BV10: FALSE | BW10: 0 | BX10: 0 | BY10: 0 | BZ10: TRUE | CA10: 8.6625 | CB10: 0.481808 | CC10: 147.9 | CD10: 0 | CE10: 762 | CF10: 0.181 | CG10: =IF(CF10<0.06,1,IF(CF10>=18.29,52,MATCH(CF10-0.001,'Weighting Factors'!$Y$5:$Y$156)+1)) -> 14 | CH10: =VLOOKUP(CG10, 'Weighting Factors'!$W$5:$Z$56,4) -> 1300 | CI10: =('Weighting Factors'!$Q$5/'Weighting Factors'!$Q$14) -> 1 | CJ10: 179400 | CK10: =CJ10*'Weighting Factors'!$S$7 -> 179400 | CL10: 179400 | CM10: =AM10/'Weighting Factors'!$Q$5 -> 43.1 | CN10: 0 | CO10: 0 | CP10: 0 | CQ10: 0 | CR10: =SUM((AV10*'Weighting Factors'!$Q$5)+'2019 Legal Max'!BA10)*CQ10 -> 0 | CS10: 0 | CT10: 0.4704 | CU10: 0 | CV10: 12.1 | CW10: 681.5 | CX10: ='LOB Transfers'!G9 -> 81760 | CY10: ='LOB Transfers'!J9 -> 0 | CZ10: D0107
A11: 108 | B11: Washington | C11: Washington Co. Schools | D11: 337 | E11: 0 | F11: 337 | G11: 334.5 | H11: 0 | I11: 334.5 | J11: 329.2 | K11: 0 | L11: 329.2 | M11: =IF(ISNA(VLOOKUP($CZ11,'Audit Values'!$A$2:$BW$363,2,FALSE)),'Preliminary SO66'!C10,VLOOKUP($CZ11,'Audit Values'!$A$2:$BW$363,73,FALSE)) -> 327.3 | N11: =IF(ISNA(VLOOKUP($CZ11,'Audit Values'!$A$2:$BW$363,2,FALSE)),'Preliminary SO66'!F10,VLOOKUP($CZ11,'Audit Values'!$A$2:$BW$363,4,FALSE)) -> 0 | O11: 327.3 | P11: =IF('Military Provision'!J12="YES", MAX('2019 Legal Max'!L11,'2019 Legal Max'!I11,AVERAGE('2019 Legal Max'!F11,'2019 Legal Max'!I11,'2019 Legal Max'!L11)), MAX(L11, I11)) -> 334.5 | Q11: =IF(ISNA(VLOOKUP($CZ11,'Audit Values'!$A$2:$BU$351,2,FALSE)),'Preliminary SO66'!AL10,VLOOKUP($CZ11,'Audit Values'!$A$2:$BU$3953,58,FALSE)) -> 0 | R11: 0 | S11: 334.5 | T11: 158 | U11: =IF(ISNA(VLOOKUP($CZ11,'Audit Values'!$A$2:$BW$315,2,FALSE)),'Preliminary SO66'!AM10,VLOOKUP($CZ11,'Audit Values'!$A$2:$BW$315,62,FALSE)) -> 8.8 | V11: =(U11/6)*'Weighting Factors'!$Q$7 -> 0.6 | W11: =IF(ISNA(VLOOKUP($CZ11,'Audit Values'!$A$2:$BW$351,2,FALSE)),'Preliminary SO66'!AN10,VLOOKUP($CZ11,'Audit Values'!$A$2:$BW$351,61,FALSE)) -> 15 | X11: =W11*'Weighting Factors'!$Q$8 -> 2.8 | Y11: 2.8 | Z11: =IF(ISNA(VLOOKUP($CZ11,'Audit Values'!$A$2:$BW$315,2,FALSE)),'Preliminary SO66'!AO10,VLOOKUP($CZ11,'Audit Values'!$A$2:$BW$315,60,FALSE)) -> 108.3 | AA11: =Z11/6*'Weighting Factors'!$Q$6 -> 9 | AB11: =IF(ISNA(VLOOKUP($CZ11,'Audit Values'!$A$2:$BU$351,2,FALSE)),'Preliminary SO66'!AS10,VLOOKUP($CZ11,'Audit Values'!$A$2:$BU$351,63,FALSE)) -> 332 | AC11: 0 | AD11: =IF(ISNA(VLOOKUP($CZ11,'Audit Values'!$A$2:$BU$351,2,FALSE)),'Preliminary SO66'!AP10,VLOOKUP($CZ11,'Audit Values'!$A$2:$BU$351,64,FALSE)) -> 111 | AE11: =IF(A11=207, AD11,MAX(AC11,AD11))*'Weighting Factors'!$Q$9 -> 53.7 | AF11: 0 | AG11: =IF(ISNA(VLOOKUP($CZ11,'Audit Values'!$A$2:$BW$351,2,FALSE)),'Preliminary SO66'!AG10,VLOOKUP($CZ11,'Audit Values'!$A$2:$BW$351,70,FALSE)) -> 0.4 | AH11: 0.4 | AI11: =IF(ISNA(VLOOKUP($CZ11,'Audit Values'!$A$2:$BU$351,2,FALSE)),'Preliminary SO66'!AQ10,VLOOKUP($CZ11,'Audit Values'!$A$2:$BU$351,65,FALSE)) -> 0 | AJ11: =AI11*'Weighting Factors'!$Q$10 -> 0 | AK11: =IF(ISNA(VLOOKUP($CZ11,'Audit Values'!$A$2:$BU$351,2,FALSE)),'Preliminary SO66'!AR10,VLOOKUP($CZ11,'Audit Values'!$A$2:$BU$351,66,FALSE)) -> 132 | AM11: 154440 | AN11: 208778 | AO11: =MAX(AN11, AM11)/'Weighting Factors'!$Q$5 -> 50.1 | AP11: =CN11/'Weighting Factors'!$Q$5 -> 0 | AQ11: 0 | AR11: =CS11/'Weighting Factors'!$Q$5 -> 0 | AS11: 341476 | AT11: =AS11/'Weighting Factors'!$Q$5 -> 82 | AU11: =IF(ISNA(VLOOKUP($CZ11,'Audit Values'!$A$2:$BU$351,2,FALSE)),'Preliminary SO66'!X10,VLOOKUP($CZ11,'Audit Values'!$A$2:$BU$351,47,FALSE)) -> 0 | AV11: 690.5 | AW11: 608.5 | AX11: =IF(ISNA(VLOOKUP($CZ11,'Audit Values'!$A$2:$BU$351,2,FALSE)),'Preliminary SO66'!AA10,VLOOKUP($CZ11,'Audit Values'!$A$2:$BU$351,41,FALSE)) -> 0 | AY11: =IF(ISNA(VLOOKUP($CZ11,'Audit Values'!$A$2:$BU$351,2,FALSE)),'Preliminary SO66'!AB10,VLOOKUP($CZ11,'Audit Values'!$A$2:$BU$351,42,FALSE)) -> 0 | AZ11: 0 | BA11: =SUM(AX11*'Weighting Factors'!$T$10)+('2019 Legal Max'!AY11*'Weighting Factors'!$T$11)+('2019 Legal Max'!AZ11*'Weighting Factors'!$T$12) -> 0 | BB11: 0 | BC11: =IF(ISNA(VLOOKUP($CZ11,'Audit Values'!$A$2:$BU$351,2,FALSE)),"",IF(AND('Weighting Factors'!H11>0,VLOOKUP($CZ11,'Audit Values'!$A$2:$BU$351,51,FALSE)<'Weighting Factors'!H11),'Weighting Factors'!H11,VLOOKUP($CZ11,'Audit Values'!$A$2:$BU$351,50,FALSE))) -> 4 | BD11: =IF(ISNA(VLOOKUP($CZ11,'Audit Values'!$A$2:$BV$351,2,FALSE)),"",VLOOKUP($CZ11,'Audit Values'!$A$2:$BV$351,51,FALSE)) -> A | BE11: =IF('Weighting Factors'!H11="","",IF('Weighting Factors'!J11="Pending","PX","R")) ->  | BF11: =SUM((S11+T11+Y11+AA11+AE11+AH11+AJ11++AO11+AP11+AQ11+AU11+AR11)*'Weighting Factors'!$Q$5)+'2019 Legal Max'!BA11+'2019 Legal Max'!BB11 -> 2534403 | BG11: =SUM((AV11+AR11)*'Weighting Factors'!$Q$5)+BA11+'2019 Legal Max'!BB11 -> 2875933 | BH11: =IF('Weighting Factors'!H11>0,'Weighting Factors'!H11,'Preliminary SO66'!AV10) -> 2932993 | BI11: 2875933 | BK11: ='Weighting Factors'!F11 -> -23674 | BL11: ='Weighting Factors'!E11 -> 0 | BM11: -23674 | BN11: 2852259 | BO11: =SUM((S11+T11+Y11+AA11+AE11+AH11+AJ11++AO11+AP11+AQ11+AR11)*'Weighting Factors'!Q$12)+(MAX(AS11,'Weighting Factors'!B11)) -> 3280496 | BP11: 0.3 | BQ11: 984149 | BR11: 987651 | BS11: 984149 | BT11: 0.3 | BU11: 0 | BV11: FALSE | BW11: 0 | BX11: 0 | BY11: 0 | BZ11: TRUE | CA11: 42.6938 | CB11: 0.472465 | CC11: 158 | CD11: 0 | CE11: 389 | CF11: 0.339 | CG11: =IF(CF11<0.06,1,IF(CF11>=18.29,52,MATCH(CF11-0.001,'Weighting Factors'!$Y$5:$Y$156)+1)) -> 21 | CH11: =VLOOKUP(CG11, 'Weighting Factors'!$W$5:$Z$56,4) -> 1170 | CI11: =('Weighting Factors'!$Q$5/'Weighting Factors'!$Q$14) -> 1 | CJ11: 154440 | CK11: =CJ11*'Weighting Factors'!$S$7 -> 154440 | CL11: 154440 | CM11: =AM11/'Weighting Factors'!$Q$5 -> 37.1 | CN11: 0 | CO11: 0 | CP11: 0 | CQ11: 0 | CR11: =SUM((AV11*'Weighting Factors'!$Q$5)+'2019 Legal Max'!BA11)*CQ11 -> 0 | CS11: 0 | CT11: 0.3343 | CU11: 0 | CV11: 0 | CW11: 690.5 | CX11: ='LOB Transfers'!G10 -> 76567 | CY11: ='LOB Transfers'!J10 -> 4035 | CZ11: D0108
A12: 109 | B12: Republic | C12: Republic County | D12: 466 | E12: 0 | F12: 466 | G12: 507.6 | H12: 0 | I12: 507.6 | J12: 511 | K12: 0 | L12: 511 | M12: =IF(ISNA(VLOOKUP($CZ12,'Audit Values'!$A$2:$BW$363,2,FALSE)),'Preliminary SO66'!C11,VLOOKUP($CZ12,'Audit Values'!$A$2:$BW$363,73,FALSE)) -> 515.4 | N12: =IF(ISNA(VLOOKUP($CZ12,'Audit Values'!$A$2:$BW$363,2,FALSE)),'Preliminary SO66'!F11,VLOOKUP($CZ12,'Audit Values'!$A$2:$BW$363,4,FALSE)) -> 0 | O12: 515.4 | P12: =IF('Military Provision'!J13="YES", MAX('2019 Legal Max'!L12,'2019 Legal Max'!I12,AVERAGE('2019 Legal Max'!F12,'2019 Legal Max'!I12,'2019 Legal Max'!L12)), MAX(L12, I12)) -> 511 | Q12: =IF(ISNA(VLOOKUP($CZ12,'Audit Values'!$A$2:$BU$351,2,FALSE)),'Preliminary SO66'!AL11,VLOOKUP($CZ12,'Audit Values'!$A$2:$BU$3953,58,FALSE)) -> 0 | R12: 0 | S12: 511 | T12: 210.8 | U12: =IF(ISNA(VLOOKUP($CZ12,'Audit Values'!$A$2:$BW$315,2,FALSE)),'Preliminary SO66'!AM11,VLOOKUP($CZ12,'Audit Values'!$A$2:$BW$315,62,FALSE)) -> 0 | V12: =(U12/6)*'Weighting Factors'!$Q$7 -> 0 | W12: =IF(ISNA(VLOOKUP($CZ12,'Audit Values'!$A$2:$BW$351,2,FALSE)),'Preliminary SO66'!AN11,VLOOKUP($CZ12,'Audit Values'!$A$2:$BW$351,61,FALSE)) -> 2 | X12: =W12*'Weighting Factors'!$Q$8 -> 0.4 | Y12: 0.4 | Z12: =IF(ISNA(VLOOKUP($CZ12,'Audit Values'!$A$2:$BW$315,2,FALSE)),'Preliminary SO66'!AO11,VLOOKUP($CZ12,'Audit Values'!$A$2:$BW$315,60,FALSE)) -> 112.8 | AA12: =Z12/6*'Weighting Factors'!$Q$6 -> 9.4 | AB12: =IF(ISNA(VLOOKUP($CZ12,'Audit Values'!$A$2:$BU$351,2,FALSE)),'Preliminary SO66'!AS11,VLOOKUP($CZ12,'Audit Values'!$A$2:$BU$351,63,FALSE)) -> 522 | AC12: 0 | AD12: =IF(ISNA(VLOOKUP($CZ12,'Audit Values'!$A$2:$BU$351,2,FALSE)),'Preliminary SO66'!AP11,VLOOKUP($CZ12,'Audit Values'!$A$2:$BU$351,64,FALSE)) -> 186 | AE12: =IF(A12=207, AD12,MAX(AC12,AD12))*'Weighting Factors'!$Q$9 -> 90 | AF12: 0.8 | AG12: =IF(ISNA(VLOOKUP($CZ12,'Audit Values'!$A$2:$BW$351,2,FALSE)),'Preliminary SO66'!AG11,VLOOKUP($CZ12,'Audit Values'!$A$2:$BW$351,70,FALSE)) -> 2.1 | AH12: 2.1 | AI12: =IF(ISNA(VLOOKUP($CZ12,'Audit Values'!$A$2:$BU$351,2,FALSE)),'Preliminary SO66'!AQ11,VLOOKUP($CZ12,'Audit Values'!$A$2:$BU$351,65,FALSE)) -> 0 | AJ12: =AI12*'Weighting Factors'!$Q$10 -> 0 | AK12: =IF(ISNA(VLOOKUP($CZ12,'Audit Values'!$A$2:$BU$351,2,FALSE)),'Preliminary SO66'!AR11,VLOOKUP($CZ12,'Audit Values'!$A$2:$BU$351,66,FALSE)) -> 156.5 | AM12: 189365 | AN12: 251536 | AO12: =MAX(AN12, AM12)/'Weighting Factors'!$Q$5 -> 60.4 | AP12: =CN12/'Weighting Factors'!$Q$5 -> 0 | AQ12: 0 | AR12: =CS12/'Weighting Factors'!$Q$5 -> 0 | AS12: 526823 | AT12: =AS12/'Weighting Factors'!$Q$5 -> 126.5 | AU12: =IF(ISNA(VLOOKUP($CZ12,'Audit Values'!$A$2:$BU$351,2,FALSE)),'Preliminary SO66'!X11,VLOOKUP($CZ12,'Audit Values'!$A$2:$BU$351,47,FALSE)) -> 0 | AV12: 1010.6 | AW12: 884.1 | AX12: =IF(ISNA(VLOOKUP($CZ12,'Audit Values'!$A$2:$BU$351,2,FALSE)),'Preliminary SO66'!AA11,VLOOKUP($CZ12,'Audit Values'!$A$2:$BU$351,41,FALSE)) -> 0 | AY12: =IF(ISNA(VLOOKUP($CZ12,'Audit Values'!$A$2:$BU$351,2,FALSE)),'Preliminary SO66'!AB11,VLOOKUP($CZ12,'Audit Values'!$A$2:$BU$351,42,FALSE)) -> 0 | AZ12: 0 | BA12: =SUM(AX12*'Weighting Factors'!$T$10)+('2019 Legal Max'!AY12*'Weighting Factors'!$T$11)+('2019 Legal Max'!AZ12*'Weighting Factors'!$T$12) -> 0 | BB12: 0 | BC12: =IF(ISNA(VLOOKUP($CZ12,'Audit Values'!$A$2:$BU$351,2,FALSE)),"",IF(AND('Weighting Factors'!H12>0,VLOOKUP($CZ12,'Audit Values'!$A$2:$BU$351,51,FALSE)<'Weighting Factors'!H12),'Weighting Factors'!H12,VLOOKUP($CZ12,'Audit Values'!$A$2:$BU$351,50,FALSE))) -> 1 | BD12: =IF(ISNA(VLOOKUP($CZ12,'Audit Values'!$A$2:$BV$351,2,FALSE)),"",VLOOKUP($CZ12,'Audit Values'!$A$2:$BV$351,51,FALSE)) -> A | BE12: =IF('Weighting Factors'!H12="","",IF('Weighting Factors'!J12="Pending","PX","R")) ->  | BF12: =SUM((S12+T12+Y12+AA12+AE12+AH12+AJ12++AO12+AP12+AQ12+AU12+AR12)*'Weighting Factors'!$Q$5)+'2019 Legal Max'!BA12+'2019 Legal Max'!BB12 -> 3682277 | BG12: =SUM((AV12+AR12)*'Weighting Factors'!$Q$5)+BA12+'2019 Legal Max'!BB12 -> 4209149 | BH12: =IF('Weighting Factors'!H12>0,'Weighting Factors'!H12,'Preliminary SO66'!AV11) -> 4390365 | BI12: 4209149 | BK12: ='Weighting Factors'!F12 -> -44186 | BL12: ='Weighting Factors'!E12 -> 0 | BM12: -44186 | BN12: 4164963 | BO12: =SUM((S12+T12+Y12+AA12+AE12+AH12+AJ12++AO12+AP12+AQ12+AR12)*'Weighting Factors'!Q$12)+(MAX(AS12,'Weighting Factors'!B12)) -> 4584869 | BP12: 0.3 | BQ12: 1375461 | BR12: 1412503 | BS12: 1375461 | BT12: 0.3 | BU12: 0 | BV12: FALSE | BW12: 0 | BX12: 0 | BY12: 0 | BZ12: TRUE | CA12: 261.1125 | CB12: 0.412499 | CC12: 210.8 | CD12: 0 | CE12: 560 | CF12: 0.279 | CG12: =IF(CF12<0.06,1,IF(CF12>=18.29,52,MATCH(CF12-0.001,'Weighting Factors'!$Y$5:$Y$156)+1)) -> 19 | CH12: =VLOOKUP(CG12, 'Weighting Factors'!$W$5:$Z$56,4) -> 1210 | CI12: =('Weighting Factors'!$Q$5/'Weighting Factors'!$Q$14) -> 1 | CJ12: 189365 | CK12: =CJ12*'Weighting Factors'!$S$7 -> 189365 | CL12: 189365 | CM12: =AM12/'Weighting Factors'!$Q$5 -> 45.5 | CN12: 0 | CO12: 0 | CP12: 0 | CQ12: 0 | CR12: =SUM((AV12*'Weighting Factors'!$Q$5)+'2019 Legal Max'!BA12)*CQ12 -> 0 | CS12: 0 | CT12: 0.3563 | CU12: 0 | CV12: 0.8 | CW12: 1010.6 | CX12: ='LOB Transfers'!G11 -> 122554 | CY12: ='LOB Transfers'!J11 -> 550 | CZ12: D0109
A13: 110 | B13: Phillips | C13: Thunder Ridge Schools | D13: 214 | E13: 0 | F13: 214 | G13: 209.5 | H13: 0 | I13: 209.5 | J13: 197.5 | K13: 0 | L13: 197.5 | M13: =IF(ISNA(VLOOKUP($CZ13,'Audit Values'!$A$2:$BW$363,2,FALSE)),'Preliminary SO66'!C12,VLOOKUP($CZ13,'Audit Values'!$A$2:$BW$363,73,FALSE)) -> 196 | N13: =IF(ISNA(VLOOKUP($CZ13,'Audit Values'!$A$2:$BW$363,2,FALSE)),'Preliminary SO66'!F12,VLOOKUP($CZ13,'Audit Values'!$A$2:$BW$363,4,FALSE)) -> 0 | O13: 196 | P13: =IF('Military Provision'!J14="YES", MAX('2019 Legal Max'!L13,'2019 Legal Max'!I13,AVERAGE('2019 Legal Max'!F13,'2019 Legal Max'!I13,'2019 Legal Max'!L13)), MAX(L13, I13)) -> 209.5 | Q13: =IF(ISNA(VLOOKUP($CZ13,'Audit Values'!$A$2:$BU$351,2,FALSE)),'Preliminary SO66'!AL12,VLOOKUP($CZ13,'Audit Values'!$A$2:$BU$3953,58,FALSE)) -> 1 | R13: 0 | S13: 210.5 | T13: 151.9 | U13: =IF(ISNA(VLOOKUP($CZ13,'Audit Values'!$A$2:$BW$315,2,FALSE)),'Preliminary SO66'!AM12,VLOOKUP($CZ13,'Audit Values'!$A$2:$BW$315,62,FALSE)) -> 0 | V13: =(U13/6)*'Weighting Factors'!$Q$7 -> 0 | W13: =IF(ISNA(VLOOKUP($CZ13,'Audit Values'!$A$2:$BW$351,2,FALSE)),'Preliminary SO66'!AN12,VLOOKUP($CZ13,'Audit Values'!$A$2:$BW$351,61,FALSE)) -> 0 | X13: =W13*'Weighting Factors'!$Q$8 -> 0 | Y13: 0 | Z13: =IF(ISNA(VLOOKUP($CZ13,'Audit Values'!$A$2:$BW$315,2,FALSE)),'Preliminary SO66'!AO12,VLOOKUP($CZ13,'Audit Values'!$A$2:$BW$315,60,FALSE)) -> 54.3 | AA13: =Z13/6*'Weighting Factors'!$Q$6 -> 4.5 | AB13: =IF(ISNA(VLOOKUP($CZ13,'Audit Values'!$A$2:$BU$351,2,FALSE)),'Preliminary SO66'!AS12,VLOOKUP($CZ13,'Audit Values'!$A$2:$BU$351,63,FALSE)) -> 200 | AC13: 0 | AD13: =IF(ISNA(VLOOKUP($CZ13,'Audit Values'!$A$2:$BU$351,2,FALSE)),'Preliminary SO66'!AP12,VLOOKUP($CZ13,'Audit Values'!$A$2:$BU$351,64,FALSE)) -> 81 | AE13: =IF(A13=207, AD13,MAX(AC13,AD13))*'Weighting Factors'!$Q$9 -> 39.2 | AF13: 3.1 | AG13: =IF(ISNA(VLOOKUP($CZ13,'Audit Values'!$A$2:$BW$351,2,FALSE)),'Preliminary SO66'!AG12,VLOOKUP($CZ13,'Audit Values'!$A$2:$BW$351,70,FALSE)) -> 4.2 | AH13: 4.2 | AI13: =IF(ISNA(VLOOKUP($CZ13,'Audit Values'!$A$2:$BU$351,2,FALSE)),'Preliminary SO66'!AQ12,VLOOKUP($CZ13,'Audit Values'!$A$2:$BU$351,65,FALSE)) -> 0 | AJ13: =AI13*'Weighting Factors'!$Q$10 -> 0 | AK13: =IF(ISNA(VLOOKUP($CZ13,'Audit Values'!$A$2:$BU$351,2,FALSE)),'Preliminary SO66'!AR12,VLOOKUP($CZ13,'Audit Values'!$A$2:$BU$351,66,FALSE)) -> 122 | AM13: 150060 | AN13: 214171 | AO13: =MAX(AN13, AM13)/'Weighting Factors'!$Q$5 -> 51.4 | AP13: =CN13/'Weighting Factors'!$Q$5 -> 0 | AQ13: 0 | AR13: =CS13/'Weighting Factors'!$Q$5 -> 0 | AS13: 236698 | AT13: =AS13/'Weighting Factors'!$Q$5 -> 56.8 | AU13: =IF(ISNA(VLOOKUP($CZ13,'Audit Values'!$A$2:$BU$351,2,FALSE)),'Preliminary SO66'!X12,VLOOKUP($CZ13,'Audit Values'!$A$2:$BU$351,47,FALSE)) -> 0 | AV13: 518.5 | AW13: 461.7 | AX13: =IF(ISNA(VLOOKUP($CZ13,'Audit Values'!$A$2:$BU$351,2,FALSE)),'Preliminary SO66'!AA12,VLOOKUP($CZ13,'Audit Values'!$A$2:$BU$351,41,FALSE)) -> 0 | AY13: =IF(ISNA(VLOOKUP($CZ13,'Audit Values'!$A$2:$BU$351,2,FALSE)),'Preliminary SO66'!AB12,VLOOKUP($CZ13,'Audit Values'!$A$2:$BU$351,42,FALSE)) -> 0 | AZ13: 0 | BA13: =SUM(AX13*'Weighting Factors'!$T$10)+('2019 Legal Max'!AY13*'Weighting Factors'!$T$11)+('2019 Legal Max'!AZ13*'Weighting Factors'!$T$12) -> 0 | BB13: 0 | BC13: =IF(ISNA(VLOOKUP($CZ13,'Audit Values'!$A$2:$BU$351,2,FALSE)),"",IF(AND('Weighting Factors'!H13>0,VLOOKUP($CZ13,'Audit Values'!$A$2:$BU$351,51,FALSE)<'Weighting Factors'!H13),'Weighting Factors'!H13,VLOOKUP($CZ13,'Audit Values'!$A$2:$BU$351,50,FALSE))) -> 17 | BD13: =IF(ISNA(VLOOKUP($CZ13,'Audit Values'!$A$2:$BV$351,2,FALSE)),"",VLOOKUP($CZ13,'Audit Values'!$A$2:$BV$351,51,FALSE)) -> A | BE13: =IF('Weighting Factors'!H13="","",IF('Weighting Factors'!J13="Pending","PX","R")) ->  | BF13: =SUM((S13+T13+Y13+AA13+AE13+AH13+AJ13++AO13+AP13+AQ13+AU13+AR13)*'Weighting Factors'!$Q$5)+'2019 Legal Max'!BA13+'2019 Legal Max'!BB13 -> 1922981 | BG13: =SUM((AV13+AR13)*'Weighting Factors'!$Q$5)+BA13+'2019 Legal Max'!BB13 -> 2159553 | BH13: =IF('Weighting Factors'!H13>0,'Weighting Factors'!H13,'Preliminary SO66'!AV12) -> 2312408 | BI13: 2159553 | BK13: ='Weighting Factors'!F13 -> 0 | BL13: ='Weighting Factors'!E13 -> 0 | BM13: 0 | BN13: 2159553 | BO13: =SUM((S13+T13+Y13+AA13+AE13+AH13+AJ13++AO13+AP13+AQ13+AR13)*'Weighting Factors'!Q$12)+(MAX(AS13,'Weighting Factors'!B13)) -> 2406964 | BP13: 0.3 | BQ13: 722089 | BR13: 755899 | BS13: 722089 | BT13: 0.3 | BU13: 0 | BV13: TRUE | BW13: 1066.878 | BX13: 0.721426 | BY13: 151.9 | BZ13: FALSE | CA13: 0 | CB13: 0 | CC13: 0 | CD13: 0 | CE13: 491 | CF13: 0.248 | CG13: =IF(CF13<0.06,1,IF(CF13>=18.29,52,MATCH(CF13-0.001,'Weighting Factors'!$Y$5:$Y$156)+1)) -> 18 | CH13: =VLOOKUP(CG13, 'Weighting Factors'!$W$5:$Z$56,4) -> 1230 | CI13: =('Weighting Factors'!$Q$5/'Weighting Factors'!$Q$14) -> 1 | CJ13: 150060 | CK13: =CJ13*'Weighting Factors'!$S$7 -> 150060 | CL13: 150060 | CM13: =AM13/'Weighting Factors'!$Q$5 -> 36 | CN13: 0 | CO13: 0 | CP13: 0 | CQ13: 0 | CR13: =SUM((AV13*'Weighting Factors'!$Q$5)+'2019 Legal Max'!BA13)*CQ13 -> 0 | CS13: 0 | CT13: 0.405 | CU13: 0 | CV13: 3.1 | CW13: 518.5 | CX13: ='LOB Transfers'!G12 -> 54662 | CY13: ='LOB Transfers'!J12 -> 0 | CZ13: D0110
A14: 111 | B14: Doniphan | C14: Doniphan West Schools | D14: 309 | E14: 0 | F14: 309 | G14: 323.5 | H14: 0 | I14: 323.5 | J14: 310 | K14: 0 | L14: 310 | M14: =IF(ISNA(VLOOKUP($CZ14,'Audit Values'!$A$2:$BW$363,2,FALSE)),'Preliminary SO66'!C13,VLOOKUP($CZ14,'Audit Values'!$A$2:$BW$363,73,FALSE)) -> 316 | N14: =IF(ISNA(VLOOKUP($CZ14,'Audit Values'!$A$2:$BW$363,2,FALSE)),'Preliminary SO66'!F13,VLOOKUP($CZ14,'Audit Values'!$A$2:$BW$363,4,FALSE)) -> 0 | O14: 316 | P14: =IF('Military Provision'!J15="YES", MAX('2019 Legal Max'!L14,'2019 Legal Max'!I14,AVERAGE('2019 Legal Max'!F14,'2019 Legal Max'!I14,'2019 Legal Max'!L14)), MAX(L14, I14)) -> 323.5 | Q14: =IF(ISNA(VLOOKUP($CZ14,'Audit Values'!$A$2:$BU$351,2,FALSE)),'Preliminary SO66'!AL13,VLOOKUP($CZ14,'Audit Values'!$A$2:$BU$3953,58,FALSE)) -> 7 | R14: 0 | S14: 330.5 | T14: 156.6 | U14: =IF(ISNA(VLOOKUP($CZ14,'Audit Values'!$A$2:$BW$315,2,FALSE)),'Preliminary SO66'!AM13,VLOOKUP($CZ14,'Audit Values'!$A$2:$BW$315,62,FALSE)) -> 0 | V14: =(U14/6)*'Weighting Factors'!$Q$7 -> 0 | W14: =IF(ISNA(VLOOKUP($CZ14,'Audit Values'!$A$2:$BW$351,2,FALSE)),'Preliminary SO66'!AN13,VLOOKUP($CZ14,'Audit Values'!$A$2:$BW$351,61,FALSE)) -> 0 | X14: =W14*'Weighting Factors'!$Q$8 -> 0 | Y14: 0 | Z14: =IF(ISNA(VLOOKUP($CZ14,'Audit Values'!$A$2:$BW$315,2,FALSE)),'Preliminary SO66'!AO13,VLOOKUP($CZ14,'Audit Values'!$A$2:$BW$315,60,FALSE)) -> 71.3 | AA14: =Z14/6*'Weighting Factors'!$Q$6 -> 5.9 | AB14: =IF(ISNA(VLOOKUP($CZ14,'Audit Values'!$A$2:$BU$351,2,FALSE)),'Preliminary SO66'!AS13,VLOOKUP($CZ14,'Audit Values'!$A$2:$BU$351,63,FALSE)) -> 330 | AC14: 0 | AD14: =IF(ISNA(VLOOKUP($CZ14,'Audit Values'!$A$2:$BU$351,2,FALSE)),'Preliminary SO66'!AP13,VLOOKUP($CZ14,'Audit Values'!$A$2:$BU$351,64,FALSE)) -> 107 | AE14: =IF(A14=207, AD14,MAX(AC14,AD14))*'Weighting Factors'!$Q$9 -> 51.8 | AF14: 0 | AG14: =IF(ISNA(VLOOKUP($CZ14,'Audit Values'!$A$2:$BW$351,2,FALSE)),'Preliminary SO66'!AG13,VLOOKUP($CZ14,'Audit Values'!$A$2:$BW$351,70,FALSE)) -> 0 | AH14: 0 | AI14: =IF(ISNA(VLOOKUP($CZ14,'Audit Values'!$A$2:$BU$351,2,FALSE)),'Preliminary SO66'!AQ13,VLOOKUP($CZ14,'Audit Values'!$A$2:$BU$351,65,FALSE)) -> 0 | AJ14: =AI14*'Weighting Factors'!$Q$10 -> 0 | AK14: =IF(ISNA(VLOOKUP($CZ14,'Audit Values'!$A$2:$BU$351,2,FALSE)),'Preliminary SO66'!AR13,VLOOKUP($CZ14,'Audit Values'!$A$2:$BU$351,66,FALSE)) -> 192.5 | AM14: 190575 | AN14: 261166 | AO14: =MAX(AN14, AM14)/'Weighting Factors'!$Q$5 -> 62.7 | AP14: =CN14/'Weighting Factors'!$Q$5 -> 0 | AQ14: 0 | AR14: =CS14/'Weighting Factors'!$Q$5 -> 0 | AS14: 314614 | AT14: =AS14/'Weighting Factors'!$Q$5 -> 75.5 | AU14: =IF(ISNA(VLOOKUP($CZ14,'Audit Values'!$A$2:$BU$351,2,FALSE)),'Preliminary SO66'!X13,VLOOKUP($CZ14,'Audit Values'!$A$2:$BU$351,47,FALSE)) -> 0 | AV14: 683 | AW14: 607.5 | AX14: =IF(ISNA(VLOOKUP($CZ14,'Audit Values'!$A$2:$BU$351,2,FALSE)),'Preliminary SO66'!AA13,VLOOKUP($CZ14,'Audit Values'!$A$2:$BU$351,41,FALSE)) -> 0 | AY14: =IF(ISNA(VLOOKUP($CZ14,'Audit Values'!$A$2:$BU$351,2,FALSE)),'Preliminary SO66'!AB13,VLOOKUP($CZ14,'Audit Values'!$A$2:$BU$351,42,FALSE)) -> 0 | AZ14: 0 | BA14: =SUM(AX14*'Weighting Factors'!$T$10)+('2019 Legal Max'!AY14*'Weighting Factors'!$T$11)+('2019 Legal Max'!AZ14*'Weighting Factors'!$T$12) -> 0 | BB14: 0 | BC14: =IF(ISNA(VLOOKUP($CZ14,'Audit Values'!$A$2:$BU$351,2,FALSE)),"",IF(AND('Weighting Factors'!H14>0,VLOOKUP($CZ14,'Audit Values'!$A$2:$BU$351,51,FALSE)<'Weighting Factors'!H14),'Weighting Factors'!H14,VLOOKUP($CZ14,'Audit Values'!$A$2:$BU$351,50,FALSE))) -> 17 | BD14: =IF(ISNA(VLOOKUP($CZ14,'Audit Values'!$A$2:$BV$351,2,FALSE)),"",VLOOKUP($CZ14,'Audit Values'!$A$2:$BV$351,51,FALSE)) -> A | BE14: =IF('Weighting Factors'!H14="","",IF('Weighting Factors'!J14="Pending","PX","R")) ->  | BF14: =SUM((S14+T14+Y14+AA14+AE14+AH14+AJ14++AO14+AP14+AQ14+AU14+AR14)*'Weighting Factors'!$Q$5)+'2019 Legal Max'!BA14+'2019 Legal Max'!BB14 -> 2530238 | BG14: =SUM((AV14+AR14)*'Weighting Factors'!$Q$5)+BA14+'2019 Legal Max'!BB14 -> 2844695 | BH14: =IF('Weighting Factors'!H14>0,'Weighting Factors'!H14,'Preliminary SO66'!AV13) -> 2952569 | BI14: 2844695 | BK14: ='Weighting Factors'!F14 -> -7728 | BL14: ='Weighting Factors'!E14 -> 0 | BM14: -7728 | BN14: 2836967 | BO14: =SUM((S14+T14+Y14+AA14+AE14+AH14+AJ14++AO14+AP14+AQ14+AR14)*'Weighting Factors'!Q$12)+(MAX(AS14,'Weighting Factors'!B14)) -> 3282896 | BP14: 0.3 | BQ14: 984869 | BR14: 1004400 | BS14: 984869 | BT14: 0.3 | BU14: 0 | BV14: FALSE | BW14: 0 | BX14: 0 | BY14: 0 | BZ14: TRUE | CA14: 37.7438 | CB14: 0.473824 | CC14: 156.6 | CD14: 0 | CE14: 229 | CF14: 0.841 | CG14: =IF(CF14<0.06,1,IF(CF14>=18.29,52,MATCH(CF14-0.001,'Weighting Factors'!$Y$5:$Y$156)+1)) -> 30 | CH14: =VLOOKUP(CG14, 'Weighting Factors'!$W$5:$Z$56,4) -> 990 | CI14: =('Weighting Factors'!$Q$5/'Weighting Factors'!$Q$14) -> 1 | CJ14: 190575 | CK14: =CJ14*'Weighting Factors'!$S$7 -> 190575 | CL14: 190575 | CM14: =AM14/'Weighting Factors'!$Q$5 -> 45.8 | CN14: 0 | CO14: 0 | CP14: 0 | CQ14: 0 | CR14: =SUM((AV14*'Weighting Factors'!$Q$5)+'2019 Legal Max'!BA14)*CQ14 -> 0 | CS14: 0 | CT14: 0.3242 | CU14: 0 | CV14: 0 | CW14: 683 | CX14: ='LOB Transfers'!G13 -> 75441 | CY14: ='LOB Transfers'!J13 -> 0 | CZ14: D0111
A15: 112 | B15: Ellsworth | C15: Central Plains | D15: 443.5 | E15: 0 | F15: 443.5 | G15: 481.9 | H15: 0 | I15: 481.9 | J15: 457.1 | K15: 0 | L15: 457.1 | M15: =IF(ISNA(VLOOKUP($CZ15,'Audit Values'!$A$2:$BW$363,2,FALSE)),'Preliminary SO66'!C14,VLOOKUP($CZ15,'Audit Values'!$A$2:$BW$363,73,FALSE)) -> 456 | N15: =IF(ISNA(VLOOKUP($CZ15,'Audit Values'!$A$2:$BW$363,2,FALSE)),'Preliminary SO66'!F14,VLOOKUP($CZ15,'Audit Values'!$A$2:$BW$363,4,FALSE)) -> 0 | O15: 456 | P15: =IF('Military Provision'!J16="YES", MAX('2019 Legal Max'!L15,'2019 Legal Max'!I15,AVERAGE('2019 Legal Max'!F15,'2019 Legal Max'!I15,'2019 Legal Max'!L15)), MAX(L15, I15)) -> 481.9 | Q15: =IF(ISNA(VLOOKUP($CZ15,'Audit Values'!$A$2:$BU$351,2,FALSE)),'Preliminary SO66'!AL14,VLOOKUP($CZ15,'Audit Values'!$A$2:$BU$3953,58,FALSE)) -> 2.5 | R15: 0 | S15: 484.4 | T15: 204.2 | U15: =IF(ISNA(VLOOKUP($CZ15,'Audit Values'!$A$2:$BW$315,2,FALSE)),'Preliminary SO66'!AM14,VLOOKUP($CZ15,'Audit Values'!$A$2:$BW$315,62,FALSE)) -> 0 | V15: =(U15/6)*'Weighting Factors'!$Q$7 -> 0 | W15: =IF(ISNA(VLOOKUP($CZ15,'Audit Values'!$A$2:$BW$351,2,FALSE)),'Preliminary SO66'!AN14,VLOOKUP($CZ15,'Audit Values'!$A$2:$BW$351,61,FALSE)) -> 0 | X15: =W15*'Weighting Factors'!$Q$8 -> 0 | Y15: 0 | Z15: =IF(ISNA(VLOOKUP($CZ15,'Audit Values'!$A$2:$BW$315,2,FALSE)),'Preliminary SO66'!AO14,VLOOKUP($CZ15,'Audit Values'!$A$2:$BW$315,60,FALSE)) -> 98.1 | AA15: =Z15/6*'Weighting Factors'!$Q$6 -> 8.2 | AB15: =IF(ISNA(VLOOKUP($CZ15,'Audit Values'!$A$2:$BU$351,2,FALSE)),'Preliminary SO66'!AS14,VLOOKUP($CZ15,'Audit Values'!$A$2:$BU$351,63,FALSE)) -> 468 | AC15: 0 | AD15: =IF(ISNA(VLOOKUP($CZ15,'Audit Values'!$A$2:$BU$351,2,FALSE)),'Preliminary SO66'!AP14,VLOOKUP($CZ15,'Audit Values'!$A$2:$BU$351,64,FALSE)) -> 156 | AE15: =IF(A15=207, AD15,MAX(AC15,AD15))*'Weighting Factors'!$Q$9 -> 75.5 | AF15: 0 | AG15: =IF(ISNA(VLOOKUP($CZ15,'Audit Values'!$A$2:$BW$351,2,FALSE)),'Preliminary SO66'!AG14,VLOOKUP($CZ15,'Audit Values'!$A$2:$BW$351,70,FALSE)) -> 3.2 | AH15: 3.2 | AI15: =IF(ISNA(VLOOKUP($CZ15,'Audit Values'!$A$2:$BU$351,2,FALSE)),'Preliminary SO66'!AQ14,VLOOKUP($CZ15,'Audit Values'!$A$2:$BU$351,65,FALSE)) -> 0 | AJ15: =AI15*'Weighting Factors'!$Q$10 -> 0 | AK15: =IF(ISNA(VLOOKUP($CZ15,'Audit Values'!$A$2:$BU$351,2,FALSE)),'Preliminary SO66'!AR14,VLOOKUP($CZ15,'Audit Values'!$A$2:$BU$351,66,FALSE)) -> 229 | AM15: 258770 | AN15: 303538 | AO15: =MAX(AN15, AM15)/'Weighting Factors'!$Q$5 -> 72.9 | AP15: =CN15/'Weighting Factors'!$Q$5 -> 0 | AQ15: 0 | AR15: =CS15/'Weighting Factors'!$Q$5 -> 0 | AS15: 567375 | AT15: =AS15/'Weighting Factors'!$Q$5 -> 136.2 | AU15: =IF(ISNA(VLOOKUP($CZ15,'Audit Values'!$A$2:$BU$351,2,FALSE)),'Preliminary SO66'!X14,VLOOKUP($CZ15,'Audit Values'!$A$2:$BU$351,47,FALSE)) -> 0 | AV15: 984.6 | AW15: 848.4 | AX15: =IF(ISNA(VLOOKUP($CZ15,'Audit Values'!$A$2:$BU$351,2,FALSE)),'Preliminary SO66'!AA14,VLOOKUP($CZ15,'Audit Values'!$A$2:$BU$351,41,FALSE)) -> 23 | AY15: =IF(ISNA(VLOOKUP($CZ15,'Audit Values'!$A$2:$BU$351,2,FALSE)),'Preliminary SO66'!AB14,VLOOKUP($CZ15,'Audit Values'!$A$2:$BU$351,42,FALSE)) -> 1.4 | AZ15: 40 | BA15: =SUM(AX15*'Weighting Factors'!$T$10)+('2019 Legal Max'!AY15*'Weighting Factors'!$T$11)+('2019 Legal Max'!AZ15*'Weighting Factors'!$T$12) -> 145740 | BB15: 0 | BC15: =IF(ISNA(VLOOKUP($CZ15,'Audit Values'!$A$2:$BU$351,2,FALSE)),"",IF(AND('Weighting Factors'!H15>0,VLOOKUP($CZ15,'Audit Values'!$A$2:$BU$351,51,FALSE)<'Weighting Factors'!H15),'Weighting Factors'!H15,VLOOKUP($CZ15,'Audit Values'!$A$2:$BU$351,50,FALSE))) -> 14 | BD15: =IF(ISNA(VLOOKUP($CZ15,'Audit Values'!$A$2:$BV$351,2,FALSE)),"",VLOOKUP($CZ15,'Audit Values'!$A$2:$BV$351,51,FALSE)) -> A | BE15: =IF('Weighting Factors'!H15="","",IF('Weighting Factors'!J15="Pending","PX","R")) ->  | BF15: =SUM((S15+T15+Y15+AA15+AE15+AH15+AJ15++AO15+AP15+AQ15+AU15+AR15)*'Weighting Factors'!$Q$5)+'2019 Legal Max'!BA15+'2019 Legal Max'!BB15 -> 3679326 | BG15: =SUM((AV15+AR15)*'Weighting Factors'!$Q$5)+BA15+'2019 Legal Max'!BB15 -> 4246599 | BH15: =IF('Weighting Factors'!H15>0,'Weighting Factors'!H15,'Preliminary SO66'!AV14) -> 4374207 | BI15: 4246599 | BK15: ='Weighting Factors'!F15 -> -37485 | BL15: ='Weighting Factors'!E15 -> 0 | BM15: -37485 | BN15: 4209114 | BO15: =SUM((S15+T15+Y15+AA15+AE15+AH15+AJ15++AO15+AP15+AQ15+AR15)*'Weighting Factors'!Q$12)+(MAX(AS15,'Weighting Factors'!B15)) -> 4495292 | BP15: 0.33 | BQ15: 1483446 | BR15: 1528935 | BS15: 1483446 | BT15: 0.33 | BU15: 0 | BV15: FALSE | BW15: 0 | BX15: 0 | BY15: 0 | BZ15: TRUE | CA15: 228.195 | CB15: 0.421537 | CC15: 204.2 | CD15: 0 | CE15: 582.8 | CF15: 0.393 | CG15: =IF(CF15<0.06,1,IF(CF15>=18.29,52,MATCH(CF15-0.001,'Weighting Factors'!$Y$5:$Y$156)+1)) -> 23 | CH15: =VLOOKUP(CG15, 'Weighting Factors'!$W$5:$Z$56,4) -> 1130 | CI15: =('Weighting Factors'!$Q$5/'Weighting Factors'!$Q$14) -> 1 | CJ15: 258770 | CK15: =CJ15*'Weighting Factors'!$S$7 -> 258770 | CL15: 258770 | CM15: =AM15/'Weighting Factors'!$Q$5 -> 62.1 | CN15: 0 | CO15: 0 | CP15: 0 | CQ15: 0 | CR15: =SUM((AV15*'Weighting Factors'!$Q$5)+'2019 Legal Max'!BA15)*CQ15 -> 0 | CS15: 0 | CT15: 0.3333 | CU15: 0 | CV15: 0 | CW15: 984.6 | CX15: ='LOB Transfers'!G14 -> 114077 | CY15: ='LOB Transfers'!J14 -> 0 | CZ15: D0112
A16: 113 | B16: Nemaha | C16: Prairie Hills | D16: 1099.2 | E16: 0 | F16: 1099.2 | G16: 1086.8 | H16: 0 | I16: 1086.8 | J16: 1050.1 | K16: 0 | L16: 1050.1 | M16: =IF(ISNA(VLOOKUP($CZ16,'Audit Values'!$A$2:$BW$363,2,FALSE)),'Preliminary SO66'!C15,VLOOKUP($CZ16,'Audit Values'!$A$2:$BW$363,73,FALSE)) -> 1072.3 | N16: =IF(ISNA(VLOOKUP($CZ16,'Audit Values'!$A$2:$BW$363,2,FALSE)),'Preliminary SO66'!F15,VLOOKUP($CZ16,'Audit Values'!$A$2:$BW$363,4,FALSE)) -> 0 | O16: 1072.3 | P16: =IF('Military Provision'!J17="YES", MAX('2019 Legal Max'!L16,'2019 Legal Max'!I16,AVERAGE('2019 Legal Max'!F16,'2019 Legal Max'!I16,'2019 Legal Max'!L16)), MAX(L16, I16)) -> 1086.8 | Q16: =IF(ISNA(VLOOKUP($CZ16,'Audit Values'!$A$2:$BU$351,2,FALSE)),'Preliminary SO66'!AL15,VLOOKUP($CZ16,'Audit Values'!$A$2:$BU$3953,58,FALSE)) -> 13.5 | R16: 0 | S16: 1100.3 | T16: 233.6 | U16: =IF(ISNA(VLOOKUP($CZ16,'Audit Values'!$A$2:$BW$315,2,FALSE)),'Preliminary SO66'!AM15,VLOOKUP($CZ16,'Audit Values'!$A$2:$BW$315,62,FALSE)) -> 0.7 | V16: =(U16/6)*'Weighting Factors'!$Q$7 -> 0 | W16: =IF(ISNA(VLOOKUP($CZ16,'Audit Values'!$A$2:$BW$351,2,FALSE)),'Preliminary SO66'!AN15,VLOOKUP($CZ16,'Audit Values'!$A$2:$BW$351,61,FALSE)) -> 1 | X16: =W16*'Weighting Factors'!$Q$8 -> 0.2 | Y16: 0.2 | Z16: =IF(ISNA(VLOOKUP($CZ16,'Audit Values'!$A$2:$BW$315,2,FALSE)),'Preliminary SO66'!AO15,VLOOKUP($CZ16,'Audit Values'!$A$2:$BW$315,60,FALSE)) -> 295.6 | AA16: =Z16/6*'Weighting Factors'!$Q$6 -> 24.6 | AB16: =IF(ISNA(VLOOKUP($CZ16,'Audit Values'!$A$2:$BU$351,2,FALSE)),'Preliminary SO66'!AS15,VLOOKUP($CZ16,'Audit Values'!$A$2:$BU$351,63,FALSE)) -> 1119 | AC16: 0 | AD16: =IF(ISNA(VLOOKUP($CZ16,'Audit Values'!$A$2:$BU$351,2,FALSE)),'Preliminary SO66'!AP15,VLOOKUP($CZ16,'Audit Values'!$A$2:$BU$351,64,FALSE)) -> 270 | AE16: =IF(A16=207, AD16,MAX(AC16,AD16))*'Weighting Factors'!$Q$9 -> 130.7 | AF16: 0 | AG16: =IF(ISNA(VLOOKUP($CZ16,'Audit Values'!$A$2:$BW$351,2,FALSE)),'Preliminary SO66'!AG15,VLOOKUP($CZ16,'Audit Values'!$A$2:$BW$351,70,FALSE)) -> 1.3 | AH16: 1.3 | AI16: =IF(ISNA(VLOOKUP($CZ16,'Audit Values'!$A$2:$BU$351,2,FALSE)),'Preliminary SO66'!AQ15,VLOOKUP($CZ16,'Audit Values'!$A$2:$BU$351,65,FALSE)) -> 0 | AJ16: =AI16*'Weighting Factors'!$Q$10 -> 0 | AK16: =IF(ISNA(VLOOKUP($CZ16,'Audit Values'!$A$2:$BU$351,2,FALSE)),'Preliminary SO66'!AR15,VLOOKUP($CZ16,'Audit Values'!$A$2:$BU$351,66,FALSE)) -> 379 | AM16: 390370 | AN16: 458388 | AO16: =MAX(AN16, AM16)/'Weighting Factors'!$Q$5 -> 110.1 | AP16: =CN16/'Weighting Factors'!$Q$5 -> 0 | AQ16: 0 | AR16: =CS16/'Weighting Factors'!$Q$5 -> 0 | AS16: 756234 | AT16: =AS16/'Weighting Factors'!$Q$5 -> 181.6 | AU16: =IF(ISNA(VLOOKUP($CZ16,'Audit Values'!$A$2:$BU$351,2,FALSE)),'Preliminary SO66'!X15,VLOOKUP($CZ16,'Audit Values'!$A$2:$BU$351,47,FALSE)) -> 1 | AV16: 1783.4 | AW16: 1601.8 | AX16: =IF(ISNA(VLOOKUP($CZ16,'Audit Values'!$A$2:$BU$351,2,FALSE)),'Preliminary SO66'!AA15,VLOOKUP($CZ16,'Audit Values'!$A$2:$BU$351,41,FALSE)) -> 0 | AY16: =IF(ISNA(VLOOKUP($CZ16,'Audit Values'!$A$2:$BU$351,2,FALSE)),'Preliminary SO66'!AB15,VLOOKUP($CZ16,'Audit Values'!$A$2:$BU$351,42,FALSE)) -> 0 | AZ16: 0 | BA16: =SUM(AX16*'Weighting Factors'!$T$10)+('2019 Legal Max'!AY16*'Weighting Factors'!$T$11)+('2019 Legal Max'!AZ16*'Weighting Factors'!$T$12) -> 0 | BB16: 0 | BC16: =IF(ISNA(VLOOKUP($CZ16,'Audit Values'!$A$2:$BU$351,2,FALSE)),"",IF(AND('Weighting Factors'!H16>0,VLOOKUP($CZ16,'Audit Values'!$A$2:$BU$351,51,FALSE)<'Weighting Factors'!H16),'Weighting Factors'!H16,VLOOKUP($CZ16,'Audit Values'!$A$2:$BU$351,50,FALSE))) -> 10 | BD16: =IF(ISNA(VLOOKUP($CZ16,'Audit Values'!$A$2:$BV$351,2,FALSE)),"",VLOOKUP($CZ16,'Audit Values'!$A$2:$BV$351,51,FALSE)) -> A | BE16: =IF('Weighting Factors'!H16="","",IF('Weighting Factors'!J16="Pending","PX","R")) ->  | BF16: =SUM((S16+T16+Y16+AA16+AE16+AH16+AJ16++AO16+AP16+AQ16+AU16+AR16)*'Weighting Factors'!$Q$5)+'2019 Legal Max'!BA16+'2019 Legal Max'!BB16 -> 6671497 | BG16: =SUM((AV16+AR16)*'Weighting Factors'!$Q$5)+BA16+'2019 Legal Max'!BB16 -> 7427861 | BH16: =IF('Weighting Factors'!H16>0,'Weighting Factors'!H16,'Preliminary SO66'!AV15) -> 7606540 | BI16: 7427861 | BK16: ='Weighting Factors'!F16 -> -9419 | BL16: ='Weighting Factors'!E16 -> 0 | BM16: -9419 | BN16: 7418442 | BO16: =SUM((S16+T16+Y16+AA16+AE16+AH16+AJ16++AO16+AP16+AQ16+AR16)*'Weighting Factors'!Q$12)+(MAX(AS16,'Weighting Factors'!B16)) -> 8288385 | BP16: 0.33 | BQ16: 2735167 | BR16: 2777544 | BS16: 2735167 | BT16: 0.33 | BU16: 0 | BV16: FALSE | BW16: 0 | BX16: 0 | BY16: 0 | BZ16: TRUE | CA16: 990.3713 | CB16: 0.212285 | CC16: 233.6 | CD16: 0 | CE16: 543 | CF16: 0.698 | CG16: =IF(CF16<0.06,1,IF(CF16>=18.29,52,MATCH(CF16-0.001,'Weighting Factors'!$Y$5:$Y$156)+1)) -> 28 | CH16: =VLOOKUP(CG16, 'Weighting Factors'!$W$5:$Z$56,4) -> 1030 | CI16: =('Weighting Factors'!$Q$5/'Weighting Factors'!$Q$14) -> 1 | CJ16: 390370 | CK16: =CJ16*'Weighting Factors'!$S$7 -> 390370 | CL16: 390370 | CM16: =AM16/'Weighting Factors'!$Q$5 -> 93.7 | CN16: 0 | CO16: 0 | CP16: 0 | CQ16: 0 | CR16: =SUM((AV16*'Weighting Factors'!$Q$5)+'2019 Legal Max'!BA16)*CQ16 -> 0 | CS16: 0 | CT16: 0.2413 | CU16: 0 | CV16: 0 | CW16: 1783.4 | CX16: ='LOB Transfers'!G15 -> 202129 | CY16: ='LOB Transfers'!J15 -> 274 | CZ16: D0113
A17: 114 | B17: Doniphan | C17: Riverside | D17: 594.8 | E17: 0 | F17: 594.8 | G17: 584.7 | H17: 0 | I17: 584.7 | J17: 588.5 | K17: 0 | L17: 588.5 | M17: =IF(ISNA(VLOOKUP($CZ17,'Audit Values'!$A$2:$BW$363,2,FALSE)),'Preliminary SO66'!C16,VLOOKUP($CZ17,'Audit Values'!$A$2:$BW$363,73,FALSE)) -> 580 | N17: =IF(ISNA(VLOOKUP($CZ17,'Audit Values'!$A$2:$BW$363,2,FALSE)),'Preliminary SO66'!F16,VLOOKUP($CZ17,'Audit Values'!$A$2:$BW$363,4,FALSE)) -> 0 | O17: 580 | P17: =IF('Military Provision'!J18="YES", MAX('2019 Legal Max'!L17,'2019 Legal Max'!I17,AVERAGE('2019 Legal Max'!F17,'2019 Legal Max'!I17,'2019 Legal Max'!L17)), MAX(L17, I17)) -> 588.5 | Q17: =IF(ISNA(VLOOKUP($CZ17,'Audit Values'!$A$2:$BU$351,2,FALSE)),'Preliminary SO66'!AL16,VLOOKUP($CZ17,'Audit Values'!$A$2:$BU$3953,58,FALSE)) -> 5.5 | R17: 0 | S17: 594 | T17: 228.3 | U17: =IF(ISNA(VLOOKUP($CZ17,'Audit Values'!$A$2:$BW$315,2,FALSE)),'Preliminary SO66'!AM16,VLOOKUP($CZ17,'Audit Values'!$A$2:$BW$315,62,FALSE)) -> 0 | V17: =(U17/6)*'Weighting Factors'!$Q$7 -> 0 | W17: =IF(ISNA(VLOOKUP($CZ17,'Audit Values'!$A$2:$BW$351,2,FALSE)),'Preliminary SO66'!AN16,VLOOKUP($CZ17,'Audit Values'!$A$2:$BW$351,61,FALSE)) -> 0 | X17: =W17*'Weighting Factors'!$Q$8 -> 0 | Y17: 0 | Z17: =IF(ISNA(VLOOKUP($CZ17,'Audit Values'!$A$2:$BW$315,2,FALSE)),'Preliminary SO66'!AO16,VLOOKUP($CZ17,'Audit Values'!$A$2:$BW$315,60,FALSE)) -> 167.3 | AA17: =Z17/6*'Weighting Factors'!$Q$6 -> 13.9 | AB17: =IF(ISNA(VLOOKUP($CZ17,'Audit Values'!$A$2:$BU$351,2,FALSE)),'Preliminary SO66'!AS16,VLOOKUP($CZ17,'Audit Values'!$A$2:$BU$351,63,FALSE)) -> 601 | AC17: 0 | AD17: =IF(ISNA(VLOOKUP($CZ17,'Audit Values'!$A$2:$BU$351,2,FALSE)),'Preliminary SO66'!AP16,VLOOKUP($CZ17,'Audit Values'!$A$2:$BU$351,64,FALSE)) -> 236 | AE17: =IF(A17=207, AD17,MAX(AC17,AD17))*'Weighting Factors'!$Q$9 -> 114.2 | AF17: 7.1 | AG17: =IF(ISNA(VLOOKUP($CZ17,'Audit Values'!$A$2:$BW$351,2,FALSE)),'Preliminary SO66'!AG16,VLOOKUP($CZ17,'Audit Values'!$A$2:$BW$351,70,FALSE)) -> 8.2 | AH17: 8.2 | AI17: =IF(ISNA(VLOOKUP($CZ17,'Audit Values'!$A$2:$BU$351,2,FALSE)),'Preliminary SO66'!AQ16,VLOOKUP($CZ17,'Audit Values'!$A$2:$BU$351,65,FALSE)) -> 0 | AJ17: =AI17*'Weighting Factors'!$Q$10 -> 0 | AK17: =IF(ISNA(VLOOKUP($CZ17,'Audit Values'!$A$2:$BU$351,2,FALSE)),'Preliminary SO66'!AR16,VLOOKUP($CZ17,'Audit Values'!$A$2:$BU$351,66,FALSE)) -> 190 | AM17: 157700 | AN17: 227268 | AO17: =MAX(AN17, AM17)/'Weighting Factors'!$Q$5 -> 54.6 | AP17: =CN17/'Weighting Factors'!$Q$5 -> 0 | AQ17: 0 | AR17: =CS17/'Weighting Factors'!$Q$5 -> 0 | AS17: 618975 | AT17: =AS17/'Weighting Factors'!$Q$5 -> 148.6 | AU17: =IF(ISNA(VLOOKUP($CZ17,'Audit Values'!$A$2:$BU$351,2,FALSE)),'Preliminary SO66'!X16,VLOOKUP($CZ17,'Audit Values'!$A$2:$BU$351,47,FALSE)) -> 0 | AV17: 1161.8 | AW17: 1013.2 | AX17: =IF(ISNA(VLOOKUP($CZ17,'Audit Values'!$A$2:$BU$351,2,FALSE)),'Preliminary SO66'!AA16,VLOOKUP($CZ17,'Audit Values'!$A$2:$BU$351,41,FALSE)) -> 5 | AY17: =IF(ISNA(VLOOKUP($CZ17,'Audit Values'!$A$2:$BU$351,2,FALSE)),'Preliminary SO66'!AB16,VLOOKUP($CZ17,'Audit Values'!$A$2:$BU$351,42,FALSE)) -> 0 | AZ17: 3 | BA17: =SUM(AX17*'Weighting Factors'!$T$10)+('2019 Legal Max'!AY17*'Weighting Factors'!$T$11)+('2019 Legal Max'!AZ17*'Weighting Factors'!$T$12) -> 27127 | BB17: 0 | BC17: =IF(ISNA(VLOOKUP($CZ17,'Audit Values'!$A$2:$BU$351,2,FALSE)),"",IF(AND('Weighting Factors'!H17>0,VLOOKUP($CZ17,'Audit Values'!$A$2:$BU$351,51,FALSE)<'Weighting Factors'!H17),'Weighting Factors'!H17,VLOOKUP($CZ17,'Audit Values'!$A$2:$BU$351,50,FALSE))) -> 19 | BD17: =IF(ISNA(VLOOKUP($CZ17,'Audit Values'!$A$2:$BV$351,2,FALSE)),"",VLOOKUP($CZ17,'Audit Values'!$A$2:$BV$351,51,FALSE)) -> A | BE17: =IF('Weighting Factors'!H17="","",IF('Weighting Factors'!J17="Pending","PX","R")) ->  | BF17: =SUM((S17+T17+Y17+AA17+AE17+AH17+AJ17++AO17+AP17+AQ17+AU17+AR17)*'Weighting Factors'!$Q$5)+'2019 Legal Max'!BA17+'2019 Legal Max'!BB17 -> 4247105 | BG17: =SUM((AV17+AR17)*'Weighting Factors'!$Q$5)+BA17+'2019 Legal Max'!BB17 -> 4866024 | BH17: =IF('Weighting Factors'!H17>0,'Weighting Factors'!H17,'Preliminary SO66'!AV16) -> 5274659 | BI17: 4866024 | BK17: ='Weighting Factors'!F17 -> -49816 | BL17: ='Weighting Factors'!E17 -> -1418 | BM17: -51234 | BN17: 4814790 | BO17: =SUM((S17+T17+Y17+AA17+AE17+AH17+AJ17++AO17+AP17+AQ17+AR17)*'Weighting Factors'!Q$12)+(MAX(AS17,'Weighting Factors'!B17)) -> 5180823 | BP17: 0.3 | BQ17: 1554247 | BR17: 1675584 | BS17: 1554247 | BT17: 0.3 | BU17: 0 | BV17: FALSE | BW17: 0 | BX17: 0 | BY17: 0 | BZ17: TRUE | CA17: 363.825 | CB17: 0.3843 | CC17: 228.3 | CD17: 0 | CE17: 88 | CF17: 2.159 | CG17: =IF(CF17<0.06,1,IF(CF17>=18.29,52,MATCH(CF17-0.001,'Weighting Factors'!$Y$5:$Y$156)+1)) -> 38 | CH17: =VLOOKUP(CG17, 'Weighting Factors'!$W$5:$Z$56,4) -> 830 | CI17: =('Weighting Factors'!$Q$5/'Weighting Factors'!$Q$14) -> 1 | CJ17: 157700 | CK17: =CJ17*'Weighting Factors'!$S$7 -> 157700 | CL17: 157700 | CM17: =AM17/'Weighting Factors'!$Q$5 -> 37.9 | CN17: 0 | CO17: 0 | CP17: 0 | CQ17: 0 | CR17: =SUM((AV17*'Weighting Factors'!$Q$5)+'2019 Legal Max'!BA17)*CQ17 -> 0 | CS17: 0 | CT17: 0.3927 | CU17: 0 | CV17: 7.1 | CW17: 1161.8 | CX17: ='LOB Transfers'!G16 -> 153560 | CY17: ='LOB Transfers'!J16 -> 0 | CZ17: D0114
A18: 115 | B18: Nemaha | C18: Nemaha Central | D18: 565.3 | E18: 0 | F18: 565.3 | G18: 560.3 | H18: 0 | I18: 560.3 | J18: 555.2 | K18: 0 | L18: 555.2 | M18: =IF(ISNA(VLOOKUP($CZ18,'Audit Values'!$A$2:$BW$363,2,FALSE)),'Preliminary SO66'!C17,VLOOKUP($CZ18,'Audit Values'!$A$2:$BW$363,73,FALSE)) -> 564.4 | N18: =IF(ISNA(VLOOKUP($CZ18,'Audit Values'!$A$2:$BW$363,2,FALSE)),'Preliminary SO66'!F17,VLOOKUP($CZ18,'Audit Values'!$A$2:$BW$363,4,FALSE)) -> 0 | O18: 564.4 | P18: =IF('Military Provision'!J19="YES", MAX('2019 Legal Max'!L18,'2019 Legal Max'!I18,AVERAGE('2019 Legal Max'!F18,'2019 Legal Max'!I18,'2019 Legal Max'!L18)), MAX(L18, I18)) -> 560.3 | Q18: =IF(ISNA(VLOOKUP($CZ18,'Audit Values'!$A$2:$BU$351,2,FALSE)),'Preliminary SO66'!AL17,VLOOKUP($CZ18,'Audit Values'!$A$2:$BU$3953,58,FALSE)) -> 13.5 | R18: 0 | S18: 573.8 | T18: 224.4 | U18: =IF(ISNA(VLOOKUP($CZ18,'Audit Values'!$A$2:$BW$315,2,FALSE)),'Preliminary SO66'!AM17,VLOOKUP($CZ18,'Audit Values'!$A$2:$BW$315,62,FALSE)) -> 0 | V18: =(U18/6)*'Weighting Factors'!$Q$7 -> 0 | W18: =IF(ISNA(VLOOKUP($CZ18,'Audit Values'!$A$2:$BW$351,2,FALSE)),'Preliminary SO66'!AN17,VLOOKUP($CZ18,'Audit Values'!$A$2:$BW$351,61,FALSE)) -> 9 | X18: =W18*'Weighting Factors'!$Q$8 -> 1.7 | Y18: 1.7 | Z18: =IF(ISNA(VLOOKUP($CZ18,'Audit Values'!$A$2:$BW$315,2,FALSE)),'Preliminary SO66'!AO17,VLOOKUP($CZ18,'Audit Values'!$A$2:$BW$315,60,FALSE)) -> 253 | AA18: =Z18/6*'Weighting Factors'!$Q$6 -> 21.1 | AB18: =IF(ISNA(VLOOKUP($CZ18,'Audit Values'!$A$2:$BU$351,2,FALSE)),'Preliminary SO66'!AS17,VLOOKUP($CZ18,'Audit Values'!$A$2:$BU$351,63,FALSE)) -> 609 | AC18: 0 | AD18: =IF(ISNA(VLOOKUP($CZ18,'Audit Values'!$A$2:$BU$351,2,FALSE)),'Preliminary SO66'!AP17,VLOOKUP($CZ18,'Audit Values'!$A$2:$BU$351,64,FALSE)) -> 114 | AE18: =IF(A18=207, AD18,MAX(AC18,AD18))*'Weighting Factors'!$Q$9 -> 55.2 | AF18: 0 | AG18: =IF(ISNA(VLOOKUP($CZ18,'Audit Values'!$A$2:$BW$351,2,FALSE)),'Preliminary SO66'!AG17,VLOOKUP($CZ18,'Audit Values'!$A$2:$BW$351,70,FALSE)) -> 0 | AH18: 0 | AI18: =IF(ISNA(VLOOKUP($CZ18,'Audit Values'!$A$2:$BU$351,2,FALSE)),'Preliminary SO66'!AQ17,VLOOKUP($CZ18,'Audit Values'!$A$2:$BU$351,65,FALSE)) -> 0 | AJ18: =AI18*'Weighting Factors'!$Q$10 -> 0 | AK18: =IF(ISNA(VLOOKUP($CZ18,'Audit Values'!$A$2:$BU$351,2,FALSE)),'Preliminary SO66'!AR17,VLOOKUP($CZ18,'Audit Values'!$A$2:$BU$351,66,FALSE)) -> 212.6 | AM18: 206222 | AN18: 225342 | AO18: =MAX(AN18, AM18)/'Weighting Factors'!$Q$5 -> 54.1 | AP18: =CN18/'Weighting Factors'!$Q$5 -> 0 | AQ18: 0 | AR18: =CS18/'Weighting Factors'!$Q$5 -> 0 | AS18: 409581 | AT18: =AS18/'Weighting Factors'!$Q$5 -> 98.3 | AU18: =IF(ISNA(VLOOKUP($CZ18,'Audit Values'!$A$2:$BU$351,2,FALSE)),'Preliminary SO66'!X17,VLOOKUP($CZ18,'Audit Values'!$A$2:$BU$351,47,FALSE)) -> 0 | AV18: 1028.6 | AW18: 930.3 | AX18: =IF(ISNA(VLOOKUP($CZ18,'Audit Values'!$A$2:$BU$351,2,FALSE)),'Preliminary SO66'!AA17,VLOOKUP($CZ18,'Audit Values'!$A$2:$BU$351,41,FALSE)) -> 0 | AY18: =IF(ISNA(VLOOKUP($CZ18,'Audit Values'!$A$2:$BU$351,2,FALSE)),'Preliminary SO66'!AB17,VLOOKUP($CZ18,'Audit Values'!$A$2:$BU$351,42,FALSE)) -> 0 | AZ18: 0 | BA18: =SUM(AX18*'Weighting Factors'!$T$10)+('2019 Legal Max'!AY18*'Weighting Factors'!$T$11)+('2019 Legal Max'!AZ18*'Weighting Factors'!$T$12) -> 0 | BB18: 0 | BC18: =IF(ISNA(VLOOKUP($CZ18,'Audit Values'!$A$2:$BU$351,2,FALSE)),"",IF(AND('Weighting Factors'!H18>0,VLOOKUP($CZ18,'Audit Values'!$A$2:$BU$351,51,FALSE)<'Weighting Factors'!H18),'Weighting Factors'!H18,VLOOKUP($CZ18,'Audit Values'!$A$2:$BU$351,50,FALSE))) -> 1 | BD18: =IF(ISNA(VLOOKUP($CZ18,'Audit Values'!$A$2:$BV$351,2,FALSE)),"",VLOOKUP($CZ18,'Audit Values'!$A$2:$BV$351,51,FALSE)) -> A | BE18: =IF('Weighting Factors'!H18="","",IF('Weighting Factors'!J18="Pending","PX","R")) ->  | BF18: =SUM((S18+T18+Y18+AA18+AE18+AH18+AJ18++AO18+AP18+AQ18+AU18+AR18)*'Weighting Factors'!$Q$5)+'2019 Legal Max'!BA18+'2019 Legal Max'!BB18 -> 3874700 | BG18: =SUM((AV18+AR18)*'Weighting Factors'!$Q$5)+BA18+'2019 Legal Max'!BB18 -> 4284119 | BH18: =IF('Weighting Factors'!H18>0,'Weighting Factors'!H18,'Preliminary SO66'!AV17) -> 4365753 | BI18: 4284119 | BK18: ='Weighting Factors'!F18 -> 0 | BL18: ='Weighting Factors'!E18 -> 0 | BM18: 0 | BN18: 4284119 | BO18: =SUM((S18+T18+Y18+AA18+AE18+AH18+AJ18++AO18+AP18+AQ18+AR18)*'Weighting Factors'!Q$12)+(MAX(AS18,'Weighting Factors'!B18)) -> 4754280 | BP18: 0.3 | BQ18: 1426284 | BR18: 1411332 | BS18: 1411332 | BT18: 0.2969 | BU18: 0 | BV18: FALSE | BW18: 0 | BX18: 0 | BY18: 0 | BZ18: TRUE | CA18: 338.8275 | CB18: 0.391163 | CC18: 224.4 | CD18: 0 | CE18: 222 | CF18: 0.958 | CG18: =IF(CF18<0.06,1,IF(CF18>=18.29,52,MATCH(CF18-0.001,'Weighting Factors'!$Y$5:$Y$156)+1)) -> 31 | CH18: =VLOOKUP(CG18, 'Weighting Factors'!$W$5:$Z$56,4) -> 970 | CI18: =('Weighting Factors'!$Q$5/'Weighting Factors'!$Q$14) -> 1 | CJ18: 206222 | CK18: =CJ18*'Weighting Factors'!$S$7 -> 206222 | CL18: 206222 | CM18: =AM18/'Weighting Factors'!$Q$5 -> 49.5 | CN18: 0 | CO18: 0 | CP18: 0 | CQ18: 0 | CR18: =SUM((AV18*'Weighting Factors'!$Q$5)+'2019 Legal Max'!BA18)*CQ18 -> 0 | CS18: 0 | CT18: 0.1872 | CU18: 0 | CV18: 0 | CW18: 1028.6 | CX18: ='LOB Transfers'!G17 -> 76776 | CY18: ='LOB Transfers'!J17 -> 2399 | CZ18: D0115
A19: 200 | B19: Greeley | C19: Greeley County Schools | D19: 241.5 | E19: 0 | F19: 241.5 | G19: 243.3 | H19: 0 | I19: 243.3 | J19: 253.1 | K19: 0 | L19: 253.1 | M19: =IF(ISNA(VLOOKUP($CZ19,'Audit Values'!$A$2:$BW$363,2,FALSE)),'Preliminary SO66'!C18,VLOOKUP($CZ19,'Audit Values'!$A$2:$BW$363,73,FALSE)) -> 250 | N19: =IF(ISNA(VLOOKUP($CZ19,'Audit Values'!$A$2:$BW$363,2,FALSE)),'Preliminary SO66'!F18,VLOOKUP($CZ19,'Audit Values'!$A$2:$BW$363,4,FALSE)) -> 0 | O19: 250 | P19: =IF('Military Provision'!J20="YES", MAX('2019 Legal Max'!L19,'2019 Legal Max'!I19,AVERAGE('2019 Legal Max'!F19,'2019 Legal Max'!I19,'2019 Legal Max'!L19)), MAX(L19, I19)) -> 253.1 | Q19: =IF(ISNA(VLOOKUP($CZ19,'Audit Values'!$A$2:$BU$351,2,FALSE)),'Preliminary SO66'!AL18,VLOOKUP($CZ19,'Audit Values'!$A$2:$BU$3953,58,FALSE)) -> 3 | R19: 0 | S19: 256.1 | T19: 153.8 | U19: =IF(ISNA(VLOOKUP($CZ19,'Audit Values'!$A$2:$BW$315,2,FALSE)),'Preliminary SO66'!AM18,VLOOKUP($CZ19,'Audit Values'!$A$2:$BW$315,62,FALSE)) -> 130.9 | V19: =(U19/6)*'Weighting Factors'!$Q$7 -> 8.6 | W19: =IF(ISNA(VLOOKUP($CZ19,'Audit Values'!$A$2:$BW$351,2,FALSE)),'Preliminary SO66'!AN18,VLOOKUP($CZ19,'Audit Values'!$A$2:$BW$351,61,FALSE)) -> 62 | X19: =W19*'Weighting Factors'!$Q$8 -> 11.5 | Y19: 11.5 | Z19: =IF(ISNA(VLOOKUP($CZ19,'Audit Values'!$A$2:$BW$315,2,FALSE)),'Preliminary SO66'!AO18,VLOOKUP($CZ19,'Audit Values'!$A$2:$BW$315,60,FALSE)) -> 32.8 | AA19: =Z19/6*'Weighting Factors'!$Q$6 -> 2.7 | AB19: =IF(ISNA(VLOOKUP($CZ19,'Audit Values'!$A$2:$BU$351,2,FALSE)),'Preliminary SO66'!AS18,VLOOKUP($CZ19,'Audit Values'!$A$2:$BU$351,63,FALSE)) -> 257 | AC19: 0 | AD19: =IF(ISNA(VLOOKUP($CZ19,'Audit Values'!$A$2:$BU$351,2,FALSE)),'Preliminary SO66'!AP18,VLOOKUP($CZ19,'Audit Values'!$A$2:$BU$351,64,FALSE)) -> 101 | AE19: =IF(A19=207, AD19,MAX(AC19,AD19))*'Weighting Factors'!$Q$9 -> 48.9 | AF19: 3 | AG19: =IF(ISNA(VLOOKUP($CZ19,'Audit Values'!$A$2:$BW$351,2,FALSE)),'Preliminary SO66'!AG18,VLOOKUP($CZ19,'Audit Values'!$A$2:$BW$351,70,FALSE)) -> 3 | AH19: 3 | AI19: =IF(ISNA(VLOOKUP($CZ19,'Audit Values'!$A$2:$BU$351,2,FALSE)),'Preliminary SO66'!AQ18,VLOOKUP($CZ19,'Audit Values'!$A$2:$BU$351,65,FALSE)) -> 0 | AJ19: =AI19*'Weighting Factors'!$Q$10 -> 0 | AK19: =IF(ISNA(VLOOKUP($CZ19,'Audit Values'!$A$2:$BU$351,2,FALSE)),'Preliminary SO66'!AR18,VLOOKUP($CZ19,'Audit Values'!$A$2:$BU$351,66,FALSE)) -> 71 | AM19: 105080 | AN19: 124420 | AO19: =MAX(AN19, AM19)/'Weighting Factors'!$Q$5 -> 29.9 | AP19: =CN19/'Weighting Factors'!$Q$5 -> 0 | AQ19: 0 | AR19: =CS19/'Weighting Factors'!$Q$5 -> 0 | AS19: 159978 | AT19: =AS19/'Weighting Factors'!$Q$5 -> 38.4 | AU19: =IF(ISNA(VLOOKUP($CZ19,'Audit Values'!$A$2:$BU$351,2,FALSE)),'Preliminary SO66'!X18,VLOOKUP($CZ19,'Audit Values'!$A$2:$BU$351,47,FALSE)) -> 0 | AV19: 544.3 | AW19: 505.9 | AX19: =IF(ISNA(VLOOKUP($CZ19,'Audit Values'!$A$2:$BU$351,2,FALSE)),'Preliminary SO66'!AA18,VLOOKUP($CZ19,'Audit Values'!$A$2:$BU$351,41,FALSE)) -> 0 | AY19: =IF(ISNA(VLOOKUP($CZ19,'Audit Values'!$A$2:$BU$351,2,FALSE)),'Preliminary SO66'!AB18,VLOOKUP($CZ19,'Audit Values'!$A$2:$BU$351,42,FALSE)) -> 0 | AZ19: 0 | BA19: =SUM(AX19*'Weighting Factors'!$T$10)+('2019 Legal Max'!AY19*'Weighting Factors'!$T$11)+('2019 Legal Max'!AZ19*'Weighting Factors'!$T$12) -> 0 | BB19: 0 | BC19: =IF(ISNA(VLOOKUP($CZ19,'Audit Values'!$A$2:$BU$351,2,FALSE)),"",IF(AND('Weighting Factors'!H19>0,VLOOKUP($CZ19,'Audit Values'!$A$2:$BU$351,51,FALSE)<'Weighting Factors'!H19),'Weighting Factors'!H19,VLOOKUP($CZ19,'Audit Values'!$A$2:$BU$351,50,FALSE))) -> 15 | BD19: =IF(ISNA(VLOOKUP($CZ19,'Audit Values'!$A$2:$BV$351,2,FALSE)),"",VLOOKUP($CZ19,'Audit Values'!$A$2:$BV$351,51,FALSE)) -> A | BE19: =IF('Weighting Factors'!H19="","",IF('Weighting Factors'!J19="Pending","PX","R")) ->  | BF19: =SUM((S19+T19+Y19+AA19+AE19+AH19+AJ19++AO19+AP19+AQ19+AU19+AR19)*'Weighting Factors'!$Q$5)+'2019 Legal Max'!BA19+'2019 Legal Max'!BB19 -> 2107074 | BG19: =SUM((AV19+AR19)*'Weighting Factors'!$Q$5)+BA19+'2019 Legal Max'!BB19 -> 2267010 | BH19: =IF('Weighting Factors'!H19>0,'Weighting Factors'!H19,'Preliminary SO66'!AV18) -> 2321988 | BI19: 2267010 | BK19: ='Weighting Factors'!F19 -> 0 | BL19: ='Weighting Factors'!E19 -> 0 | BM19: 0 | BN19: 2267010 | BO19: =SUM((S19+T19+Y19+AA19+AE19+AH19+AJ19++AO19+AP19+AQ19+AR19)*'Weighting Factors'!Q$12)+(MAX(AS19,'Weighting Factors'!B19)) -> 2437342 | BP19: 0.3 | BQ19: 731203 | BR19: 746701 | BS19: 731203 | BT19: 0.3 | BU19: 0 | BV19: TRUE | BW19: 1507.146 | BX19: 0.600553 | BY19: 153.8 | BZ19: FALSE | CA19: 0 | CB19: 0 | CC19: 0 | CD19: 0 | CE19: 780 | CF19: 0.091 | CG19: =IF(CF19<0.06,1,IF(CF19>=18.29,52,MATCH(CF19-0.001,'Weighting Factors'!$Y$5:$Y$156)+1)) -> 5 | CH19: =VLOOKUP(CG19, 'Weighting Factors'!$W$5:$Z$56,4) -> 1480 | CI19: =('Weighting Factors'!$Q$5/'Weighting Factors'!$Q$14) -> 1 | CJ19: 105080 | CK19: =CJ19*'Weighting Factors'!$S$7 -> 105080 | CL19: 105080 | CM19: =AM19/'Weighting Factors'!$Q$5 -> 25.2 | CN19: 0 | CO19: 0 | CP19: 0 | CQ19: 0 | CR19: =SUM((AV19*'Weighting Factors'!$Q$5)+'2019 Legal Max'!BA19)*CQ19 -> 0 | CS19: 0 | CT19: 0.393 | CU19: 0 | CV19: 3 | CW19: 544.3 | CX19: ='LOB Transfers'!G18 -> 66028 | CY19: ='LOB Transfers'!J18 -> 15502 | CZ19: D0200
A20: 202 | B20: Wyandotte | C20: Turner-Kansas City | D20: 3871.2 | E20: 0 | F20: 3871.2 | G20: 3906.9 | H20: 0 | I20: 3906.9 | J20: 3956 | K20: 0 | L20: 3956 | M20: =IF(ISNA(VLOOKUP($CZ20,'Audit Values'!$A$2:$BW$363,2,FALSE)),'Preliminary SO66'!C19,VLOOKUP($CZ20,'Audit Values'!$A$2:$BW$363,73,FALSE)) -> 3899.5 | N20: =IF(ISNA(VLOOKUP($CZ20,'Audit Values'!$A$2:$BW$363,2,FALSE)),'Preliminary SO66'!F19,VLOOKUP($CZ20,'Audit Values'!$A$2:$BW$363,4,FALSE)) -> 0 | O20: 3899.5 | P20: =IF('Military Provision'!J21="YES", MAX('2019 Legal Max'!L20,'2019 Legal Max'!I20,AVERAGE('2019 Legal Max'!F20,'2019 Legal Max'!I20,'2019 Legal Max'!L20)), MAX(L20, I20)) -> 3956 | Q20: =IF(ISNA(VLOOKUP($CZ20,'Audit Values'!$A$2:$BU$351,2,FALSE)),'Preliminary SO66'!AL19,VLOOKUP($CZ20,'Audit Values'!$A$2:$BU$3953,58,FALSE)) -> 71.5 | R20: 0 | S20: =P20+Q20 -> 4027.5 | T20: 141.1 | U20: =IF(ISNA(VLOOKUP($CZ20,'Audit Values'!$A$2:$BW$315,2,FALSE)),'Preliminary SO66'!AM19,VLOOKUP($CZ20,'Audit Values'!$A$2:$BW$315,62,FALSE)) -> 1621.3 | V20: =(U20/6)*'Weighting Factors'!$Q$7 -> 106.7 | W20: =IF(ISNA(VLOOKUP($CZ20,'Audit Values'!$A$2:$BW$351,2,FALSE)),'Preliminary SO66'!AN19,VLOOKUP($CZ20,'Audit Values'!$A$2:$BW$351,61,FALSE)) -> 823 | X20: =W20*'Weighting Factors'!$Q$8 -> 152.3 | Y20: 152.3 | Z20: =IF(ISNA(VLOOKUP($CZ20,'Audit Values'!$A$2:$BW$315,2,FALSE)),'Preliminary SO66'!AO19,VLOOKUP($CZ20,'Audit Values'!$A$2:$BW$315,60,FALSE)) -> 938.3 | AA20: =Z20/6*'Weighting Factors'!$Q$6 -> 78.2 | AB20: =IF(ISNA(VLOOKUP($CZ20,'Audit Values'!$A$2:$BU$351,2,FALSE)),'Preliminary SO66'!AS19,VLOOKUP($CZ20,'Audit Values'!$A$2:$BU$351,63,FALSE)) -> 4059 | AC20: 0 | AD20: =IF(ISNA(VLOOKUP($CZ20,'Audit Values'!$A$2:$BU$351,2,FALSE)),'Preliminary SO66'!AP19,VLOOKUP($CZ20,'Audit Values'!$A$2:$BU$351,64,FALSE)) -> 2509 | AE20: =IF(A20=207, AD20,MAX(AC20,AD20))*'Weighting Factors'!$Q$9 -> 1214.4 | AF20: 263.4 | AG20: =IF(ISNA(VLOOKUP($CZ20,'Audit Values'!$A$2:$BW$351,2,FALSE)),'Preliminary SO66'!AG19,VLOOKUP($CZ20,'Audit Values'!$A$2:$BW$351,70,FALSE)) -> 263.3 | AH20: 263.4 | AI20: =IF(ISNA(VLOOKUP($CZ20,'Audit Values'!$A$2:$BU$351,2,FALSE)),'Preliminary SO66'!AQ19,VLOOKUP($CZ20,'Audit Values'!$A$2:$BU$351,65,FALSE)) -> 0 | AJ20: =AI20*'Weighting Factors'!$Q$10 -> 0 | AK20: =IF(ISNA(VLOOKUP($CZ20,'Audit Values'!$A$2:$BU$351,2,FALSE)),'Preliminary SO66'!AR19,VLOOKUP($CZ20,'Audit Values'!$A$2:$BU$351,66,FALSE)) -> 1200 | AM20: 660000 | AN20: 671789 | AO20: =MAX(AN20, AM20)/'Weighting Factors'!$Q$5 -> 161.3 | AP20: =CN20/'Weighting Factors'!$Q$5 -> 0 | AQ20: 0 | AR20: =CS20/'Weighting Factors'!$Q$5 -> 0 | AS20: 3165945 | AT20: =AS20/'Weighting Factors'!$Q$5 -> 760.1 | AU20: =IF(ISNA(VLOOKUP($CZ20,'Audit Values'!$A$2:$BU$351,2,FALSE)),'Preliminary SO66'!X19,VLOOKUP($CZ20,'Audit Values'!$A$2:$BU$351,47,FALSE)) -> 2 | AV20: 6800.3 | AW20: 6040.2 | AX20: =IF(ISNA(VLOOKUP($CZ20,'Audit Values'!$A$2:$BU$351,2,FALSE)),'Preliminary SO66'!AA19,VLOOKUP($CZ20,'Audit Values'!$A$2:$BU$351,41,FALSE)) -> 8 | AY20: =IF(ISNA(VLOOKUP($CZ20,'Audit Values'!$A$2:$BU$351,2,FALSE)),'Preliminary SO66'!AB19,VLOOKUP($CZ20,'Audit Values'!$A$2:$BU$351,42,FALSE)) -> 0 | AZ20: 99 | BA20: =SUM(AX20*'Weighting Factors'!$T$10)+('2019 Legal Max'!AY20*'Weighting Factors'!$T$11)+('2019 Legal Max'!AZ20*'Weighting Factors'!$T$12) -> 110191 | BB20: 0 | BC20: =IF(ISNA(VLOOKUP($CZ20,'Audit Values'!$A$2:$BU$351,2,FALSE)),"",IF(AND('Weighting Factors'!H20>0,VLOOKUP($CZ20,'Audit Values'!$A$2:$BU$351,51,FALSE)<'Weighting Factors'!H20),'Weighting Factors'!H20,VLOOKUP($CZ20,'Audit Values'!$A$2:$BU$351,50,FALSE))) -> 15 | BD20: =IF(ISNA(VLOOKUP($CZ20,'Audit Values'!$A$2:$BV$351,2,FALSE)),"",VLOOKUP($CZ20,'Audit Values'!$A$2:$BV$351,51,FALSE)) -> A | BE20: =IF('Weighting Factors'!H20="","",IF('Weighting Factors'!J20="Pending","PX","R")) ->  | BF20: =SUM((S20+T20+Y20+AA20+AE20+AH20+AJ20++AO20+AP20+AQ20+AU20+AR20)*'Weighting Factors'!$Q$5)+'2019 Legal Max'!BA20+'2019 Legal Max'!BB20 -> 25267624 | BG20: =SUM((AV20+AR20)*'Weighting Factors'!$Q$5)+BA20+'2019 Legal Max'!BB20 -> 28433441 | BH20: =IF('Weighting Factors'!H20>0,'Weighting Factors'!H20,'Preliminary SO66'!AV19) -> 29168939 | BI20: 28433441 | BK20: ='Weighting Factors'!F20 -> 0 | BL20: ='Weighting Factors'!E20 -> -3545 | BM20: -3545 | BN20: 28429896 | BO20: =SUM((S20+T20+Y20+AA20+AE20+AH20+AJ20++AO20+AP20+AQ20+AR20)*'Weighting Factors'!Q$12)+(MAX(AS20,'Weighting Factors'!B20)) -> 30345520 | BP20: 0.3 | BQ20: 9103656 | BR20: 9301822 | BS20: 9103656 | BT20: 0.3 | BU20: 0 | BV20: FALSE | BW20: 0 | BX20: 0 | BY20: 0 | BZ20: FALSE | CA20: 0 | CB20: 0 | CC20: 0 | CD20: 141.1 | CE20: 17 | CF20: 70.588 | CG20: =IF(CF20<0.06,1,IF(CF20>=18.29,52,MATCH(CF20-0.001,'Weighting Factors'!$Y$5:$Y$156)+1)) -> 52 | CH20: =VLOOKUP(CG20, 'Weighting Factors'!$W$5:$Z$56,4) -> 550 | CI20: =('Weighting Factors'!$Q$5/'Weighting Factors'!$Q$14) -> 1 | CJ20: 660000 | CK20: =CJ20*'Weighting Factors'!$S$7 -> 660000 | CL20: 660000 | CM20: =AM20/'Weighting Factors'!$Q$5 -> 158.5 | CN20: 0 | CO20: 0 | CP20: 0 | CQ20: 0 | CR20: =SUM((AV20*'Weighting Factors'!$Q$5)+'2019 Legal Max'!BA20)*CQ20 -> 0 | CS20: 0 | CT20: 0.6181 | CU20: 263.4 | CV20: 0 | CW20: 6800.3 | CX20: ='LOB Transfers'!G19 -> 1643210 | CY20: ='LOB Transfers'!J19 -> 205743 | CZ20: D0202
A21: 203 | B21: Wyandotte | C21: Piper-Kansas City | D21: 1955 | E21: 0 | F21: 1955 | G21: 2159.2 | H21: 0 | I21: 2159.2 | J21: 2260.3 | K21: 0 | L21: 2260.3 | M21: =IF(ISNA(VLOOKUP($CZ21,'Audit Values'!$A$2:$BW$363,2,FALSE)),'Preliminary SO66'!C20,VLOOKUP($CZ21,'Audit Values'!$A$2:$BW$363,73,FALSE)) -> 2314 | N21: =IF(ISNA(VLOOKUP($CZ21,'Audit Values'!$A$2:$BW$363,2,FALSE)),'Preliminary SO66'!F20,VLOOKUP($CZ21,'Audit Values'!$A$2:$BW$363,4,FALSE)) -> 0 | O21: 2314 | P21: =IF('Military Provision'!J22="YES", MAX('2019 Legal Max'!L21,'2019 Legal Max'!I21,AVERAGE('2019 Legal Max'!F21,'2019 Legal Max'!I21,'2019 Legal Max'!L21)), MAX(L21, I21)) -> 2260.3 | Q21: =IF(ISNA(VLOOKUP($CZ21,'Audit Values'!$A$2:$BU$351,2,FALSE)),'Preliminary SO66'!AL20,VLOOKUP($CZ21,'Audit Values'!$A$2:$BU$3953,58,FALSE)) -> 5.5 | R21: 0 | S21: 2265.8 | T21: 79.4 | U21: =IF(ISNA(VLOOKUP($CZ21,'Audit Values'!$A$2:$BW$315,2,FALSE)),'Preliminary SO66'!AM20,VLOOKUP($CZ21,'Audit Values'!$A$2:$BW$315,62,FALSE)) -> 114.1 | V21: =(U21/6)*'Weighting Factors'!$Q$7 -> 7.5 | W21: =IF(ISNA(VLOOKUP($CZ21,'Audit Values'!$A$2:$BW$351,2,FALSE)),'Preliminary SO66'!AN20,VLOOKUP($CZ21,'Audit Values'!$A$2:$BW$351,61,FALSE)) -> 54 | X21: =W21*'Weighting Factors'!$Q$8 -> 10 | Y21: 10 | Z21: =IF(ISNA(VLOOKUP($CZ21,'Audit Values'!$A$2:$BW$315,2,FALSE)),'Preliminary SO66'!AO20,VLOOKUP($CZ21,'Audit Values'!$A$2:$BW$315,60,FALSE)) -> 379.9 | AA21: =Z21/6*'Weighting Factors'!$Q$6 -> 31.7 | AB21: =IF(ISNA(VLOOKUP($CZ21,'Audit Values'!$A$2:$BU$351,2,FALSE)),'Preliminary SO66'!AS20,VLOOKUP($CZ21,'Audit Values'!$A$2:$BU$351,63,FALSE)) -> 2333 | AC21: 0 | AD21: =IF(ISNA(VLOOKUP($CZ21,'Audit Values'!$A$2:$BU$351,2,FALSE)),'Preliminary SO66'!AP20,VLOOKUP($CZ21,'Audit Values'!$A$2:$BU$351,64,FALSE)) -> 309 | AE21: =IF(A21=207, AD21,MAX(AC21,AD21))*'Weighting Factors'!$Q$9 -> 149.6 | AF21: 0 | AG21: =IF(ISNA(VLOOKUP($CZ21,'Audit Values'!$A$2:$BW$351,2,FALSE)),'Preliminary SO66'!AG20,VLOOKUP($CZ21,'Audit Values'!$A$2:$BW$351,70,FALSE)) -> 0 | AH21: 0 | AI21: =IF(ISNA(VLOOKUP($CZ21,'Audit Values'!$A$2:$BU$351,2,FALSE)),'Preliminary SO66'!AQ20,VLOOKUP($CZ21,'Audit Values'!$A$2:$BU$351,65,FALSE)) -> 0 | AJ21: =AI21*'Weighting Factors'!$Q$10 -> 0 | AK21: =IF(ISNA(VLOOKUP($CZ21,'Audit Values'!$A$2:$BU$351,2,FALSE)),'Preliminary SO66'!AR20,VLOOKUP($CZ21,'Audit Values'!$A$2:$BU$351,66,FALSE)) -> 1124 | AM21: 618200 | AN21: 608616 | AO21: =MAX(AN21, AM21)/'Weighting Factors'!$Q$5 -> 148.4 | AP21: =CN21/'Weighting Factors'!$Q$5 -> 0 | AQ21: 0 | AR21: =CS21/'Weighting Factors'!$Q$5 -> 0 | AS21: 2682884 | AT21: =AS21/'Weighting Factors'!$Q$5 -> 644.1 | AU21: =IF(ISNA(VLOOKUP($CZ21,'Audit Values'!$A$2:$BU$351,2,FALSE)),'Preliminary SO66'!X20,VLOOKUP($CZ21,'Audit Values'!$A$2:$BU$351,47,FALSE)) -> 0 | AV21: 3329 | AW21: 2684.9 | AX21: =IF(ISNA(VLOOKUP($CZ21,'Audit Values'!$A$2:$BU$351,2,FALSE)),'Preliminary SO66'!AA20,VLOOKUP($CZ21,'Audit Values'!$A$2:$BU$351,41,FALSE)) -> 1 | AY21: =IF(ISNA(VLOOKUP($CZ21,'Audit Values'!$A$2:$BU$351,2,FALSE)),'Preliminary SO66'!AB20,VLOOKUP($CZ21,'Audit Values'!$A$2:$BU$351,42,FALSE)) -> 0.7 | AZ21: 0 | BA21: =SUM(AX21*'Weighting Factors'!$T$10)+('2019 Legal Max'!AY21*'Weighting Factors'!$T$11)+('2019 Legal Max'!AZ21*'Weighting Factors'!$T$12) -> 6190 | BB21: 0 | BC21: =IF(ISNA(VLOOKUP($CZ21,'Audit Values'!$A$2:$BU$351,2,FALSE)),"",IF(AND('Weighting Factors'!H21>0,VLOOKUP($CZ21,'Audit Values'!$A$2:$BU$351,51,FALSE)<'Weighting Factors'!H21),'Weighting Factors'!H21,VLOOKUP($CZ21,'Audit Values'!$A$2:$BU$351,50,FALSE))) -> 17 | BD21: =IF(ISNA(VLOOKUP($CZ21,'Audit Values'!$A$2:$BV$351,2,FALSE)),"",VLOOKUP($CZ21,'Audit Values'!$A$2:$BV$351,51,FALSE)) -> A | BE21: =IF('Weighting Factors'!H21="","",IF('Weighting Factors'!J21="Pending","PX","R")) ->  | BF21: =SUM((S21+T21+Y21+AA21+AE21+AH21+AJ21++AO21+AP21+AQ21+AU21+AR21)*'Weighting Factors'!$Q$5)+'2019 Legal Max'!BA21+'2019 Legal Max'!BB21 -> 11188799 | BG21: =SUM((AV21+AR21)*'Weighting Factors'!$Q$5)+BA21+'2019 Legal Max'!BB21 -> 13871475 | BH21: =IF('Weighting Factors'!H21>0,'Weighting Factors'!H21,'Preliminary SO66'!AV20) -> 14480679 | BI21: 13871475 | BK21: ='Weighting Factors'!F21 -> 0 | BL21: ='Weighting Factors'!E21 -> 0 | BM21: 0 | BN21: 13871475 | BO21: =SUM((S21+T21+Y21+AA21+AE21+AH21+AJ21++AO21+AP21+AQ21+AR21)*'Weighting Factors'!Q$12)+(MAX(AS21,'Weighting Factors'!B21)) -> 14738085 | BP21: 0.33 | BQ21: 4863568 | BR21: 4757470 | BS21: 4757470 | BT21: 0.3228 | BU21: 0 | BV21: FALSE | BW21: 0 | BX21: 0 | BY21: 0 | BZ21: FALSE | CA21: 0 | CB21: 0 | CC21: 0 | CD21: 79.4 | CE21: 31.4 | CF21: 35.796 | CG21: =IF(CF21<0.06,1,IF(CF21>=18.29,52,MATCH(CF21-0.001,'Weighting Factors'!$Y$5:$Y$156)+1)) -> 52 | CH21: =VLOOKUP(CG21, 'Weighting Factors'!$W$5:$Z$56,4) -> 550 | CI21: =('Weighting Factors'!$Q$5/'Weighting Factors'!$Q$14) -> 1 | CJ21: 618200 | CK21: =CJ21*'Weighting Factors'!$S$7 -> 618200 | CL21: 618200 | CM21: =AM21/'Weighting Factors'!$Q$5 -> 148.4 | CN21: 0 | CO21: 0 | CP21: 0 | CQ21: 0.0295 | CR21: =SUM((AV21*'Weighting Factors'!$Q$5)+'2019 Legal Max'!BA21)*CQ21 -> 409209 | CS21: 0 | CT21: 0.1324 | CU21: 0 | CV21: 0 | CW21: 3329 | CX21: ='LOB Transfers'!G20 -> 214086 | CY21: ='LOB Transfers'!J20 -> 14272 | CZ21: D0203
A22: 204 | B22: Wyandotte | C22: Bonner Springs | D22: 2570.5 | E22: 0 | F22: 2570.5 | G22: 2630.5 | H22: 0 | I22: 2630.5 | J22: 2607.7 | K22: 0 | L22: 2607.7 | M22: =IF(ISNA(VLOOKUP($CZ22,'Audit Values'!$A$2:$BW$363,2,FALSE)),'Preliminary SO66'!C21,VLOOKUP($CZ22,'Audit Values'!$A$2:$BW$363,73,FALSE)) -> 2591.3 | N22: =IF(ISNA(VLOOKUP($CZ22,'Audit Values'!$A$2:$BW$363,2,FALSE)),'Preliminary SO66'!F21,VLOOKUP($CZ22,'Audit Values'!$A$2:$BW$363,4,FALSE)) -> 0 | O22: 2591.3 | P22: =IF('Military Provision'!J23="YES", MAX('2019 Legal Max'!L22,'2019 Legal Max'!I22,AVERAGE('2019 Legal Max'!F22,'2019 Legal Max'!I22,'2019 Legal Max'!L22)), MAX(L22, I22)) -> 2630.5 | Q22: =IF(ISNA(VLOOKUP($CZ22,'Audit Values'!$A$2:$BU$351,2,FALSE)),'Preliminary SO66'!AL21,VLOOKUP($CZ22,'Audit Values'!$A$2:$BU$3953,58,FALSE)) -> 16.5 | R22: 0 | S22: 2647 | T22: 92.8 | U22: =IF(ISNA(VLOOKUP($CZ22,'Audit Values'!$A$2:$BW$315,2,FALSE)),'Preliminary SO66'!AM21,VLOOKUP($CZ22,'Audit Values'!$A$2:$BW$315,62,FALSE)) -> 526.8 | V22: =(U22/6)*'Weighting Factors'!$Q$7 -> 34.7 | W22: =IF(ISNA(VLOOKUP($CZ22,'Audit Values'!$A$2:$BW$351,2,FALSE)),'Preliminary SO66'!AN21,VLOOKUP($CZ22,'Audit Values'!$A$2:$BW$351,61,FALSE)) -> 154 | X22: =W22*'Weighting Factors'!$Q$8 -> 28.5 | Y22: 34.7 | Z22: =IF(ISNA(VLOOKUP($CZ22,'Audit Values'!$A$2:$BW$315,2,FALSE)),'Preliminary SO66'!AO21,VLOOKUP($CZ22,'Audit Values'!$A$2:$BW$315,60,FALSE)) -> 626.2 | AA22: =Z22/6*'Weighting Factors'!$Q$6 -> 52.2 | AB22: =IF(ISNA(VLOOKUP($CZ22,'Audit Values'!$A$2:$BU$351,2,FALSE)),'Preliminary SO66'!AS21,VLOOKUP($CZ22,'Audit Values'!$A$2:$BU$351,63,FALSE)) -> 2636 | AC22: 0 | AD22: =IF(ISNA(VLOOKUP($CZ22,'Audit Values'!$A$2:$BU$351,2,FALSE)),'Preliminary SO66'!AP21,VLOOKUP($CZ22,'Audit Values'!$A$2:$BU$351,64,FALSE)) -> 939 | AE22: =IF(A22=207, AD22,MAX(AC22,AD22))*'Weighting Factors'!$Q$9 -> 454.5 | AF22: 4.1 | AG22: =IF(ISNA(VLOOKUP($CZ22,'Audit Values'!$A$2:$BW$351,2,FALSE)),'Preliminary SO66'!AG21,VLOOKUP($CZ22,'Audit Values'!$A$2:$BW$351,70,FALSE)) -> 20 | AH22: 20 | AI22: =IF(ISNA(VLOOKUP($CZ22,'Audit Values'!$A$2:$BU$351,2,FALSE)),'Preliminary SO66'!AQ21,VLOOKUP($CZ22,'Audit Values'!$A$2:$BU$351,65,FALSE)) -> 0 | AJ22: =AI22*'Weighting Factors'!$Q$10 -> 0 | AK22: =IF(ISNA(VLOOKUP($CZ22,'Audit Values'!$A$2:$BU$351,2,FALSE)),'Preliminary SO66'!AR21,VLOOKUP($CZ22,'Audit Values'!$A$2:$BU$351,66,FALSE)) -> 638 | AM22: 363660 | AN22: 506538 | AO22: =MAX(AN22, AM22)/'Weighting Factors'!$Q$5 -> 121.6 | AP22: =CN22/'Weighting Factors'!$Q$5 -> 0 | AQ22: 0 | AR22: =CS22/'Weighting Factors'!$Q$5 -> 0 | AS22: 3370642 | AT22: =AS22/'Weighting Factors'!$Q$5 -> 809.3 | AU22: =IF(ISNA(VLOOKUP($CZ22,'Audit Values'!$A$2:$BU$351,2,FALSE)),'Preliminary SO66'!X21,VLOOKUP($CZ22,'Audit Values'!$A$2:$BU$351,47,FALSE)) -> 0 | AV22: 4232.1 | AW22: 3422.8 | AX22: =IF(ISNA(VLOOKUP($CZ22,'Audit Values'!$A$2:$BU$351,2,FALSE)),'Preliminary SO66'!AA21,VLOOKUP($CZ22,'Audit Values'!$A$2:$BU$351,41,FALSE)) -> 43 | AY22: =IF(ISNA(VLOOKUP($CZ22,'Audit Values'!$A$2:$BU$351,2,FALSE)),'Preliminary SO66'!AB21,VLOOKUP($CZ22,'Audit Values'!$A$2:$BU$351,42,FALSE)) -> 7 | AZ22: 45 | BA22: =SUM(AX22*'Weighting Factors'!$T$10)+('2019 Legal Max'!AY22*'Weighting Factors'!$T$11)+('2019 Legal Max'!AZ22*'Weighting Factors'!$T$12) -> 258805 | BB22: 0 | BC22: =IF(ISNA(VLOOKUP($CZ22,'Audit Values'!$A$2:$BU$351,2,FALSE)),"",IF(AND('Weighting Factors'!H22>0,VLOOKUP($CZ22,'Audit Values'!$A$2:$BU$351,51,FALSE)<'Weighting Factors'!H22),'Weighting Factors'!H22,VLOOKUP($CZ22,'Audit Values'!$A$2:$BU$351,50,FALSE))) -> 10 | BD22: =IF(ISNA(VLOOKUP($CZ22,'Audit Values'!$A$2:$BV$351,2,FALSE)),"",VLOOKUP($CZ22,'Audit Values'!$A$2:$BV$351,51,FALSE)) -> A | BE22: =IF('Weighting Factors'!H22="","",IF('Weighting Factors'!J22="Pending","PX","R")) ->  | BF22: =SUM((S22+T22+Y22+AA22+AE22+AH22+AJ22++AO22+AP22+AQ22+AU22+AR22)*'Weighting Factors'!$Q$5)+'2019 Legal Max'!BA22+'2019 Legal Max'!BB22 -> 14514767 | BG22: =SUM((AV22+AR22)*'Weighting Factors'!$Q$5)+BA22+'2019 Legal Max'!BB22 -> 17885502 | BH22: =IF('Weighting Factors'!H22>0,'Weighting Factors'!H22,'Preliminary SO66'!AV21) -> 18072853 | BI22: 17885502 | BK22: ='Weighting Factors'!F22 -> -70956 | BL22: ='Weighting Factors'!E22 -> 0 | BM22: -70956 | BN22: 17814546 | BO22: =SUM((S22+T22+Y22+AA22+AE22+AH22+AJ22++AO22+AP22+AQ22+AR22)*'Weighting Factors'!Q$12)+(MAX(AS22,'Weighting Factors'!B22)) -> 18739014 | BP22: 0.3 | BQ22: 5621704 | BR22: 5685419 | BS22: 5621704 | BT22: 0.3 | BU22: 0 | BV22: FALSE | BW22: 0 | BX22: 0 | BY22: 0 | BZ22: FALSE | CA22: 0 | CB22: 0 | CC22: 0 | CD22: 92.8 | CE22: 38 | CF22: 16.789 | CG22: =IF(CF22<0.06,1,IF(CF22>=18.29,52,MATCH(CF22-0.001,'Weighting Factors'!$Y$5:$Y$156)+1)) -> 51 | CH22: =VLOOKUP(CG22, 'Weighting Factors'!$W$5:$Z$56,4) -> 570 | CI22: =('Weighting Factors'!$Q$5/'Weighting Factors'!$Q$14) -> 1 | CJ22: 363660 | CK22: =CJ22*'Weighting Factors'!$S$7 -> 363660 | CL22: 363660 | CM22: =AM22/'Weighting Factors'!$Q$5 -> 87.3 | CN22: 0 | CO22: 0 | CP22: 0 | CQ22: 0 | CR22: =SUM((AV22*'Weighting Factors'!$Q$5)+'2019 Legal Max'!BA22)*CQ22 -> 0 | CS22: 0 | CT22: 0.3562 | CU22: 0 | CV22: 4.1 | CW22: 4232.1 | CX22: ='LOB Transfers'!G21 -> 606020 | CY22: ='LOB Transfers'!J21 -> 46098 | CZ22: D0204
A23: 205 | B23: Butler | C23: Bluestem | D23: 486.3 | E23: 0 | F23: 486.3 | G23: 485 | H23: 0 | I23: 485 | J23: 475.5 | K23: 0 | L23: 475.5 | M23: =IF(ISNA(VLOOKUP($CZ23,'Audit Values'!$A$2:$BW$363,2,FALSE)),'Preliminary SO66'!C22,VLOOKUP($CZ23,'Audit Values'!$A$2:$BW$363,73,FALSE)) -> 496 | N23: =IF(ISNA(VLOOKUP($CZ23,'Audit Values'!$A$2:$BW$363,2,FALSE)),'Preliminary SO66'!F22,VLOOKUP($CZ23,'Audit Values'!$A$2:$BW$363,4,FALSE)) -> 0 | O23: 496 | P23: =IF('Military Provision'!J24="YES", MAX('2019 Legal Max'!L23,'2019 Legal Max'!I23,AVERAGE('2019 Legal Max'!F23,'2019 Legal Max'!I23,'2019 Legal Max'!L23)), MAX(L23, I23)) -> 485 | Q23: =IF(ISNA(VLOOKUP($CZ23,'Audit Values'!$A$2:$BU$351,2,FALSE)),'Preliminary SO66'!AL22,VLOOKUP($CZ23,'Audit Values'!$A$2:$BU$3953,58,FALSE)) -> 0 | R23: 0 | S23: 485 | T23: 204.3 | U23: =IF(ISNA(VLOOKUP($CZ23,'Audit Values'!$A$2:$BW$315,2,FALSE)),'Preliminary SO66'!AM22,VLOOKUP($CZ23,'Audit Values'!$A$2:$BW$315,62,FALSE)) -> 0 | V23: =(U23/6)*'Weighting Factors'!$Q$7 -> 0 | W23: =IF(ISNA(VLOOKUP($CZ23,'Audit Values'!$A$2:$BW$351,2,FALSE)),'Preliminary SO66'!AN22,VLOOKUP($CZ23,'Audit Values'!$A$2:$BW$351,61,FALSE)) -> 3 | X23: =W23*'Weighting Factors'!$Q$8 -> 0.6 | Y23: 0.6 | Z23: =IF(ISNA(VLOOKUP($CZ23,'Audit Values'!$A$2:$BW$315,2,FALSE)),'Preliminary SO66'!AO22,VLOOKUP($CZ23,'Audit Values'!$A$2:$BW$315,60,FALSE)) -> 72.9 | AA23: =Z23/6*'Weighting Factors'!$Q$6 -> 6.1 | AB23: =IF(ISNA(VLOOKUP($CZ23,'Audit Values'!$A$2:$BU$351,2,FALSE)),'Preliminary SO66'!AS22,VLOOKUP($CZ23,'Audit Values'!$A$2:$BU$351,63,FALSE)) -> 501 | AC23: 0 | AD23: =IF(ISNA(VLOOKUP($CZ23,'Audit Values'!$A$2:$BU$351,2,FALSE)),'Preliminary SO66'!AP22,VLOOKUP($CZ23,'Audit Values'!$A$2:$BU$351,64,FALSE)) -> 184 | AE23: =IF(A23=207, AD23,MAX(AC23,AD23))*'Weighting Factors'!$Q$9 -> 89.1 | AF23: 2.2 | AG23: =IF(ISNA(VLOOKUP($CZ23,'Audit Values'!$A$2:$BW$351,2,FALSE)),'Preliminary SO66'!AG22,VLOOKUP($CZ23,'Audit Values'!$A$2:$BW$351,70,FALSE)) -> 2.3 | AH23: 2.3 | AI23: =IF(ISNA(VLOOKUP($CZ23,'Audit Values'!$A$2:$BU$351,2,FALSE)),'Preliminary SO66'!AQ22,VLOOKUP($CZ23,'Audit Values'!$A$2:$BU$351,65,FALSE)) -> 0 | AJ23: =AI23*'Weighting Factors'!$Q$10 -> 0 | AK23: =IF(ISNA(VLOOKUP($CZ23,'Audit Values'!$A$2:$BU$351,2,FALSE)),'Preliminary SO66'!AR22,VLOOKUP($CZ23,'Audit Values'!$A$2:$BU$351,66,FALSE)) -> 244 | AM23: 251320 | AN23: 294293 | AO23: =MAX(AN23, AM23)/'Weighting Factors'!$Q$5 -> 70.7 | AP23: =CN23/'Weighting Factors'!$Q$5 -> 0 | AQ23: 0 | AR23: =CS23/'Weighting Factors'!$Q$5 -> 0 | AS23: 563450 | AT23: =AS23/'Weighting Factors'!$Q$5 -> 135.3 | AU23: =IF(ISNA(VLOOKUP($CZ23,'Audit Values'!$A$2:$BU$351,2,FALSE)),'Preliminary SO66'!X22,VLOOKUP($CZ23,'Audit Values'!$A$2:$BU$351,47,FALSE)) -> 0 | AV23: 993.4 | AW23: 858.1 | AX23: =IF(ISNA(VLOOKUP($CZ23,'Audit Values'!$A$2:$BU$351,2,FALSE)),'Preliminary SO66'!AA22,VLOOKUP($CZ23,'Audit Values'!$A$2:$BU$351,41,FALSE)) -> 0 | AY23: =IF(ISNA(VLOOKUP($CZ23,'Audit Values'!$A$2:$BU$351,2,FALSE)),'Preliminary SO66'!AB22,VLOOKUP($CZ23,'Audit Values'!$A$2:$BU$351,42,FALSE)) -> 0 | AZ23: 0 | BA23: =SUM(AX23*'Weighting Factors'!$T$10)+('2019 Legal Max'!AY23*'Weighting Factors'!$T$11)+('2019 Legal Max'!AZ23*'Weighting Factors'!$T$12) -> 0 | BB23: 0 | BC23: =IF(ISNA(VLOOKUP($CZ23,'Audit Values'!$A$2:$BU$351,2,FALSE)),"",IF(AND('Weighting Factors'!H23>0,VLOOKUP($CZ23,'Audit Values'!$A$2:$BU$351,51,FALSE)<'Weighting Factors'!H23),'Weighting Factors'!H23,VLOOKUP($CZ23,'Audit Values'!$A$2:$BU$351,50,FALSE))) -> 15 | BD23: =IF(ISNA(VLOOKUP($CZ23,'Audit Values'!$A$2:$BV$351,2,FALSE)),"",VLOOKUP($CZ23,'Audit Values'!$A$2:$BV$351,51,FALSE)) -> A | BE23: =IF('Weighting Factors'!H23="","",IF('Weighting Factors'!J23="Pending","PX","R")) ->  | BF23: =SUM((S23+T23+Y23+AA23+AE23+AH23+AJ23++AO23+AP23+AQ23+AU23+AR23)*'Weighting Factors'!$Q$5)+'2019 Legal Max'!BA23+'2019 Legal Max'!BB23 -> 3573987 | BG23: =SUM((AV23+AR23)*'Weighting Factors'!$Q$5)+BA23+'2019 Legal Max'!BB23 -> 4137511 | BH23: =IF('Weighting Factors'!H23>0,'Weighting Factors'!H23,'Preliminary SO66'!AV22) -> 4355757 | BI23: 4137511 | BK23: ='Weighting Factors'!F23 -> -76373 | BL23: ='Weighting Factors'!E23 -> 0 | BM23: -76373 | BN23: 4061138 | BO23: =SUM((S23+T23+Y23+AA23+AE23+AH23+AJ23++AO23+AP23+AQ23+AR23)*'Weighting Factors'!Q$12)+(MAX(AS23,'Weighting Factors'!B23)) -> 4459343 | BP23: 0.3 | BQ23: 1337803 | BR23: 1393413 | BS23: 1337803 | BT23: 0.3 | BU23: 0 | BV23: FALSE | BW23: 0 | BX23: 0 | BY23: 0 | BZ23: TRUE | CA23: 228.9375 | CB23: 0.421333 | CC23: 204.3 | CD23: 0 | CE23: 348.6 | CF23: 0.7 | CG23: =IF(CF23<0.06,1,IF(CF23>=18.29,52,MATCH(CF23-0.001,'Weighting Factors'!$Y$5:$Y$156)+1)) -> 28 | CH23: =VLOOKUP(CG23, 'Weighting Factors'!$W$5:$Z$56,4) -> 1030 | CI23: =('Weighting Factors'!$Q$5/'Weighting Factors'!$Q$14) -> 1 | CJ23: 251320 | CK23: =CJ23*'Weighting Factors'!$S$7 -> 251320 | CL23: 251320 | CM23: =AM23/'Weighting Factors'!$Q$5 -> 60.3 | CN23: 0 | CO23: 0 | CP23: 0 | CQ23: 0 | CR23: =SUM((AV23*'Weighting Factors'!$Q$5)+'2019 Legal Max'!BA23)*CQ23 -> 0 | CS23: 0 | CT23: 0.3673 | CU23: 0 | CV23: 2.2 | CW23: 993.4 | CX23: ='LOB Transfers'!G22 -> 120001 | CY23: ='LOB Transfers'!J22 -> 803 | CZ23: D0205
A24: 206 | B24: Butler | C24: Remington-Whitewater | D24: 491.7 | E24: 0 | F24: 491.7 | G24: 501.9 | H24: 0 | I24: 501.9 | J24: 504.7 | K24: 0 | L24: 504.7 | M24: =IF(ISNA(VLOOKUP($CZ24,'Audit Values'!$A$2:$BW$363,2,FALSE)),'Preliminary SO66'!C23,VLOOKUP($CZ24,'Audit Values'!$A$2:$BW$363,73,FALSE)) -> 492.9 | N24: =IF(ISNA(VLOOKUP($CZ24,'Audit Values'!$A$2:$BW$363,2,FALSE)),'Preliminary SO66'!F23,VLOOKUP($CZ24,'Audit Values'!$A$2:$BW$363,4,FALSE)) -> 0 | O24: 492.9 | P24: =IF('Military Provision'!J25="YES", MAX('2019 Legal Max'!L24,'2019 Legal Max'!I24,AVERAGE('2019 Legal Max'!F24,'2019 Legal Max'!I24,'2019 Legal Max'!L24)), MAX(L24, I24)) -> 504.7 | Q24: =IF(ISNA(VLOOKUP($CZ24,'Audit Values'!$A$2:$BU$351,2,FALSE)),'Preliminary SO66'!AL23,VLOOKUP($CZ24,'Audit Values'!$A$2:$BU$3953,58,FALSE)) -> 4.5 | R24: 0 | S24: 509.2 | T24: 210.4 | U24: =IF(ISNA(VLOOKUP($CZ24,'Audit Values'!$A$2:$BW$315,2,FALSE)),'Preliminary SO66'!AM23,VLOOKUP($CZ24,'Audit Values'!$A$2:$BW$315,62,FALSE)) -> 35.1 | V24: =(U24/6)*'Weighting Factors'!$Q$7 -> 2.3 | W24: =IF(ISNA(VLOOKUP($CZ24,'Audit Values'!$A$2:$BW$351,2,FALSE)),'Preliminary SO66'!AN23,VLOOKUP($CZ24,'Audit Values'!$A$2:$BW$351,61,FALSE)) -> 25 | X24: =W24*'Weighting Factors'!$Q$8 -> 4.6 | Y24: 4.6 | Z24: =IF(ISNA(VLOOKUP($CZ24,'Audit Values'!$A$2:$BW$315,2,FALSE)),'Preliminary SO66'!AO23,VLOOKUP($CZ24,'Audit Values'!$A$2:$BW$315,60,FALSE)) -> 89.8 | AA24: =Z24/6*'Weighting Factors'!$Q$6 -> 7.5 | AB24: =IF(ISNA(VLOOKUP($CZ24,'Audit Values'!$A$2:$BU$351,2,FALSE)),'Preliminary SO66'!AS23,VLOOKUP($CZ24,'Audit Values'!$A$2:$BU$351,63,FALSE)) -> 506 | AC24: 0 | AD24: =IF(ISNA(VLOOKUP($CZ24,'Audit Values'!$A$2:$BU$351,2,FALSE)),'Preliminary SO66'!AP23,VLOOKUP($CZ24,'Audit Values'!$A$2:$BU$351,64,FALSE)) -> 130 | AE24: =IF(A24=207, AD24,MAX(AC24,AD24))*'Weighting Factors'!$Q$9 -> 62.9 | AF24: 0 | AG24: =IF(ISNA(VLOOKUP($CZ24,'Audit Values'!$A$2:$BW$351,2,FALSE)),'Preliminary SO66'!AG23,VLOOKUP($CZ24,'Audit Values'!$A$2:$BW$351,70,FALSE)) -> 0 | AH24: 0 | AI24: =IF(ISNA(VLOOKUP($CZ24,'Audit Values'!$A$2:$BU$351,2,FALSE)),'Preliminary SO66'!AQ23,VLOOKUP($CZ24,'Audit Values'!$A$2:$BU$351,65,FALSE)) -> 0 | AJ24: =AI24*'Weighting Factors'!$Q$10 -> 0 | AK24: =IF(ISNA(VLOOKUP($CZ24,'Audit Values'!$A$2:$BU$351,2,FALSE)),'Preliminary SO66'!AR23,VLOOKUP($CZ24,'Audit Values'!$A$2:$BU$351,66,FALSE)) -> 349 | AM24: 317590 | AN24: 348606 | AO24: =MAX(AN24, AM24)/'Weighting Factors'!$Q$5 -> 83.7 | AP24: =CN24/'Weighting Factors'!$Q$5 -> 0 | AQ24: 0 | AR24: =CS24/'Weighting Factors'!$Q$5 -> 0 | AS24: 605315 | AT24: =AS24/'Weighting Factors'!$Q$5 -> 145.3 | AU24: =IF(ISNA(VLOOKUP($CZ24,'Audit Values'!$A$2:$BU$351,2,FALSE)),'Preliminary SO66'!X23,VLOOKUP($CZ24,'Audit Values'!$A$2:$BU$351,47,FALSE)) -> 0 | AV24: 1023.6 | AW24: 878.3 | AX24: =IF(ISNA(VLOOKUP($CZ24,'Audit Values'!$A$2:$BU$351,2,FALSE)),'Preliminary SO66'!AA23,VLOOKUP($CZ24,'Audit Values'!$A$2:$BU$351,41,FALSE)) -> 0 | AY24: =IF(ISNA(VLOOKUP($CZ24,'Audit Values'!$A$2:$BU$351,2,FALSE)),'Preliminary SO66'!AB23,VLOOKUP($CZ24,'Audit Values'!$A$2:$BU$351,42,FALSE)) -> 0 | AZ24: 0 | BA24: =SUM(AX24*'Weighting Factors'!$T$10)+('2019 Legal Max'!AY24*'Weighting Factors'!$T$11)+('2019 Legal Max'!AZ24*'Weighting Factors'!$T$12) -> 0 | BB24: 0 | BC24: =IF(ISNA(VLOOKUP($CZ24,'Audit Values'!$A$2:$BU$351,2,FALSE)),"",IF(AND('Weighting Factors'!H24>0,VLOOKUP($CZ24,'Audit Values'!$A$2:$BU$351,51,FALSE)<'Weighting Factors'!H24),'Weighting Factors'!H24,VLOOKUP($CZ24,'Audit Values'!$A$2:$BU$351,50,FALSE))) -> 24 | BD24: =IF(ISNA(VLOOKUP($CZ24,'Audit Values'!$A$2:$BV$351,2,FALSE)),"",VLOOKUP($CZ24,'Audit Values'!$A$2:$BV$351,51,FALSE)) -> A | BE24: =IF('Weighting Factors'!H24="","",IF('Weighting Factors'!J24="Pending","PX","R")) ->  | BF24: =SUM((S24+T24+Y24+AA24+AE24+AH24+AJ24++AO24+AP24+AQ24+AU24+AR24)*'Weighting Factors'!$Q$5)+'2019 Legal Max'!BA24+'2019 Legal Max'!BB24 -> 3658120 | BG24: =SUM((AV24+AR24)*'Weighting Factors'!$Q$5)+BA24+'2019 Legal Max'!BB24 -> 4263294 | BH24: =IF('Weighting Factors'!H24>0,'Weighting Factors'!H24,'Preliminary SO66'!AV23) -> 4453635 | BI24: 4263294 | BK24: ='Weighting Factors'!F24 -> -105620 | BL24: ='Weighting Factors'!E24 -> 0 | BM24: -105620 | BN24: 4157674 | BO24: =SUM((S24+T24+Y24+AA24+AE24+AH24+AJ24++AO24+AP24+AQ24+AR24)*'Weighting Factors'!Q$12)+(MAX(AS24,'Weighting Factors'!B24)) -> 4548882 | BP24: 0.33 | BQ24: 1501131 | BR24: 1475000 | BS24: 1475000 | BT24: 0.3243 | BU24: 0 | BV24: FALSE | BW24: 0 | BX24: 0 | BY24: 0 | BZ24: TRUE | CA24: 258.885 | CB24: 0.413111 | CC24: 210.4 | CD24: 0 | CE24: 253 | CF24: 1.379 | CG24: =IF(CF24<0.06,1,IF(CF24>=18.29,52,MATCH(CF24-0.001,'Weighting Factors'!$Y$5:$Y$156)+1)) -> 34 | CH24: =VLOOKUP(CG24, 'Weighting Factors'!$W$5:$Z$56,4) -> 910 | CI24: =('Weighting Factors'!$Q$5/'Weighting Factors'!$Q$14) -> 1 | CJ24: 317590 | CK24: =CJ24*'Weighting Factors'!$S$7 -> 317590 | CL24: 317590 | CM24: =AM24/'Weighting Factors'!$Q$5 -> 76.3 | CN24: 0 | CO24: 0 | CP24: 0 | CQ24: 0 | CR24: =SUM((AV24*'Weighting Factors'!$Q$5)+'2019 Legal Max'!BA24)*CQ24 -> 0 | CS24: 0 | CT24: 0.2569 | CU24: 0 | CV24: 0 | CW24: 1023.6 | CX24: ='LOB Transfers'!G23 -> 91008 | CY24: ='LOB Transfers'!J23 -> 6638 | CZ24: D0206
A25: 207 | B25: Leavenworth | C25: Ft Leavenworth | D25: 1597.1 | E25: 56 | F25: 1653.1 | G25: 1675.5 | H25: 67.5 | I25: 1743 | J25: 1756.6 | K25: 67 | L25: 1823.6 | M25: =IF(ISNA(VLOOKUP($CZ25,'Audit Values'!$A$2:$BW$363,2,FALSE)),'Preliminary SO66'!C24,VLOOKUP($CZ25,'Audit Values'!$A$2:$BW$363,73,FALSE)) -> 1695.5 | N25: =IF(ISNA(VLOOKUP($CZ25,'Audit Values'!$A$2:$BW$363,2,FALSE)),'Preliminary SO66'!F24,VLOOKUP($CZ25,'Audit Values'!$A$2:$BW$363,4,FALSE)) -> 61 | O25: 1756.5 | P25: =IF('Military Provision'!J26="YES", MAX('2019 Legal Max'!L25,'2019 Legal Max'!I25,AVERAGE('2019 Legal Max'!F25,'2019 Legal Max'!I25,'2019 Legal Max'!L25)), MAX(L25, I25)) -> 1823.6 | Q25: =IF(ISNA(VLOOKUP($CZ25,'Audit Values'!$A$2:$BU$351,2,FALSE)),'Preliminary SO66'!AL24,VLOOKUP($CZ25,'Audit Values'!$A$2:$BU$3953,58,FALSE)) -> 0 | R25: 0 | S25: 1823.6 | T25: 63.9 | U25: =IF(ISNA(VLOOKUP($CZ25,'Audit Values'!$A$2:$BW$315,2,FALSE)),'Preliminary SO66'!AM24,VLOOKUP($CZ25,'Audit Values'!$A$2:$BW$315,62,FALSE)) -> 47.1 | V25: =(U25/6)*'Weighting Factors'!$Q$7 -> 3.1 | W25: =IF(ISNA(VLOOKUP($CZ25,'Audit Values'!$A$2:$BW$351,2,FALSE)),'Preliminary SO66'!AN24,VLOOKUP($CZ25,'Audit Values'!$A$2:$BW$351,61,FALSE)) -> 74 | X25: =W25*'Weighting Factors'!$Q$8 -> 13.7 | Y25: 13.7 | Z25: =IF(ISNA(VLOOKUP($CZ25,'Audit Values'!$A$2:$BW$315,2,FALSE)),'Preliminary SO66'!AO24,VLOOKUP($CZ25,'Audit Values'!$A$2:$BW$315,60,FALSE)) -> 0 | AA25: =Z25/6*'Weighting Factors'!$Q$6 -> 0 | AB25: =IF(ISNA(VLOOKUP($CZ25,'Audit Values'!$A$2:$BU$351,2,FALSE)),'Preliminary SO66'!AS24,VLOOKUP($CZ25,'Audit Values'!$A$2:$BU$351,63,FALSE)) -> 1769 | AC25: 0 | AD25: =IF(ISNA(VLOOKUP($CZ25,'Audit Values'!$A$2:$BU$351,2,FALSE)),'Preliminary SO66'!AP24,VLOOKUP($CZ25,'Audit Values'!$A$2:$BU$351,64,FALSE)) -> 68 | AE25: =IF(A25=207, AD25,MAX(AC25,AD25))*'Weighting Factors'!$Q$9 -> 32.9 | AF25: 0 | AG25: =IF(ISNA(VLOOKUP($CZ25,'Audit Values'!$A$2:$BW$351,2,FALSE)),'Preliminary SO66'!AG24,VLOOKUP($CZ25,'Audit Values'!$A$2:$BW$351,70,FALSE)) -> 0 | AH25: 0 | AI25: =IF(ISNA(VLOOKUP($CZ25,'Audit Values'!$A$2:$BU$351,2,FALSE)),'Preliminary SO66'!AQ24,VLOOKUP($CZ25,'Audit Values'!$A$2:$BU$351,65,FALSE)) -> 0 | AJ25: =AI25*'Weighting Factors'!$Q$10 -> 0 | AK25: =IF(ISNA(VLOOKUP($CZ25,'Audit Values'!$A$2:$BU$351,2,FALSE)),'Preliminary SO66'!AR24,VLOOKUP($CZ25,'Audit Values'!$A$2:$BU$351,66,FALSE)) -> 0 | AM25: 0 | AN25: 83974 | AO25: =MAX(AN25, AM25)/'Weighting Factors'!$Q$5 -> 20.2 | AP25: =CN25/'Weighting Factors'!$Q$5 -> 0 | AQ25: 0 | AR25: =CS25/'Weighting Factors'!$Q$5 -> 0 | AS25: 1291871 | AT25: =AS25/'Weighting Factors'!$Q$5 -> 310.2 | AU25: =IF(ISNA(VLOOKUP($CZ25,'Audit Values'!$A$2:$BU$351,2,FALSE)),'Preliminary SO66'!X24,VLOOKUP($CZ25,'Audit Values'!$A$2:$BU$351,47,FALSE)) -> 0 | AV25: 2264.5 | AW25: 1954.3 | AX25: =IF(ISNA(VLOOKUP($CZ25,'Audit Values'!$A$2:$BU$351,2,FALSE)),'Preliminary SO66'!AA24,VLOOKUP($CZ25,'Audit Values'!$A$2:$BU$351,41,FALSE)) -> 0 | AY25: =IF(ISNA(VLOOKUP($CZ25,'Audit Values'!$A$2:$BU$351,2,FALSE)),'Preliminary SO66'!AB24,VLOOKUP($CZ25,'Audit Values'!$A$2:$BU$351,42,FALSE)) -> 0 | AZ25: 0 | BA25: =SUM(AX25*'Weighting Factors'!$T$10)+('2019 Legal Max'!AY25*'Weighting Factors'!$T$11)+('2019 Legal Max'!AZ25*'Weighting Factors'!$T$12) -> 0 | BB25: 0 | BC25: =IF(ISNA(VLOOKUP($CZ25,'Audit Values'!$A$2:$BU$351,2,FALSE)),"",IF(AND('Weighting Factors'!H25>0,VLOOKUP($CZ25,'Audit Values'!$A$2:$BU$351,51,FALSE)<'Weighting Factors'!H25),'Weighting Factors'!H25,VLOOKUP($CZ25,'Audit Values'!$A$2:$BU$351,50,FALSE))) -> 19 | BD25: =IF(ISNA(VLOOKUP($CZ25,'Audit Values'!$A$2:$BV$351,2,FALSE)),"",VLOOKUP($CZ25,'Audit Values'!$A$2:$BV$351,51,FALSE)) -> A | BE25: =IF('Weighting Factors'!H25="","",IF('Weighting Factors'!J25="Pending","PX","R")) ->  | BF25: =SUM((S25+T25+Y25+AA25+AE25+AH25+AJ25++AO25+AP25+AQ25+AU25+AR25)*'Weighting Factors'!$Q$5)+'2019 Legal Max'!BA25+'2019 Legal Max'!BB25 -> 8139660 | BG25: =SUM((AV25+AR25)*'Weighting Factors'!$Q$5)+BA25+'2019 Legal Max'!BB25 -> 9431643 | BH25: =IF('Weighting Factors'!H25>0,'Weighting Factors'!H25,'Preliminary SO66'!AV24) -> 10005580 | BI25: 9431643 | BK25: ='Weighting Factors'!F25 -> 0 | BL25: ='Weighting Factors'!E25 -> 0 | BM25: 0 | BN25: 9431643 | BO25: =SUM((S25+T25+Y25+AA25+AE25+AH25+AJ25++AO25+AP25+AQ25+AR25)*'Weighting Factors'!Q$12)+(MAX(AS25,'Weighting Factors'!B25)) -> 10066678 | BP25: 0.33 | BQ25: 3322004 | BR25: 3515381 | BS25: 3322004 | BT25: 0.33 | BU25: 0 | BV25: FALSE | BW25: 0 | BX25: 0 | BY25: 0 | BZ25: FALSE | CA25: 0 | CB25: 0 | CC25: 0 | CD25: 63.9 | CE25: 8.5 | CF25: 0 | CG25: =IF(CF25<0.06,1,IF(CF25>=18.29,52,MATCH(CF25-0.001,'Weighting Factors'!$Y$5:$Y$156)+1)) -> 1 | CH25: =VLOOKUP(CG25, 'Weighting Factors'!$W$5:$Z$56,4) -> 1620 | CI25: =('Weighting Factors'!$Q$5/'Weighting Factors'!$Q$14) -> 1 | CJ25: 0 | CK25: =CJ25*'Weighting Factors'!$S$7 -> 0 | CL25: 0 | CM25: =AM25/'Weighting Factors'!$Q$5 -> 0 | CN25: 0 | CO25: 0 | CP25: 0 | CQ25: 0 | CR25: =SUM((AV25*'Weighting Factors'!$Q$5)+'2019 Legal Max'!BA25)*CQ25 -> 0 | CS25: 0 | CT25: 0.0384 | CU25: 0 | CV25: 0 | CW25: 2264.5 | CX25: ='LOB Transfers'!G24 -> 48169 | CY25: ='LOB Transfers'!J24 -> 19932 | CZ25: D0207
A26: 208 | B26: Trego | C26: Wakeeney | D26: 367 | E26: 0 | F26: 367 | G26: 381.5 | H26: 0 | I26: 381.5 | J26: 385.3 | K26: 0 | L26: 385.3 | M26: =IF(ISNA(VLOOKUP($CZ26,'Audit Values'!$A$2:$BW$363,2,FALSE)),'Preliminary SO66'!C25,VLOOKUP($CZ26,'Audit Values'!$A$2:$BW$363,73,FALSE)) -> 375.5 | N26: =IF(ISNA(VLOOKUP($CZ26,'Audit Values'!$A$2:$BW$363,2,FALSE)),'Preliminary SO66'!F25,VLOOKUP($CZ26,'Audit Values'!$A$2:$BW$363,4,FALSE)) -> 0 | O26: 375.5 | P26: =IF('Military Provision'!J27="YES", MAX('2019 Legal Max'!L26,'2019 Legal Max'!I26,AVERAGE('2019 Legal Max'!F26,'2019 Legal Max'!I26,'2019 Legal Max'!L26)), MAX(L26, I26)) -> 385.3 | Q26: =IF(ISNA(VLOOKUP($CZ26,'Audit Values'!$A$2:$BU$351,2,FALSE)),'Preliminary SO66'!AL25,VLOOKUP($CZ26,'Audit Values'!$A$2:$BU$3953,58,FALSE)) -> 0 | R26: 0 | S26: 385.3 | T26: 175.4 | U26: =IF(ISNA(VLOOKUP($CZ26,'Audit Values'!$A$2:$BW$315,2,FALSE)),'Preliminary SO66'!AM25,VLOOKUP($CZ26,'Audit Values'!$A$2:$BW$315,62,FALSE)) -> 0 | V26: =(U26/6)*'Weighting Factors'!$Q$7 -> 0 | W26: =IF(ISNA(VLOOKUP($CZ26,'Audit Values'!$A$2:$BW$351,2,FALSE)),'Preliminary SO66'!AN25,VLOOKUP($CZ26,'Audit Values'!$A$2:$BW$351,61,FALSE)) -> 0 | X26: =W26*'Weighting Factors'!$Q$8 -> 0 | Y26: 0 | Z26: =IF(ISNA(VLOOKUP($CZ26,'Audit Values'!$A$2:$BW$315,2,FALSE)),'Preliminary SO66'!AO25,VLOOKUP($CZ26,'Audit Values'!$A$2:$BW$315,60,FALSE)) -> 77.2 | AA26: =Z26/6*'Weighting Factors'!$Q$6 -> 6.4 | AB26: =IF(ISNA(VLOOKUP($CZ26,'Audit Values'!$A$2:$BU$351,2,FALSE)),'Preliminary SO66'!AS25,VLOOKUP($CZ26,'Audit Values'!$A$2:$BU$351,63,FALSE)) -> 380 | AC26: 0 | AD26: =IF(ISNA(VLOOKUP($CZ26,'Audit Values'!$A$2:$BU$351,2,FALSE)),'Preliminary SO66'!AP25,VLOOKUP($CZ26,'Audit Values'!$A$2:$BU$351,64,FALSE)) -> 102 | AE26: =IF(A26=207, AD26,MAX(AC26,AD26))*'Weighting Factors'!$Q$9 -> 49.4 | AF26: 0 | AG26: =IF(ISNA(VLOOKUP($CZ26,'Audit Values'!$A$2:$BW$351,2,FALSE)),'Preliminary SO66'!AG25,VLOOKUP($CZ26,'Audit Values'!$A$2:$BW$351,70,FALSE)) -> 0 | AH26: 0 | AI26: =IF(ISNA(VLOOKUP($CZ26,'Audit Values'!$A$2:$BU$351,2,FALSE)),'Preliminary SO66'!AQ25,VLOOKUP($CZ26,'Audit Values'!$A$2:$BU$351,65,FALSE)) -> 0 | AJ26: =AI26*'Weighting Factors'!$Q$10 -> 0 | AK26: =IF(ISNA(VLOOKUP($CZ26,'Audit Values'!$A$2:$BU$351,2,FALSE)),'Preliminary SO66'!AR25,VLOOKUP($CZ26,'Audit Values'!$A$2:$BU$351,66,FALSE)) -> 78 | AM26: 111540 | AN26: 131353 | AO26: =MAX(AN26, AM26)/'Weighting Factors'!$Q$5 -> 31.5 | AP26: =CN26/'Weighting Factors'!$Q$5 -> 0 | AQ26: 0 | AR26: =CS26/'Weighting Factors'!$Q$5 -> 0 | AS26: 472861 | AT26: =AS26/'Weighting Factors'!$Q$5 -> 113.5 | AU26: =IF(ISNA(VLOOKUP($CZ26,'Audit Values'!$A$2:$BU$351,2,FALSE)),'Preliminary SO66'!X25,VLOOKUP($CZ26,'Audit Values'!$A$2:$BU$351,47,FALSE)) -> 0 | AV26: 761.5 | AW26: 648 | AX26: =IF(ISNA(VLOOKUP($CZ26,'Audit Values'!$A$2:$BU$351,2,FALSE)),'Preliminary SO66'!AA25,VLOOKUP($CZ26,'Audit Values'!$A$2:$BU$351,41,FALSE)) -> 0 | AY26: =IF(ISNA(VLOOKUP($CZ26,'Audit Values'!$A$2:$BU$351,2,FALSE)),'Preliminary SO66'!AB25,VLOOKUP($CZ26,'Audit Values'!$A$2:$BU$351,42,FALSE)) -> 0 | AZ26: 0 | BA26: =SUM(AX26*'Weighting Factors'!$T$10)+('2019 Legal Max'!AY26*'Weighting Factors'!$T$11)+('2019 Legal Max'!AZ26*'Weighting Factors'!$T$12) -> 0 | BB26: 0 | BC26: =IF(ISNA(VLOOKUP($CZ26,'Audit Values'!$A$2:$BU$351,2,FALSE)),"",IF(AND('Weighting Factors'!H26>0,VLOOKUP($CZ26,'Audit Values'!$A$2:$BU$351,51,FALSE)<'Weighting Factors'!H26),'Weighting Factors'!H26,VLOOKUP($CZ26,'Audit Values'!$A$2:$BU$351,50,FALSE))) -> 19 | BD26: =IF(ISNA(VLOOKUP($CZ26,'Audit Values'!$A$2:$BV$351,2,FALSE)),"",VLOOKUP($CZ26,'Audit Values'!$A$2:$BV$351,51,FALSE)) -> A | BE26: =IF('Weighting Factors'!H26="","",IF('Weighting Factors'!J26="Pending","PX","R")) ->  | BF26: =SUM((S26+T26+Y26+AA26+AE26+AH26+AJ26++AO26+AP26+AQ26+AU26+AR26)*'Weighting Factors'!$Q$5)+'2019 Legal Max'!BA26+'2019 Legal Max'!BB26 -> 2698920 | BG26: =SUM((AV26+AR26)*'Weighting Factors'!$Q$5)+BA26+'2019 Legal Max'!BB26 -> 3171648 | BH26: =IF('Weighting Factors'!H26>0,'Weighting Factors'!H26,'Preliminary SO66'!AV25) -> 3231624 | BI26: 3171648 | BK26: ='Weighting Factors'!F26 -> 0 | BL26: ='Weighting Factors'!E26 -> 0 | BM26: 0 | BN26: 3171648 | BO26: =SUM((S26+T26+Y26+AA26+AE26+AH26+AJ26++AO26+AP26+AQ26+AR26)*'Weighting Factors'!Q$12)+(MAX(AS26,'Weighting Factors'!B26)) -> 3419518 | BP26: 0.3 | BQ26: 1025855 | BR26: 1032937 | BS26: 1025855 | BT26: 0.3 | BU26: 0 | BV26: FALSE | BW26: 0 | BX26: 0 | BY26: 0 | BZ26: TRUE | CA26: 105.5588 | CB26: 0.455206 | CC26: 175.4 | CD26: 0 | CE26: 706.7 | CF26: 0.11 | CG26: =IF(CF26<0.06,1,IF(CF26>=18.29,52,MATCH(CF26-0.001,'Weighting Factors'!$Y$5:$Y$156)+1)) -> 7 | CH26: =VLOOKUP(CG26, 'Weighting Factors'!$W$5:$Z$56,4) -> 1430 | CI26: =('Weighting Factors'!$Q$5/'Weighting Factors'!$Q$14) -> 1 | CJ26: 111540 | CK26: =CJ26*'Weighting Factors'!$S$7 -> 111540 | CL26: 111540 | CM26: =AM26/'Weighting Factors'!$Q$5 -> 26.8 | CN26: 0 | CO26: 0 | CP26: 0 | CQ26: 0 | CR26: =SUM((AV26*'Weighting Factors'!$Q$5)+'2019 Legal Max'!BA26)*CQ26 -> 0 | CS26: 0 | CT26: 0.2684 | CU26: 0 | CV26: 0 | CW26: 761.5 | CX26: ='LOB Transfers'!G25 -> 66578 | CY26: ='LOB Transfers'!J25 -> 0 | CZ26: D0208
A27: 209 | B27: Stevens | C27: Moscow Public Schools | D27: 163.2 | E27: 0 | F27: 163.2 | G27: 171 | H27: 0 | I27: 171 | J27: 176 | K27: 0 | L27: 176 | M27: =IF(ISNA(VLOOKUP($CZ27,'Audit Values'!$A$2:$BW$363,2,FALSE)),'Preliminary SO66'!C26,VLOOKUP($CZ27,'Audit Values'!$A$2:$BW$363,73,FALSE)) -> 159.2 | N27: =IF(ISNA(VLOOKUP($CZ27,'Audit Values'!$A$2:$BW$363,2,FALSE)),'Preliminary SO66'!F26,VLOOKUP($CZ27,'Audit Values'!$A$2:$BW$363,4,FALSE)) -> 0 | O27: 159.2 | P27: =IF('Military Provision'!J28="YES", MAX('2019 Legal Max'!L27,'2019 Legal Max'!I27,AVERAGE('2019 Legal Max'!F27,'2019 Legal Max'!I27,'2019 Legal Max'!L27)), MAX(L27, I27)) -> 176 | Q27: =IF(ISNA(VLOOKUP($CZ27,'Audit Values'!$A$2:$BU$351,2,FALSE)),'Preliminary SO66'!AL26,VLOOKUP($CZ27,'Audit Values'!$A$2:$BU$3953,58,FALSE)) -> 3.5 | R27: 0 | S27: 179.5 | T27: 144.2 | U27: =IF(ISNA(VLOOKUP($CZ27,'Audit Values'!$A$2:$BW$315,2,FALSE)),'Preliminary SO66'!AM26,VLOOKUP($CZ27,'Audit Values'!$A$2:$BW$315,62,FALSE)) -> 256.2 | V27: =(U27/6)*'Weighting Factors'!$Q$7 -> 16.9 | W27: =IF(ISNA(VLOOKUP($CZ27,'Audit Values'!$A$2:$BW$351,2,FALSE)),'Preliminary SO66'!AN26,VLOOKUP($CZ27,'Audit Values'!$A$2:$BW$351,61,FALSE)) -> 53 | X27: =W27*'Weighting Factors'!$Q$8 -> 9.8 | Y27: 16.9 | Z27: =IF(ISNA(VLOOKUP($CZ27,'Audit Values'!$A$2:$BW$315,2,FALSE)),'Preliminary SO66'!AO26,VLOOKUP($CZ27,'Audit Values'!$A$2:$BW$315,60,FALSE)) -> 0 | AA27: =Z27/6*'Weighting Factors'!$Q$6 -> 0 | AB27: =IF(ISNA(VLOOKUP($CZ27,'Audit Values'!$A$2:$BU$351,2,FALSE)),'Preliminary SO66'!AS26,VLOOKUP($CZ27,'Audit Values'!$A$2:$BU$351,63,FALSE)) -> 167 | AC27: 0 | AD27: =IF(ISNA(VLOOKUP($CZ27,'Audit Values'!$A$2:$BU$351,2,FALSE)),'Preliminary SO66'!AP26,VLOOKUP($CZ27,'Audit Values'!$A$2:$BU$351,64,FALSE)) -> 84 | AE27: =IF(A27=207, AD27,MAX(AC27,AD27))*'Weighting Factors'!$Q$9 -> 40.7 | AF27: 8.8 | AG27: =IF(ISNA(VLOOKUP($CZ27,'Audit Values'!$A$2:$BW$351,2,FALSE)),'Preliminary SO66'!AG26,VLOOKUP($CZ27,'Audit Values'!$A$2:$BW$351,70,FALSE)) -> 8.8 | AH27: 8.8 | AI27: =IF(ISNA(VLOOKUP($CZ27,'Audit Values'!$A$2:$BU$351,2,FALSE)),'Preliminary SO66'!AQ26,VLOOKUP($CZ27,'Audit Values'!$A$2:$BU$351,65,FALSE)) -> 0 | AJ27: =AI27*'Weighting Factors'!$Q$10 -> 0 | AK27: =IF(ISNA(VLOOKUP($CZ27,'Audit Values'!$A$2:$BU$351,2,FALSE)),'Preliminary SO66'!AR26,VLOOKUP($CZ27,'Audit Values'!$A$2:$BU$351,66,FALSE)) -> 39 | AM27: 51480 | AN27: 69721 | AO27: =MAX(AN27, AM27)/'Weighting Factors'!$Q$5 -> 16.7 | AP27: =CN27/'Weighting Factors'!$Q$5 -> 0 | AQ27: 0 | AR27: =CS27/'Weighting Factors'!$Q$5 -> 0 | AS27: 119666 | AT27: =AS27/'Weighting Factors'!$Q$5 -> 28.7 | AU27: =IF(ISNA(VLOOKUP($CZ27,'Audit Values'!$A$2:$BU$351,2,FALSE)),'Preliminary SO66'!X26,VLOOKUP($CZ27,'Audit Values'!$A$2:$BU$351,47,FALSE)) -> 0 | AV27: 435.5 | AW27: 406.8 | AX27: =IF(ISNA(VLOOKUP($CZ27,'Audit Values'!$A$2:$BU$351,2,FALSE)),'Preliminary SO66'!AA26,VLOOKUP($CZ27,'Audit Values'!$A$2:$BU$351,41,FALSE)) -> 0 | AY27: =IF(ISNA(VLOOKUP($CZ27,'Audit Values'!$A$2:$BU$351,2,FALSE)),'Preliminary SO66'!AB26,VLOOKUP($CZ27,'Audit Values'!$A$2:$BU$351,42,FALSE)) -> 0 | AZ27: 0 | BA27: =SUM(AX27*'Weighting Factors'!$T$10)+('2019 Legal Max'!AY27*'Weighting Factors'!$T$11)+('2019 Legal Max'!AZ27*'Weighting Factors'!$T$12) -> 0 | BB27: 0 | BC27: =IF(ISNA(VLOOKUP($CZ27,'Audit Values'!$A$2:$BU$351,2,FALSE)),"",IF(AND('Weighting Factors'!H27>0,VLOOKUP($CZ27,'Audit Values'!$A$2:$BU$351,51,FALSE)<'Weighting Factors'!H27),'Weighting Factors'!H27,VLOOKUP($CZ27,'Audit Values'!$A$2:$BU$351,50,FALSE))) -> 15 | BD27: =IF(ISNA(VLOOKUP($CZ27,'Audit Values'!$A$2:$BV$351,2,FALSE)),"",VLOOKUP($CZ27,'Audit Values'!$A$2:$BV$351,51,FALSE)) -> A | BE27: =IF('Weighting Factors'!H27="","",IF('Weighting Factors'!J27="Pending","PX","R")) ->  | BF27: =SUM((S27+T27+Y27+AA27+AE27+AH27+AJ27++AO27+AP27+AQ27+AU27+AR27)*'Weighting Factors'!$Q$5)+'2019 Legal Max'!BA27+'2019 Legal Max'!BB27 -> 1694322 | BG27: =SUM((AV27+AR27)*'Weighting Factors'!$Q$5)+BA27+'2019 Legal Max'!BB27 -> 1813858 | BH27: =IF('Weighting Factors'!H27>0,'Weighting Factors'!H27,'Preliminary SO66'!AV26) -> 1862172 | BI27: 1813858 | BK27: ='Weighting Factors'!F27 -> 0 | BL27: ='Weighting Factors'!E27 -> 0 | BM27: 0 | BN27: 1813858 | BO27: =SUM((S27+T27+Y27+AA27+AE27+AH27+AJ27++AO27+AP27+AQ27+AR27)*'Weighting Factors'!Q$12)+(MAX(AS27,'Weighting Factors'!B27)) -> 1964693 | BP27: 0.33 | BQ27: 648349 | BR27: 658901 | BS27: 648349 | BT27: 0.33 | BU27: 0 | BV27: TRUE | BW27: 767.573 | BX27: 0.803598 | BY27: 144.2 | BZ27: FALSE | CA27: 0 | CB27: 0 | CC27: 0 | CD27: 0 | CE27: 223 | CF27: 0.175 | CG27: =IF(CF27<0.06,1,IF(CF27>=18.29,52,MATCH(CF27-0.001,'Weighting Factors'!$Y$5:$Y$156)+1)) -> 13 | CH27: =VLOOKUP(CG27, 'Weighting Factors'!$W$5:$Z$56,4) -> 1320 | CI27: =('Weighting Factors'!$Q$5/'Weighting Factors'!$Q$14) -> 1 | CJ27: 51480 | CK27: =CJ27*'Weighting Factors'!$S$7 -> 51480 | CL27: 51480 | CM27: =AM27/'Weighting Factors'!$Q$5 -> 12.4 | CN27: 0 | CO27: 0 | CP27: 0 | CQ27: 0 | CR27: =SUM((AV27*'Weighting Factors'!$Q$5)+'2019 Legal Max'!BA27)*CQ27 -> 0 | CS27: 0 | CT27: 0.503 | CU27: 8.8 | CV27: 0 | CW27: 435.5 | CX27: ='LOB Transfers'!G26 -> 61074 | CY27: ='LOB Transfers'!J26 -> 25350 | CZ27: D0209
A28: 210 | B28: Stevens | C28: Hugoton Public Schools | D28: 1010.4 | E28: 0 | F28: 1010.4 | G28: 995.6 | H28: 0 | I28: 995.6 | J28: 959.1 | K28: 0 | L28: 959.1 | M28: =IF(ISNA(VLOOKUP($CZ28,'Audit Values'!$A$2:$BW$363,2,FALSE)),'Preliminary SO66'!C27,VLOOKUP($CZ28,'Audit Values'!$A$2:$BW$363,73,FALSE)) -> 999.8 | N28: =IF(ISNA(VLOOKUP($CZ28,'Audit Values'!$A$2:$BW$363,2,FALSE)),'Preliminary SO66'!F27,VLOOKUP($CZ28,'Audit Values'!$A$2:$BW$363,4,FALSE)) -> 0 | O28: 999.8 | P28: =IF('Military Provision'!J29="YES", MAX('2019 Legal Max'!L28,'2019 Legal Max'!I28,AVERAGE('2019 Legal Max'!F28,'2019 Legal Max'!I28,'2019 Legal Max'!L28)), MAX(L28, I28)) -> 995.6 | Q28: =IF(ISNA(VLOOKUP($CZ28,'Audit Values'!$A$2:$BU$351,2,FALSE)),'Preliminary SO66'!AL27,VLOOKUP($CZ28,'Audit Values'!$A$2:$BU$3953,58,FALSE)) -> 13 | R28: 0 | S28: 1008.6 | T28: 245.5 | U28: =IF(ISNA(VLOOKUP($CZ28,'Audit Values'!$A$2:$BW$315,2,FALSE)),'Preliminary SO66'!AM27,VLOOKUP($CZ28,'Audit Values'!$A$2:$BW$315,62,FALSE)) -> 1300.7 | V28: =(U28/6)*'Weighting Factors'!$Q$7 -> 85.6 | W28: =IF(ISNA(VLOOKUP($CZ28,'Audit Values'!$A$2:$BW$351,2,FALSE)),'Preliminary SO66'!AN27,VLOOKUP($CZ28,'Audit Values'!$A$2:$BW$351,61,FALSE)) -> 346 | X28: =W28*'Weighting Factors'!$Q$8 -> 64 | Y28: 85.6 | Z28: =IF(ISNA(VLOOKUP($CZ28,'Audit Values'!$A$2:$BW$315,2,FALSE)),'Preliminary SO66'!AO27,VLOOKUP($CZ28,'Audit Values'!$A$2:$BW$315,60,FALSE)) -> 242.4 | AA28: =Z28/6*'Weighting Factors'!$Q$6 -> 20.2 | AB28: =IF(ISNA(VLOOKUP($CZ28,'Audit Values'!$A$2:$BU$351,2,FALSE)),'Preliminary SO66'!AS27,VLOOKUP($CZ28,'Audit Values'!$A$2:$BU$351,63,FALSE)) -> 1036 | AC28: 0 | AD28: =IF(ISNA(VLOOKUP($CZ28,'Audit Values'!$A$2:$BU$351,2,FALSE)),'Preliminary SO66'!AP27,VLOOKUP($CZ28,'Audit Values'!$A$2:$BU$351,64,FALSE)) -> 461 | AE28: =IF(A28=207, AD28,MAX(AC28,AD28))*'Weighting Factors'!$Q$9 -> 223.1 | AF28: 30.7 | AG28: =IF(ISNA(VLOOKUP($CZ28,'Audit Values'!$A$2:$BW$351,2,FALSE)),'Preliminary SO66'!AG27,VLOOKUP($CZ28,'Audit Values'!$A$2:$BW$351,70,FALSE)) -> 34 | AH28: 34 | AI28: =IF(ISNA(VLOOKUP($CZ28,'Audit Values'!$A$2:$BU$351,2,FALSE)),'Preliminary SO66'!AQ27,VLOOKUP($CZ28,'Audit Values'!$A$2:$BU$351,65,FALSE)) -> 0 | AJ28: =AI28*'Weighting Factors'!$Q$10 -> 0 | AK28: =IF(ISNA(VLOOKUP($CZ28,'Audit Values'!$A$2:$BU$351,2,FALSE)),'Preliminary SO66'!AR27,VLOOKUP($CZ28,'Audit Values'!$A$2:$BU$351,66,FALSE)) -> 137 | AM28: 171250 | AN28: 245372 | AO28: =MAX(AN28, AM28)/'Weighting Factors'!$Q$5 -> 58.9 | AP28: =CN28/'Weighting Factors'!$Q$5 -> 0 | AQ28: 0 | AR28: =CS28/'Weighting Factors'!$Q$5 -> 0 | AS28: 595152 | AT28: =AS28/'Weighting Factors'!$Q$5 -> 142.9 | AU28: =IF(ISNA(VLOOKUP($CZ28,'Audit Values'!$A$2:$BU$351,2,FALSE)),'Preliminary SO66'!X27,VLOOKUP($CZ28,'Audit Values'!$A$2:$BU$351,47,FALSE)) -> 0 | AV28: 1818.8 | AW28: 1675.9 | AX28: =IF(ISNA(VLOOKUP($CZ28,'Audit Values'!$A$2:$BU$351,2,FALSE)),'Preliminary SO66'!AA27,VLOOKUP($CZ28,'Audit Values'!$A$2:$BU$351,41,FALSE)) -> 4 | AY28: =IF(ISNA(VLOOKUP($CZ28,'Audit Values'!$A$2:$BU$351,2,FALSE)),'Preliminary SO66'!AB27,VLOOKUP($CZ28,'Audit Values'!$A$2:$BU$351,42,FALSE)) -> 0 | AZ28: 41 | BA28: =SUM(AX28*'Weighting Factors'!$T$10)+('2019 Legal Max'!AY28*'Weighting Factors'!$T$11)+('2019 Legal Max'!AZ28*'Weighting Factors'!$T$12) -> 49069 | BB28: 0 | BC28: =IF(ISNA(VLOOKUP($CZ28,'Audit Values'!$A$2:$BU$351,2,FALSE)),"",IF(AND('Weighting Factors'!H28>0,VLOOKUP($CZ28,'Audit Values'!$A$2:$BU$351,51,FALSE)<'Weighting Factors'!H28),'Weighting Factors'!H28,VLOOKUP($CZ28,'Audit Values'!$A$2:$BU$351,50,FALSE))) -> 17 | BD28: =IF(ISNA(VLOOKUP($CZ28,'Audit Values'!$A$2:$BV$351,2,FALSE)),"",VLOOKUP($CZ28,'Audit Values'!$A$2:$BV$351,51,FALSE)) -> A | BE28: =IF('Weighting Factors'!H28="","",IF('Weighting Factors'!J28="Pending","PX","R")) ->  | BF28: =SUM((S28+T28+Y28+AA28+AE28+AH28+AJ28++AO28+AP28+AQ28+AU28+AR28)*'Weighting Factors'!$Q$5)+'2019 Legal Max'!BA28+'2019 Legal Max'!BB28 -> 7029193 | BG28: =SUM((AV28+AR28)*'Weighting Factors'!$Q$5)+BA28+'2019 Legal Max'!BB28 -> 7624371 | BH28: =IF('Weighting Factors'!H28>0,'Weighting Factors'!H28,'Preliminary SO66'!AV27) -> 7846670 | BI28: 7624371 | BK28: ='Weighting Factors'!F28 -> 0 | BL28: ='Weighting Factors'!E28 -> 0 | BM28: 0 | BN28: 7624371 | BO28: =SUM((S28+T28+Y28+AA28+AE28+AH28+AJ28++AO28+AP28+AQ28+AR28)*'Weighting Factors'!Q$12)+(MAX(AS28,'Weighting Factors'!B28)) -> 8147570 | BP28: 0.3 | BQ28: 2444271 | BR28: 2515057 | BS28: 2444271 | BT28: 0.3 | BU28: 0 | BV28: FALSE | BW28: 0 | BX28: 0 | BY28: 0 | BZ28: TRUE | CA28: 876.8925 | CB28: 0.24344 | CC28: 245.5 | CD28: 0 | CE28: 575 | CF28: 0.238 | CG28: =IF(CF28<0.06,1,IF(CF28>=18.29,52,MATCH(CF28-0.001,'Weighting Factors'!$Y$5:$Y$156)+1)) -> 17 | CH28: =VLOOKUP(CG28, 'Weighting Factors'!$W$5:$Z$56,4) -> 1250 | CI28: =('Weighting Factors'!$Q$5/'Weighting Factors'!$Q$14) -> 1 | CJ28: 171250 | CK28: =CJ28*'Weighting Factors'!$S$7 -> 171250 | CL28: 171250 | CM28: =AM28/'Weighting Factors'!$Q$5 -> 41.1 | CN28: 0 | CO28: 0 | CP28: 0 | CQ28: 0 | CR28: =SUM((AV28*'Weighting Factors'!$Q$5)+'2019 Legal Max'!BA28)*CQ28 -> 0 | CS28: 0 | CT28: 0.445 | CU28: 0 | CV28: 30.7 | CW28: 1818.8 | CX28: ='LOB Transfers'!G27 -> 301867 | CY28: ='LOB Transfers'!J27 -> 115858 | CZ28: D0210
A29: 211 | B29: Norton | C29: Norton Community Schools | D29: 677.7 | E29: 0 | F29: 677.7 | G29: 659 | H29: 0 | I29: 659 | J29: 675.1 | K29: 0 | L29: 675.1 | M29: =IF(ISNA(VLOOKUP($CZ29,'Audit Values'!$A$2:$BW$363,2,FALSE)),'Preliminary SO66'!C28,VLOOKUP($CZ29,'Audit Values'!$A$2:$BW$363,73,FALSE)) -> 672 | N29: =IF(ISNA(VLOOKUP($CZ29,'Audit Values'!$A$2:$BW$363,2,FALSE)),'Preliminary SO66'!F28,VLOOKUP($CZ29,'Audit Values'!$A$2:$BW$363,4,FALSE)) -> 0 | O29: 672 | P29: =IF('Military Provision'!J30="YES", MAX('2019 Legal Max'!L29,'2019 Legal Max'!I29,AVERAGE('2019 Legal Max'!F29,'2019 Legal Max'!I29,'2019 Legal Max'!L29)), MAX(L29, I29)) -> 675.1 | Q29: =IF(ISNA(VLOOKUP($CZ29,'Audit Values'!$A$2:$BU$351,2,FALSE)),'Preliminary SO66'!AL28,VLOOKUP($CZ29,'Audit Values'!$A$2:$BU$3953,58,FALSE)) -> 0 | R29: 0 | S29: 675.1 | T29: 240.8 | U29: =IF(ISNA(VLOOKUP($CZ29,'Audit Values'!$A$2:$BW$315,2,FALSE)),'Preliminary SO66'!AM28,VLOOKUP($CZ29,'Audit Values'!$A$2:$BW$315,62,FALSE)) -> 0 | V29: =(U29/6)*'Weighting Factors'!$Q$7 -> 0 | W29: =IF(ISNA(VLOOKUP($CZ29,'Audit Values'!$A$2:$BW$351,2,FALSE)),'Preliminary SO66'!AN28,VLOOKUP($CZ29,'Audit Values'!$A$2:$BW$351,61,FALSE)) -> 3 | X29: =W29*'Weighting Factors'!$Q$8 -> 0.6 | Y29: 0.6 | Z29: =IF(ISNA(VLOOKUP($CZ29,'Audit Values'!$A$2:$BW$315,2,FALSE)),'Preliminary SO66'!AO28,VLOOKUP($CZ29,'Audit Values'!$A$2:$BW$315,60,FALSE)) -> 100.2 | AA29: =Z29/6*'Weighting Factors'!$Q$6 -> 8.4 | AB29: =IF(ISNA(VLOOKUP($CZ29,'Audit Values'!$A$2:$BU$351,2,FALSE)),'Preliminary SO66'!AS28,VLOOKUP($CZ29,'Audit Values'!$A$2:$BU$351,63,FALSE)) -> 680 | AC29: 0 | AD29: =IF(ISNA(VLOOKUP($CZ29,'Audit Values'!$A$2:$BU$351,2,FALSE)),'Preliminary SO66'!AP28,VLOOKUP($CZ29,'Audit Values'!$A$2:$BU$351,64,FALSE)) -> 218 | AE29: =IF(A29=207, AD29,MAX(AC29,AD29))*'Weighting Factors'!$Q$9 -> 105.5 | AF29: 0 | AG29: =IF(ISNA(VLOOKUP($CZ29,'Audit Values'!$A$2:$BW$351,2,FALSE)),'Preliminary SO66'!AG28,VLOOKUP($CZ29,'Audit Values'!$A$2:$BW$351,70,FALSE)) -> 3.3 | AH29: 3.3 | AI29: =IF(ISNA(VLOOKUP($CZ29,'Audit Values'!$A$2:$BU$351,2,FALSE)),'Preliminary SO66'!AQ28,VLOOKUP($CZ29,'Audit Values'!$A$2:$BU$351,65,FALSE)) -> 25.1 | AJ29: =AI29*'Weighting Factors'!$Q$10 -> 6.3 | AK29: =IF(ISNA(VLOOKUP($CZ29,'Audit Values'!$A$2:$BU$351,2,FALSE)),'Preliminary SO66'!AR28,VLOOKUP($CZ29,'Audit Values'!$A$2:$BU$351,66,FALSE)) -> 136.5 | AM29: 176085 | AN29: 220334 | AO29: =MAX(AN29, AM29)/'Weighting Factors'!$Q$5 -> 52.9 | AP29: =CN29/'Weighting Factors'!$Q$5 -> 0 | AQ29: 0 | AR29: =CS29/'Weighting Factors'!$Q$5 -> 0 | AS29: 815960 | AT29: =AS29/'Weighting Factors'!$Q$5 -> 195.9 | AU29: =IF(ISNA(VLOOKUP($CZ29,'Audit Values'!$A$2:$BU$351,2,FALSE)),'Preliminary SO66'!X28,VLOOKUP($CZ29,'Audit Values'!$A$2:$BU$351,47,FALSE)) -> 0 | AV29: 1288.8 | AW29: 1092.9 | AX29: =IF(ISNA(VLOOKUP($CZ29,'Audit Values'!$A$2:$BU$351,2,FALSE)),'Preliminary SO66'!AA28,VLOOKUP($CZ29,'Audit Values'!$A$2:$BU$351,41,FALSE)) -> 0 | AY29: =IF(ISNA(VLOOKUP($CZ29,'Audit Values'!$A$2:$BU$351,2,FALSE)),'Preliminary SO66'!AB28,VLOOKUP($CZ29,'Audit Values'!$A$2:$BU$351,42,FALSE)) -> 0 | AZ29: 0 | BA29: =SUM(AX29*'Weighting Factors'!$T$10)+('2019 Legal Max'!AY29*'Weighting Factors'!$T$11)+('2019 Legal Max'!AZ29*'Weighting Factors'!$T$12) -> 0 | BB29: 0 | BC29: =IF(ISNA(VLOOKUP($CZ29,'Audit Values'!$A$2:$BU$351,2,FALSE)),"",IF(AND('Weighting Factors'!H29>0,VLOOKUP($CZ29,'Audit Values'!$A$2:$BU$351,51,FALSE)<'Weighting Factors'!H29),'Weighting Factors'!H29,VLOOKUP($CZ29,'Audit Values'!$A$2:$BU$351,50,FALSE))) -> 18 | BD29: =IF(ISNA(VLOOKUP($CZ29,'Audit Values'!$A$2:$BV$351,2,FALSE)),"",VLOOKUP($CZ29,'Audit Values'!$A$2:$BV$351,51,FALSE)) -> A | BE29: =IF('Weighting Factors'!H29="","",IF('Weighting Factors'!J29="Pending","PX","R")) ->  | BF29: =SUM((S29+T29+Y29+AA29+AE29+AH29+AJ29++AO29+AP29+AQ29+AU29+AR29)*'Weighting Factors'!$Q$5)+'2019 Legal Max'!BA29+'2019 Legal Max'!BB29 -> 4551929 | BG29: =SUM((AV29+AR29)*'Weighting Factors'!$Q$5)+BA29+'2019 Legal Max'!BB29 -> 5367852 | BH29: =IF('Weighting Factors'!H29>0,'Weighting Factors'!H29,'Preliminary SO66'!AV28) -> 5535285 | BI29: 5367852 | BK29: ='Weighting Factors'!F29 -> 0 | BL29: ='Weighting Factors'!E29 -> 0 | BM29: 0 | BN29: 5367852 | BO29: =SUM((S29+T29+Y29+AA29+AE29+AH29+AJ29++AO29+AP29+AQ29+AR29)*'Weighting Factors'!Q$12)+(MAX(AS29,'Weighting Factors'!B29)) -> 5773655 | BP29: 0.3 | BQ29: 1732097 | BR29: 1767880 | BS29: 1732097 | BT29: 0.3 | BU29: 0 | BV29: FALSE | BW29: 0 | BX29: 0 | BY29: 0 | BZ29: TRUE | CA29: 464.1863 | CB29: 0.356747 | CC29: 240.8 | CD29: 0 | CE29: 678 | CF29: 0.201 | CG29: =IF(CF29<0.06,1,IF(CF29>=18.29,52,MATCH(CF29-0.001,'Weighting Factors'!$Y$5:$Y$156)+1)) -> 15 | CH29: =VLOOKUP(CG29, 'Weighting Factors'!$W$5:$Z$56,4) -> 1290 | CI29: =('Weighting Factors'!$Q$5/'Weighting Factors'!$Q$14) -> 1 | CJ29: 176085 | CK29: =CJ29*'Weighting Factors'!$S$7 -> 176085 | CL29: 176085 | CM29: =AM29/'Weighting Factors'!$Q$5 -> 42.3 | CN29: 0 | CO29: 0 | CP29: 0 | CQ29: 0 | CR29: =SUM((AV29*'Weighting Factors'!$Q$5)+'2019 Legal Max'!BA29)*CQ29 -> 0 | CS29: 0 | CT29: 0.3206 | CU29: 0 | CV29: 0 | CW29: 1288.8 | CX29: ='LOB Transfers'!G28 -> 141859 | CY29: ='LOB Transfers'!J28 -> 866 | CZ29: D0211
A30: 212 | B30: Norton | C30: Northern Valley | D30: 163 | E30: 0 | F30: 163 | G30: 145 | H30: 0 | I30: 145 | J30: 150.5 | K30: 0 | L30: 150.5 | M30: =IF(ISNA(VLOOKUP($CZ30,'Audit Values'!$A$2:$BW$363,2,FALSE)),'Preliminary SO66'!C29,VLOOKUP($CZ30,'Audit Values'!$A$2:$BW$363,73,FALSE)) -> 144 | N30: =IF(ISNA(VLOOKUP($CZ30,'Audit Values'!$A$2:$BW$363,2,FALSE)),'Preliminary SO66'!F29,VLOOKUP($CZ30,'Audit Values'!$A$2:$BW$363,4,FALSE)) -> 0 | O30: 144 | P30: =IF('Military Provision'!J31="YES", MAX('2019 Legal Max'!L30,'2019 Legal Max'!I30,AVERAGE('2019 Legal Max'!F30,'2019 Legal Max'!I30,'2019 Legal Max'!L30)), MAX(L30, I30)) -> 150.5 | Q30: =IF(ISNA(VLOOKUP($CZ30,'Audit Values'!$A$2:$BU$351,2,FALSE)),'Preliminary SO66'!AL29,VLOOKUP($CZ30,'Audit Values'!$A$2:$BU$3953,58,FALSE)) -> 2 | R30: 0 | S30: 152.5 | T30: 133.5 | U30: =IF(ISNA(VLOOKUP($CZ30,'Audit Values'!$A$2:$BW$315,2,FALSE)),'Preliminary SO66'!AM29,VLOOKUP($CZ30,'Audit Values'!$A$2:$BW$315,62,FALSE)) -> 0 | V30: =(U30/6)*'Weighting Factors'!$Q$7 -> 0 | W30: =IF(ISNA(VLOOKUP($CZ30,'Audit Values'!$A$2:$BW$351,2,FALSE)),'Preliminary SO66'!AN29,VLOOKUP($CZ30,'Audit Values'!$A$2:$BW$351,61,FALSE)) -> 0 | X30: =W30*'Weighting Factors'!$Q$8 -> 0 | Y30: 0 | Z30: =IF(ISNA(VLOOKUP($CZ30,'Audit Values'!$A$2:$BW$315,2,FALSE)),'Preliminary SO66'!AO29,VLOOKUP($CZ30,'Audit Values'!$A$2:$BW$315,60,FALSE)) -> 77.2 | AA30: =Z30/6*'Weighting Factors'!$Q$6 -> 6.4 | AB30: =IF(ISNA(VLOOKUP($CZ30,'Audit Values'!$A$2:$BU$351,2,FALSE)),'Preliminary SO66'!AS29,VLOOKUP($CZ30,'Audit Values'!$A$2:$BU$351,63,FALSE)) -> 149 | AC30: 0 | AD30: =IF(ISNA(VLOOKUP($CZ30,'Audit Values'!$A$2:$BU$351,2,FALSE)),'Preliminary SO66'!AP29,VLOOKUP($CZ30,'Audit Values'!$A$2:$BU$351,64,FALSE)) -> 65 | AE30: =IF(A30=207, AD30,MAX(AC30,AD30))*'Weighting Factors'!$Q$9 -> 31.5 | AF30: 3.9 | AG30: =IF(ISNA(VLOOKUP($CZ30,'Audit Values'!$A$2:$BW$351,2,FALSE)),'Preliminary SO66'!AG29,VLOOKUP($CZ30,'Audit Values'!$A$2:$BW$351,70,FALSE)) -> 4.3 | AH30: 4.3 | AI30: =IF(ISNA(VLOOKUP($CZ30,'Audit Values'!$A$2:$BU$351,2,FALSE)),'Preliminary SO66'!AQ29,VLOOKUP($CZ30,'Audit Values'!$A$2:$BU$351,65,FALSE)) -> 0 | AJ30: =AI30*'Weighting Factors'!$Q$10 -> 0 | AK30: =IF(ISNA(VLOOKUP($CZ30,'Audit Values'!$A$2:$BU$351,2,FALSE)),'Preliminary SO66'!AR29,VLOOKUP($CZ30,'Audit Values'!$A$2:$BU$351,66,FALSE)) -> 31 | AM30: 44330 | AN30: 124805 | AO30: =MAX(AN30, AM30)/'Weighting Factors'!$Q$5 -> 30 | AP30: =CN30/'Weighting Factors'!$Q$5 -> 0 | AQ30: 0 | AR30: =CS30/'Weighting Factors'!$Q$5 -> 0 | AS30: 180157 | AT30: =AS30/'Weighting Factors'!$Q$5 -> 43.3 | AU30: =IF(ISNA(VLOOKUP($CZ30,'Audit Values'!$A$2:$BU$351,2,FALSE)),'Preliminary SO66'!X29,VLOOKUP($CZ30,'Audit Values'!$A$2:$BU$351,47,FALSE)) -> 0 | AV30: 401.5 | AW30: 358.2 | AX30: =IF(ISNA(VLOOKUP($CZ30,'Audit Values'!$A$2:$BU$351,2,FALSE)),'Preliminary SO66'!AA29,VLOOKUP($CZ30,'Audit Values'!$A$2:$BU$351,41,FALSE)) -> 0 | AY30: =IF(ISNA(VLOOKUP($CZ30,'Audit Values'!$A$2:$BU$351,2,FALSE)),'Preliminary SO66'!AB29,VLOOKUP($CZ30,'Audit Values'!$A$2:$BU$351,42,FALSE)) -> 0 | AZ30: 0 | BA30: =SUM(AX30*'Weighting Factors'!$T$10)+('2019 Legal Max'!AY30*'Weighting Factors'!$T$11)+('2019 Legal Max'!AZ30*'Weighting Factors'!$T$12) -> 0 | BB30: 0 | BC30: =IF(ISNA(VLOOKUP($CZ30,'Audit Values'!$A$2:$BU$351,2,FALSE)),"",IF(AND('Weighting Factors'!H30>0,VLOOKUP($CZ30,'Audit Values'!$A$2:$BU$351,51,FALSE)<'Weighting Factors'!H30),'Weighting Factors'!H30,VLOOKUP($CZ30,'Audit Values'!$A$2:$BU$351,50,FALSE))) -> 17 | BD30: =IF(ISNA(VLOOKUP($CZ30,'Audit Values'!$A$2:$BV$351,2,FALSE)),"",VLOOKUP($CZ30,'Audit Values'!$A$2:$BV$351,51,FALSE)) -> A | BE30: =IF('Weighting Factors'!H30="","",IF('Weighting Factors'!J30="Pending","PX","R")) ->  | BF30: =SUM((S30+T30+Y30+AA30+AE30+AH30+AJ30++AO30+AP30+AQ30+AU30+AR30)*'Weighting Factors'!$Q$5)+'2019 Legal Max'!BA30+'2019 Legal Max'!BB30 -> 1491903 | BG30: =SUM((AV30+AR30)*'Weighting Factors'!$Q$5)+BA30+'2019 Legal Max'!BB30 -> 1672248 | BH30: =IF('Weighting Factors'!H30>0,'Weighting Factors'!H30,'Preliminary SO66'!AV29) -> 1741173 | BI30: 1672248 | BK30: ='Weighting Factors'!F30 -> -3988 | BL30: ='Weighting Factors'!E30 -> -2127 | BM30: -6115 | BN30: 1666133 | BO30: =SUM((S30+T30+Y30+AA30+AE30+AH30+AJ30++AO30+AP30+AQ30+AR30)*'Weighting Factors'!Q$12)+(MAX(AS30,'Weighting Factors'!B30)) -> 1855418 | BP30: 0.3 | BQ30: 556625 | BR30: 569287 | BS30: 556625 | BT30: 0.3 | BU30: 0 | BV30: TRUE | BW30: 506.888 | BX30: 0.875168 | BY30: 133.5 | BZ30: FALSE | CA30: 0 | CB30: 0 | CC30: 0 | CD30: 0 | CE30: 263 | CF30: 0.118 | CG30: =IF(CF30<0.06,1,IF(CF30>=18.29,52,MATCH(CF30-0.001,'Weighting Factors'!$Y$5:$Y$156)+1)) -> 7 | CH30: =VLOOKUP(CG30, 'Weighting Factors'!$W$5:$Z$56,4) -> 1430 | CI30: =('Weighting Factors'!$Q$5/'Weighting Factors'!$Q$14) -> 1 | CJ30: 44330 | CK30: =CJ30*'Weighting Factors'!$S$7 -> 44330 | CL30: 44330 | CM30: =AM30/'Weighting Factors'!$Q$5 -> 10.6 | CN30: 0 | CO30: 0 | CP30: 0 | CQ30: 0 | CR30: =SUM((AV30*'Weighting Factors'!$Q$5)+'2019 Legal Max'!BA30)*CQ30 -> 0 | CS30: 0 | CT30: 0.4362 | CU30: 0 | CV30: 3.9 | CW30: 401.5 | CX30: ='LOB Transfers'!G29 -> 43862 | CY30: ='LOB Transfers'!J29 -> 0 | CZ30: D0212
A31: 214 | B31: Grant | C31: Ulysses | D31: 1626 | E31: 0 | F31: 1626 | G31: 1633 | H31: 0 | I31: 1633 | J31: 1599.7 | K31: 0 | L31: 1599.7 | M31: =IF(ISNA(VLOOKUP($CZ31,'Audit Values'!$A$2:$BW$363,2,FALSE)),'Preliminary SO66'!C30,VLOOKUP($CZ31,'Audit Values'!$A$2:$BW$363,73,FALSE)) -> 1545 | N31: =IF(ISNA(VLOOKUP($CZ31,'Audit Values'!$A$2:$BW$363,2,FALSE)),'Preliminary SO66'!F30,VLOOKUP($CZ31,'Audit Values'!$A$2:$BW$363,4,FALSE)) -> 0 | O31: 1545 | P31: =IF('Military Provision'!J32="YES", MAX('2019 Legal Max'!L31,'2019 Legal Max'!I31,AVERAGE('2019 Legal Max'!F31,'2019 Legal Max'!I31,'2019 Legal Max'!L31)), MAX(L31, I31)) -> 1633 | Q31: =IF(ISNA(VLOOKUP($CZ31,'Audit Values'!$A$2:$BU$351,2,FALSE)),'Preliminary SO66'!AL30,VLOOKUP($CZ31,'Audit Values'!$A$2:$BU$3953,58,FALSE)) -> 16.5 | R31: 0 | S31: 1649.5 | T31: 57.8 | U31: =IF(ISNA(VLOOKUP($CZ31,'Audit Values'!$A$2:$BW$315,2,FALSE)),'Preliminary SO66'!AM30,VLOOKUP($CZ31,'Audit Values'!$A$2:$BW$315,62,FALSE)) -> 1612.6 | V31: =(U31/6)*'Weighting Factors'!$Q$7 -> 106.2 | W31: =IF(ISNA(VLOOKUP($CZ31,'Audit Values'!$A$2:$BW$351,2,FALSE)),'Preliminary SO66'!AN30,VLOOKUP($CZ31,'Audit Values'!$A$2:$BW$351,61,FALSE)) -> 522 | X31: =W31*'Weighting Factors'!$Q$8 -> 96.6 | Y31: 106.2 | Z31: =IF(ISNA(VLOOKUP($CZ31,'Audit Values'!$A$2:$BW$315,2,FALSE)),'Preliminary SO66'!AO30,VLOOKUP($CZ31,'Audit Values'!$A$2:$BW$315,60,FALSE)) -> 518.8 | AA31: =Z31/6*'Weighting Factors'!$Q$6 -> 43.2 | AB31: =IF(ISNA(VLOOKUP($CZ31,'Audit Values'!$A$2:$BU$351,2,FALSE)),'Preliminary SO66'!AS30,VLOOKUP($CZ31,'Audit Values'!$A$2:$BU$351,63,FALSE)) -> 1591 | AC31: 0 | AD31: =IF(ISNA(VLOOKUP($CZ31,'Audit Values'!$A$2:$BU$351,2,FALSE)),'Preliminary SO66'!AP30,VLOOKUP($CZ31,'Audit Values'!$A$2:$BU$351,64,FALSE)) -> 796 | AE31: =IF(A31=207, AD31,MAX(AC31,AD31))*'Weighting Factors'!$Q$9 -> 385.3 | AF31: 83.6 | AG31: =IF(ISNA(VLOOKUP($CZ31,'Audit Values'!$A$2:$BW$351,2,FALSE)),'Preliminary SO66'!AG30,VLOOKUP($CZ31,'Audit Values'!$A$2:$BW$351,70,FALSE)) -> 72.8 | AH31: 83.6 | AI31: =IF(ISNA(VLOOKUP($CZ31,'Audit Values'!$A$2:$BU$351,2,FALSE)),'Preliminary SO66'!AQ30,VLOOKUP($CZ31,'Audit Values'!$A$2:$BU$351,65,FALSE)) -> 0 | AJ31: =AI31*'Weighting Factors'!$Q$10 -> 0 | AK31: =IF(ISNA(VLOOKUP($CZ31,'Audit Values'!$A$2:$BU$351,2,FALSE)),'Preliminary SO66'!AR30,VLOOKUP($CZ31,'Audit Values'!$A$2:$BU$351,66,FALSE)) -> 219 | AM31: 247470 | AN31: 263477 | AO31: =MAX(AN31, AM31)/'Weighting Factors'!$Q$5 -> 63.3 | AP31: =CN31/'Weighting Factors'!$Q$5 -> 0 | AQ31: 0 | AR31: =CS31/'Weighting Factors'!$Q$5 -> 0 | AS31: 959062 | AT31: =AS31/'Weighting Factors'!$Q$5 -> 230.3 | AU31: =IF(ISNA(VLOOKUP($CZ31,'Audit Values'!$A$2:$BU$351,2,FALSE)),'Preliminary SO66'!X30,VLOOKUP($CZ31,'Audit Values'!$A$2:$BU$351,47,FALSE)) -> 0 | AV31: 2619.2 | AW31: 2388.9 | AX31: =IF(ISNA(VLOOKUP($CZ31,'Audit Values'!$A$2:$BU$351,2,FALSE)),'Preliminary SO66'!AA30,VLOOKUP($CZ31,'Audit Values'!$A$2:$BU$351,41,FALSE)) -> 6 | AY31: =IF(ISNA(VLOOKUP($CZ31,'Audit Values'!$A$2:$BU$351,2,FALSE)),'Preliminary SO66'!AB30,VLOOKUP($CZ31,'Audit Values'!$A$2:$BU$351,42,FALSE)) -> 3 | AZ31: 75 | BA31: =SUM(AX31*'Weighting Factors'!$T$10)+('2019 Legal Max'!AY31*'Weighting Factors'!$T$11)+('2019 Legal Max'!AZ31*'Weighting Factors'!$T$12) -> 88275 | BB31: 0 | BC31: =IF(ISNA(VLOOKUP($CZ31,'Audit Values'!$A$2:$BU$351,2,FALSE)),"",IF(AND('Weighting Factors'!H31>0,VLOOKUP($CZ31,'Audit Values'!$A$2:$BU$351,51,FALSE)<'Weighting Factors'!H31),'Weighting Factors'!H31,VLOOKUP($CZ31,'Audit Values'!$A$2:$BU$351,50,FALSE))) -> 19 | BD31: =IF(ISNA(VLOOKUP($CZ31,'Audit Values'!$A$2:$BV$351,2,FALSE)),"",VLOOKUP($CZ31,'Audit Values'!$A$2:$BV$351,51,FALSE)) -> A | BE31: =IF('Weighting Factors'!H31="","",IF('Weighting Factors'!J31="Pending","PX","R")) ->  | BF31: =SUM((S31+T31+Y31+AA31+AE31+AH31+AJ31++AO31+AP31+AQ31+AU31+AR31)*'Weighting Factors'!$Q$5)+'2019 Legal Max'!BA31+'2019 Legal Max'!BB31 -> 10038044 | BG31: =SUM((AV31+AR31)*'Weighting Factors'!$Q$5)+BA31+'2019 Legal Max'!BB31 -> 10997243 | BH31: =IF('Weighting Factors'!H31>0,'Weighting Factors'!H31,'Preliminary SO66'!AV30) -> 11222142 | BI31: 10997243 | BK31: ='Weighting Factors'!F31 -> 0 | BL31: ='Weighting Factors'!E31 -> 0 | BM31: 0 | BN31: 10997243 | BO31: =SUM((S31+T31+Y31+AA31+AE31+AH31+AJ31++AO31+AP31+AQ31+AR31)*'Weighting Factors'!Q$12)+(MAX(AS31,'Weighting Factors'!B31)) -> 11720391 | BP31: 0.3 | BQ31: 3516117 | BR31: 3580947 | BS31: 3516117 | BT31: 0.3 | BU31: 0 | BV31: FALSE | BW31: 0 | BX31: 0 | BY31: 0 | BZ31: FALSE | CA31: 0 | CB31: 0 | CC31: 0 | CD31: 57.8 | CE31: 517 | CF31: 0.424 | CG31: =IF(CF31<0.06,1,IF(CF31>=18.29,52,MATCH(CF31-0.001,'Weighting Factors'!$Y$5:$Y$156)+1)) -> 23 | CH31: =VLOOKUP(CG31, 'Weighting Factors'!$W$5:$Z$56,4) -> 1130 | CI31: =('Weighting Factors'!$Q$5/'Weighting Factors'!$Q$14) -> 1 | CJ31: 247470 | CK31: =CJ31*'Weighting Factors'!$S$7 -> 247470 | CL31: 247470 | CM31: =AM31/'Weighting Factors'!$Q$5 -> 59.4 | CN31: 0 | CO31: 0 | CP31: 0 | CQ31: 0 | CR31: =SUM((AV31*'Weighting Factors'!$Q$5)+'2019 Legal Max'!BA31)*CQ31 -> 0 | CS31: 0 | CT31: 0.5003 | CU31: 83.6 | CV31: 0 | CW31: 2619.2 | CX31: ='LOB Transfers'!G30 -> 520385 | CY31: ='LOB Transfers'!J30 -> 143458 | CZ31: D0214
A32: 215 | B32: Kearny | C32: Lakin | D32: 586 | E32: 0 | F32: 586 | G32: 617 | H32: 0 | I32: 617 | J32: 639 | K32: 0 | L32: 639 | M32: =IF(ISNA(VLOOKUP($CZ32,'Audit Values'!$A$2:$BW$363,2,FALSE)),'Preliminary SO66'!C31,VLOOKUP($CZ32,'Audit Values'!$A$2:$BW$363,73,FALSE)) -> 641 | N32: =IF(ISNA(VLOOKUP($CZ32,'Audit Values'!$A$2:$BW$363,2,FALSE)),'Preliminary SO66'!F31,VLOOKUP($CZ32,'Audit Values'!$A$2:$BW$363,4,FALSE)) -> 0 | O32: 641 | P32: =IF('Military Provision'!J33="YES", MAX('2019 Legal Max'!L32,'2019 Legal Max'!I32,AVERAGE('2019 Legal Max'!F32,'2019 Legal Max'!I32,'2019 Legal Max'!L32)), MAX(L32, I32)) -> 639 | Q32: =IF(ISNA(VLOOKUP($CZ32,'Audit Values'!$A$2:$BU$351,2,FALSE)),'Preliminary SO66'!AL31,VLOOKUP($CZ32,'Audit Values'!$A$2:$BU$3953,58,FALSE)) -> 7.5 | R32: 0 | S32: 646.5 | T32: 236.9 | U32: =IF(ISNA(VLOOKUP($CZ32,'Audit Values'!$A$2:$BW$315,2,FALSE)),'Preliminary SO66'!AM31,VLOOKUP($CZ32,'Audit Values'!$A$2:$BW$315,62,FALSE)) -> 381.2 | V32: =(U32/6)*'Weighting Factors'!$Q$7 -> 25.1 | W32: =IF(ISNA(VLOOKUP($CZ32,'Audit Values'!$A$2:$BW$351,2,FALSE)),'Preliminary SO66'!AN31,VLOOKUP($CZ32,'Audit Values'!$A$2:$BW$351,61,FALSE)) -> 152 | X32: =W32*'Weighting Factors'!$Q$8 -> 28.1 | Y32: 28.1 | Z32: =IF(ISNA(VLOOKUP($CZ32,'Audit Values'!$A$2:$BW$315,2,FALSE)),'Preliminary SO66'!AO31,VLOOKUP($CZ32,'Audit Values'!$A$2:$BW$315,60,FALSE)) -> 93.9 | AA32: =Z32/6*'Weighting Factors'!$Q$6 -> 7.8 | AB32: =IF(ISNA(VLOOKUP($CZ32,'Audit Values'!$A$2:$BU$351,2,FALSE)),'Preliminary SO66'!AS31,VLOOKUP($CZ32,'Audit Values'!$A$2:$BU$351,63,FALSE)) -> 659 | AC32: 0 | AD32: =IF(ISNA(VLOOKUP($CZ32,'Audit Values'!$A$2:$BU$351,2,FALSE)),'Preliminary SO66'!AP31,VLOOKUP($CZ32,'Audit Values'!$A$2:$BU$351,64,FALSE)) -> 283 | AE32: =IF(A32=207, AD32,MAX(AC32,AD32))*'Weighting Factors'!$Q$9 -> 137 | AF32: 15.7 | AG32: =IF(ISNA(VLOOKUP($CZ32,'Audit Values'!$A$2:$BW$351,2,FALSE)),'Preliminary SO66'!AG31,VLOOKUP($CZ32,'Audit Values'!$A$2:$BW$351,70,FALSE)) -> 19.7 | AH32: 19.7 | AI32: =IF(ISNA(VLOOKUP($CZ32,'Audit Values'!$A$2:$BU$351,2,FALSE)),'Preliminary SO66'!AQ31,VLOOKUP($CZ32,'Audit Values'!$A$2:$BU$351,65,FALSE)) -> 0 | AJ32: =AI32*'Weighting Factors'!$Q$10 -> 0 | AK32: =IF(ISNA(VLOOKUP($CZ32,'Audit Values'!$A$2:$BU$351,2,FALSE)),'Preliminary SO66'!AR31,VLOOKUP($CZ32,'Audit Values'!$A$2:$BU$351,66,FALSE)) -> 85 | AM32: 118150 | AN32: 141754 | AO32: =MAX(AN32, AM32)/'Weighting Factors'!$Q$5 -> 34 | AP32: =CN32/'Weighting Factors'!$Q$5 -> 0 | AQ32: 0 | AR32: =CS32/'Weighting Factors'!$Q$5 -> 0 | AS32: 373997 | AT32: =AS32/'Weighting Factors'!$Q$5 -> 89.8 | AU32: =IF(ISNA(VLOOKUP($CZ32,'Audit Values'!$A$2:$BU$351,2,FALSE)),'Preliminary SO66'!X31,VLOOKUP($CZ32,'Audit Values'!$A$2:$BU$351,47,FALSE)) -> 0 | AV32: 1199.8 | AW32: 1110 | AX32: =IF(ISNA(VLOOKUP($CZ32,'Audit Values'!$A$2:$BU$351,2,FALSE)),'Preliminary SO66'!AA31,VLOOKUP($CZ32,'Audit Values'!$A$2:$BU$351,41,FALSE)) -> 0 | AY32: =IF(ISNA(VLOOKUP($CZ32,'Audit Values'!$A$2:$BU$351,2,FALSE)),'Preliminary SO66'!AB31,VLOOKUP($CZ32,'Audit Values'!$A$2:$BU$351,42,FALSE)) -> 0 | AZ32: 0 | BA32: =SUM(AX32*'Weighting Factors'!$T$10)+('2019 Legal Max'!AY32*'Weighting Factors'!$T$11)+('2019 Legal Max'!AZ32*'Weighting Factors'!$T$12) -> 0 | BB32: 0 | BC32: =IF(ISNA(VLOOKUP($CZ32,'Audit Values'!$A$2:$BU$351,2,FALSE)),"",IF(AND('Weighting Factors'!H32>0,VLOOKUP($CZ32,'Audit Values'!$A$2:$BU$351,51,FALSE)<'Weighting Factors'!H32),'Weighting Factors'!H32,VLOOKUP($CZ32,'Audit Values'!$A$2:$BU$351,50,FALSE))) -> 15 | BD32: =IF(ISNA(VLOOKUP($CZ32,'Audit Values'!$A$2:$BV$351,2,FALSE)),"",VLOOKUP($CZ32,'Audit Values'!$A$2:$BV$351,51,FALSE)) -> A | BE32: =IF('Weighting Factors'!H32="","",IF('Weighting Factors'!J32="Pending","PX","R")) ->  | BF32: =SUM((S32+T32+Y32+AA32+AE32+AH32+AJ32++AO32+AP32+AQ32+AU32+AR32)*'Weighting Factors'!$Q$5)+'2019 Legal Max'!BA32+'2019 Legal Max'!BB32 -> 4623150 | BG32: =SUM((AV32+AR32)*'Weighting Factors'!$Q$5)+BA32+'2019 Legal Max'!BB32 -> 4997167 | BH32: =IF('Weighting Factors'!H32>0,'Weighting Factors'!H32,'Preliminary SO66'!AV31) -> 5213747 | BI32: 4997167 | BK32: ='Weighting Factors'!F32 -> 0 | BL32: ='Weighting Factors'!E32 -> -3191 | BM32: -3191 | BN32: 4993976 | BO32: =SUM((S32+T32+Y32+AA32+AE32+AH32+AJ32++AO32+AP32+AQ32+AR32)*'Weighting Factors'!Q$12)+(MAX(AS32,'Weighting Factors'!B32)) -> 5380451 | BP32: 0.3 | BQ32: 1614135 | BR32: 1676353 | BS32: 1614135 | BT32: 0.3 | BU32: 0 | BV32: FALSE | BW32: 0 | BX32: 0 | BY32: 0 | BZ32: TRUE | CA32: 428.7938 | CB32: 0.366463 | CC32: 236.9 | CD32: 0 | CE32: 646 | CF32: 0.132 | CG32: =IF(CF32<0.06,1,IF(CF32>=18.29,52,MATCH(CF32-0.001,'Weighting Factors'!$Y$5:$Y$156)+1)) -> 9 | CH32: =VLOOKUP(CG32, 'Weighting Factors'!$W$5:$Z$56,4) -> 1390 | CI32: =('Weighting Factors'!$Q$5/'Weighting Factors'!$Q$14) -> 1 | CJ32: 118150 | CK32: =CJ32*'Weighting Factors'!$S$7 -> 118150 | CL32: 118150 | CM32: =AM32/'Weighting Factors'!$Q$5 -> 28.4 | CN32: 0 | CO32: 0 | CP32: 0 | CQ32: 0 | CR32: =SUM((AV32*'Weighting Factors'!$Q$5)+'2019 Legal Max'!BA32)*CQ32 -> 0 | CS32: 0 | CT32: 0.4294 | CU32: 0 | CV32: 15.7 | CW32: 1199.8 | CX32: ='LOB Transfers'!G31 -> 185464 | CY32: ='LOB Transfers'!J31 -> 38094 | CZ32: D0215
A33: 216 | B33: Kearny | C33: Deerfield | D33: 184.5 | E33: 0 | F33: 184.5 | G33: 196.5 | H33: 0 | I33: 196.5 | J33: 180 | K33: 0 | L33: 180 | M33: =IF(ISNA(VLOOKUP($CZ33,'Audit Values'!$A$2:$BW$363,2,FALSE)),'Preliminary SO66'!C32,VLOOKUP($CZ33,'Audit Values'!$A$2:$BW$363,73,FALSE)) -> 182 | N33: =IF(ISNA(VLOOKUP($CZ33,'Audit Values'!$A$2:$BW$363,2,FALSE)),'Preliminary SO66'!F32,VLOOKUP($CZ33,'Audit Values'!$A$2:$BW$363,4,FALSE)) -> 0 | O33: 182 | P33: =IF('Military Provision'!J34="YES", MAX('2019 Legal Max'!L33,'2019 Legal Max'!I33,AVERAGE('2019 Legal Max'!F33,'2019 Legal Max'!I33,'2019 Legal Max'!L33)), MAX(L33, I33)) -> 196.5 | Q33: =IF(ISNA(VLOOKUP($CZ33,'Audit Values'!$A$2:$BU$351,2,FALSE)),'Preliminary SO66'!AL32,VLOOKUP($CZ33,'Audit Values'!$A$2:$BU$3953,58,FALSE)) -> 4.5 | R33: 0 | S33: 201 | T33: 150.1 | U33: =IF(ISNA(VLOOKUP($CZ33,'Audit Values'!$A$2:$BW$315,2,FALSE)),'Preliminary SO66'!AM32,VLOOKUP($CZ33,'Audit Values'!$A$2:$BW$315,62,FALSE)) -> 425 | V33: =(U33/6)*'Weighting Factors'!$Q$7 -> 28 | W33: =IF(ISNA(VLOOKUP($CZ33,'Audit Values'!$A$2:$BW$351,2,FALSE)),'Preliminary SO66'!AN32,VLOOKUP($CZ33,'Audit Values'!$A$2:$BW$351,61,FALSE)) -> 74 | X33: =W33*'Weighting Factors'!$Q$8 -> 13.7 | Y33: 28 | Z33: =IF(ISNA(VLOOKUP($CZ33,'Audit Values'!$A$2:$BW$315,2,FALSE)),'Preliminary SO66'!AO32,VLOOKUP($CZ33,'Audit Values'!$A$2:$BW$315,60,FALSE)) -> 60.4 | AA33: =Z33/6*'Weighting Factors'!$Q$6 -> 5 | AB33: =IF(ISNA(VLOOKUP($CZ33,'Audit Values'!$A$2:$BU$351,2,FALSE)),'Preliminary SO66'!AS32,VLOOKUP($CZ33,'Audit Values'!$A$2:$BU$351,63,FALSE)) -> 193 | AC33: 0 | AD33: =IF(ISNA(VLOOKUP($CZ33,'Audit Values'!$A$2:$BU$351,2,FALSE)),'Preliminary SO66'!AP32,VLOOKUP($CZ33,'Audit Values'!$A$2:$BU$351,64,FALSE)) -> 114 | AE33: =IF(A33=207, AD33,MAX(AC33,AD33))*'Weighting Factors'!$Q$9 -> 55.2 | AF33: 12 | AG33: =IF(ISNA(VLOOKUP($CZ33,'Audit Values'!$A$2:$BW$351,2,FALSE)),'Preliminary SO66'!AG32,VLOOKUP($CZ33,'Audit Values'!$A$2:$BW$351,70,FALSE)) -> 11.9 | AH33: 12 | AI33: =IF(ISNA(VLOOKUP($CZ33,'Audit Values'!$A$2:$BU$351,2,FALSE)),'Preliminary SO66'!AQ32,VLOOKUP($CZ33,'Audit Values'!$A$2:$BU$351,65,FALSE)) -> 0 | AJ33: =AI33*'Weighting Factors'!$Q$10 -> 0 | AK33: =IF(ISNA(VLOOKUP($CZ33,'Audit Values'!$A$2:$BU$351,2,FALSE)),'Preliminary SO66'!AR32,VLOOKUP($CZ33,'Audit Values'!$A$2:$BU$351,66,FALSE)) -> 12 | AM33: 19440 | AN33: 24268 | AO33: =MAX(AN33, AM33)/'Weighting Factors'!$Q$5 -> 5.8 | AP33: =CN33/'Weighting Factors'!$Q$5 -> 0 | AQ33: 0 | AR33: =CS33/'Weighting Factors'!$Q$5 -> 0 | AS33: 142734 | AT33: =AS33/'Weighting Factors'!$Q$5 -> 34.3 | AU33: =IF(ISNA(VLOOKUP($CZ33,'Audit Values'!$A$2:$BU$351,2,FALSE)),'Preliminary SO66'!X32,VLOOKUP($CZ33,'Audit Values'!$A$2:$BU$351,47,FALSE)) -> 0 | AV33: 491.4 | AW33: 457.1 | AX33: =IF(ISNA(VLOOKUP($CZ33,'Audit Values'!$A$2:$BU$351,2,FALSE)),'Preliminary SO66'!AA32,VLOOKUP($CZ33,'Audit Values'!$A$2:$BU$351,41,FALSE)) -> 0 | AY33: =IF(ISNA(VLOOKUP($CZ33,'Audit Values'!$A$2:$BU$351,2,FALSE)),'Preliminary SO66'!AB32,VLOOKUP($CZ33,'Audit Values'!$A$2:$BU$351,42,FALSE)) -> 0 | AZ33: 0 | BA33: =SUM(AX33*'Weighting Factors'!$T$10)+('2019 Legal Max'!AY33*'Weighting Factors'!$T$11)+('2019 Legal Max'!AZ33*'Weighting Factors'!$T$12) -> 0 | BB33: 0 | BC33: =IF(ISNA(VLOOKUP($CZ33,'Audit Values'!$A$2:$BU$351,2,FALSE)),"",IF(AND('Weighting Factors'!H33>0,VLOOKUP($CZ33,'Audit Values'!$A$2:$BU$351,51,FALSE)<'Weighting Factors'!H33),'Weighting Factors'!H33,VLOOKUP($CZ33,'Audit Values'!$A$2:$BU$351,50,FALSE))) -> 6 | BD33: =IF(ISNA(VLOOKUP($CZ33,'Audit Values'!$A$2:$BV$351,2,FALSE)),"",VLOOKUP($CZ33,'Audit Values'!$A$2:$BV$351,51,FALSE)) -> A | BE33: =IF('Weighting Factors'!H33="","",IF('Weighting Factors'!J33="Pending","PX","R")) ->  | BF33: =SUM((S33+T33+Y33+AA33+AE33+AH33+AJ33++AO33+AP33+AQ33+AU33+AR33)*'Weighting Factors'!$Q$5)+'2019 Legal Max'!BA33+'2019 Legal Max'!BB33 -> 1903822 | BG33: =SUM((AV33+AR33)*'Weighting Factors'!$Q$5)+BA33+'2019 Legal Max'!BB33 -> 2046681 | BH33: =IF('Weighting Factors'!H33>0,'Weighting Factors'!H33,'Preliminary SO66'!AV32) -> 2214114 | BI33: 2046681 | BK33: ='Weighting Factors'!F33 -> 0 | BL33: ='Weighting Factors'!E33 -> 0 | BM33: 0 | BN33: 2046681 | BO33: =SUM((S33+T33+Y33+AA33+AE33+AH33+AJ33++AO33+AP33+AQ33+AR33)*'Weighting Factors'!Q$12)+(MAX(AS33,'Weighting Factors'!B33)) -> 2258268 | BP33: 0.3 | BQ33: 677480 | BR33: 725972 | BS33: 677480 | BT33: 0.3 | BU33: 0 | BV33: TRUE | BW33: 975.155 | BX33: 0.746608 | BY33: 150.1 | BZ33: FALSE | CA33: 0 | CB33: 0 | CC33: 0 | CD33: 0 | CE33: 216 | CF33: 0.056 | CG33: =IF(CF33<0.06,1,IF(CF33>=18.29,52,MATCH(CF33-0.001,'Weighting Factors'!$Y$5:$Y$156)+1)) -> 1 | CH33: =VLOOKUP(CG33, 'Weighting Factors'!$W$5:$Z$56,4) -> 1620 | CI33: =('Weighting Factors'!$Q$5/'Weighting Factors'!$Q$14) -> 1 | CJ33: 19440 | CK33: =CJ33*'Weighting Factors'!$S$7 -> 19440 | CL33: 19440 | CM33: =AM33/'Weighting Factors'!$Q$5 -> 4.7 | CN33: 0 | CO33: 0 | CP33: 0 | CQ33: 0 | CR33: =SUM((AV33*'Weighting Factors'!$Q$5)+'2019 Legal Max'!BA33)*CQ33 -> 0 | CS33: 0 | CT33: 0.5907 | CU33: 12 | CV33: 0 | CW33: 491.4 | CX33: ='LOB Transfers'!G32 -> 76826 | CY33: ='LOB Transfers'!J32 -> 38955 | CZ33: D0216
A34: 217 | B34: Morton | C34: Rolla | D34: 164 | E34: 0 | F34: 164 | G34: 132.5 | H34: 0 | I34: 132.5 | J34: 115 | K34: 0 | L34: 115 | M34: =IF(ISNA(VLOOKUP($CZ34,'Audit Values'!$A$2:$BW$363,2,FALSE)),'Preliminary SO66'!C33,VLOOKUP($CZ34,'Audit Values'!$A$2:$BW$363,73,FALSE)) -> 113 | N34: =IF(ISNA(VLOOKUP($CZ34,'Audit Values'!$A$2:$BW$363,2,FALSE)),'Preliminary SO66'!F33,VLOOKUP($CZ34,'Audit Values'!$A$2:$BW$363,4,FALSE)) -> 0 | O34: 113 | P34: =IF('Military Provision'!J35="YES", MAX('2019 Legal Max'!L34,'2019 Legal Max'!I34,AVERAGE('2019 Legal Max'!F34,'2019 Legal Max'!I34,'2019 Legal Max'!L34)), MAX(L34, I34)) -> 132.5 | Q34: =IF(ISNA(VLOOKUP($CZ34,'Audit Values'!$A$2:$BU$351,2,FALSE)),'Preliminary SO66'!AL33,VLOOKUP($CZ34,'Audit Values'!$A$2:$BU$3953,58,FALSE)) -> 0 | R34: 0 | S34: 132.5 | T34: 123 | U34: =IF(ISNA(VLOOKUP($CZ34,'Audit Values'!$A$2:$BW$315,2,FALSE)),'Preliminary SO66'!AM33,VLOOKUP($CZ34,'Audit Values'!$A$2:$BW$315,62,FALSE)) -> 115.7 | V34: =(U34/6)*'Weighting Factors'!$Q$7 -> 7.6 | W34: =IF(ISNA(VLOOKUP($CZ34,'Audit Values'!$A$2:$BW$351,2,FALSE)),'Preliminary SO66'!AN33,VLOOKUP($CZ34,'Audit Values'!$A$2:$BW$351,61,FALSE)) -> 33 | X34: =W34*'Weighting Factors'!$Q$8 -> 6.1 | Y34: 7.6 | Z34: =IF(ISNA(VLOOKUP($CZ34,'Audit Values'!$A$2:$BW$315,2,FALSE)),'Preliminary SO66'!AO33,VLOOKUP($CZ34,'Audit Values'!$A$2:$BW$315,60,FALSE)) -> 62.4 | AA34: =Z34/6*'Weighting Factors'!$Q$6 -> 5.2 | AB34: =IF(ISNA(VLOOKUP($CZ34,'Audit Values'!$A$2:$BU$351,2,FALSE)),'Preliminary SO66'!AS33,VLOOKUP($CZ34,'Audit Values'!$A$2:$BU$351,63,FALSE)) -> 113 | AC34: 0 | AD34: =IF(ISNA(VLOOKUP($CZ34,'Audit Values'!$A$2:$BU$351,2,FALSE)),'Preliminary SO66'!AP33,VLOOKUP($CZ34,'Audit Values'!$A$2:$BU$351,64,FALSE)) -> 40 | AE34: =IF(A34=207, AD34,MAX(AC34,AD34))*'Weighting Factors'!$Q$9 -> 19.4 | AF34: 0.1 | AG34: =IF(ISNA(VLOOKUP($CZ34,'Audit Values'!$A$2:$BW$351,2,FALSE)),'Preliminary SO66'!AG33,VLOOKUP($CZ34,'Audit Values'!$A$2:$BW$351,70,FALSE)) -> 1.8 | AH34: 1.8 | AI34: =IF(ISNA(VLOOKUP($CZ34,'Audit Values'!$A$2:$BU$351,2,FALSE)),'Preliminary SO66'!AQ33,VLOOKUP($CZ34,'Audit Values'!$A$2:$BU$351,65,FALSE)) -> 0 | AJ34: =AI34*'Weighting Factors'!$Q$10 -> 0 | AK34: =IF(ISNA(VLOOKUP($CZ34,'Audit Values'!$A$2:$BU$351,2,FALSE)),'Preliminary SO66'!AR33,VLOOKUP($CZ34,'Audit Values'!$A$2:$BU$351,66,FALSE)) -> 20 | AM34: 30800 | AN34: 51617 | AO34: =MAX(AN34, AM34)/'Weighting Factors'!$Q$5 -> 12.4 | AP34: =CN34/'Weighting Factors'!$Q$5 -> 0 | AQ34: 0 | AR34: =CS34/'Weighting Factors'!$Q$5 -> 0 | AS34: 98449 | AT34: =AS34/'Weighting Factors'!$Q$5 -> 23.6 | AU34: =IF(ISNA(VLOOKUP($CZ34,'Audit Values'!$A$2:$BU$351,2,FALSE)),'Preliminary SO66'!X33,VLOOKUP($CZ34,'Audit Values'!$A$2:$BU$351,47,FALSE)) -> 0 | AV34: 325.5 | AW34: 301.9 | AX34: =IF(ISNA(VLOOKUP($CZ34,'Audit Values'!$A$2:$BU$351,2,FALSE)),'Preliminary SO66'!AA33,VLOOKUP($CZ34,'Audit Values'!$A$2:$BU$351,41,FALSE)) -> 0 | AY34: =IF(ISNA(VLOOKUP($CZ34,'Audit Values'!$A$2:$BU$351,2,FALSE)),'Preliminary SO66'!AB33,VLOOKUP($CZ34,'Audit Values'!$A$2:$BU$351,42,FALSE)) -> 0 | AZ34: 0 | BA34: =SUM(AX34*'Weighting Factors'!$T$10)+('2019 Legal Max'!AY34*'Weighting Factors'!$T$11)+('2019 Legal Max'!AZ34*'Weighting Factors'!$T$12) -> 0 | BB34: 0 | BC34: =IF(ISNA(VLOOKUP($CZ34,'Audit Values'!$A$2:$BU$351,2,FALSE)),"",IF(AND('Weighting Factors'!H34>0,VLOOKUP($CZ34,'Audit Values'!$A$2:$BU$351,51,FALSE)<'Weighting Factors'!H34),'Weighting Factors'!H34,VLOOKUP($CZ34,'Audit Values'!$A$2:$BU$351,50,FALSE))) -> 2 | BD34: =IF(ISNA(VLOOKUP($CZ34,'Audit Values'!$A$2:$BV$351,2,FALSE)),"",VLOOKUP($CZ34,'Audit Values'!$A$2:$BV$351,51,FALSE)) -> A | BE34: =IF('Weighting Factors'!H34="","",IF('Weighting Factors'!J34="Pending","PX","R")) ->  | BF34: =SUM((S34+T34+Y34+AA34+AE34+AH34+AJ34++AO34+AP34+AQ34+AU34+AR34)*'Weighting Factors'!$Q$5)+'2019 Legal Max'!BA34+'2019 Legal Max'!BB34 -> 1257414 | BG34: =SUM((AV34+AR34)*'Weighting Factors'!$Q$5)+BA34+'2019 Legal Max'!BB34 -> 1355708 | BH34: =IF('Weighting Factors'!H34>0,'Weighting Factors'!H34,'Preliminary SO66'!AV33) -> 1379448 | BI34: 1355708 | BK34: ='Weighting Factors'!F34 -> -2672 | BL34: ='Weighting Factors'!E34 -> 0 | BM34: -2672 | BN34: 1353036 | BO34: =SUM((S34+T34+Y34+AA34+AE34+AH34+AJ34++AO34+AP34+AQ34+AR34)*'Weighting Factors'!Q$12)+(MAX(AS34,'Weighting Factors'!B34)) -> 1501871 | BP34: 0.33 | BQ34: 495617 | BR34: 499618 | BS34: 495617 | BT34: 0.33 | BU34: 0 | BV34: TRUE | BW34: 313.788 | BX34: 0.928183 | BY34: 123 | BZ34: FALSE | CA34: 0 | CB34: 0 | CC34: 0 | CD34: 0 | CE34: 252 | CF34: 0.079 | CG34: =IF(CF34<0.06,1,IF(CF34>=18.29,52,MATCH(CF34-0.001,'Weighting Factors'!$Y$5:$Y$156)+1)) -> 3 | CH34: =VLOOKUP(CG34, 'Weighting Factors'!$W$5:$Z$56,4) -> 1540 | CI34: =('Weighting Factors'!$Q$5/'Weighting Factors'!$Q$14) -> 1 | CJ34: 30800 | CK34: =CJ34*'Weighting Factors'!$S$7 -> 30800 | CL34: 30800 | CM34: =AM34/'Weighting Factors'!$Q$5 -> 7.4 | CN34: 0 | CO34: 0 | CP34: 0 | CQ34: 0 | CR34: =SUM((AV34*'Weighting Factors'!$Q$5)+'2019 Legal Max'!BA34)*CQ34 -> 0 | CS34: 0 | CT34: 0.354 | CU34: 0 | CV34: 0.1 | CW34: 325.5 | CX34: ='LOB Transfers'!G33 -> 29539 | CY34: ='LOB Transfers'!J33 -> 11548 | CZ34: D0217
A35: 218 | B35: Morton | C35: Elkhart | D35: 450.4 | E35: 0 | F35: 450.4 | G35: 453.9 | H35: 0 | I35: 453.9 | J35: 420.2 | K35: 0 | L35: 420.2 | M35: =IF(ISNA(VLOOKUP($CZ35,'Audit Values'!$A$2:$BW$363,2,FALSE)),'Preliminary SO66'!C34,VLOOKUP($CZ35,'Audit Values'!$A$2:$BW$363,73,FALSE)) -> 407.2 | N35: =IF(ISNA(VLOOKUP($CZ35,'Audit Values'!$A$2:$BW$363,2,FALSE)),'Preliminary SO66'!F34,VLOOKUP($CZ35,'Audit Values'!$A$2:$BW$363,4,FALSE)) -> 0 | O35: 407.2 | P35: =IF('Military Provision'!J36="YES", MAX('2019 Legal Max'!L35,'2019 Legal Max'!I35,AVERAGE('2019 Legal Max'!F35,'2019 Legal Max'!I35,'2019 Legal Max'!L35)), MAX(L35, I35)) -> 453.9 | Q35: =IF(ISNA(VLOOKUP($CZ35,'Audit Values'!$A$2:$BU$351,2,FALSE)),'Preliminary SO66'!AL34,VLOOKUP($CZ35,'Audit Values'!$A$2:$BU$3953,58,FALSE)) -> 4.5 | R35: 0 | S35: 458.4 | T35: 197.3 | U35: =IF(ISNA(VLOOKUP($CZ35,'Audit Values'!$A$2:$BW$315,2,FALSE)),'Preliminary SO66'!AM34,VLOOKUP($CZ35,'Audit Values'!$A$2:$BW$315,62,FALSE)) -> 265.4 | V35: =(U35/6)*'Weighting Factors'!$Q$7 -> 17.5 | W35: =IF(ISNA(VLOOKUP($CZ35,'Audit Values'!$A$2:$BW$351,2,FALSE)),'Preliminary SO66'!AN34,VLOOKUP($CZ35,'Audit Values'!$A$2:$BW$351,61,FALSE)) -> 73 | X35: =W35*'Weighting Factors'!$Q$8 -> 13.5 | Y35: 17.5 | Z35: =IF(ISNA(VLOOKUP($CZ35,'Audit Values'!$A$2:$BW$315,2,FALSE)),'Preliminary SO66'!AO34,VLOOKUP($CZ35,'Audit Values'!$A$2:$BW$315,60,FALSE)) -> 95.3 | AA35: =Z35/6*'Weighting Factors'!$Q$6 -> 7.9 | AB35: =IF(ISNA(VLOOKUP($CZ35,'Audit Values'!$A$2:$BU$351,2,FALSE)),'Preliminary SO66'!AS34,VLOOKUP($CZ35,'Audit Values'!$A$2:$BU$351,63,FALSE)) -> 431 | AC35: 0 | AD35: =IF(ISNA(VLOOKUP($CZ35,'Audit Values'!$A$2:$BU$351,2,FALSE)),'Preliminary SO66'!AP34,VLOOKUP($CZ35,'Audit Values'!$A$2:$BU$351,64,FALSE)) -> 169 | AE35: =IF(A35=207, AD35,MAX(AC35,AD35))*'Weighting Factors'!$Q$9 -> 81.8 | AF35: 5 | AG35: =IF(ISNA(VLOOKUP($CZ35,'Audit Values'!$A$2:$BW$351,2,FALSE)),'Preliminary SO66'!AG34,VLOOKUP($CZ35,'Audit Values'!$A$2:$BW$351,70,FALSE)) -> 9.1 | AH35: 9.1 | AI35: =IF(ISNA(VLOOKUP($CZ35,'Audit Values'!$A$2:$BU$351,2,FALSE)),'Preliminary SO66'!AQ34,VLOOKUP($CZ35,'Audit Values'!$A$2:$BU$351,65,FALSE)) -> 0 | AJ35: =AI35*'Weighting Factors'!$Q$10 -> 0 | AK35: =IF(ISNA(VLOOKUP($CZ35,'Audit Values'!$A$2:$BU$351,2,FALSE)),'Preliminary SO66'!AR34,VLOOKUP($CZ35,'Audit Values'!$A$2:$BU$351,66,FALSE)) -> 24 | AM35: 37920 | AN35: 68180 | AO35: =MAX(AN35, AM35)/'Weighting Factors'!$Q$5 -> 16.4 | AP35: =CN35/'Weighting Factors'!$Q$5 -> 0 | AQ35: 0 | AR35: =CS35/'Weighting Factors'!$Q$5 -> 0 | AS35: 278721 | AT35: =AS35/'Weighting Factors'!$Q$5 -> 66.9 | AU35: =IF(ISNA(VLOOKUP($CZ35,'Audit Values'!$A$2:$BU$351,2,FALSE)),'Preliminary SO66'!X34,VLOOKUP($CZ35,'Audit Values'!$A$2:$BU$351,47,FALSE)) -> 0 | AV35: 855.3 | AW35: 788.4 | AX35: =IF(ISNA(VLOOKUP($CZ35,'Audit Values'!$A$2:$BU$351,2,FALSE)),'Preliminary SO66'!AA34,VLOOKUP($CZ35,'Audit Values'!$A$2:$BU$351,41,FALSE)) -> 767 | AY35: =IF(ISNA(VLOOKUP($CZ35,'Audit Values'!$A$2:$BU$351,2,FALSE)),'Preliminary SO66'!AB34,VLOOKUP($CZ35,'Audit Values'!$A$2:$BU$351,42,FALSE)) -> 25.3 | AZ35: 6.5 | BA35: =SUM(AX35*'Weighting Factors'!$T$10)+('2019 Legal Max'!AY35*'Weighting Factors'!$T$11)+('2019 Legal Max'!AZ35*'Weighting Factors'!$T$12) -> 3882619 | BB35: 0 | BC35: =IF(ISNA(VLOOKUP($CZ35,'Audit Values'!$A$2:$BU$351,2,FALSE)),"",IF(AND('Weighting Factors'!H35>0,VLOOKUP($CZ35,'Audit Values'!$A$2:$BU$351,51,FALSE)<'Weighting Factors'!H35),'Weighting Factors'!H35,VLOOKUP($CZ35,'Audit Values'!$A$2:$BU$351,50,FALSE))) -> 19 | BD35: =IF(ISNA(VLOOKUP($CZ35,'Audit Values'!$A$2:$BV$351,2,FALSE)),"",VLOOKUP($CZ35,'Audit Values'!$A$2:$BV$351,51,FALSE)) -> A | BE35: =IF('Weighting Factors'!H35="","",IF('Weighting Factors'!J35="Pending","PX","R")) ->  | BF35: =SUM((S35+T35+Y35+AA35+AE35+AH35+AJ35++AO35+AP35+AQ35+AU35+AR35)*'Weighting Factors'!$Q$5)+'2019 Legal Max'!BA35+'2019 Legal Max'!BB35 -> 7166305 | BG35: =SUM((AV35+AR35)*'Weighting Factors'!$Q$5)+BA35+'2019 Legal Max'!BB35 -> 7444944 | BH35: =IF('Weighting Factors'!H35>0,'Weighting Factors'!H35,'Preliminary SO66'!AV34) -> 8378838 | BI35: 7444944 | BK35: ='Weighting Factors'!F35 -> 0 | BL35: ='Weighting Factors'!E35 -> -355 | BM35: -355 | BN35: 7444589 | BO35: =SUM((S35+T35+Y35+AA35+AE35+AH35+AJ35++AO35+AP35+AQ35+AR35)*'Weighting Factors'!Q$12)+(MAX(AS35,'Weighting Factors'!B35)) -> 3930705 | BP35: 0.3 | BQ35: 1179212 | BR35: 1228377 | BS35: 1179212 | BT35: 0.3 | BU35: 0 | BV35: FALSE | BW35: 0 | BX35: 0 | BY35: 0 | BZ35: TRUE | CA35: 196.02 | CB35: 0.43037 | CC35: 197.3 | CD35: 0 | CE35: 376 | CF35: 0.064 | CG35: =IF(CF35<0.06,1,IF(CF35>=18.29,52,MATCH(CF35-0.001,'Weighting Factors'!$Y$5:$Y$156)+1)) -> 2 | CH35: =VLOOKUP(CG35, 'Weighting Factors'!$W$5:$Z$56,4) -> 1580 | CI35: =('Weighting Factors'!$Q$5/'Weighting Factors'!$Q$14) -> 1 | CJ35: 37920 | CK35: =CJ35*'Weighting Factors'!$S$7 -> 37920 | CL35: 37920 | CM35: =AM35/'Weighting Factors'!$Q$5 -> 9.1 | CN35: 0 | CO35: 0 | CP35: 0 | CQ35: 0 | CR35: =SUM((AV35*'Weighting Factors'!$Q$5)+'2019 Legal Max'!BA35)*CQ35 -> 0 | CS35: 0 | CT35: 0.3921 | CU35: 0 | CV35: 5 | CW35: 855.3 | CX35: ='LOB Transfers'!G34 -> 113322 | CY35: ='LOB Transfers'!J34 -> 24292 | CZ35: D0218
A36: 219 | B36: Clark | C36: Minneola | D36: 233.7 | E36: 0 | F36: 233.7 | G36: 243.5 | H36: 0 | I36: 243.5 | J36: 236.5 | K36: 0 | L36: 236.5 | M36: =IF(ISNA(VLOOKUP($CZ36,'Audit Values'!$A$2:$BW$363,2,FALSE)),'Preliminary SO66'!C35,VLOOKUP($CZ36,'Audit Values'!$A$2:$BW$363,73,FALSE)) -> 237.5 | N36: =IF(ISNA(VLOOKUP($CZ36,'Audit Values'!$A$2:$BW$363,2,FALSE)),'Preliminary SO66'!F35,VLOOKUP($CZ36,'Audit Values'!$A$2:$BW$363,4,FALSE)) -> 0 | O36: 237.5 | P36: =IF('Military Provision'!J37="YES", MAX('2019 Legal Max'!L36,'2019 Legal Max'!I36,AVERAGE('2019 Legal Max'!F36,'2019 Legal Max'!I36,'2019 Legal Max'!L36)), MAX(L36, I36)) -> 243.5 | Q36: =IF(ISNA(VLOOKUP($CZ36,'Audit Values'!$A$2:$BU$351,2,FALSE)),'Preliminary SO66'!AL35,VLOOKUP($CZ36,'Audit Values'!$A$2:$BU$3953,58,FALSE)) -> 0 | R36: 0 | S36: 243.5 | T36: 154.4 | U36: =IF(ISNA(VLOOKUP($CZ36,'Audit Values'!$A$2:$BW$315,2,FALSE)),'Preliminary SO66'!AM35,VLOOKUP($CZ36,'Audit Values'!$A$2:$BW$315,62,FALSE)) -> 0 | V36: =(U36/6)*'Weighting Factors'!$Q$7 -> 0 | W36: =IF(ISNA(VLOOKUP($CZ36,'Audit Values'!$A$2:$BW$351,2,FALSE)),'Preliminary SO66'!AN35,VLOOKUP($CZ36,'Audit Values'!$A$2:$BW$351,61,FALSE)) -> 7 | X36: =W36*'Weighting Factors'!$Q$8 -> 1.3 | Y36: 1.3 | Z36: =IF(ISNA(VLOOKUP($CZ36,'Audit Values'!$A$2:$BW$315,2,FALSE)),'Preliminary SO66'!AO35,VLOOKUP($CZ36,'Audit Values'!$A$2:$BW$315,60,FALSE)) -> 0 | AA36: =Z36/6*'Weighting Factors'!$Q$6 -> 0 | AB36: =IF(ISNA(VLOOKUP($CZ36,'Audit Values'!$A$2:$BU$351,2,FALSE)),'Preliminary SO66'!AS35,VLOOKUP($CZ36,'Audit Values'!$A$2:$BU$351,63,FALSE)) -> 240 | AC36: 0 | AD36: =IF(ISNA(VLOOKUP($CZ36,'Audit Values'!$A$2:$BU$351,2,FALSE)),'Preliminary SO66'!AP35,VLOOKUP($CZ36,'Audit Values'!$A$2:$BU$351,64,FALSE)) -> 81 | AE36: =IF(A36=207, AD36,MAX(AC36,AD36))*'Weighting Factors'!$Q$9 -> 39.2 | AF36: 0 | AG36: =IF(ISNA(VLOOKUP($CZ36,'Audit Values'!$A$2:$BW$351,2,FALSE)),'Preliminary SO66'!AG35,VLOOKUP($CZ36,'Audit Values'!$A$2:$BW$351,70,FALSE)) -> 0.3 | AH36: 0.3 | AI36: =IF(ISNA(VLOOKUP($CZ36,'Audit Values'!$A$2:$BU$351,2,FALSE)),'Preliminary SO66'!AQ35,VLOOKUP($CZ36,'Audit Values'!$A$2:$BU$351,65,FALSE)) -> 0 | AJ36: =AI36*'Weighting Factors'!$Q$10 -> 0 | AK36: =IF(ISNA(VLOOKUP($CZ36,'Audit Values'!$A$2:$BU$351,2,FALSE)),'Preliminary SO66'!AR35,VLOOKUP($CZ36,'Audit Values'!$A$2:$BU$351,66,FALSE)) -> 32 | AM36: 45760 | AN36: 70106 | AO36: =MAX(AN36, AM36)/'Weighting Factors'!$Q$5 -> 16.8 | AP36: =CN36/'Weighting Factors'!$Q$5 -> 0 | AQ36: 0 | AR36: =CS36/'Weighting Factors'!$Q$5 -> 0 | AS36: 167449 | AT36: =AS36/'Weighting Factors'!$Q$5 -> 40.2 | AU36: =IF(ISNA(VLOOKUP($CZ36,'Audit Values'!$A$2:$BU$351,2,FALSE)),'Preliminary SO66'!X35,VLOOKUP($CZ36,'Audit Values'!$A$2:$BU$351,47,FALSE)) -> 0 | AV36: 495.7 | AW36: 455.5 | AX36: =IF(ISNA(VLOOKUP($CZ36,'Audit Values'!$A$2:$BU$351,2,FALSE)),'Preliminary SO66'!AA35,VLOOKUP($CZ36,'Audit Values'!$A$2:$BU$351,41,FALSE)) -> 0 | AY36: =IF(ISNA(VLOOKUP($CZ36,'Audit Values'!$A$2:$BU$351,2,FALSE)),'Preliminary SO66'!AB35,VLOOKUP($CZ36,'Audit Values'!$A$2:$BU$351,42,FALSE)) -> 0 | AZ36: 0 | BA36: =SUM(AX36*'Weighting Factors'!$T$10)+('2019 Legal Max'!AY36*'Weighting Factors'!$T$11)+('2019 Legal Max'!AZ36*'Weighting Factors'!$T$12) -> 0 | BB36: 0 | BC36: =IF(ISNA(VLOOKUP($CZ36,'Audit Values'!$A$2:$BU$351,2,FALSE)),"",IF(AND('Weighting Factors'!H36>0,VLOOKUP($CZ36,'Audit Values'!$A$2:$BU$351,51,FALSE)<'Weighting Factors'!H36),'Weighting Factors'!H36,VLOOKUP($CZ36,'Audit Values'!$A$2:$BU$351,50,FALSE))) -> 11 | BD36: =IF(ISNA(VLOOKUP($CZ36,'Audit Values'!$A$2:$BV$351,2,FALSE)),"",VLOOKUP($CZ36,'Audit Values'!$A$2:$BV$351,51,FALSE)) -> A | BE36: =IF('Weighting Factors'!H36="","",IF('Weighting Factors'!J36="Pending","PX","R")) ->  | BF36: =SUM((S36+T36+Y36+AA36+AE36+AH36+AJ36++AO36+AP36+AQ36+AU36+AR36)*'Weighting Factors'!$Q$5)+'2019 Legal Max'!BA36+'2019 Legal Max'!BB36 -> 1897158 | BG36: =SUM((AV36+AR36)*'Weighting Factors'!$Q$5)+BA36+'2019 Legal Max'!BB36 -> 2064591 | BH36: =IF('Weighting Factors'!H36>0,'Weighting Factors'!H36,'Preliminary SO66'!AV35) -> 2164967 | BI36: 2064591 | BK36: ='Weighting Factors'!F36 -> 0 | BL36: ='Weighting Factors'!E36 -> 0 | BM36: 0 | BN36: 2064591 | BO36: =SUM((S36+T36+Y36+AA36+AE36+AH36+AJ36++AO36+AP36+AQ36+AR36)*'Weighting Factors'!Q$12)+(MAX(AS36,'Weighting Factors'!B36)) -> 2293018 | BP36: 0.3 | BQ36: 687905 | BR36: 698277 | BS36: 687905 | BT36: 0.3 | BU36: 0 | BV36: TRUE | BW36: 1385.493 | BX36: 0.633952 | BY36: 154.4 | BZ36: FALSE | CA36: 0 | CB36: 0 | CC36: 0 | CD36: 0 | CE36: 292 | CF36: 0.11 | CG36: =IF(CF36<0.06,1,IF(CF36>=18.29,52,MATCH(CF36-0.001,'Weighting Factors'!$Y$5:$Y$156)+1)) -> 7 | CH36: =VLOOKUP(CG36, 'Weighting Factors'!$W$5:$Z$56,4) -> 1430 | CI36: =('Weighting Factors'!$Q$5/'Weighting Factors'!$Q$14) -> 1 | CJ36: 45760 | CK36: =CJ36*'Weighting Factors'!$S$7 -> 45760 | CL36: 45760 | CM36: =AM36/'Weighting Factors'!$Q$5 -> 11 | CN36: 0 | CO36: 0 | CP36: 0 | CQ36: 0 | CR36: =SUM((AV36*'Weighting Factors'!$Q$5)+'2019 Legal Max'!BA36)*CQ36 -> 0 | CS36: 0 | CT36: 0.3375 | CU36: 0 | CV36: 0 | CW36: 495.7 | CX36: ='LOB Transfers'!G35 -> 54413 | CY36: ='LOB Transfers'!J35 -> 1789 | CZ36: D0219
A37: 220 | B37: Clark | C37: Ashland | D37: 189.9 | E37: 0 | F37: 189.9 | G37: 191.6 | H37: 0 | I37: 191.6 | J37: 208 | K37: 0 | L37: 208 | M37: =IF(ISNA(VLOOKUP($CZ37,'Audit Values'!$A$2:$BW$363,2,FALSE)),'Preliminary SO66'!C36,VLOOKUP($CZ37,'Audit Values'!$A$2:$BW$363,73,FALSE)) -> 207.3 | N37: =IF(ISNA(VLOOKUP($CZ37,'Audit Values'!$A$2:$BW$363,2,FALSE)),'Preliminary SO66'!F36,VLOOKUP($CZ37,'Audit Values'!$A$2:$BW$363,4,FALSE)) -> 0 | O37: 207.3 | P37: =IF('Military Provision'!J38="YES", MAX('2019 Legal Max'!L37,'2019 Legal Max'!I37,AVERAGE('2019 Legal Max'!F37,'2019 Legal Max'!I37,'2019 Legal Max'!L37)), MAX(L37, I37)) -> 208 | Q37: =IF(ISNA(VLOOKUP($CZ37,'Audit Values'!$A$2:$BU$351,2,FALSE)),'Preliminary SO66'!AL36,VLOOKUP($CZ37,'Audit Values'!$A$2:$BU$3953,58,FALSE)) -> 1.5 | R37: 0 | S37: 209.5 | T37: 151.7 | U37: =IF(ISNA(VLOOKUP($CZ37,'Audit Values'!$A$2:$BW$315,2,FALSE)),'Preliminary SO66'!AM36,VLOOKUP($CZ37,'Audit Values'!$A$2:$BW$315,62,FALSE)) -> 40.7 | V37: =(U37/6)*'Weighting Factors'!$Q$7 -> 2.7 | W37: =IF(ISNA(VLOOKUP($CZ37,'Audit Values'!$A$2:$BW$351,2,FALSE)),'Preliminary SO66'!AN36,VLOOKUP($CZ37,'Audit Values'!$A$2:$BW$351,61,FALSE)) -> 22 | X37: =W37*'Weighting Factors'!$Q$8 -> 4.1 | Y37: 4.1 | Z37: =IF(ISNA(VLOOKUP($CZ37,'Audit Values'!$A$2:$BW$315,2,FALSE)),'Preliminary SO66'!AO36,VLOOKUP($CZ37,'Audit Values'!$A$2:$BW$315,60,FALSE)) -> 51 | AA37: =Z37/6*'Weighting Factors'!$Q$6 -> 4.3 | AB37: =IF(ISNA(VLOOKUP($CZ37,'Audit Values'!$A$2:$BU$351,2,FALSE)),'Preliminary SO66'!AS36,VLOOKUP($CZ37,'Audit Values'!$A$2:$BU$351,63,FALSE)) -> 211 | AC37: 0 | AD37: =IF(ISNA(VLOOKUP($CZ37,'Audit Values'!$A$2:$BU$351,2,FALSE)),'Preliminary SO66'!AP36,VLOOKUP($CZ37,'Audit Values'!$A$2:$BU$351,64,FALSE)) -> 82 | AE37: =IF(A37=207, AD37,MAX(AC37,AD37))*'Weighting Factors'!$Q$9 -> 39.7 | AF37: 2.2 | AG37: =IF(ISNA(VLOOKUP($CZ37,'Audit Values'!$A$2:$BW$351,2,FALSE)),'Preliminary SO66'!AG36,VLOOKUP($CZ37,'Audit Values'!$A$2:$BW$351,70,FALSE)) -> 5.4 | AH37: 5.4 | AI37: =IF(ISNA(VLOOKUP($CZ37,'Audit Values'!$A$2:$BU$351,2,FALSE)),'Preliminary SO66'!AQ36,VLOOKUP($CZ37,'Audit Values'!$A$2:$BU$351,65,FALSE)) -> 0 | AJ37: =AI37*'Weighting Factors'!$Q$10 -> 0 | AK37: =IF(ISNA(VLOOKUP($CZ37,'Audit Values'!$A$2:$BU$351,2,FALSE)),'Preliminary SO66'!AR36,VLOOKUP($CZ37,'Audit Values'!$A$2:$BU$351,66,FALSE)) -> 46 | AM37: 70840 | AN37: 91292 | AO37: =MAX(AN37, AM37)/'Weighting Factors'!$Q$5 -> 21.9 | AP37: =CN37/'Weighting Factors'!$Q$5 -> 0 | AQ37: 0 | AR37: =CS37/'Weighting Factors'!$Q$5 -> 0 | AS37: 155674 | AT37: =AS37/'Weighting Factors'!$Q$5 -> 37.4 | AU37: =IF(ISNA(VLOOKUP($CZ37,'Audit Values'!$A$2:$BU$351,2,FALSE)),'Preliminary SO66'!X36,VLOOKUP($CZ37,'Audit Values'!$A$2:$BU$351,47,FALSE)) -> 0 | AV37: 474 | AW37: 436.6 | AX37: =IF(ISNA(VLOOKUP($CZ37,'Audit Values'!$A$2:$BU$351,2,FALSE)),'Preliminary SO66'!AA36,VLOOKUP($CZ37,'Audit Values'!$A$2:$BU$351,41,FALSE)) -> 0 | AY37: =IF(ISNA(VLOOKUP($CZ37,'Audit Values'!$A$2:$BU$351,2,FALSE)),'Preliminary SO66'!AB36,VLOOKUP($CZ37,'Audit Values'!$A$2:$BU$351,42,FALSE)) -> 0 | AZ37: 0 | BA37: =SUM(AX37*'Weighting Factors'!$T$10)+('2019 Legal Max'!AY37*'Weighting Factors'!$T$11)+('2019 Legal Max'!AZ37*'Weighting Factors'!$T$12) -> 0 | BB37: 0 | BC37: =IF(ISNA(VLOOKUP($CZ37,'Audit Values'!$A$2:$BU$351,2,FALSE)),"",IF(AND('Weighting Factors'!H37>0,VLOOKUP($CZ37,'Audit Values'!$A$2:$BU$351,51,FALSE)<'Weighting Factors'!H37),'Weighting Factors'!H37,VLOOKUP($CZ37,'Audit Values'!$A$2:$BU$351,50,FALSE))) -> 17 | BD37: =IF(ISNA(VLOOKUP($CZ37,'Audit Values'!$A$2:$BV$351,2,FALSE)),"",VLOOKUP($CZ37,'Audit Values'!$A$2:$BV$351,51,FALSE)) -> A | BE37: =IF('Weighting Factors'!H37="","",IF('Weighting Factors'!J37="Pending","PX","R")) ->  | BF37: =SUM((S37+T37+Y37+AA37+AE37+AH37+AJ37++AO37+AP37+AQ37+AU37+AR37)*'Weighting Factors'!$Q$5)+'2019 Legal Max'!BA37+'2019 Legal Max'!BB37 -> 1818439 | BG37: =SUM((AV37+AR37)*'Weighting Factors'!$Q$5)+BA37+'2019 Legal Max'!BB37 -> 1974210 | BH37: =IF('Weighting Factors'!H37>0,'Weighting Factors'!H37,'Preliminary SO66'!AV36) -> 2018776 | BI37: 1974210 | BK37: ='Weighting Factors'!F37 -> 0 | BL37: ='Weighting Factors'!E37 -> 0 | BM37: 0 | BN37: 1974210 | BO37: =SUM((S37+T37+Y37+AA37+AE37+AH37+AJ37++AO37+AP37+AQ37+AR37)*'Weighting Factors'!Q$12)+(MAX(AS37,'Weighting Factors'!B37)) -> 2159015 | BP37: 0.3 | BQ37: 647705 | BR37: 648011 | BS37: 647705 | BT37: 0.3 | BU37: 0 | BV37: TRUE | BW37: 1057.223 | BX37: 0.724077 | BY37: 151.7 | BZ37: FALSE | CA37: 0 | CB37: 0 | CC37: 0 | CD37: 0 | CE37: 660 | CF37: 0.07 | CG37: =IF(CF37<0.06,1,IF(CF37>=18.29,52,MATCH(CF37-0.001,'Weighting Factors'!$Y$5:$Y$156)+1)) -> 3 | CH37: =VLOOKUP(CG37, 'Weighting Factors'!$W$5:$Z$56,4) -> 1540 | CI37: =('Weighting Factors'!$Q$5/'Weighting Factors'!$Q$14) -> 1 | CJ37: 70840 | CK37: =CJ37*'Weighting Factors'!$S$7 -> 70840 | CL37: 70840 | CM37: =AM37/'Weighting Factors'!$Q$5 -> 17 | CN37: 0 | CO37: 0 | CP37: 0 | CQ37: 0 | CR37: =SUM((AV37*'Weighting Factors'!$Q$5)+'2019 Legal Max'!BA37)*CQ37 -> 0 | CS37: 0 | CT37: 0.3886 | CU37: 0 | CV37: 2.2 | CW37: 474 | CX37: ='LOB Transfers'!G36 -> 54407 | CY37: ='LOB Transfers'!J36 -> 5635 | CZ37: D0220
A38: 223 | B38: Washington | C38: Barnes | D38: 347.4 | E38: 0 | F38: 347.4 | G38: 367.4 | H38: 0 | I38: 367.4 | J38: 368.8 | K38: 0 | L38: 368.8 | M38: =IF(ISNA(VLOOKUP($CZ38,'Audit Values'!$A$2:$BW$363,2,FALSE)),'Preliminary SO66'!C37,VLOOKUP($CZ38,'Audit Values'!$A$2:$BW$363,73,FALSE)) -> 365 | N38: =IF(ISNA(VLOOKUP($CZ38,'Audit Values'!$A$2:$BW$363,2,FALSE)),'Preliminary SO66'!F37,VLOOKUP($CZ38,'Audit Values'!$A$2:$BW$363,4,FALSE)) -> 0 | O38: 365 | P38: =IF('Military Provision'!J39="YES", MAX('2019 Legal Max'!L38,'2019 Legal Max'!I38,AVERAGE('2019 Legal Max'!F38,'2019 Legal Max'!I38,'2019 Legal Max'!L38)), MAX(L38, I38)) -> 368.8 | Q38: =IF(ISNA(VLOOKUP($CZ38,'Audit Values'!$A$2:$BU$351,2,FALSE)),'Preliminary SO66'!AL37,VLOOKUP($CZ38,'Audit Values'!$A$2:$BU$3953,58,FALSE)) -> 0 | R38: 0 | S38: 368.8 | T38: 169.9 | U38: =IF(ISNA(VLOOKUP($CZ38,'Audit Values'!$A$2:$BW$315,2,FALSE)),'Preliminary SO66'!AM37,VLOOKUP($CZ38,'Audit Values'!$A$2:$BW$315,62,FALSE)) -> 97.5 | V38: =(U38/6)*'Weighting Factors'!$Q$7 -> 6.4 | W38: =IF(ISNA(VLOOKUP($CZ38,'Audit Values'!$A$2:$BW$351,2,FALSE)),'Preliminary SO66'!AN37,VLOOKUP($CZ38,'Audit Values'!$A$2:$BW$351,61,FALSE)) -> 38 | X38: =W38*'Weighting Factors'!$Q$8 -> 7 | Y38: 7 | Z38: =IF(ISNA(VLOOKUP($CZ38,'Audit Values'!$A$2:$BW$315,2,FALSE)),'Preliminary SO66'!AO37,VLOOKUP($CZ38,'Audit Values'!$A$2:$BW$315,60,FALSE)) -> 145.9 | AA38: =Z38/6*'Weighting Factors'!$Q$6 -> 12.2 | AB38: =IF(ISNA(VLOOKUP($CZ38,'Audit Values'!$A$2:$BU$351,2,FALSE)),'Preliminary SO66'!AS37,VLOOKUP($CZ38,'Audit Values'!$A$2:$BU$351,63,FALSE)) -> 445 | AC38: 0 | AD38: =IF(ISNA(VLOOKUP($CZ38,'Audit Values'!$A$2:$BU$351,2,FALSE)),'Preliminary SO66'!AP37,VLOOKUP($CZ38,'Audit Values'!$A$2:$BU$351,64,FALSE)) -> 85 | AE38: =IF(A38=207, AD38,MAX(AC38,AD38))*'Weighting Factors'!$Q$9 -> 41.1 | AF38: 0 | AG38: =IF(ISNA(VLOOKUP($CZ38,'Audit Values'!$A$2:$BW$351,2,FALSE)),'Preliminary SO66'!AG37,VLOOKUP($CZ38,'Audit Values'!$A$2:$BW$351,70,FALSE)) -> 0 | AH38: 0 | AI38: =IF(ISNA(VLOOKUP($CZ38,'Audit Values'!$A$2:$BU$351,2,FALSE)),'Preliminary SO66'!AQ37,VLOOKUP($CZ38,'Audit Values'!$A$2:$BU$351,65,FALSE)) -> 0 | AJ38: =AI38*'Weighting Factors'!$Q$10 -> 0 | AK38: =IF(ISNA(VLOOKUP($CZ38,'Audit Values'!$A$2:$BU$351,2,FALSE)),'Preliminary SO66'!AR37,VLOOKUP($CZ38,'Audit Values'!$A$2:$BU$351,66,FALSE)) -> 145.2 | AM38: 166980 | AN38: 178348 | AO38: =MAX(AN38, AM38)/'Weighting Factors'!$Q$5 -> 42.8 | AP38: =CN38/'Weighting Factors'!$Q$5 -> 0 | AQ38: 0 | AR38: =CS38/'Weighting Factors'!$Q$5 -> 0 | AS38: 491780 | AT38: =AS38/'Weighting Factors'!$Q$5 -> 118.1 | AU38: =IF(ISNA(VLOOKUP($CZ38,'Audit Values'!$A$2:$BU$351,2,FALSE)),'Preliminary SO66'!X37,VLOOKUP($CZ38,'Audit Values'!$A$2:$BU$351,47,FALSE)) -> 0 | AV38: 759.9 | AW38: 641.8 | AX38: =IF(ISNA(VLOOKUP($CZ38,'Audit Values'!$A$2:$BU$351,2,FALSE)),'Preliminary SO66'!AA37,VLOOKUP($CZ38,'Audit Values'!$A$2:$BU$351,41,FALSE)) -> 0 | AY38: =IF(ISNA(VLOOKUP($CZ38,'Audit Values'!$A$2:$BU$351,2,FALSE)),'Preliminary SO66'!AB37,VLOOKUP($CZ38,'Audit Values'!$A$2:$BU$351,42,FALSE)) -> 0 | AZ38: 0 | BA38: =SUM(AX38*'Weighting Factors'!$T$10)+('2019 Legal Max'!AY38*'Weighting Factors'!$T$11)+('2019 Legal Max'!AZ38*'Weighting Factors'!$T$12) -> 0 | BB38: 0 | BC38: =IF(ISNA(VLOOKUP($CZ38,'Audit Values'!$A$2:$BU$351,2,FALSE)),"",IF(AND('Weighting Factors'!H38>0,VLOOKUP($CZ38,'Audit Values'!$A$2:$BU$351,51,FALSE)<'Weighting Factors'!H38),'Weighting Factors'!H38,VLOOKUP($CZ38,'Audit Values'!$A$2:$BU$351,50,FALSE))) -> 17 | BD38: =IF(ISNA(VLOOKUP($CZ38,'Audit Values'!$A$2:$BV$351,2,FALSE)),"",VLOOKUP($CZ38,'Audit Values'!$A$2:$BV$351,51,FALSE)) -> A | BE38: =IF('Weighting Factors'!H38="","",IF('Weighting Factors'!J38="Pending","PX","R")) ->  | BF38: =SUM((S38+T38+Y38+AA38+AE38+AH38+AJ38++AO38+AP38+AQ38+AU38+AR38)*'Weighting Factors'!$Q$5)+'2019 Legal Max'!BA38+'2019 Legal Max'!BB38 -> 2673097 | BG38: =SUM((AV38+AR38)*'Weighting Factors'!$Q$5)+BA38+'2019 Legal Max'!BB38 -> 3164984 | BH38: =IF('Weighting Factors'!H38>0,'Weighting Factors'!H38,'Preliminary SO66'!AV37) -> 3261612 | BI38: 3164984 | BK38: ='Weighting Factors'!F38 -> 0 | BL38: ='Weighting Factors'!E38 -> 0 | BM38: 0 | BN38: 3164984 | BO38: =SUM((S38+T38+Y38+AA38+AE38+AH38+AJ38++AO38+AP38+AQ38+AR38)*'Weighting Factors'!Q$12)+(MAX(AS38,'Weighting Factors'!B38)) -> 3373462 | BP38: 0.3 | BQ38: 1012039 | BR38: 1041353 | BS38: 1012039 | BT38: 0.3 | BU38: 0 | BV38: FALSE | BW38: 0 | BX38: 0 | BY38: 0 | BZ38: TRUE | CA38: 85.14 | CB38: 0.460812 | CC38: 169.9 | CD38: 0 | CE38: 378 | CF38: 0.384 | CG38: =IF(CF38<0.06,1,IF(CF38>=18.29,52,MATCH(CF38-0.001,'Weighting Factors'!$Y$5:$Y$156)+1)) -> 22 | CH38: =VLOOKUP(CG38, 'Weighting Factors'!$W$5:$Z$56,4) -> 1150 | CI38: =('Weighting Factors'!$Q$5/'Weighting Factors'!$Q$14) -> 1 | CJ38: 166980 | CK38: =CJ38*'Weighting Factors'!$S$7 -> 166980 | CL38: 166980 | CM38: =AM38/'Weighting Factors'!$Q$5 -> 40.1 | CN38: 0 | CO38: 0 | CP38: 0 | CQ38: 0 | CR38: =SUM((AV38*'Weighting Factors'!$Q$5)+'2019 Legal Max'!BA38)*CQ38 -> 0 | CS38: 0 | CT38: 0.191 | CU38: 0 | CV38: 0 | CW38: 759.9 | CX38: ='LOB Transfers'!G37 -> 54751 | CY38: ='LOB Transfers'!J37 -> 9311 | CZ38: D0223
A39: 224 | B39: Washington | C39: Clifton-Clyde | D39: 309 | E39: 0 | F39: 309 | G39: 313.5 | H39: 0 | I39: 313.5 | J39: 300 | K39: 0 | L39: 300 | M39: =IF(ISNA(VLOOKUP($CZ39,'Audit Values'!$A$2:$BW$363,2,FALSE)),'Preliminary SO66'!C38,VLOOKUP($CZ39,'Audit Values'!$A$2:$BW$363,73,FALSE)) -> 311.5 | N39: =IF(ISNA(VLOOKUP($CZ39,'Audit Values'!$A$2:$BW$363,2,FALSE)),'Preliminary SO66'!F38,VLOOKUP($CZ39,'Audit Values'!$A$2:$BW$363,4,FALSE)) -> 0 | O39: 311.5 | P39: =IF('Military Provision'!J40="YES", MAX('2019 Legal Max'!L39,'2019 Legal Max'!I39,AVERAGE('2019 Legal Max'!F39,'2019 Legal Max'!I39,'2019 Legal Max'!L39)), MAX(L39, I39)) -> 313.5 | Q39: =IF(ISNA(VLOOKUP($CZ39,'Audit Values'!$A$2:$BU$351,2,FALSE)),'Preliminary SO66'!AL38,VLOOKUP($CZ39,'Audit Values'!$A$2:$BU$3953,58,FALSE)) -> 4 | R39: 0 | S39: 317.5 | T39: 151.8 | U39: =IF(ISNA(VLOOKUP($CZ39,'Audit Values'!$A$2:$BW$315,2,FALSE)),'Preliminary SO66'!AM38,VLOOKUP($CZ39,'Audit Values'!$A$2:$BW$315,62,FALSE)) -> 0 | V39: =(U39/6)*'Weighting Factors'!$Q$7 -> 0 | W39: =IF(ISNA(VLOOKUP($CZ39,'Audit Values'!$A$2:$BW$351,2,FALSE)),'Preliminary SO66'!AN38,VLOOKUP($CZ39,'Audit Values'!$A$2:$BW$351,61,FALSE)) -> 0 | X39: =W39*'Weighting Factors'!$Q$8 -> 0 | Y39: 0 | Z39: =IF(ISNA(VLOOKUP($CZ39,'Audit Values'!$A$2:$BW$315,2,FALSE)),'Preliminary SO66'!AO38,VLOOKUP($CZ39,'Audit Values'!$A$2:$BW$315,60,FALSE)) -> 162.5 | AA39: =Z39/6*'Weighting Factors'!$Q$6 -> 13.5 | AB39: =IF(ISNA(VLOOKUP($CZ39,'Audit Values'!$A$2:$BU$351,2,FALSE)),'Preliminary SO66'!AS38,VLOOKUP($CZ39,'Audit Values'!$A$2:$BU$351,63,FALSE)) -> 322 | AC39: 0 | AD39: =IF(ISNA(VLOOKUP($CZ39,'Audit Values'!$A$2:$BU$351,2,FALSE)),'Preliminary SO66'!AP38,VLOOKUP($CZ39,'Audit Values'!$A$2:$BU$351,64,FALSE)) -> 90 | AE39: =IF(A39=207, AD39,MAX(AC39,AD39))*'Weighting Factors'!$Q$9 -> 43.6 | AF39: 0 | AG39: =IF(ISNA(VLOOKUP($CZ39,'Audit Values'!$A$2:$BW$351,2,FALSE)),'Preliminary SO66'!AG38,VLOOKUP($CZ39,'Audit Values'!$A$2:$BW$351,70,FALSE)) -> 0 | AH39: 0 | AI39: =IF(ISNA(VLOOKUP($CZ39,'Audit Values'!$A$2:$BU$351,2,FALSE)),'Preliminary SO66'!AQ38,VLOOKUP($CZ39,'Audit Values'!$A$2:$BU$351,65,FALSE)) -> 0 | AJ39: =AI39*'Weighting Factors'!$Q$10 -> 0 | AK39: =IF(ISNA(VLOOKUP($CZ39,'Audit Values'!$A$2:$BU$351,2,FALSE)),'Preliminary SO66'!AR38,VLOOKUP($CZ39,'Audit Values'!$A$2:$BU$351,66,FALSE)) -> 164 | AM39: 168920 | AN39: 211475 | AO39: =MAX(AN39, AM39)/'Weighting Factors'!$Q$5 -> 50.8 | AP39: =CN39/'Weighting Factors'!$Q$5 -> 0 | AQ39: 0 | AR39: =CS39/'Weighting Factors'!$Q$5 -> 0 | AS39: 325123 | AT39: =AS39/'Weighting Factors'!$Q$5 -> 78.1 | AU39: =IF(ISNA(VLOOKUP($CZ39,'Audit Values'!$A$2:$BU$351,2,FALSE)),'Preliminary SO66'!X38,VLOOKUP($CZ39,'Audit Values'!$A$2:$BU$351,47,FALSE)) -> 0 | AV39: 655.3 | AW39: 577.2 | AX39: =IF(ISNA(VLOOKUP($CZ39,'Audit Values'!$A$2:$BU$351,2,FALSE)),'Preliminary SO66'!AA38,VLOOKUP($CZ39,'Audit Values'!$A$2:$BU$351,41,FALSE)) -> 0 | AY39: =IF(ISNA(VLOOKUP($CZ39,'Audit Values'!$A$2:$BU$351,2,FALSE)),'Preliminary SO66'!AB38,VLOOKUP($CZ39,'Audit Values'!$A$2:$BU$351,42,FALSE)) -> 0 | AZ39: 0 | BA39: =SUM(AX39*'Weighting Factors'!$T$10)+('2019 Legal Max'!AY39*'Weighting Factors'!$T$11)+('2019 Legal Max'!AZ39*'Weighting Factors'!$T$12) -> 0 | BB39: 0 | BC39: =IF(ISNA(VLOOKUP($CZ39,'Audit Values'!$A$2:$BU$351,2,FALSE)),"",IF(AND('Weighting Factors'!H39>0,VLOOKUP($CZ39,'Audit Values'!$A$2:$BU$351,51,FALSE)<'Weighting Factors'!H39),'Weighting Factors'!H39,VLOOKUP($CZ39,'Audit Values'!$A$2:$BU$351,50,FALSE))) -> 5 | BD39: =IF(ISNA(VLOOKUP($CZ39,'Audit Values'!$A$2:$BV$351,2,FALSE)),"",VLOOKUP($CZ39,'Audit Values'!$A$2:$BV$351,51,FALSE)) -> A | BE39: =IF('Weighting Factors'!H39="","",IF('Weighting Factors'!J39="Pending","PX","R")) ->  | BF39: =SUM((S39+T39+Y39+AA39+AE39+AH39+AJ39++AO39+AP39+AQ39+AU39+AR39)*'Weighting Factors'!$Q$5)+'2019 Legal Max'!BA39+'2019 Legal Max'!BB39 -> 2404038 | BG39: =SUM((AV39+AR39)*'Weighting Factors'!$Q$5)+BA39+'2019 Legal Max'!BB39 -> 2729325 | BH39: =IF('Weighting Factors'!H39>0,'Weighting Factors'!H39,'Preliminary SO66'!AV38) -> 2762645 | BI39: 2729325 | BK39: ='Weighting Factors'!F39 -> 0 | BL39: ='Weighting Factors'!E39 -> 0 | BM39: 0 | BN39: 2729325 | BO39: =SUM((S39+T39+Y39+AA39+AE39+AH39+AJ39++AO39+AP39+AQ39+AR39)*'Weighting Factors'!Q$12)+(MAX(AS39,'Weighting Factors'!B39)) -> 2939486 | BP39: 0.3 | BQ39: 881846 | BR39: 885149 | BS39: 881846 | BT39: 0.3 | BU39: 0 | BV39: FALSE | BW39: 0 | BX39: 0 | BY39: 0 | BZ39: TRUE | CA39: 21.6563 | CB39: 0.478241 | CC39: 151.8 | CD39: 0 | CE39: 255 | CF39: 0.643 | CG39: =IF(CF39<0.06,1,IF(CF39>=18.29,52,MATCH(CF39-0.001,'Weighting Factors'!$Y$5:$Y$156)+1)) -> 28 | CH39: =VLOOKUP(CG39, 'Weighting Factors'!$W$5:$Z$56,4) -> 1030 | CI39: =('Weighting Factors'!$Q$5/'Weighting Factors'!$Q$14) -> 1 | CJ39: 168920 | CK39: =CJ39*'Weighting Factors'!$S$7 -> 168920 | CL39: 168920 | CM39: =AM39/'Weighting Factors'!$Q$5 -> 40.6 | CN39: 0 | CO39: 0 | CP39: 0 | CQ39: 0 | CR39: =SUM((AV39*'Weighting Factors'!$Q$5)+'2019 Legal Max'!BA39)*CQ39 -> 0 | CS39: 0 | CT39: 0.2795 | CU39: 0 | CV39: 0 | CW39: 655.3 | CX39: ='LOB Transfers'!G38 -> 58995 | CY39: ='LOB Transfers'!J38 -> 0 | CZ39: D0224
A40: 225 | B40: Meade | C40: Fowler | D40: 133 | E40: 0 | F40: 133 | G40: 141.5 | H40: 0 | I40: 141.5 | J40: 132 | K40: 0 | L40: 132 | M40: =IF(ISNA(VLOOKUP($CZ40,'Audit Values'!$A$2:$BW$363,2,FALSE)),'Preliminary SO66'!C39,VLOOKUP($CZ40,'Audit Values'!$A$2:$BW$363,73,FALSE)) -> 132.5 | N40: =IF(ISNA(VLOOKUP($CZ40,'Audit Values'!$A$2:$BW$363,2,FALSE)),'Preliminary SO66'!F39,VLOOKUP($CZ40,'Audit Values'!$A$2:$BW$363,4,FALSE)) -> 0 | O40: 132.5 | P40: =IF('Military Provision'!J41="YES", MAX('2019 Legal Max'!L40,'2019 Legal Max'!I40,AVERAGE('2019 Legal Max'!F40,'2019 Legal Max'!I40,'2019 Legal Max'!L40)), MAX(L40, I40)) -> 141.5 | Q40: =IF(ISNA(VLOOKUP($CZ40,'Audit Values'!$A$2:$BU$351,2,FALSE)),'Preliminary SO66'!AL39,VLOOKUP($CZ40,'Audit Values'!$A$2:$BU$3953,58,FALSE)) -> 2 | R40: 0 | S40: 143.5 | T40: 129 | U40: =IF(ISNA(VLOOKUP($CZ40,'Audit Values'!$A$2:$BW$315,2,FALSE)),'Preliminary SO66'!AM39,VLOOKUP($CZ40,'Audit Values'!$A$2:$BW$315,62,FALSE)) -> 19.1 | V40: =(U40/6)*'Weighting Factors'!$Q$7 -> 1.3 | W40: =IF(ISNA(VLOOKUP($CZ40,'Audit Values'!$A$2:$BW$351,2,FALSE)),'Preliminary SO66'!AN39,VLOOKUP($CZ40,'Audit Values'!$A$2:$BW$351,61,FALSE)) -> 15 | X40: =W40*'Weighting Factors'!$Q$8 -> 2.8 | Y40: 2.8 | Z40: =IF(ISNA(VLOOKUP($CZ40,'Audit Values'!$A$2:$BW$315,2,FALSE)),'Preliminary SO66'!AO39,VLOOKUP($CZ40,'Audit Values'!$A$2:$BW$315,60,FALSE)) -> 21.4 | AA40: =Z40/6*'Weighting Factors'!$Q$6 -> 1.8 | AB40: =IF(ISNA(VLOOKUP($CZ40,'Audit Values'!$A$2:$BU$351,2,FALSE)),'Preliminary SO66'!AS39,VLOOKUP($CZ40,'Audit Values'!$A$2:$BU$351,63,FALSE)) -> 137 | AC40: 0 | AD40: =IF(ISNA(VLOOKUP($CZ40,'Audit Values'!$A$2:$BU$351,2,FALSE)),'Preliminary SO66'!AP39,VLOOKUP($CZ40,'Audit Values'!$A$2:$BU$351,64,FALSE)) -> 73 | AE40: =IF(A40=207, AD40,MAX(AC40,AD40))*'Weighting Factors'!$Q$9 -> 35.3 | AF40: 7.7 | AG40: =IF(ISNA(VLOOKUP($CZ40,'Audit Values'!$A$2:$BW$351,2,FALSE)),'Preliminary SO66'!AG39,VLOOKUP($CZ40,'Audit Values'!$A$2:$BW$351,70,FALSE)) -> 7.3 | AH40: 7.7 | AI40: =IF(ISNA(VLOOKUP($CZ40,'Audit Values'!$A$2:$BU$351,2,FALSE)),'Preliminary SO66'!AQ39,VLOOKUP($CZ40,'Audit Values'!$A$2:$BU$351,65,FALSE)) -> 0 | AJ40: =AI40*'Weighting Factors'!$Q$10 -> 0 | AK40: =IF(ISNA(VLOOKUP($CZ40,'Audit Values'!$A$2:$BU$351,2,FALSE)),'Preliminary SO66'!AR39,VLOOKUP($CZ40,'Audit Values'!$A$2:$BU$351,66,FALSE)) -> 20 | AM40: 30800 | AN40: 40831 | AO40: =MAX(AN40, AM40)/'Weighting Factors'!$Q$5 -> 9.8 | AP40: =CN40/'Weighting Factors'!$Q$5 -> 0 | AQ40: 0 | AR40: =CS40/'Weighting Factors'!$Q$5 -> 0 | AS40: 89617 | AT40: =AS40/'Weighting Factors'!$Q$5 -> 21.5 | AU40: =IF(ISNA(VLOOKUP($CZ40,'Audit Values'!$A$2:$BU$351,2,FALSE)),'Preliminary SO66'!X39,VLOOKUP($CZ40,'Audit Values'!$A$2:$BU$351,47,FALSE)) -> 0 | AV40: 351.4 | AW40: 329.9 | AX40: =IF(ISNA(VLOOKUP($CZ40,'Audit Values'!$A$2:$BU$351,2,FALSE)),'Preliminary SO66'!AA39,VLOOKUP($CZ40,'Audit Values'!$A$2:$BU$351,41,FALSE)) -> 0 | AY40: =IF(ISNA(VLOOKUP($CZ40,'Audit Values'!$A$2:$BU$351,2,FALSE)),'Preliminary SO66'!AB39,VLOOKUP($CZ40,'Audit Values'!$A$2:$BU$351,42,FALSE)) -> 0 | AZ40: 0 | BA40: =SUM(AX40*'Weighting Factors'!$T$10)+('2019 Legal Max'!AY40*'Weighting Factors'!$T$11)+('2019 Legal Max'!AZ40*'Weighting Factors'!$T$12) -> 0 | BB40: 0 | BC40: =IF(ISNA(VLOOKUP($CZ40,'Audit Values'!$A$2:$BU$351,2,FALSE)),"",IF(AND('Weighting Factors'!H40>0,VLOOKUP($CZ40,'Audit Values'!$A$2:$BU$351,51,FALSE)<'Weighting Factors'!H40),'Weighting Factors'!H40,VLOOKUP($CZ40,'Audit Values'!$A$2:$BU$351,50,FALSE))) -> 11 | BD40: =IF(ISNA(VLOOKUP($CZ40,'Audit Values'!$A$2:$BV$351,2,FALSE)),"",VLOOKUP($CZ40,'Audit Values'!$A$2:$BV$351,51,FALSE)) -> A | BE40: =IF('Weighting Factors'!H40="","",IF('Weighting Factors'!J40="Pending","PX","R")) -> R | BF40: =SUM((S40+T40+Y40+AA40+AE40+AH40+AJ40++AO40+AP40+AQ40+AU40+AR40)*'Weighting Factors'!$Q$5)+'2019 Legal Max'!BA40+'2019 Legal Max'!BB40 -> 1374034 | BG40: =SUM((AV40+AR40)*'Weighting Factors'!$Q$5)+BA40+'2019 Legal Max'!BB40 -> 1463581 | BH40: =IF('Weighting Factors'!H40>0,'Weighting Factors'!H40,'Preliminary SO66'!AV39) -> 1485656 | BI40: 1463581 | BK40: ='Weighting Factors'!F40 -> -21324 | BL40: ='Weighting Factors'!E40 -> 0 | BM40: -21324 | BN40: 1442257 | BO40: =SUM((S40+T40+Y40+AA40+AE40+AH40+AJ40++AO40+AP40+AQ40+AR40)*'Weighting Factors'!Q$12)+(MAX(AS40,'Weighting Factors'!B40)) -> 1634038 | BP40: 0.33 | BQ40: 539233 | BR40: 519526 | BS40: 519526 | BT40: 0.3179 | BU40: 0 | BV40: TRUE | BW40: 419.993 | BX40: 0.899025 | BY40: 129 | BZ40: FALSE | CA40: 0 | CB40: 0 | CC40: 0 | CD40: 0 | CE40: 281 | CF40: 0.071 | CG40: =IF(CF40<0.06,1,IF(CF40>=18.29,52,MATCH(CF40-0.001,'Weighting Factors'!$Y$5:$Y$156)+1)) -> 3 | CH40: =VLOOKUP(CG40, 'Weighting Factors'!$W$5:$Z$56,4) -> 1540 | CI40: =('Weighting Factors'!$Q$5/'Weighting Factors'!$Q$14) -> 1 | CJ40: 30800 | CK40: =CJ40*'Weighting Factors'!$S$7 -> 30800 | CL40: 30800 | CM40: =AM40/'Weighting Factors'!$Q$5 -> 7.4 | CN40: 0 | CO40: 0 | CP40: 0 | CQ40: 0 | CR40: =SUM((AV40*'Weighting Factors'!$Q$5)+'2019 Legal Max'!BA40)*CQ40 -> 0 | CS40: 0 | CT40: 0.5328 | CU40: 7.7 | CV40: 0 | CW40: 351.4 | CX40: ='LOB Transfers'!G39 -> 52472 | CY40: ='LOB Transfers'!J39 -> 4156 | CZ40: D0225
A41: 226 | B41: Meade | C41: Meade | D41: 372.5 | E41: 0 | F41: 372.5 | G41: 388.9 | H41: 0 | I41: 388.9 | J41: 412.1 | K41: 0 | L41: 412.1 | M41: =IF(ISNA(VLOOKUP($CZ41,'Audit Values'!$A$2:$BW$363,2,FALSE)),'Preliminary SO66'!C40,VLOOKUP($CZ41,'Audit Values'!$A$2:$BW$363,73,FALSE)) -> 379 | N41: =IF(ISNA(VLOOKUP($CZ41,'Audit Values'!$A$2:$BW$363,2,FALSE)),'Preliminary SO66'!F40,VLOOKUP($CZ41,'Audit Values'!$A$2:$BW$363,4,FALSE)) -> 0 | O41: 379 | P41: =IF('Military Provision'!J42="YES", MAX('2019 Legal Max'!L41,'2019 Legal Max'!I41,AVERAGE('2019 Legal Max'!F41,'2019 Legal Max'!I41,'2019 Legal Max'!L41)), MAX(L41, I41)) -> 412.1 | Q41: =IF(ISNA(VLOOKUP($CZ41,'Audit Values'!$A$2:$BU$351,2,FALSE)),'Preliminary SO66'!AL40,VLOOKUP($CZ41,'Audit Values'!$A$2:$BU$3953,58,FALSE)) -> 4.5 | R41: 0 | S41: 416.6 | T41: 185.2 | U41: =IF(ISNA(VLOOKUP($CZ41,'Audit Values'!$A$2:$BW$315,2,FALSE)),'Preliminary SO66'!AM40,VLOOKUP($CZ41,'Audit Values'!$A$2:$BW$315,62,FALSE)) -> 47.6 | V41: =(U41/6)*'Weighting Factors'!$Q$7 -> 3.1 | W41: =IF(ISNA(VLOOKUP($CZ41,'Audit Values'!$A$2:$BW$351,2,FALSE)),'Preliminary SO66'!AN40,VLOOKUP($CZ41,'Audit Values'!$A$2:$BW$351,61,FALSE)) -> 13 | X41: =W41*'Weighting Factors'!$Q$8 -> 2.4 | Y41: 3.1 | Z41: =IF(ISNA(VLOOKUP($CZ41,'Audit Values'!$A$2:$BW$315,2,FALSE)),'Preliminary SO66'!AO40,VLOOKUP($CZ41,'Audit Values'!$A$2:$BW$315,60,FALSE)) -> 37.2 | AA41: =Z41/6*'Weighting Factors'!$Q$6 -> 3.1 | AB41: =IF(ISNA(VLOOKUP($CZ41,'Audit Values'!$A$2:$BU$351,2,FALSE)),'Preliminary SO66'!AS40,VLOOKUP($CZ41,'Audit Values'!$A$2:$BU$351,63,FALSE)) -> 402 | AC41: 0 | AD41: =IF(ISNA(VLOOKUP($CZ41,'Audit Values'!$A$2:$BU$351,2,FALSE)),'Preliminary SO66'!AP40,VLOOKUP($CZ41,'Audit Values'!$A$2:$BU$351,64,FALSE)) -> 165 | AE41: =IF(A41=207, AD41,MAX(AC41,AD41))*'Weighting Factors'!$Q$9 -> 79.9 | AF41: 7 | AG41: =IF(ISNA(VLOOKUP($CZ41,'Audit Values'!$A$2:$BW$351,2,FALSE)),'Preliminary SO66'!AG40,VLOOKUP($CZ41,'Audit Values'!$A$2:$BW$351,70,FALSE)) -> 12.7 | AH41: 12.7 | AI41: =IF(ISNA(VLOOKUP($CZ41,'Audit Values'!$A$2:$BU$351,2,FALSE)),'Preliminary SO66'!AQ40,VLOOKUP($CZ41,'Audit Values'!$A$2:$BU$351,65,FALSE)) -> 0 | AJ41: =AI41*'Weighting Factors'!$Q$10 -> 0 | AK41: =IF(ISNA(VLOOKUP($CZ41,'Audit Values'!$A$2:$BU$351,2,FALSE)),'Preliminary SO66'!AR40,VLOOKUP($CZ41,'Audit Values'!$A$2:$BU$351,66,FALSE)) -> 46 | AM41: 66700 | AN41: 103619 | AO41: =MAX(AN41, AM41)/'Weighting Factors'!$Q$5 -> 24.9 | AP41: =CN41/'Weighting Factors'!$Q$5 -> 0 | AQ41: 0 | AR41: =CS41/'Weighting Factors'!$Q$5 -> 0 | AS41: 286979 | AT41: =AS41/'Weighting Factors'!$Q$5 -> 68.9 | AU41: =IF(ISNA(VLOOKUP($CZ41,'Audit Values'!$A$2:$BU$351,2,FALSE)),'Preliminary SO66'!X40,VLOOKUP($CZ41,'Audit Values'!$A$2:$BU$351,47,FALSE)) -> 0 | AV41: 794.4 | AW41: 725.5 | AX41: =IF(ISNA(VLOOKUP($CZ41,'Audit Values'!$A$2:$BU$351,2,FALSE)),'Preliminary SO66'!AA40,VLOOKUP($CZ41,'Audit Values'!$A$2:$BU$351,41,FALSE)) -> 0 | AY41: =IF(ISNA(VLOOKUP($CZ41,'Audit Values'!$A$2:$BU$351,2,FALSE)),'Preliminary SO66'!AB40,VLOOKUP($CZ41,'Audit Values'!$A$2:$BU$351,42,FALSE)) -> 0 | AZ41: 0 | BA41: =SUM(AX41*'Weighting Factors'!$T$10)+('2019 Legal Max'!AY41*'Weighting Factors'!$T$11)+('2019 Legal Max'!AZ41*'Weighting Factors'!$T$12) -> 0 | BB41: 0 | BC41: =IF(ISNA(VLOOKUP($CZ41,'Audit Values'!$A$2:$BU$351,2,FALSE)),"",IF(AND('Weighting Factors'!H41>0,VLOOKUP($CZ41,'Audit Values'!$A$2:$BU$351,51,FALSE)<'Weighting Factors'!H41),'Weighting Factors'!H41,VLOOKUP($CZ41,'Audit Values'!$A$2:$BU$351,50,FALSE))) -> 6 | BD41: =IF(ISNA(VLOOKUP($CZ41,'Audit Values'!$A$2:$BV$351,2,FALSE)),"",VLOOKUP($CZ41,'Audit Values'!$A$2:$BV$351,51,FALSE)) -> A | BE41: =IF('Weighting Factors'!H41="","",IF('Weighting Factors'!J41="Pending","PX","R")) -> R | BF41: =SUM((S41+T41+Y41+AA41+AE41+AH41+AJ41++AO41+AP41+AQ41+AU41+AR41)*'Weighting Factors'!$Q$5)+'2019 Legal Max'!BA41+'2019 Legal Max'!BB41 -> 3021708 | BG41: =SUM((AV41+AR41)*'Weighting Factors'!$Q$5)+BA41+'2019 Legal Max'!BB41 -> 3308676 | BH41: =IF('Weighting Factors'!H41>0,'Weighting Factors'!H41,'Preliminary SO66'!AV40) -> 3353242 | BI41: 3308676 | BK41: ='Weighting Factors'!F41 -> -24056 | BL41: ='Weighting Factors'!E41 -> 0 | BM41: -24056 | BN41: 3284620 | BO41: =SUM((S41+T41+Y41+AA41+AE41+AH41+AJ41++AO41+AP41+AQ41+AR41)*'Weighting Factors'!Q$12)+(MAX(AS41,'Weighting Factors'!B41)) -> 3651089 | BP41: 0.33 | BQ41: 1204859 | BR41: 1184708 | BS41: 1184708 | BT41: 0.3245 | BU41: 0 | BV41: FALSE | BW41: 0 | BX41: 0 | BY41: 0 | BZ41: TRUE | CA41: 144.2925 | CB41: 0.444572 | CC41: 185.2 | CD41: 0 | CE41: 440 | CF41: 0.105 | CG41: =IF(CF41<0.06,1,IF(CF41>=18.29,52,MATCH(CF41-0.001,'Weighting Factors'!$Y$5:$Y$156)+1)) -> 6 | CH41: =VLOOKUP(CG41, 'Weighting Factors'!$W$5:$Z$56,4) -> 1450 | CI41: =('Weighting Factors'!$Q$5/'Weighting Factors'!$Q$14) -> 1 | CJ41: 66700 | CK41: =CJ41*'Weighting Factors'!$S$7 -> 66700 | CL41: 66700 | CM41: =AM41/'Weighting Factors'!$Q$5 -> 16 | CN41: 0 | CO41: 0 | CP41: 0 | CQ41: 0 | CR41: =SUM((AV41*'Weighting Factors'!$Q$5)+'2019 Legal Max'!BA41)*CQ41 -> 0 | CS41: 0 | CT41: 0.4104 | CU41: 0 | CV41: 7 | CW41: 794.4 | CX41: ='LOB Transfers'!G40 -> 119892 | CY41: ='LOB Transfers'!J40 -> 4620 | CZ41: D0226
A42: 227 | B42: Hodgeman | C42: Hodgeman County Schools | D42: 286.5 | E42: 0 | F42: 286.5 | G42: 287 | H42: 0 | I42: 287 | J42: 296.5 | K42: 0 | L42: 296.5 | M42: =IF(ISNA(VLOOKUP($CZ42,'Audit Values'!$A$2:$BW$363,2,FALSE)),'Preliminary SO66'!C41,VLOOKUP($CZ42,'Audit Values'!$A$2:$BW$363,73,FALSE)) -> 280.5 | N42: =IF(ISNA(VLOOKUP($CZ42,'Audit Values'!$A$2:$BW$363,2,FALSE)),'Preliminary SO66'!F41,VLOOKUP($CZ42,'Audit Values'!$A$2:$BW$363,4,FALSE)) -> 0 | O42: 280.5 | P42: =IF('Military Provision'!J43="YES", MAX('2019 Legal Max'!L42,'2019 Legal Max'!I42,AVERAGE('2019 Legal Max'!F42,'2019 Legal Max'!I42,'2019 Legal Max'!L42)), MAX(L42, I42)) -> 296.5 | Q42: =IF(ISNA(VLOOKUP($CZ42,'Audit Values'!$A$2:$BU$351,2,FALSE)),'Preliminary SO66'!AL41,VLOOKUP($CZ42,'Audit Values'!$A$2:$BU$3953,58,FALSE)) -> 0 | R42: 0 | S42: 296.5 | T42: 146.3 | U42: =IF(ISNA(VLOOKUP($CZ42,'Audit Values'!$A$2:$BW$315,2,FALSE)),'Preliminary SO66'!AM41,VLOOKUP($CZ42,'Audit Values'!$A$2:$BW$315,62,FALSE)) -> 7.7 | V42: =(U42/6)*'Weighting Factors'!$Q$7 -> 0.5 | W42: =IF(ISNA(VLOOKUP($CZ42,'Audit Values'!$A$2:$BW$351,2,FALSE)),'Preliminary SO66'!AN41,VLOOKUP($CZ42,'Audit Values'!$A$2:$BW$351,61,FALSE)) -> 8 | X42: =W42*'Weighting Factors'!$Q$8 -> 1.5 | Y42: 1.5 | Z42: =IF(ISNA(VLOOKUP($CZ42,'Audit Values'!$A$2:$BW$315,2,FALSE)),'Preliminary SO66'!AO41,VLOOKUP($CZ42,'Audit Values'!$A$2:$BW$315,60,FALSE)) -> 44.9 | AA42: =Z42/6*'Weighting Factors'!$Q$6 -> 3.7 | AB42: =IF(ISNA(VLOOKUP($CZ42,'Audit Values'!$A$2:$BU$351,2,FALSE)),'Preliminary SO66'!AS41,VLOOKUP($CZ42,'Audit Values'!$A$2:$BU$351,63,FALSE)) -> 284 | AC42: 0 | AD42: =IF(ISNA(VLOOKUP($CZ42,'Audit Values'!$A$2:$BU$351,2,FALSE)),'Preliminary SO66'!AP41,VLOOKUP($CZ42,'Audit Values'!$A$2:$BU$351,64,FALSE)) -> 72 | AE42: =IF(A42=207, AD42,MAX(AC42,AD42))*'Weighting Factors'!$Q$9 -> 34.8 | AF42: 0 | AG42: =IF(ISNA(VLOOKUP($CZ42,'Audit Values'!$A$2:$BW$351,2,FALSE)),'Preliminary SO66'!AG41,VLOOKUP($CZ42,'Audit Values'!$A$2:$BW$351,70,FALSE)) -> 0 | AH42: 0 | AI42: =IF(ISNA(VLOOKUP($CZ42,'Audit Values'!$A$2:$BU$351,2,FALSE)),'Preliminary SO66'!AQ41,VLOOKUP($CZ42,'Audit Values'!$A$2:$BU$351,65,FALSE)) -> 0 | AJ42: =AI42*'Weighting Factors'!$Q$10 -> 0 | AK42: =IF(ISNA(VLOOKUP($CZ42,'Audit Values'!$A$2:$BU$351,2,FALSE)),'Preliminary SO66'!AR41,VLOOKUP($CZ42,'Audit Values'!$A$2:$BU$351,66,FALSE)) -> 126.5 | AM42: 170775 | AN42: 203771 | AO42: =MAX(AN42, AM42)/'Weighting Factors'!$Q$5 -> 48.9 | AP42: =CN42/'Weighting Factors'!$Q$5 -> 0 | AQ42: 0 | AR42: =CS42/'Weighting Factors'!$Q$5 -> 0 | AS42: 198749 | AT42: =AS42/'Weighting Factors'!$Q$5 -> 47.7 | AU42: =IF(ISNA(VLOOKUP($CZ42,'Audit Values'!$A$2:$BU$351,2,FALSE)),'Preliminary SO66'!X41,VLOOKUP($CZ42,'Audit Values'!$A$2:$BU$351,47,FALSE)) -> 0 | AV42: 579.4 | AW42: 531.7 | AX42: =IF(ISNA(VLOOKUP($CZ42,'Audit Values'!$A$2:$BU$351,2,FALSE)),'Preliminary SO66'!AA41,VLOOKUP($CZ42,'Audit Values'!$A$2:$BU$351,41,FALSE)) -> 0 | AY42: =IF(ISNA(VLOOKUP($CZ42,'Audit Values'!$A$2:$BU$351,2,FALSE)),'Preliminary SO66'!AB41,VLOOKUP($CZ42,'Audit Values'!$A$2:$BU$351,42,FALSE)) -> 0 | AZ42: 0 | BA42: =SUM(AX42*'Weighting Factors'!$T$10)+('2019 Legal Max'!AY42*'Weighting Factors'!$T$11)+('2019 Legal Max'!AZ42*'Weighting Factors'!$T$12) -> 0 | BB42: 0 | BC42: =IF(ISNA(VLOOKUP($CZ42,'Audit Values'!$A$2:$BU$351,2,FALSE)),"",IF(AND('Weighting Factors'!H42>0,VLOOKUP($CZ42,'Audit Values'!$A$2:$BU$351,51,FALSE)<'Weighting Factors'!H42),'Weighting Factors'!H42,VLOOKUP($CZ42,'Audit Values'!$A$2:$BU$351,50,FALSE))) -> 19 | BD42: =IF(ISNA(VLOOKUP($CZ42,'Audit Values'!$A$2:$BV$351,2,FALSE)),"",VLOOKUP($CZ42,'Audit Values'!$A$2:$BV$351,51,FALSE)) -> A | BE42: =IF('Weighting Factors'!H42="","",IF('Weighting Factors'!J42="Pending","PX","R")) ->  | BF42: =SUM((S42+T42+Y42+AA42+AE42+AH42+AJ42++AO42+AP42+AQ42+AU42+AR42)*'Weighting Factors'!$Q$5)+'2019 Legal Max'!BA42+'2019 Legal Max'!BB42 -> 2214531 | BG42: =SUM((AV42+AR42)*'Weighting Factors'!$Q$5)+BA42+'2019 Legal Max'!BB42 -> 2413201 | BH42: =IF('Weighting Factors'!H42>0,'Weighting Factors'!H42,'Preliminary SO66'!AV41) -> 2479008 | BI42: 2413201 | BK42: ='Weighting Factors'!F42 -> 0 | BL42: ='Weighting Factors'!E42 -> 0 | BM42: 0 | BN42: 2413201 | BO42: =SUM((S42+T42+Y42+AA42+AE42+AH42+AJ42++AO42+AP42+AQ42+AR42)*'Weighting Factors'!Q$12)+(MAX(AS42,'Weighting Factors'!B42)) -> 2707985 | BP42: 0.3 | BQ42: 812396 | BR42: 791517 | BS42: 791517 | BT42: 0.2923 | BU42: 0 | BV42: TRUE | BW42: 1897.208 | BX42: 0.493464 | BY42: 146.3 | BZ42: FALSE | CA42: 0 | CB42: 0 | CC42: 0 | CD42: 0 | CE42: 807.5 | CF42: 0.157 | CG42: =IF(CF42<0.06,1,IF(CF42>=18.29,52,MATCH(CF42-0.001,'Weighting Factors'!$Y$5:$Y$156)+1)) -> 11 | CH42: =VLOOKUP(CG42, 'Weighting Factors'!$W$5:$Z$56,4) -> 1350 | CI42: =('Weighting Factors'!$Q$5/'Weighting Factors'!$Q$14) -> 1 | CJ42: 170775 | CK42: =CJ42*'Weighting Factors'!$S$7 -> 170775 | CL42: 170775 | CM42: =AM42/'Weighting Factors'!$Q$5 -> 41 | CN42: 0 | CO42: 0 | CP42: 0 | CQ42: 0 | CR42: =SUM((AV42*'Weighting Factors'!$Q$5)+'2019 Legal Max'!BA42)*CQ42 -> 0 | CS42: 0 | CT42: 0.2535 | CU42: 0 | CV42: 0 | CW42: 579.4 | CX42: ='LOB Transfers'!G41 -> 47570 | CY42: ='LOB Transfers'!J41 -> 2058 | CZ42: D0227
A43: 229 | B43: Johnson | C43: Blue Valley | D43: 21563.7 | E43: 0 | F43: 21563.7 | G43: 22241.3 | H43: 0 | I43: 22241.3 | J43: 22315.9 | K43: 0 | L43: 22315.9 | M43: =IF(ISNA(VLOOKUP($CZ43,'Audit Values'!$A$2:$BW$363,2,FALSE)),'Preliminary SO66'!C42,VLOOKUP($CZ43,'Audit Values'!$A$2:$BW$363,73,FALSE)) -> 22329.2 | N43: =IF(ISNA(VLOOKUP($CZ43,'Audit Values'!$A$2:$BW$363,2,FALSE)),'Preliminary SO66'!F42,VLOOKUP($CZ43,'Audit Values'!$A$2:$BW$363,4,FALSE)) -> 0 | O43: 22329.2 | P43: =IF('Military Provision'!J44="YES", MAX('2019 Legal Max'!L43,'2019 Legal Max'!I43,AVERAGE('2019 Legal Max'!F43,'2019 Legal Max'!I43,'2019 Legal Max'!L43)), MAX(L43, I43)) -> 22315.9 | Q43: =IF(ISNA(VLOOKUP($CZ43,'Audit Values'!$A$2:$BU$351,2,FALSE)),'Preliminary SO66'!AL42,VLOOKUP($CZ43,'Audit Values'!$A$2:$BU$3953,58,FALSE)) -> 0 | R43: 0 | S43: 22315.9 | T43: 781.9 | U43: =IF(ISNA(VLOOKUP($CZ43,'Audit Values'!$A$2:$BW$315,2,FALSE)),'Preliminary SO66'!AM42,VLOOKUP($CZ43,'Audit Values'!$A$2:$BW$315,62,FALSE)) -> 1018.8 | V43: =(U43/6)*'Weighting Factors'!$Q$7 -> 67.1 | W43: =IF(ISNA(VLOOKUP($CZ43,'Audit Values'!$A$2:$BW$351,2,FALSE)),'Preliminary SO66'!AN42,VLOOKUP($CZ43,'Audit Values'!$A$2:$BW$351,61,FALSE)) -> 510 | X43: =W43*'Weighting Factors'!$Q$8 -> 94.4 | Y43: 94.4 | Z43: =IF(ISNA(VLOOKUP($CZ43,'Audit Values'!$A$2:$BW$315,2,FALSE)),'Preliminary SO66'!AO42,VLOOKUP($CZ43,'Audit Values'!$A$2:$BW$315,60,FALSE)) -> 5231 | AA43: =Z43/6*'Weighting Factors'!$Q$6 -> 435.9 | AB43: =IF(ISNA(VLOOKUP($CZ43,'Audit Values'!$A$2:$BU$351,2,FALSE)),'Preliminary SO66'!AS42,VLOOKUP($CZ43,'Audit Values'!$A$2:$BU$351,63,FALSE)) -> 22559 | AC43: 0 | AD43: =IF(ISNA(VLOOKUP($CZ43,'Audit Values'!$A$2:$BU$351,2,FALSE)),'Preliminary SO66'!AP42,VLOOKUP($CZ43,'Audit Values'!$A$2:$BU$351,64,FALSE)) -> 1070 | AE43: =IF(A43=207, AD43,MAX(AC43,AD43))*'Weighting Factors'!$Q$9 -> 517.9 | AF43: 0 | AG43: =IF(ISNA(VLOOKUP($CZ43,'Audit Values'!$A$2:$BW$351,2,FALSE)),'Preliminary SO66'!AG42,VLOOKUP($CZ43,'Audit Values'!$A$2:$BW$351,70,FALSE)) -> 0 | AH43: 0 | AI43: =IF(ISNA(VLOOKUP($CZ43,'Audit Values'!$A$2:$BU$351,2,FALSE)),'Preliminary SO66'!AQ42,VLOOKUP($CZ43,'Audit Values'!$A$2:$BU$351,65,FALSE)) -> 636.7 | AJ43: =AI43*'Weighting Factors'!$Q$10 -> 159.2 | AK43: =IF(ISNA(VLOOKUP($CZ43,'Audit Values'!$A$2:$BU$351,2,FALSE)),'Preliminary SO66'!AR42,VLOOKUP($CZ43,'Audit Values'!$A$2:$BU$351,66,FALSE)) -> 4595 | AM43: 2527250 | AN43: 2553876 | AO43: =MAX(AN43, AM43)/'Weighting Factors'!$Q$5 -> 613.2 | AP43: =CN43/'Weighting Factors'!$Q$5 -> 1891.4 | AQ43: 0 | AR43: =CS43/'Weighting Factors'!$Q$5 -> 1632 | AS43: 24231974 | AT43: =AS43/'Weighting Factors'!$Q$5 -> 5818 | AU43: =IF(ISNA(VLOOKUP($CZ43,'Audit Values'!$A$2:$BU$351,2,FALSE)),'Preliminary SO66'!X42,VLOOKUP($CZ43,'Audit Values'!$A$2:$BU$351,47,FALSE)) -> 0 | AV43: 32627.8 | AW43: 28441.8 | AX43: =IF(ISNA(VLOOKUP($CZ43,'Audit Values'!$A$2:$BU$351,2,FALSE)),'Preliminary SO66'!AA42,VLOOKUP($CZ43,'Audit Values'!$A$2:$BU$351,41,FALSE)) -> 0 | AY43: =IF(ISNA(VLOOKUP($CZ43,'Audit Values'!$A$2:$BU$351,2,FALSE)),'Preliminary SO66'!AB42,VLOOKUP($CZ43,'Audit Values'!$A$2:$BU$351,42,FALSE)) -> 28.3 | AZ43: 0 | BA43: =SUM(AX43*'Weighting Factors'!$T$10)+('2019 Legal Max'!AY43*'Weighting Factors'!$T$11)+('2019 Legal Max'!AZ43*'Weighting Factors'!$T$12) -> 48110 | BB43: 0 | BC43: =IF(ISNA(VLOOKUP($CZ43,'Audit Values'!$A$2:$BU$351,2,FALSE)),"",IF(AND('Weighting Factors'!H43>0,VLOOKUP($CZ43,'Audit Values'!$A$2:$BU$351,51,FALSE)<'Weighting Factors'!H43),'Weighting Factors'!H43,VLOOKUP($CZ43,'Audit Values'!$A$2:$BU$351,50,FALSE))) -> 25 | BD43: =IF(ISNA(VLOOKUP($CZ43,'Audit Values'!$A$2:$BV$351,2,FALSE)),"",VLOOKUP($CZ43,'Audit Values'!$A$2:$BV$351,51,FALSE)) -> A | BE43: =IF('Weighting Factors'!H43="","",IF('Weighting Factors'!J43="Pending","PX","R")) ->  | BF43: =SUM((S43+T43+Y43+AA43+AE43+AH43+AJ43++AO43+AP43+AQ43+AU43+AR43)*'Weighting Factors'!$Q$5)+'2019 Legal Max'!BA43+'2019 Legal Max'!BB43 -> 118508207 | BG43: =SUM((AV43+AR43)*'Weighting Factors'!$Q$5)+BA43+'2019 Legal Max'!BB43 -> 142740177 | BH43: =IF('Weighting Factors'!H43>0,'Weighting Factors'!H43,'Preliminary SO66'!AV42) -> 142862237 | BI43: 142740177 | BK43: ='Weighting Factors'!F43 -> -216311 | BL43: ='Weighting Factors'!E43 -> 0 | BM43: -216311 | BN43: 142523866 | BO43: =SUM((S43+T43+Y43+AA43+AE43+AH43+AJ43++AO43+AP43+AQ43+AR43)*'Weighting Factors'!Q$12)+(MAX(AS43,'Weighting Factors'!B43)) -> 151935656 | BP43: 0.33 | BQ43: 50138766 | BR43: 50180953 | BS43: 50138766 | BT43: 0.33 | BU43: 0 | BV43: FALSE | BW43: 0 | BX43: 0 | BY43: 0 | BZ43: FALSE | CA43: 0 | CB43: 0 | CC43: 0 | CD43: 781.9 | CE43: 91 | CF43: 50.495 | CG43: =IF(CF43<0.06,1,IF(CF43>=18.29,52,MATCH(CF43-0.001,'Weighting Factors'!$Y$5:$Y$156)+1)) -> 52 | CH43: =VLOOKUP(CG43, 'Weighting Factors'!$W$5:$Z$56,4) -> 550 | CI43: =('Weighting Factors'!$Q$5/'Weighting Factors'!$Q$14) -> 1 | CJ43: 2527250 | CK43: =CJ43*'Weighting Factors'!$S$7 -> 2527250 | CL43: 2527250 | CM43: =AM43/'Weighting Factors'!$Q$5 -> 606.8 | CN43: 7877562 | CO43: 0 | CP43: 6802956 | CQ43: 0.05 | CR43: =SUM((AV43*'Weighting Factors'!$Q$5)+'2019 Legal Max'!BA43)*CQ43 -> 6797145 | CS43: 6797145 | CT43: 0.0474 | CU43: 0 | CV43: 0 | CW43: 34259.8 | CX43: ='LOB Transfers'!G42 -> 757095 | CY43: ='LOB Transfers'!J42 -> 140389 | CZ43: D0229
A44: 230 | B44: Johnson | C44: Spring Hill | D44: 2490.4 | E44: 0 | F44: 2490.4 | G44: 2735.6 | H44: 0 | I44: 2735.6 | J44: 2882.9 | K44: 0 | L44: 2882.9 | M44: =IF(ISNA(VLOOKUP($CZ44,'Audit Values'!$A$2:$BW$363,2,FALSE)),'Preliminary SO66'!C43,VLOOKUP($CZ44,'Audit Values'!$A$2:$BW$363,73,FALSE)) -> 3073.4 | N44: =IF(ISNA(VLOOKUP($CZ44,'Audit Values'!$A$2:$BW$363,2,FALSE)),'Preliminary SO66'!F43,VLOOKUP($CZ44,'Audit Values'!$A$2:$BW$363,4,FALSE)) -> 0 | O44: 3073.4 | P44: =IF('Military Provision'!J45="YES", MAX('2019 Legal Max'!L44,'2019 Legal Max'!I44,AVERAGE('2019 Legal Max'!F44,'2019 Legal Max'!I44,'2019 Legal Max'!L44)), MAX(L44, I44)) -> 2882.9 | Q44: =IF(ISNA(VLOOKUP($CZ44,'Audit Values'!$A$2:$BU$351,2,FALSE)),'Preliminary SO66'!AL43,VLOOKUP($CZ44,'Audit Values'!$A$2:$BU$3953,58,FALSE)) -> 7.5 | R44: 0 | S44: 2890.4 | T44: 101.3 | U44: =IF(ISNA(VLOOKUP($CZ44,'Audit Values'!$A$2:$BW$315,2,FALSE)),'Preliminary SO66'!AM43,VLOOKUP($CZ44,'Audit Values'!$A$2:$BW$315,62,FALSE)) -> 31 | V44: =(U44/6)*'Weighting Factors'!$Q$7 -> 2 | W44: =IF(ISNA(VLOOKUP($CZ44,'Audit Values'!$A$2:$BW$351,2,FALSE)),'Preliminary SO66'!AN43,VLOOKUP($CZ44,'Audit Values'!$A$2:$BW$351,61,FALSE)) -> 36 | X44: =W44*'Weighting Factors'!$Q$8 -> 6.7 | Y44: 6.7 | Z44: =IF(ISNA(VLOOKUP($CZ44,'Audit Values'!$A$2:$BW$315,2,FALSE)),'Preliminary SO66'!AO43,VLOOKUP($CZ44,'Audit Values'!$A$2:$BW$315,60,FALSE)) -> 471 | AA44: =Z44/6*'Weighting Factors'!$Q$6 -> 39.3 | AB44: =IF(ISNA(VLOOKUP($CZ44,'Audit Values'!$A$2:$BU$351,2,FALSE)),'Preliminary SO66'!AS43,VLOOKUP($CZ44,'Audit Values'!$A$2:$BU$351,63,FALSE)) -> 3114 | AC44: 0 | AD44: =IF(ISNA(VLOOKUP($CZ44,'Audit Values'!$A$2:$BU$351,2,FALSE)),'Preliminary SO66'!AP43,VLOOKUP($CZ44,'Audit Values'!$A$2:$BU$351,64,FALSE)) -> 374 | AE44: =IF(A44=207, AD44,MAX(AC44,AD44))*'Weighting Factors'!$Q$9 -> 181 | AF44: 0 | AG44: =IF(ISNA(VLOOKUP($CZ44,'Audit Values'!$A$2:$BW$351,2,FALSE)),'Preliminary SO66'!AG43,VLOOKUP($CZ44,'Audit Values'!$A$2:$BW$351,70,FALSE)) -> 0 | AH44: 0 | AI44: =IF(ISNA(VLOOKUP($CZ44,'Audit Values'!$A$2:$BU$351,2,FALSE)),'Preliminary SO66'!AQ43,VLOOKUP($CZ44,'Audit Values'!$A$2:$BU$351,65,FALSE)) -> 0 | AJ44: =AI44*'Weighting Factors'!$Q$10 -> 0 | AK44: =IF(ISNA(VLOOKUP($CZ44,'Audit Values'!$A$2:$BU$351,2,FALSE)),'Preliminary SO66'!AR43,VLOOKUP($CZ44,'Audit Values'!$A$2:$BU$351,66,FALSE)) -> 1397 | AM44: 768350 | AN44: 689123 | AO44: =MAX(AN44, AM44)/'Weighting Factors'!$Q$5 -> 184.5 | AP44: =CN44/'Weighting Factors'!$Q$5 -> 507.9 | AQ44: 0 | AR44: =CS44/'Weighting Factors'!$Q$5 -> 0 | AS44: 3421047 | AT44: =AS44/'Weighting Factors'!$Q$5 -> 821.4 | AU44: =IF(ISNA(VLOOKUP($CZ44,'Audit Values'!$A$2:$BU$351,2,FALSE)),'Preliminary SO66'!X43,VLOOKUP($CZ44,'Audit Values'!$A$2:$BU$351,47,FALSE)) -> 1 | AV44: 4733.5 | AW44: 3912.1 | AX44: =IF(ISNA(VLOOKUP($CZ44,'Audit Values'!$A$2:$BU$351,2,FALSE)),'Preliminary SO66'!AA43,VLOOKUP($CZ44,'Audit Values'!$A$2:$BU$351,41,FALSE)) -> 1110 | AY44: =IF(ISNA(VLOOKUP($CZ44,'Audit Values'!$A$2:$BU$351,2,FALSE)),'Preliminary SO66'!AB43,VLOOKUP($CZ44,'Audit Values'!$A$2:$BU$351,42,FALSE)) -> 28.5 | AZ44: 210 | BA44: =SUM(AX44*'Weighting Factors'!$T$10)+('2019 Legal Max'!AY44*'Weighting Factors'!$T$11)+('2019 Legal Max'!AZ44*'Weighting Factors'!$T$12) -> 5747340 | BB44: 0 | BC44: =IF(ISNA(VLOOKUP($CZ44,'Audit Values'!$A$2:$BU$351,2,FALSE)),"",IF(AND('Weighting Factors'!H44>0,VLOOKUP($CZ44,'Audit Values'!$A$2:$BU$351,51,FALSE)<'Weighting Factors'!H44),'Weighting Factors'!H44,VLOOKUP($CZ44,'Audit Values'!$A$2:$BU$351,50,FALSE))) -> 27 | BD44: =IF(ISNA(VLOOKUP($CZ44,'Audit Values'!$A$2:$BV$351,2,FALSE)),"",VLOOKUP($CZ44,'Audit Values'!$A$2:$BV$351,51,FALSE)) -> A | BE44: =IF('Weighting Factors'!H44="","",IF('Weighting Factors'!J44="Pending","PX","R")) ->  | BF44: =SUM((S44+T44+Y44+AA44+AE44+AH44+AJ44++AO44+AP44+AQ44+AU44+AR44)*'Weighting Factors'!$Q$5)+'2019 Legal Max'!BA44+'2019 Legal Max'!BB44 -> 22041237 | BG44: =SUM((AV44+AR44)*'Weighting Factors'!$Q$5)+BA44+'2019 Legal Max'!BB44 -> 25462368 | BH44: =IF('Weighting Factors'!H44>0,'Weighting Factors'!H44,'Preliminary SO66'!AV43) -> 25632559 | BI44: 25462368 | BK44: ='Weighting Factors'!F44 -> 0 | BL44: ='Weighting Factors'!E44 -> -5318 | BM44: -5318 | BN44: 25457050 | BO44: =SUM((S44+T44+Y44+AA44+AE44+AH44+AJ44++AO44+AP44+AQ44+AR44)*'Weighting Factors'!Q$12)+(MAX(AS44,'Weighting Factors'!B44)) -> 20981886 | BP44: 0.33 | BQ44: 6924022 | BR44: 7116357 | BS44: 6924022 | BT44: 0.33 | BU44: 0 | BV44: FALSE | BW44: 0 | BX44: 0 | BY44: 0 | BZ44: FALSE | CA44: 0 | CB44: 0 | CC44: 0 | CD44: 101.3 | CE44: 71 | CF44: 19.676 | CG44: =IF(CF44<0.06,1,IF(CF44>=18.29,52,MATCH(CF44-0.001,'Weighting Factors'!$Y$5:$Y$156)+1)) -> 52 | CH44: =VLOOKUP(CG44, 'Weighting Factors'!$W$5:$Z$56,4) -> 550 | CI44: =('Weighting Factors'!$Q$5/'Weighting Factors'!$Q$14) -> 1 | CJ44: 768350 | CK44: =CJ44*'Weighting Factors'!$S$7 -> 768350 | CL44: 768350 | CM44: =AM44/'Weighting Factors'!$Q$5 -> 184.5 | CN44: 2115330 | CO44: 0 | CP44: 0 | CQ44: 0.0475 | CR44: =SUM((AV44*'Weighting Factors'!$Q$5)+'2019 Legal Max'!BA44)*CQ44 -> 1209462 | CS44: 0 | CT44: 0.1201 | CU44: 0 | CV44: 0 | CW44: 4733.5 | CX44: ='LOB Transfers'!G43 -> 265190 | CY44: ='LOB Transfers'!J43 -> 9694 | CZ44: D0230
A45: 231 | B45: Johnson | C45: Gardner Edgerton | D45: 5443.7 | E45: 0 | F45: 5443.7 | G45: 5809.5 | H45: 0 | I45: 5809.5 | J45: 5888.9 | K45: 0 | L45: 5888.9 | M45: =IF(ISNA(VLOOKUP($CZ45,'Audit Values'!$A$2:$BW$363,2,FALSE)),'Preliminary SO66'!C44,VLOOKUP($CZ45,'Audit Values'!$A$2:$BW$363,73,FALSE)) -> 5882.1 | N45: =IF(ISNA(VLOOKUP($CZ45,'Audit Values'!$A$2:$BW$363,2,FALSE)),'Preliminary SO66'!F44,VLOOKUP($CZ45,'Audit Values'!$A$2:$BW$363,4,FALSE)) -> 0 | O45: 5882.1 | P45: =IF('Military Provision'!J46="YES", MAX('2019 Legal Max'!L45,'2019 Legal Max'!I45,AVERAGE('2019 Legal Max'!F45,'2019 Legal Max'!I45,'2019 Legal Max'!L45)), MAX(L45, I45)) -> 5888.9 | Q45: =IF(ISNA(VLOOKUP($CZ45,'Audit Values'!$A$2:$BU$351,2,FALSE)),'Preliminary SO66'!AL44,VLOOKUP($CZ45,'Audit Values'!$A$2:$BU$3953,58,FALSE)) -> 0 | R45: 0 | S45: 5888.9 | T45: 206.3 | U45: =IF(ISNA(VLOOKUP($CZ45,'Audit Values'!$A$2:$BW$315,2,FALSE)),'Preliminary SO66'!AM44,VLOOKUP($CZ45,'Audit Values'!$A$2:$BW$315,62,FALSE)) -> 359.6 | V45: =(U45/6)*'Weighting Factors'!$Q$7 -> 23.7 | W45: =IF(ISNA(VLOOKUP($CZ45,'Audit Values'!$A$2:$BW$351,2,FALSE)),'Preliminary SO66'!AN44,VLOOKUP($CZ45,'Audit Values'!$A$2:$BW$351,61,FALSE)) -> 140 | X45: =W45*'Weighting Factors'!$Q$8 -> 25.9 | Y45: 25.9 | Z45: =IF(ISNA(VLOOKUP($CZ45,'Audit Values'!$A$2:$BW$315,2,FALSE)),'Preliminary SO66'!AO44,VLOOKUP($CZ45,'Audit Values'!$A$2:$BW$315,60,FALSE)) -> 1078.4 | AA45: =Z45/6*'Weighting Factors'!$Q$6 -> 89.9 | AB45: =IF(ISNA(VLOOKUP($CZ45,'Audit Values'!$A$2:$BU$351,2,FALSE)),'Preliminary SO66'!AS44,VLOOKUP($CZ45,'Audit Values'!$A$2:$BU$351,63,FALSE)) -> 5971 | AC45: 0 | AD45: =IF(ISNA(VLOOKUP($CZ45,'Audit Values'!$A$2:$BU$351,2,FALSE)),'Preliminary SO66'!AP44,VLOOKUP($CZ45,'Audit Values'!$A$2:$BU$351,64,FALSE)) -> 1098 | AE45: =IF(A45=207, AD45,MAX(AC45,AD45))*'Weighting Factors'!$Q$9 -> 531.4 | AF45: 0 | AG45: =IF(ISNA(VLOOKUP($CZ45,'Audit Values'!$A$2:$BW$351,2,FALSE)),'Preliminary SO66'!AG44,VLOOKUP($CZ45,'Audit Values'!$A$2:$BW$351,70,FALSE)) -> 0 | AH45: 0 | AI45: =IF(ISNA(VLOOKUP($CZ45,'Audit Values'!$A$2:$BU$351,2,FALSE)),'Preliminary SO66'!AQ44,VLOOKUP($CZ45,'Audit Values'!$A$2:$BU$351,65,FALSE)) -> 0 | AJ45: =AI45*'Weighting Factors'!$Q$10 -> 0 | AK45: =IF(ISNA(VLOOKUP($CZ45,'Audit Values'!$A$2:$BU$351,2,FALSE)),'Preliminary SO66'!AR44,VLOOKUP($CZ45,'Audit Values'!$A$2:$BU$351,66,FALSE)) -> 1167 | AM45: 711870 | AN45: 744592 | AO45: =MAX(AN45, AM45)/'Weighting Factors'!$Q$5 -> 178.8 | AP45: =CN45/'Weighting Factors'!$Q$5 -> 369.8 | AQ45: 0 | AR45: =CS45/'Weighting Factors'!$Q$5 -> 102.1 | AS45: 6948992 | AT45: =AS45/'Weighting Factors'!$Q$5 -> 1668.4 | AU45: =IF(ISNA(VLOOKUP($CZ45,'Audit Values'!$A$2:$BU$351,2,FALSE)),'Preliminary SO66'!X44,VLOOKUP($CZ45,'Audit Values'!$A$2:$BU$351,47,FALSE)) -> 1 | AV45: 8960.4 | AW45: 7394.1 | AX45: =IF(ISNA(VLOOKUP($CZ45,'Audit Values'!$A$2:$BU$351,2,FALSE)),'Preliminary SO66'!AA44,VLOOKUP($CZ45,'Audit Values'!$A$2:$BU$351,41,FALSE)) -> 0 | AY45: =IF(ISNA(VLOOKUP($CZ45,'Audit Values'!$A$2:$BU$351,2,FALSE)),'Preliminary SO66'!AB44,VLOOKUP($CZ45,'Audit Values'!$A$2:$BU$351,42,FALSE)) -> 0 | AZ45: 0 | BA45: =SUM(AX45*'Weighting Factors'!$T$10)+('2019 Legal Max'!AY45*'Weighting Factors'!$T$11)+('2019 Legal Max'!AZ45*'Weighting Factors'!$T$12) -> 0 | BB45: 0 | BC45: =IF(ISNA(VLOOKUP($CZ45,'Audit Values'!$A$2:$BU$351,2,FALSE)),"",IF(AND('Weighting Factors'!H45>0,VLOOKUP($CZ45,'Audit Values'!$A$2:$BU$351,51,FALSE)<'Weighting Factors'!H45),'Weighting Factors'!H45,VLOOKUP($CZ45,'Audit Values'!$A$2:$BU$351,50,FALSE))) -> 16 | BD45: =IF(ISNA(VLOOKUP($CZ45,'Audit Values'!$A$2:$BV$351,2,FALSE)),"",VLOOKUP($CZ45,'Audit Values'!$A$2:$BV$351,51,FALSE)) -> A | BE45: =IF('Weighting Factors'!H45="","",IF('Weighting Factors'!J45="Pending","PX","R")) ->  | BF45: =SUM((S45+T45+Y45+AA45+AE45+AH45+AJ45++AO45+AP45+AQ45+AU45+AR45)*'Weighting Factors'!$Q$5)+'2019 Legal Max'!BA45+'2019 Legal Max'!BB45 -> 30796427 | BG45: =SUM((AV45+AR45)*'Weighting Factors'!$Q$5)+BA45+'2019 Legal Max'!BB45 -> 37745313 | BH45: =IF('Weighting Factors'!H45>0,'Weighting Factors'!H45,'Preliminary SO66'!AV44) -> 39625394 | BI45: 37745313 | BK45: ='Weighting Factors'!F45 -> 0 | BL45: ='Weighting Factors'!E45 -> 0 | BM45: 0 | BN45: 37745313 | BO45: =SUM((S45+T45+Y45+AA45+AE45+AH45+AJ45++AO45+AP45+AQ45+AR45)*'Weighting Factors'!Q$12)+(MAX(AS45,'Weighting Factors'!B45)) -> 40144011 | BP45: 0.33 | BQ45: 13247524 | BR45: 13902469 | BS45: 13247524 | BT45: 0.33 | BU45: 0 | BV45: FALSE | BW45: 0 | BX45: 0 | BY45: 0 | BZ45: FALSE | CA45: 0 | CB45: 0 | CC45: 0 | CD45: 206.3 | CE45: 103 | CF45: 11.33 | CG45: =IF(CF45<0.06,1,IF(CF45>=18.29,52,MATCH(CF45-0.001,'Weighting Factors'!$Y$5:$Y$156)+1)) -> 49 | CH45: =VLOOKUP(CG45, 'Weighting Factors'!$W$5:$Z$56,4) -> 610 | CI45: =('Weighting Factors'!$Q$5/'Weighting Factors'!$Q$14) -> 1 | CJ45: 711870 | CK45: =CJ45*'Weighting Factors'!$S$7 -> 711870 | CL45: 711870 | CM45: =AM45/'Weighting Factors'!$Q$5 -> 170.9 | CN45: 1540199 | CO45: 0 | CP45: 446640 | CQ45: 0.0114 | CR45: =SUM((AV45*'Weighting Factors'!$Q$5)+'2019 Legal Max'!BA45)*CQ45 -> 425449 | CS45: 425449 | CT45: 0.1839 | CU45: 0 | CV45: 0 | CW45: 9062.5 | CX45: ='LOB Transfers'!G44 -> 776305 | CY45: ='LOB Transfers'!J44 -> 38418 | CZ45: D0231
A46: 232 | B46: Johnson | C46: De Soto | D46: 6713.1 | E46: 0 | F46: 6713.1 | G46: 7072.6 | H46: 0 | I46: 7072.6 | J46: 7202.5 | K46: 0 | L46: 7202.5 | M46: =IF(ISNA(VLOOKUP($CZ46,'Audit Values'!$A$2:$BW$363,2,FALSE)),'Preliminary SO66'!C45,VLOOKUP($CZ46,'Audit Values'!$A$2:$BW$363,73,FALSE)) -> 7262.7 | N46: =IF(ISNA(VLOOKUP($CZ46,'Audit Values'!$A$2:$BW$363,2,FALSE)),'Preliminary SO66'!F45,VLOOKUP($CZ46,'Audit Values'!$A$2:$BW$363,4,FALSE)) -> 0 | O46: 7262.7 | P46: =IF('Military Provision'!J47="YES", MAX('2019 Legal Max'!L46,'2019 Legal Max'!I46,AVERAGE('2019 Legal Max'!F46,'2019 Legal Max'!I46,'2019 Legal Max'!L46)), MAX(L46, I46)) -> 7202.5 | Q46: =IF(ISNA(VLOOKUP($CZ46,'Audit Values'!$A$2:$BU$351,2,FALSE)),'Preliminary SO66'!AL45,VLOOKUP($CZ46,'Audit Values'!$A$2:$BU$3953,58,FALSE)) -> 12 | R46: 0 | S46: 7214.5 | T46: 252.8 | U46: =IF(ISNA(VLOOKUP($CZ46,'Audit Values'!$A$2:$BW$315,2,FALSE)),'Preliminary SO66'!AM45,VLOOKUP($CZ46,'Audit Values'!$A$2:$BW$315,62,FALSE)) -> 915.4 | V46: =(U46/6)*'Weighting Factors'!$Q$7 -> 60.3 | W46: =IF(ISNA(VLOOKUP($CZ46,'Audit Values'!$A$2:$BW$351,2,FALSE)),'Preliminary SO66'!AN45,VLOOKUP($CZ46,'Audit Values'!$A$2:$BW$351,61,FALSE)) -> 214 | X46: =W46*'Weighting Factors'!$Q$8 -> 39.6 | Y46: 60.3 | Z46: =IF(ISNA(VLOOKUP($CZ46,'Audit Values'!$A$2:$BW$315,2,FALSE)),'Preliminary SO66'!AO45,VLOOKUP($CZ46,'Audit Values'!$A$2:$BW$315,60,FALSE)) -> 1764.9 | AA46: =Z46/6*'Weighting Factors'!$Q$6 -> 147.1 | AB46: =IF(ISNA(VLOOKUP($CZ46,'Audit Values'!$A$2:$BU$351,2,FALSE)),'Preliminary SO66'!AS45,VLOOKUP($CZ46,'Audit Values'!$A$2:$BU$351,63,FALSE)) -> 7341 | AC46: 0 | AD46: =IF(ISNA(VLOOKUP($CZ46,'Audit Values'!$A$2:$BU$351,2,FALSE)),'Preliminary SO66'!AP45,VLOOKUP($CZ46,'Audit Values'!$A$2:$BU$351,64,FALSE)) -> 566 | AE46: =IF(A46=207, AD46,MAX(AC46,AD46))*'Weighting Factors'!$Q$9 -> 273.9 | AF46: 0 | AG46: =IF(ISNA(VLOOKUP($CZ46,'Audit Values'!$A$2:$BW$351,2,FALSE)),'Preliminary SO66'!AG45,VLOOKUP($CZ46,'Audit Values'!$A$2:$BW$351,70,FALSE)) -> 0 | AH46: 0 | AI46: =IF(ISNA(VLOOKUP($CZ46,'Audit Values'!$A$2:$BU$351,2,FALSE)),'Preliminary SO66'!AQ45,VLOOKUP($CZ46,'Audit Values'!$A$2:$BU$351,65,FALSE)) -> 0 | AJ46: =AI46*'Weighting Factors'!$Q$10 -> 0 | AK46: =IF(ISNA(VLOOKUP($CZ46,'Audit Values'!$A$2:$BU$351,2,FALSE)),'Preliminary SO66'!AR45,VLOOKUP($CZ46,'Audit Values'!$A$2:$BU$351,66,FALSE)) -> 1874 | AM46: 1030700 | AN46: 1077790 | AO46: =MAX(AN46, AM46)/'Weighting Factors'!$Q$5 -> 258.8 | AP46: =CN46/'Weighting Factors'!$Q$5 -> 0 | AQ46: 0 | AR46: =CS46/'Weighting Factors'!$Q$5 -> 474.8 | AS46: 5312098 | AT46: =AS46/'Weighting Factors'!$Q$5 -> 1275.4 | AU46: =IF(ISNA(VLOOKUP($CZ46,'Audit Values'!$A$2:$BU$351,2,FALSE)),'Preliminary SO66'!X45,VLOOKUP($CZ46,'Audit Values'!$A$2:$BU$351,47,FALSE)) -> 0 | AV46: 9482.8 | AW46: 8682.2 | AX46: =IF(ISNA(VLOOKUP($CZ46,'Audit Values'!$A$2:$BU$351,2,FALSE)),'Preliminary SO66'!AA45,VLOOKUP($CZ46,'Audit Values'!$A$2:$BU$351,41,FALSE)) -> 9 | AY46: =IF(ISNA(VLOOKUP($CZ46,'Audit Values'!$A$2:$BU$351,2,FALSE)),'Preliminary SO66'!AB45,VLOOKUP($CZ46,'Audit Values'!$A$2:$BU$351,42,FALSE)) -> 2 | AZ46: 5 | BA46: =SUM(AX46*'Weighting Factors'!$T$10)+('2019 Legal Max'!AY46*'Weighting Factors'!$T$11)+('2019 Legal Max'!AZ46*'Weighting Factors'!$T$12) -> 51945 | BB46: 0 | BC46: =IF(ISNA(VLOOKUP($CZ46,'Audit Values'!$A$2:$BU$351,2,FALSE)),"",IF(AND('Weighting Factors'!H46>0,VLOOKUP($CZ46,'Audit Values'!$A$2:$BU$351,51,FALSE)<'Weighting Factors'!H46),'Weighting Factors'!H46,VLOOKUP($CZ46,'Audit Values'!$A$2:$BU$351,50,FALSE))) -> 11 | BD46: =IF(ISNA(VLOOKUP($CZ46,'Audit Values'!$A$2:$BV$351,2,FALSE)),"",VLOOKUP($CZ46,'Audit Values'!$A$2:$BV$351,51,FALSE)) -> A | BE46: =IF('Weighting Factors'!H46="","",IF('Weighting Factors'!J46="Pending","PX","R")) ->  | BF46: =SUM((S46+T46+Y46+AA46+AE46+AH46+AJ46++AO46+AP46+AQ46+AU46+AR46)*'Weighting Factors'!$Q$5)+'2019 Legal Max'!BA46+'2019 Legal Max'!BB46 -> 36213308 | BG46: =SUM((AV46+AR46)*'Weighting Factors'!$Q$5)+BA46+'2019 Legal Max'!BB46 -> 41525349 | BH46: =IF('Weighting Factors'!H46>0,'Weighting Factors'!H46,'Preliminary SO66'!AV45) -> 43026893 | BI46: 41525349 | BK46: ='Weighting Factors'!F46 -> 0 | BL46: ='Weighting Factors'!E46 -> 0 | BM46: 0 | BN46: 41525349 | BO46: =SUM((S46+T46+Y46+AA46+AE46+AH46+AJ46++AO46+AP46+AQ46+AR46)*'Weighting Factors'!Q$12)+(MAX(AS46,'Weighting Factors'!B46)) -> 44295176 | BP46: 0.33 | BQ46: 14617408 | BR46: 15123376 | BS46: 14617408 | BT46: 0.33 | BU46: 0 | BV46: FALSE | BW46: 0 | BX46: 0 | BY46: 0 | BZ46: FALSE | CA46: 0 | CB46: 0 | CC46: 0 | CD46: 252.8 | CE46: 100 | CF46: 18.74 | CG46: =IF(CF46<0.06,1,IF(CF46>=18.29,52,MATCH(CF46-0.001,'Weighting Factors'!$Y$5:$Y$156)+1)) -> 52 | CH46: =VLOOKUP(CG46, 'Weighting Factors'!$W$5:$Z$56,4) -> 550 | CI46: =('Weighting Factors'!$Q$5/'Weighting Factors'!$Q$14) -> 1 | CJ46: 1030700 | CK46: =CJ46*'Weighting Factors'!$S$7 -> 1030700 | CL46: 1030700 | CM46: =AM46/'Weighting Factors'!$Q$5 -> 247.5 | CN46: 0 | CO46: 0 | CP46: 2048906 | CQ46: 0.05 | CR46: =SUM((AV46*'Weighting Factors'!$Q$5)+'2019 Legal Max'!BA46)*CQ46 -> 1977390 | CS46: 1977390 | CT46: 0.0771 | CU46: 0 | CV46: 0 | CW46: 9957.6 | CX46: ='LOB Transfers'!G45 -> 401979 | CY46: ='LOB Transfers'!J45 -> 89166 | CZ46: D0232
A47: 233 | B47: Johnson | C47: Olathe | D47: 27799.1 | E47: 0 | F47: 27799.1 | G47: 28734.2 | H47: 0 | I47: 28734.2 | J47: 29074.1 | K47: 0 | L47: 29074.1 | M47: =IF(ISNA(VLOOKUP($CZ47,'Audit Values'!$A$2:$BW$363,2,FALSE)),'Preliminary SO66'!C46,VLOOKUP($CZ47,'Audit Values'!$A$2:$BW$363,73,FALSE)) -> 29177.1 | N47: =IF(ISNA(VLOOKUP($CZ47,'Audit Values'!$A$2:$BW$363,2,FALSE)),'Preliminary SO66'!F46,VLOOKUP($CZ47,'Audit Values'!$A$2:$BW$363,4,FALSE)) -> 0 | O47: 29177.1 | P47: =IF('Military Provision'!J48="YES", MAX('2019 Legal Max'!L47,'2019 Legal Max'!I47,AVERAGE('2019 Legal Max'!F47,'2019 Legal Max'!I47,'2019 Legal Max'!L47)), MAX(L47, I47)) -> 29074.1 | Q47: =IF(ISNA(VLOOKUP($CZ47,'Audit Values'!$A$2:$BU$351,2,FALSE)),'Preliminary SO66'!AL46,VLOOKUP($CZ47,'Audit Values'!$A$2:$BU$3953,58,FALSE)) -> 72 | R47: 0 | S47: 29146.1 | T47: 1021.3 | U47: =IF(ISNA(VLOOKUP($CZ47,'Audit Values'!$A$2:$BW$315,2,FALSE)),'Preliminary SO66'!AM46,VLOOKUP($CZ47,'Audit Values'!$A$2:$BW$315,62,FALSE)) -> 6269.5 | V47: =(U47/6)*'Weighting Factors'!$Q$7 -> 412.7 | W47: =IF(ISNA(VLOOKUP($CZ47,'Audit Values'!$A$2:$BW$351,2,FALSE)),'Preliminary SO66'!AN46,VLOOKUP($CZ47,'Audit Values'!$A$2:$BW$351,61,FALSE)) -> 3016 | X47: =W47*'Weighting Factors'!$Q$8 -> 558 | Y47: 558 | Z47: =IF(ISNA(VLOOKUP($CZ47,'Audit Values'!$A$2:$BW$315,2,FALSE)),'Preliminary SO66'!AO46,VLOOKUP($CZ47,'Audit Values'!$A$2:$BW$315,60,FALSE)) -> 6425.4 | AA47: =Z47/6*'Weighting Factors'!$Q$6 -> 535.5 | AB47: =IF(ISNA(VLOOKUP($CZ47,'Audit Values'!$A$2:$BU$351,2,FALSE)),'Preliminary SO66'!AS46,VLOOKUP($CZ47,'Audit Values'!$A$2:$BU$351,63,FALSE)) -> 29565 | AC47: 0 | AD47: =IF(ISNA(VLOOKUP($CZ47,'Audit Values'!$A$2:$BU$351,2,FALSE)),'Preliminary SO66'!AP46,VLOOKUP($CZ47,'Audit Values'!$A$2:$BU$351,64,FALSE)) -> 5763 | AE47: =IF(A47=207, AD47,MAX(AC47,AD47))*'Weighting Factors'!$Q$9 -> 2789.3 | AF47: 0 | AG47: =IF(ISNA(VLOOKUP($CZ47,'Audit Values'!$A$2:$BW$351,2,FALSE)),'Preliminary SO66'!AG46,VLOOKUP($CZ47,'Audit Values'!$A$2:$BW$351,70,FALSE)) -> 157 | AH47: 157 | AI47: =IF(ISNA(VLOOKUP($CZ47,'Audit Values'!$A$2:$BU$351,2,FALSE)),'Preliminary SO66'!AQ46,VLOOKUP($CZ47,'Audit Values'!$A$2:$BU$351,65,FALSE)) -> 1657.5 | AJ47: =AI47*'Weighting Factors'!$Q$10 -> 414.4 | AK47: =IF(ISNA(VLOOKUP($CZ47,'Audit Values'!$A$2:$BU$351,2,FALSE)),'Preliminary SO66'!AR46,VLOOKUP($CZ47,'Audit Values'!$A$2:$BU$351,66,FALSE)) -> 4851 | AM47: 2668050 | AN47: 3241458 | AO47: =MAX(AN47, AM47)/'Weighting Factors'!$Q$5 -> 778.3 | AP47: =CN47/'Weighting Factors'!$Q$5 -> 4801.9 | AQ47: 0 | AR47: =CS47/'Weighting Factors'!$Q$5 -> 2195.9 | AS47: 31804885 | AT47: =AS47/'Weighting Factors'!$Q$5 -> 7636.2 | AU47: =IF(ISNA(VLOOKUP($CZ47,'Audit Values'!$A$2:$BU$351,2,FALSE)),'Preliminary SO66'!X46,VLOOKUP($CZ47,'Audit Values'!$A$2:$BU$351,47,FALSE)) -> 2 | AV47: 47840 | AW47: 42399.7 | AX47: =IF(ISNA(VLOOKUP($CZ47,'Audit Values'!$A$2:$BU$351,2,FALSE)),'Preliminary SO66'!AA46,VLOOKUP($CZ47,'Audit Values'!$A$2:$BU$351,41,FALSE)) -> 0 | AY47: =IF(ISNA(VLOOKUP($CZ47,'Audit Values'!$A$2:$BU$351,2,FALSE)),'Preliminary SO66'!AB46,VLOOKUP($CZ47,'Audit Values'!$A$2:$BU$351,42,FALSE)) -> 0 | AZ47: 0 | BA47: =SUM(AX47*'Weighting Factors'!$T$10)+('2019 Legal Max'!AY47*'Weighting Factors'!$T$11)+('2019 Legal Max'!AZ47*'Weighting Factors'!$T$12) -> 0 | BB47: 0 | BC47: =IF(ISNA(VLOOKUP($CZ47,'Audit Values'!$A$2:$BU$351,2,FALSE)),"",IF(AND('Weighting Factors'!H47>0,VLOOKUP($CZ47,'Audit Values'!$A$2:$BU$351,51,FALSE)<'Weighting Factors'!H47),'Weighting Factors'!H47,VLOOKUP($CZ47,'Audit Values'!$A$2:$BU$351,50,FALSE))) -> 12 | BD47: =IF(ISNA(VLOOKUP($CZ47,'Audit Values'!$A$2:$BV$351,2,FALSE)),"",VLOOKUP($CZ47,'Audit Values'!$A$2:$BV$351,51,FALSE)) -> A | BE47: =IF('Weighting Factors'!H47="","",IF('Weighting Factors'!J47="Pending","PX","R")) ->  | BF47: =SUM((S47+T47+Y47+AA47+AE47+AH47+AJ47++AO47+AP47+AQ47+AU47+AR47)*'Weighting Factors'!$Q$5)+'2019 Legal Max'!BA47+'2019 Legal Max'!BB47 -> 176594751 | BG47: =SUM((AV47+AR47)*'Weighting Factors'!$Q$5)+BA47+'2019 Legal Max'!BB47 -> 208399524 | BH47: =IF('Weighting Factors'!H47>0,'Weighting Factors'!H47,'Preliminary SO66'!AV46) -> 209737322 | BI47: 208399524 | BK47: ='Weighting Factors'!F47 -> 0 | BL47: ='Weighting Factors'!E47 -> 0 | BM47: 0 | BN47: 208399524 | BO47: =SUM((S47+T47+Y47+AA47+AE47+AH47+AJ47++AO47+AP47+AQ47+AR47)*'Weighting Factors'!Q$12)+(MAX(AS47,'Weighting Factors'!B47)) -> 222170558 | BP47: 0.33 | BQ47: 73316284 | BR47: 73789502 | BS47: 73316284 | BT47: 0.33 | BU47: 0 | BV47: FALSE | BW47: 0 | BX47: 0 | BY47: 0 | BZ47: FALSE | CA47: 0 | CB47: 0 | CC47: 0 | CD47: 1021.3 | CE47: 75.3 | CF47: 64.422 | CG47: =IF(CF47<0.06,1,IF(CF47>=18.29,52,MATCH(CF47-0.001,'Weighting Factors'!$Y$5:$Y$156)+1)) -> 52 | CH47: =VLOOKUP(CG47, 'Weighting Factors'!$W$5:$Z$56,4) -> 550 | CI47: =('Weighting Factors'!$Q$5/'Weighting Factors'!$Q$14) -> 1 | CJ47: 2668050 | CK47: =CJ47*'Weighting Factors'!$S$7 -> 2668050 | CL47: 2668050 | CM47: =AM47/'Weighting Factors'!$Q$5 -> 640.6 | CN47: 20000000 | CO47: 0 | CP47: 9204450 | CQ47: 0.0459 | CR47: =SUM((AV47*'Weighting Factors'!$Q$5)+'2019 Legal Max'!BA47)*CQ47 -> 9145740 | CS47: 9145740 | CT47: 0.1949 | CU47: 0 | CV47: 0 | CW47: 50035.9 | CX47: ='LOB Transfers'!G46 -> 4091049 | CY47: ='LOB Transfers'!J46 -> 821142 | CZ47: D0233
A48: 234 | B48: Bourbon | C48: Fort Scott | D48: 1797.1 | E48: 0 | F48: 1797.1 | G48: 1832.5 | H48: 0 | I48: 1832.5 | J48: 1844 | K48: 0 | L48: 1844 | M48: =IF(ISNA(VLOOKUP($CZ48,'Audit Values'!$A$2:$BW$363,2,FALSE)),'Preliminary SO66'!C47,VLOOKUP($CZ48,'Audit Values'!$A$2:$BW$363,73,FALSE)) -> 1863 | N48: =IF(ISNA(VLOOKUP($CZ48,'Audit Values'!$A$2:$BW$363,2,FALSE)),'Preliminary SO66'!F47,VLOOKUP($CZ48,'Audit Values'!$A$2:$BW$363,4,FALSE)) -> 0 | O48: 1863 | P48: =IF('Military Provision'!J49="YES", MAX('2019 Legal Max'!L48,'2019 Legal Max'!I48,AVERAGE('2019 Legal Max'!F48,'2019 Legal Max'!I48,'2019 Legal Max'!L48)), MAX(L48, I48)) -> 1844 | Q48: =IF(ISNA(VLOOKUP($CZ48,'Audit Values'!$A$2:$BU$351,2,FALSE)),'Preliminary SO66'!AL47,VLOOKUP($CZ48,'Audit Values'!$A$2:$BU$3953,58,FALSE)) -> 15.5 | R48: 0 | S48: 1859.5 | T48: 65.2 | U48: =IF(ISNA(VLOOKUP($CZ48,'Audit Values'!$A$2:$BW$315,2,FALSE)),'Preliminary SO66'!AM47,VLOOKUP($CZ48,'Audit Values'!$A$2:$BW$315,62,FALSE)) -> 2 | V48: =(U48/6)*'Weighting Factors'!$Q$7 -> 0.1 | W48: =IF(ISNA(VLOOKUP($CZ48,'Audit Values'!$A$2:$BW$351,2,FALSE)),'Preliminary SO66'!AN47,VLOOKUP($CZ48,'Audit Values'!$A$2:$BW$351,61,FALSE)) -> 6 | X48: =W48*'Weighting Factors'!$Q$8 -> 1.1 | Y48: 1.1 | Z48: =IF(ISNA(VLOOKUP($CZ48,'Audit Values'!$A$2:$BW$315,2,FALSE)),'Preliminary SO66'!AO47,VLOOKUP($CZ48,'Audit Values'!$A$2:$BW$315,60,FALSE)) -> 468.2 | AA48: =Z48/6*'Weighting Factors'!$Q$6 -> 39 | AB48: =IF(ISNA(VLOOKUP($CZ48,'Audit Values'!$A$2:$BU$351,2,FALSE)),'Preliminary SO66'!AS47,VLOOKUP($CZ48,'Audit Values'!$A$2:$BU$351,63,FALSE)) -> 1908 | AC48: 0 | AD48: =IF(ISNA(VLOOKUP($CZ48,'Audit Values'!$A$2:$BU$351,2,FALSE)),'Preliminary SO66'!AP47,VLOOKUP($CZ48,'Audit Values'!$A$2:$BU$351,64,FALSE)) -> 881 | AE48: =IF(A48=207, AD48,MAX(AC48,AD48))*'Weighting Factors'!$Q$9 -> 426.4 | AF48: 68.9 | AG48: =IF(ISNA(VLOOKUP($CZ48,'Audit Values'!$A$2:$BW$351,2,FALSE)),'Preliminary SO66'!AG47,VLOOKUP($CZ48,'Audit Values'!$A$2:$BW$351,70,FALSE)) -> 64.5 | AH48: 68.9 | AI48: =IF(ISNA(VLOOKUP($CZ48,'Audit Values'!$A$2:$BU$351,2,FALSE)),'Preliminary SO66'!AQ47,VLOOKUP($CZ48,'Audit Values'!$A$2:$BU$351,65,FALSE)) -> 20.1 | AJ48: =AI48*'Weighting Factors'!$Q$10 -> 5 | AK48: =IF(ISNA(VLOOKUP($CZ48,'Audit Values'!$A$2:$BU$351,2,FALSE)),'Preliminary SO66'!AR47,VLOOKUP($CZ48,'Audit Values'!$A$2:$BU$351,66,FALSE)) -> 508 | AM48: 441960 | AN48: 522331 | AO48: =MAX(AN48, AM48)/'Weighting Factors'!$Q$5 -> 125.4 | AP48: =CN48/'Weighting Factors'!$Q$5 -> 0 | AQ48: 0 | AR48: =CS48/'Weighting Factors'!$Q$5 -> 0 | AS48: 1593992 | AT48: =AS48/'Weighting Factors'!$Q$5 -> 382.7 | AU48: =IF(ISNA(VLOOKUP($CZ48,'Audit Values'!$A$2:$BU$351,2,FALSE)),'Preliminary SO66'!X47,VLOOKUP($CZ48,'Audit Values'!$A$2:$BU$351,47,FALSE)) -> 0 | AV48: 2973.2 | AW48: 2590.5 | AX48: =IF(ISNA(VLOOKUP($CZ48,'Audit Values'!$A$2:$BU$351,2,FALSE)),'Preliminary SO66'!AA47,VLOOKUP($CZ48,'Audit Values'!$A$2:$BU$351,41,FALSE)) -> 4 | AY48: =IF(ISNA(VLOOKUP($CZ48,'Audit Values'!$A$2:$BU$351,2,FALSE)),'Preliminary SO66'!AB47,VLOOKUP($CZ48,'Audit Values'!$A$2:$BU$351,42,FALSE)) -> 0 | AZ48: 0 | BA48: =SUM(AX48*'Weighting Factors'!$T$10)+('2019 Legal Max'!AY48*'Weighting Factors'!$T$11)+('2019 Legal Max'!AZ48*'Weighting Factors'!$T$12) -> 20000 | BB48: 0 | BC48: =IF(ISNA(VLOOKUP($CZ48,'Audit Values'!$A$2:$BU$351,2,FALSE)),"",IF(AND('Weighting Factors'!H48>0,VLOOKUP($CZ48,'Audit Values'!$A$2:$BU$351,51,FALSE)<'Weighting Factors'!H48),'Weighting Factors'!H48,VLOOKUP($CZ48,'Audit Values'!$A$2:$BU$351,50,FALSE))) -> 19 | BD48: =IF(ISNA(VLOOKUP($CZ48,'Audit Values'!$A$2:$BV$351,2,FALSE)),"",VLOOKUP($CZ48,'Audit Values'!$A$2:$BV$351,51,FALSE)) -> A | BE48: =IF('Weighting Factors'!H48="","",IF('Weighting Factors'!J48="Pending","PX","R")) ->  | BF48: =SUM((S48+T48+Y48+AA48+AE48+AH48+AJ48++AO48+AP48+AQ48+AU48+AR48)*'Weighting Factors'!$Q$5)+'2019 Legal Max'!BA48+'2019 Legal Max'!BB48 -> 10809433 | BG48: =SUM((AV48+AR48)*'Weighting Factors'!$Q$5)+BA48+'2019 Legal Max'!BB48 -> 12403378 | BH48: =IF('Weighting Factors'!H48>0,'Weighting Factors'!H48,'Preliminary SO66'!AV47) -> 12616337 | BI48: 12403378 | BK48: ='Weighting Factors'!F48 -> 0 | BL48: ='Weighting Factors'!E48 -> 0 | BM48: 0 | BN48: 12403378 | BO48: =SUM((S48+T48+Y48+AA48+AE48+AH48+AJ48++AO48+AP48+AQ48+AR48)*'Weighting Factors'!Q$12)+(MAX(AS48,'Weighting Factors'!B48)) -> 13225337 | BP48: 0.3 | BQ48: 3967601 | BR48: 4038807 | BS48: 3967601 | BT48: 0.3 | BU48: 0 | BV48: FALSE | BW48: 0 | BX48: 0 | BY48: 0 | BZ48: FALSE | CA48: 0 | CB48: 0 | CC48: 0 | CD48: 65.2 | CE48: 300 | CF48: 1.693 | CG48: =IF(CF48<0.06,1,IF(CF48>=18.29,52,MATCH(CF48-0.001,'Weighting Factors'!$Y$5:$Y$156)+1)) -> 36 | CH48: =VLOOKUP(CG48, 'Weighting Factors'!$W$5:$Z$56,4) -> 870 | CI48: =('Weighting Factors'!$Q$5/'Weighting Factors'!$Q$14) -> 1 | CJ48: 441960 | CK48: =CJ48*'Weighting Factors'!$S$7 -> 441960 | CL48: 441960 | CM48: =AM48/'Weighting Factors'!$Q$5 -> 106.1 | CN48: 0 | CO48: 0 | CP48: 0 | CQ48: 0 | CR48: =SUM((AV48*'Weighting Factors'!$Q$5)+'2019 Legal Max'!BA48)*CQ48 -> 0 | CS48: 0 | CT48: 0.4617 | CU48: 0 | CV48: 68.9 | CW48: 2973.2 | CX48: ='LOB Transfers'!G47 -> 572128 | CY48: ='LOB Transfers'!J47 -> 1587 | CZ48: D0234
A49: 235 | B49: Bourbon | C49: Uniontown | D49: 420 | E49: 0 | F49: 420 | G49: 428 | H49: 0 | I49: 428 | J49: 429.5 | K49: 0 | L49: 429.5 | M49: =IF(ISNA(VLOOKUP($CZ49,'Audit Values'!$A$2:$BW$363,2,FALSE)),'Preliminary SO66'!C48,VLOOKUP($CZ49,'Audit Values'!$A$2:$BW$363,73,FALSE)) -> 428.5 | N49: =IF(ISNA(VLOOKUP($CZ49,'Audit Values'!$A$2:$BW$363,2,FALSE)),'Preliminary SO66'!F48,VLOOKUP($CZ49,'Audit Values'!$A$2:$BW$363,4,FALSE)) -> 0 | O49: 428.5 | P49: =IF('Military Provision'!J50="YES", MAX('2019 Legal Max'!L49,'2019 Legal Max'!I49,AVERAGE('2019 Legal Max'!F49,'2019 Legal Max'!I49,'2019 Legal Max'!L49)), MAX(L49, I49)) -> 429.5 | Q49: =IF(ISNA(VLOOKUP($CZ49,'Audit Values'!$A$2:$BU$351,2,FALSE)),'Preliminary SO66'!AL48,VLOOKUP($CZ49,'Audit Values'!$A$2:$BU$3953,58,FALSE)) -> 6.5 | R49: 0 | S49: 436 | T49: 191 | U49: =IF(ISNA(VLOOKUP($CZ49,'Audit Values'!$A$2:$BW$315,2,FALSE)),'Preliminary SO66'!AM48,VLOOKUP($CZ49,'Audit Values'!$A$2:$BW$315,62,FALSE)) -> 0 | V49: =(U49/6)*'Weighting Factors'!$Q$7 -> 0 | W49: =IF(ISNA(VLOOKUP($CZ49,'Audit Values'!$A$2:$BW$351,2,FALSE)),'Preliminary SO66'!AN48,VLOOKUP($CZ49,'Audit Values'!$A$2:$BW$351,61,FALSE)) -> 0 | X49: =W49*'Weighting Factors'!$Q$8 -> 0 | Y49: 0 | Z49: =IF(ISNA(VLOOKUP($CZ49,'Audit Values'!$A$2:$BW$315,2,FALSE)),'Preliminary SO66'!AO48,VLOOKUP($CZ49,'Audit Values'!$A$2:$BW$315,60,FALSE)) -> 74.1 | AA49: =Z49/6*'Weighting Factors'!$Q$6 -> 6.2 | AB49: =IF(ISNA(VLOOKUP($CZ49,'Audit Values'!$A$2:$BU$351,2,FALSE)),'Preliminary SO66'!AS48,VLOOKUP($CZ49,'Audit Values'!$A$2:$BU$351,63,FALSE)) -> 445 | AC49: 0 | AD49: =IF(ISNA(VLOOKUP($CZ49,'Audit Values'!$A$2:$BU$351,2,FALSE)),'Preliminary SO66'!AP48,VLOOKUP($CZ49,'Audit Values'!$A$2:$BU$351,64,FALSE)) -> 165 | AE49: =IF(A49=207, AD49,MAX(AC49,AD49))*'Weighting Factors'!$Q$9 -> 79.9 | AF49: 2.4 | AG49: =IF(ISNA(VLOOKUP($CZ49,'Audit Values'!$A$2:$BW$351,2,FALSE)),'Preliminary SO66'!AG48,VLOOKUP($CZ49,'Audit Values'!$A$2:$BW$351,70,FALSE)) -> 5.6 | AH49: 5.6 | AI49: =IF(ISNA(VLOOKUP($CZ49,'Audit Values'!$A$2:$BU$351,2,FALSE)),'Preliminary SO66'!AQ48,VLOOKUP($CZ49,'Audit Values'!$A$2:$BU$351,65,FALSE)) -> 0 | AJ49: =AI49*'Weighting Factors'!$Q$10 -> 0 | AK49: =IF(ISNA(VLOOKUP($CZ49,'Audit Values'!$A$2:$BU$351,2,FALSE)),'Preliminary SO66'!AR48,VLOOKUP($CZ49,'Audit Values'!$A$2:$BU$351,66,FALSE)) -> 274 | AM49: 265780 | AN49: 316249 | AO49: =MAX(AN49, AM49)/'Weighting Factors'!$Q$5 -> 75.9 | AP49: =CN49/'Weighting Factors'!$Q$5 -> 0 | AQ49: 0 | AR49: =CS49/'Weighting Factors'!$Q$5 -> 0 | AS49: 440921 | AT49: =AS49/'Weighting Factors'!$Q$5 -> 105.9 | AU49: =IF(ISNA(VLOOKUP($CZ49,'Audit Values'!$A$2:$BU$351,2,FALSE)),'Preliminary SO66'!X48,VLOOKUP($CZ49,'Audit Values'!$A$2:$BU$351,47,FALSE)) -> 0 | AV49: 900.5 | AW49: 794.6 | AX49: =IF(ISNA(VLOOKUP($CZ49,'Audit Values'!$A$2:$BU$351,2,FALSE)),'Preliminary SO66'!AA48,VLOOKUP($CZ49,'Audit Values'!$A$2:$BU$351,41,FALSE)) -> 0 | AY49: =IF(ISNA(VLOOKUP($CZ49,'Audit Values'!$A$2:$BU$351,2,FALSE)),'Preliminary SO66'!AB48,VLOOKUP($CZ49,'Audit Values'!$A$2:$BU$351,42,FALSE)) -> 0 | AZ49: 0 | BA49: =SUM(AX49*'Weighting Factors'!$T$10)+('2019 Legal Max'!AY49*'Weighting Factors'!$T$11)+('2019 Legal Max'!AZ49*'Weighting Factors'!$T$12) -> 0 | BB49: 0 | BC49: =IF(ISNA(VLOOKUP($CZ49,'Audit Values'!$A$2:$BU$351,2,FALSE)),"",IF(AND('Weighting Factors'!H49>0,VLOOKUP($CZ49,'Audit Values'!$A$2:$BU$351,51,FALSE)<'Weighting Factors'!H49),'Weighting Factors'!H49,VLOOKUP($CZ49,'Audit Values'!$A$2:$BU$351,50,FALSE))) -> 10 | BD49: =IF(ISNA(VLOOKUP($CZ49,'Audit Values'!$A$2:$BV$351,2,FALSE)),"",VLOOKUP($CZ49,'Audit Values'!$A$2:$BV$351,51,FALSE)) -> A | BE49: =IF('Weighting Factors'!H49="","",IF('Weighting Factors'!J49="Pending","PX","R")) ->  | BF49: =SUM((S49+T49+Y49+AA49+AE49+AH49+AJ49++AO49+AP49+AQ49+AU49+AR49)*'Weighting Factors'!$Q$5)+'2019 Legal Max'!BA49+'2019 Legal Max'!BB49 -> 3309509 | BG49: =SUM((AV49+AR49)*'Weighting Factors'!$Q$5)+BA49+'2019 Legal Max'!BB49 -> 3750583 | BH49: =IF('Weighting Factors'!H49>0,'Weighting Factors'!H49,'Preliminary SO66'!AV48) -> 3905937 | BI49: 3750583 | BK49: ='Weighting Factors'!F49 -> -62670 | BL49: ='Weighting Factors'!E49 -> 0 | BM49: -62670 | BN49: 3687913 | BO49: =SUM((S49+T49+Y49+AA49+AE49+AH49+AJ49++AO49+AP49+AQ49+AR49)*'Weighting Factors'!Q$12)+(MAX(AS49,'Weighting Factors'!B49)) -> 4008675 | BP49: 0.3 | BQ49: 1202603 | BR49: 1251731 | BS49: 1202603 | BT49: 0.3 | BU49: 0 | BV49: FALSE | BW49: 0 | BX49: 0 | BY49: 0 | BZ49: TRUE | CA49: 168.3 | CB49: 0.43798 | CC49: 191 | CD49: 0 | CE49: 309 | CF49: 0.887 | CG49: =IF(CF49<0.06,1,IF(CF49>=18.29,52,MATCH(CF49-0.001,'Weighting Factors'!$Y$5:$Y$156)+1)) -> 31 | CH49: =VLOOKUP(CG49, 'Weighting Factors'!$W$5:$Z$56,4) -> 970 | CI49: =('Weighting Factors'!$Q$5/'Weighting Factors'!$Q$14) -> 1 | CJ49: 265780 | CK49: =CJ49*'Weighting Factors'!$S$7 -> 265780 | CL49: 265780 | CM49: =AM49/'Weighting Factors'!$Q$5 -> 63.8 | CN49: 0 | CO49: 0 | CP49: 0 | CQ49: 0 | CR49: =SUM((AV49*'Weighting Factors'!$Q$5)+'2019 Legal Max'!BA49)*CQ49 -> 0 | CS49: 0 | CT49: 0.3708 | CU49: 0 | CV49: 2.4 | CW49: 900.5 | CX49: ='LOB Transfers'!G48 -> 107513 | CY49: ='LOB Transfers'!J48 -> 0 | CZ49: D0235
A50: 237 | B50: Smith | C50: Smith Center | D50: 369.5 | E50: 0 | F50: 369.5 | G50: 395 | H50: 0 | I50: 395 | J50: 396 | K50: 0 | L50: 396 | M50: =IF(ISNA(VLOOKUP($CZ50,'Audit Values'!$A$2:$BW$363,2,FALSE)),'Preliminary SO66'!C49,VLOOKUP($CZ50,'Audit Values'!$A$2:$BW$363,73,FALSE)) -> 423.3 | N50: =IF(ISNA(VLOOKUP($CZ50,'Audit Values'!$A$2:$BW$363,2,FALSE)),'Preliminary SO66'!F49,VLOOKUP($CZ50,'Audit Values'!$A$2:$BW$363,4,FALSE)) -> 0 | O50: 423.3 | P50: =IF('Military Provision'!J51="YES", MAX('2019 Legal Max'!L50,'2019 Legal Max'!I50,AVERAGE('2019 Legal Max'!F50,'2019 Legal Max'!I50,'2019 Legal Max'!L50)), MAX(L50, I50)) -> 396 | Q50: =IF(ISNA(VLOOKUP($CZ50,'Audit Values'!$A$2:$BU$351,2,FALSE)),'Preliminary SO66'!AL49,VLOOKUP($CZ50,'Audit Values'!$A$2:$BU$3953,58,FALSE)) -> 1.5 | R50: 0 | S50: 397.5 | T50: 179.3 | U50: =IF(ISNA(VLOOKUP($CZ50,'Audit Values'!$A$2:$BW$315,2,FALSE)),'Preliminary SO66'!AM49,VLOOKUP($CZ50,'Audit Values'!$A$2:$BW$315,62,FALSE)) -> 4 | V50: =(U50/6)*'Weighting Factors'!$Q$7 -> 0.3 | W50: =IF(ISNA(VLOOKUP($CZ50,'Audit Values'!$A$2:$BW$351,2,FALSE)),'Preliminary SO66'!AN49,VLOOKUP($CZ50,'Audit Values'!$A$2:$BW$351,61,FALSE)) -> 4 | X50: =W50*'Weighting Factors'!$Q$8 -> 0.7 | Y50: 0.7 | Z50: =IF(ISNA(VLOOKUP($CZ50,'Audit Values'!$A$2:$BW$315,2,FALSE)),'Preliminary SO66'!AO49,VLOOKUP($CZ50,'Audit Values'!$A$2:$BW$315,60,FALSE)) -> 150.5 | AA50: =Z50/6*'Weighting Factors'!$Q$6 -> 12.5 | AB50: =IF(ISNA(VLOOKUP($CZ50,'Audit Values'!$A$2:$BU$351,2,FALSE)),'Preliminary SO66'!AS49,VLOOKUP($CZ50,'Audit Values'!$A$2:$BU$351,63,FALSE)) -> 434 | AC50: 0 | AD50: =IF(ISNA(VLOOKUP($CZ50,'Audit Values'!$A$2:$BU$351,2,FALSE)),'Preliminary SO66'!AP49,VLOOKUP($CZ50,'Audit Values'!$A$2:$BU$351,64,FALSE)) -> 154 | AE50: =IF(A50=207, AD50,MAX(AC50,AD50))*'Weighting Factors'!$Q$9 -> 74.5 | AF50: 0.5 | AG50: =IF(ISNA(VLOOKUP($CZ50,'Audit Values'!$A$2:$BW$351,2,FALSE)),'Preliminary SO66'!AG49,VLOOKUP($CZ50,'Audit Values'!$A$2:$BW$351,70,FALSE)) -> 2.6 | AH50: 2.6 | AI50: =IF(ISNA(VLOOKUP($CZ50,'Audit Values'!$A$2:$BU$351,2,FALSE)),'Preliminary SO66'!AQ49,VLOOKUP($CZ50,'Audit Values'!$A$2:$BU$351,65,FALSE)) -> 0 | AJ50: =AI50*'Weighting Factors'!$Q$10 -> 0 | AK50: =IF(ISNA(VLOOKUP($CZ50,'Audit Values'!$A$2:$BU$351,2,FALSE)),'Preliminary SO66'!AR49,VLOOKUP($CZ50,'Audit Values'!$A$2:$BU$351,66,FALSE)) -> 136 | AM50: 170000 | AN50: 192215 | AO50: =MAX(AN50, AM50)/'Weighting Factors'!$Q$5 -> 46.2 | AP50: =CN50/'Weighting Factors'!$Q$5 -> 0 | AQ50: 0 | AR50: =CS50/'Weighting Factors'!$Q$5 -> 0 | AS50: 511115 | AT50: =AS50/'Weighting Factors'!$Q$5 -> 122.7 | AU50: =IF(ISNA(VLOOKUP($CZ50,'Audit Values'!$A$2:$BU$351,2,FALSE)),'Preliminary SO66'!X49,VLOOKUP($CZ50,'Audit Values'!$A$2:$BU$351,47,FALSE)) -> 0 | AV50: 836 | AW50: 713.3 | AX50: =IF(ISNA(VLOOKUP($CZ50,'Audit Values'!$A$2:$BU$351,2,FALSE)),'Preliminary SO66'!AA49,VLOOKUP($CZ50,'Audit Values'!$A$2:$BU$351,41,FALSE)) -> 0 | AY50: =IF(ISNA(VLOOKUP($CZ50,'Audit Values'!$A$2:$BU$351,2,FALSE)),'Preliminary SO66'!AB49,VLOOKUP($CZ50,'Audit Values'!$A$2:$BU$351,42,FALSE)) -> 0 | AZ50: 0 | BA50: =SUM(AX50*'Weighting Factors'!$T$10)+('2019 Legal Max'!AY50*'Weighting Factors'!$T$11)+('2019 Legal Max'!AZ50*'Weighting Factors'!$T$12) -> 0 | BB50: 0 | BC50: =IF(ISNA(VLOOKUP($CZ50,'Audit Values'!$A$2:$BU$351,2,FALSE)),"",IF(AND('Weighting Factors'!H50>0,VLOOKUP($CZ50,'Audit Values'!$A$2:$BU$351,51,FALSE)<'Weighting Factors'!H50),'Weighting Factors'!H50,VLOOKUP($CZ50,'Audit Values'!$A$2:$BU$351,50,FALSE))) -> 17 | BD50: =IF(ISNA(VLOOKUP($CZ50,'Audit Values'!$A$2:$BV$351,2,FALSE)),"",VLOOKUP($CZ50,'Audit Values'!$A$2:$BV$351,51,FALSE)) -> A | BE50: =IF('Weighting Factors'!H50="","",IF('Weighting Factors'!J50="Pending","PX","R")) ->  | BF50: =SUM((S50+T50+Y50+AA50+AE50+AH50+AJ50++AO50+AP50+AQ50+AU50+AR50)*'Weighting Factors'!$Q$5)+'2019 Legal Max'!BA50+'2019 Legal Max'!BB50 -> 2970895 | BG50: =SUM((AV50+AR50)*'Weighting Factors'!$Q$5)+BA50+'2019 Legal Max'!BB50 -> 3481940 | BH50: =IF('Weighting Factors'!H50>0,'Weighting Factors'!H50,'Preliminary SO66'!AV49) -> 3603558 | BI50: 3481940 | BK50: ='Weighting Factors'!F50 -> -19845 | BL50: ='Weighting Factors'!E50 -> 0 | BM50: -19845 | BN50: 3462095 | BO50: =SUM((S50+T50+Y50+AA50+AE50+AH50+AJ50++AO50+AP50+AQ50+AR50)*'Weighting Factors'!Q$12)+(MAX(AS50,'Weighting Factors'!B50)) -> 3788752 | BP50: 0.33 | BQ50: 1250288 | BR50: 1265864 | BS50: 1250288 | BT50: 0.33 | BU50: 0 | BV50: FALSE | BW50: 0 | BX50: 0 | BY50: 0 | BZ50: TRUE | CA50: 120.6563 | CB50: 0.451061 | CC50: 179.3 | CD50: 0 | CE50: 599 | CF50: 0.227 | CG50: =IF(CF50<0.06,1,IF(CF50>=18.29,52,MATCH(CF50-0.001,'Weighting Factors'!$Y$5:$Y$156)+1)) -> 17 | CH50: =VLOOKUP(CG50, 'Weighting Factors'!$W$5:$Z$56,4) -> 1250 | CI50: =('Weighting Factors'!$Q$5/'Weighting Factors'!$Q$14) -> 1 | CJ50: 170000 | CK50: =CJ50*'Weighting Factors'!$S$7 -> 170000 | CL50: 170000 | CM50: =AM50/'Weighting Factors'!$Q$5 -> 40.8 | CN50: 0 | CO50: 0 | CP50: 0 | CQ50: 0 | CR50: =SUM((AV50*'Weighting Factors'!$Q$5)+'2019 Legal Max'!BA50)*CQ50 -> 0 | CS50: 0 | CT50: 0.3548 | CU50: 0 | CV50: 0.5 | CW50: 836 | CX50: ='LOB Transfers'!G49 -> 111651 | CY50: ='LOB Transfers'!J49 -> 1000 | CZ50: D0237
A51: 239 | B51: Ottawa | C51: North Ottawa County | D51: 599.9 | E51: 0 | F51: 599.9 | G51: 611.2 | H51: 0 | I51: 611.2 | J51: 606 | K51: 0 | L51: 606 | M51: =IF(ISNA(VLOOKUP($CZ51,'Audit Values'!$A$2:$BW$363,2,FALSE)),'Preliminary SO66'!C50,VLOOKUP($CZ51,'Audit Values'!$A$2:$BW$363,73,FALSE)) -> 594.8 | N51: =IF(ISNA(VLOOKUP($CZ51,'Audit Values'!$A$2:$BW$363,2,FALSE)),'Preliminary SO66'!F50,VLOOKUP($CZ51,'Audit Values'!$A$2:$BW$363,4,FALSE)) -> 0 | O51: 594.8 | P51: =IF('Military Provision'!J52="YES", MAX('2019 Legal Max'!L51,'2019 Legal Max'!I51,AVERAGE('2019 Legal Max'!F51,'2019 Legal Max'!I51,'2019 Legal Max'!L51)), MAX(L51, I51)) -> 611.2 | Q51: =IF(ISNA(VLOOKUP($CZ51,'Audit Values'!$A$2:$BU$351,2,FALSE)),'Preliminary SO66'!AL50,VLOOKUP($CZ51,'Audit Values'!$A$2:$BU$3953,58,FALSE)) -> 0 | R51: 0 | S51: 611.2 | T51: 231.3 | U51: =IF(ISNA(VLOOKUP($CZ51,'Audit Values'!$A$2:$BW$315,2,FALSE)),'Preliminary SO66'!AM50,VLOOKUP($CZ51,'Audit Values'!$A$2:$BW$315,62,FALSE)) -> 0 | V51: =(U51/6)*'Weighting Factors'!$Q$7 -> 0 | W51: =IF(ISNA(VLOOKUP($CZ51,'Audit Values'!$A$2:$BW$351,2,FALSE)),'Preliminary SO66'!AN50,VLOOKUP($CZ51,'Audit Values'!$A$2:$BW$351,61,FALSE)) -> 0 | X51: =W51*'Weighting Factors'!$Q$8 -> 0 | Y51: 0 | Z51: =IF(ISNA(VLOOKUP($CZ51,'Audit Values'!$A$2:$BW$315,2,FALSE)),'Preliminary SO66'!AO50,VLOOKUP($CZ51,'Audit Values'!$A$2:$BW$315,60,FALSE)) -> 102.9 | AA51: =Z51/6*'Weighting Factors'!$Q$6 -> 8.6 | AB51: =IF(ISNA(VLOOKUP($CZ51,'Audit Values'!$A$2:$BU$351,2,FALSE)),'Preliminary SO66'!AS50,VLOOKUP($CZ51,'Audit Values'!$A$2:$BU$351,63,FALSE)) -> 599 | AC51: 0 | AD51: =IF(ISNA(VLOOKUP($CZ51,'Audit Values'!$A$2:$BU$351,2,FALSE)),'Preliminary SO66'!AP50,VLOOKUP($CZ51,'Audit Values'!$A$2:$BU$351,64,FALSE)) -> 173 | AE51: =IF(A51=207, AD51,MAX(AC51,AD51))*'Weighting Factors'!$Q$9 -> 83.7 | AF51: 0 | AG51: =IF(ISNA(VLOOKUP($CZ51,'Audit Values'!$A$2:$BW$351,2,FALSE)),'Preliminary SO66'!AG50,VLOOKUP($CZ51,'Audit Values'!$A$2:$BW$351,70,FALSE)) -> 0 | AH51: 0 | AI51: =IF(ISNA(VLOOKUP($CZ51,'Audit Values'!$A$2:$BU$351,2,FALSE)),'Preliminary SO66'!AQ50,VLOOKUP($CZ51,'Audit Values'!$A$2:$BU$351,65,FALSE)) -> 107.7 | AJ51: =AI51*'Weighting Factors'!$Q$10 -> 26.9 | AK51: =IF(ISNA(VLOOKUP($CZ51,'Audit Values'!$A$2:$BU$351,2,FALSE)),'Preliminary SO66'!AR50,VLOOKUP($CZ51,'Audit Values'!$A$2:$BU$351,66,FALSE)) -> 162 | AM51: 186300 | AN51: 234202 | AO51: =MAX(AN51, AM51)/'Weighting Factors'!$Q$5 -> 56.2 | AP51: =CN51/'Weighting Factors'!$Q$5 -> 0 | AQ51: 0 | AR51: =CS51/'Weighting Factors'!$Q$5 -> 0 | AS51: 728916 | AT51: =AS51/'Weighting Factors'!$Q$5 -> 175 | AU51: =IF(ISNA(VLOOKUP($CZ51,'Audit Values'!$A$2:$BU$351,2,FALSE)),'Preliminary SO66'!X50,VLOOKUP($CZ51,'Audit Values'!$A$2:$BU$351,47,FALSE)) -> 0 | AV51: 1192.9 | AW51: 1017.9 | AX51: =IF(ISNA(VLOOKUP($CZ51,'Audit Values'!$A$2:$BU$351,2,FALSE)),'Preliminary SO66'!AA50,VLOOKUP($CZ51,'Audit Values'!$A$2:$BU$351,41,FALSE)) -> 0 | AY51: =IF(ISNA(VLOOKUP($CZ51,'Audit Values'!$A$2:$BU$351,2,FALSE)),'Preliminary SO66'!AB50,VLOOKUP($CZ51,'Audit Values'!$A$2:$BU$351,42,FALSE)) -> 0 | AZ51: 0 | BA51: =SUM(AX51*'Weighting Factors'!$T$10)+('2019 Legal Max'!AY51*'Weighting Factors'!$T$11)+('2019 Legal Max'!AZ51*'Weighting Factors'!$T$12) -> 0 | BB51: 0 | BC51: =IF(ISNA(VLOOKUP($CZ51,'Audit Values'!$A$2:$BU$351,2,FALSE)),"",IF(AND('Weighting Factors'!H51>0,VLOOKUP($CZ51,'Audit Values'!$A$2:$BU$351,51,FALSE)<'Weighting Factors'!H51),'Weighting Factors'!H51,VLOOKUP($CZ51,'Audit Values'!$A$2:$BU$351,50,FALSE))) -> 17 | BD51: =IF(ISNA(VLOOKUP($CZ51,'Audit Values'!$A$2:$BV$351,2,FALSE)),"",VLOOKUP($CZ51,'Audit Values'!$A$2:$BV$351,51,FALSE)) -> A | BE51: =IF('Weighting Factors'!H51="","",IF('Weighting Factors'!J51="Pending","PX","R")) ->  | BF51: =SUM((S51+T51+Y51+AA51+AE51+AH51+AJ51++AO51+AP51+AQ51+AU51+AR51)*'Weighting Factors'!$Q$5)+'2019 Legal Max'!BA51+'2019 Legal Max'!BB51 -> 4239554 | BG51: =SUM((AV51+AR51)*'Weighting Factors'!$Q$5)+BA51+'2019 Legal Max'!BB51 -> 4968429 | BH51: =IF('Weighting Factors'!H51>0,'Weighting Factors'!H51,'Preliminary SO66'!AV50) -> 5038817 | BI51: 4968429 | BK51: ='Weighting Factors'!F51 -> 0 | BL51: ='Weighting Factors'!E51 -> 0 | BM51: 0 | BN51: 4968429 | BO51: =SUM((S51+T51+Y51+AA51+AE51+AH51+AJ51++AO51+AP51+AQ51+AR51)*'Weighting Factors'!Q$12)+(MAX(AS51,'Weighting Factors'!B51)) -> 5299287 | BP51: 0.33 | BQ51: 1748765 | BR51: 1771996 | BS51: 1748765 | BT51: 0.33 | BU51: 0 | BV51: FALSE | BW51: 0 | BX51: 0 | BY51: 0 | BZ51: TRUE | CA51: 385.11 | CB51: 0.378457 | CC51: 231.3 | CD51: 0 | CE51: 418.5 | CF51: 0.387 | CG51: =IF(CF51<0.06,1,IF(CF51>=18.29,52,MATCH(CF51-0.001,'Weighting Factors'!$Y$5:$Y$156)+1)) -> 22 | CH51: =VLOOKUP(CG51, 'Weighting Factors'!$W$5:$Z$56,4) -> 1150 | CI51: =('Weighting Factors'!$Q$5/'Weighting Factors'!$Q$14) -> 1 | CJ51: 186300 | CK51: =CJ51*'Weighting Factors'!$S$7 -> 186300 | CL51: 186300 | CM51: =AM51/'Weighting Factors'!$Q$5 -> 44.7 | CN51: 0 | CO51: 0 | CP51: 0 | CQ51: 0 | CR51: =SUM((AV51*'Weighting Factors'!$Q$5)+'2019 Legal Max'!BA51)*CQ51 -> 0 | CS51: 0 | CT51: 0.2888 | CU51: 0 | CV51: 0 | CW51: 1192.9 | CX51: ='LOB Transfers'!G50 -> 122763 | CY51: ='LOB Transfers'!J50 -> 0 | CZ51: D0239
A52: 240 | B52: Ottawa | C52: Twin Valley | D52: 562.7 | E52: 0 | F52: 562.7 | G52: 579.5 | H52: 0 | I52: 579.5 | J52: 582.6 | K52: 0 | L52: 582.6 | M52: =IF(ISNA(VLOOKUP($CZ52,'Audit Values'!$A$2:$BW$363,2,FALSE)),'Preliminary SO66'!C51,VLOOKUP($CZ52,'Audit Values'!$A$2:$BW$363,73,FALSE)) -> 562 | N52: =IF(ISNA(VLOOKUP($CZ52,'Audit Values'!$A$2:$BW$363,2,FALSE)),'Preliminary SO66'!F51,VLOOKUP($CZ52,'Audit Values'!$A$2:$BW$363,4,FALSE)) -> 0 | O52: 562 | P52: =IF('Military Provision'!J53="YES", MAX('2019 Legal Max'!L52,'2019 Legal Max'!I52,AVERAGE('2019 Legal Max'!F52,'2019 Legal Max'!I52,'2019 Legal Max'!L52)), MAX(L52, I52)) -> 582.6 | Q52: =IF(ISNA(VLOOKUP($CZ52,'Audit Values'!$A$2:$BU$351,2,FALSE)),'Preliminary SO66'!AL51,VLOOKUP($CZ52,'Audit Values'!$A$2:$BU$3953,58,FALSE)) -> 11 | R52: 0 | S52: =P52+Q52 -> 593.6 | T52: 228.2 | U52: =IF(ISNA(VLOOKUP($CZ52,'Audit Values'!$A$2:$BW$315,2,FALSE)),'Preliminary SO66'!AM51,VLOOKUP($CZ52,'Audit Values'!$A$2:$BW$315,62,FALSE)) -> 0 | V52: =(U52/6)*'Weighting Factors'!$Q$7 -> 0 | W52: =IF(ISNA(VLOOKUP($CZ52,'Audit Values'!$A$2:$BW$351,2,FALSE)),'Preliminary SO66'!AN51,VLOOKUP($CZ52,'Audit Values'!$A$2:$BW$351,61,FALSE)) -> 0 | X52: =W52*'Weighting Factors'!$Q$8 -> 0 | Y52: 0 | Z52: =IF(ISNA(VLOOKUP($CZ52,'Audit Values'!$A$2:$BW$315,2,FALSE)),'Preliminary SO66'!AO51,VLOOKUP($CZ52,'Audit Values'!$A$2:$BW$315,60,FALSE)) -> 169 | AA52: =Z52/6*'Weighting Factors'!$Q$6 -> 14.1 | AB52: =IF(ISNA(VLOOKUP($CZ52,'Audit Values'!$A$2:$BU$351,2,FALSE)),'Preliminary SO66'!AS51,VLOOKUP($CZ52,'Audit Values'!$A$2:$BU$351,63,FALSE)) -> 588 | AC52: 0 | AD52: =IF(ISNA(VLOOKUP($CZ52,'Audit Values'!$A$2:$BU$351,2,FALSE)),'Preliminary SO66'!AP51,VLOOKUP($CZ52,'Audit Values'!$A$2:$BU$351,64,FALSE)) -> 228 | AE52: =IF(A52=207, AD52,MAX(AC52,AD52))*'Weighting Factors'!$Q$9 -> 110.4 | AF52: 6 | AG52: =IF(ISNA(VLOOKUP($CZ52,'Audit Values'!$A$2:$BW$351,2,FALSE)),'Preliminary SO66'!AG51,VLOOKUP($CZ52,'Audit Values'!$A$2:$BW$351,70,FALSE)) -> 9.5 | AH52: 9.5 | AI52: =IF(ISNA(VLOOKUP($CZ52,'Audit Values'!$A$2:$BU$351,2,FALSE)),'Preliminary SO66'!AQ51,VLOOKUP($CZ52,'Audit Values'!$A$2:$BU$351,65,FALSE)) -> 0 | AJ52: =AI52*'Weighting Factors'!$Q$10 -> 0 | AK52: =IF(ISNA(VLOOKUP($CZ52,'Audit Values'!$A$2:$BU$351,2,FALSE)),'Preliminary SO66'!AR51,VLOOKUP($CZ52,'Audit Values'!$A$2:$BU$351,66,FALSE)) -> 179 | AM52: 184370 | AN52: 209549 | AO52: =MAX(AN52, AM52)/'Weighting Factors'!$Q$5 -> 50.3 | AP52: =CN52/'Weighting Factors'!$Q$5 -> 0 | AQ52: 0 | AR52: =CS52/'Weighting Factors'!$Q$5 -> 0 | AS52: 606328 | AT52: =AS52/'Weighting Factors'!$Q$5 -> 145.6 | AU52: =IF(ISNA(VLOOKUP($CZ52,'Audit Values'!$A$2:$BU$351,2,FALSE)),'Preliminary SO66'!X51,VLOOKUP($CZ52,'Audit Values'!$A$2:$BU$351,47,FALSE)) -> 0 | AV52: 1151.7 | AW52: 1006.1 | AX52: =IF(ISNA(VLOOKUP($CZ52,'Audit Values'!$A$2:$BU$351,2,FALSE)),'Preliminary SO66'!AA51,VLOOKUP($CZ52,'Audit Values'!$A$2:$BU$351,41,FALSE)) -> 0 | AY52: =IF(ISNA(VLOOKUP($CZ52,'Audit Values'!$A$2:$BU$351,2,FALSE)),'Preliminary SO66'!AB51,VLOOKUP($CZ52,'Audit Values'!$A$2:$BU$351,42,FALSE)) -> 0 | AZ52: 0 | BA52: =SUM(AX52*'Weighting Factors'!$T$10)+('2019 Legal Max'!AY52*'Weighting Factors'!$T$11)+('2019 Legal Max'!AZ52*'Weighting Factors'!$T$12) -> 0 | BB52: 0 | BC52: =IF(ISNA(VLOOKUP($CZ52,'Audit Values'!$A$2:$BU$351,2,FALSE)),"",IF(AND('Weighting Factors'!H52>0,VLOOKUP($CZ52,'Audit Values'!$A$2:$BU$351,51,FALSE)<'Weighting Factors'!H52),'Weighting Factors'!H52,VLOOKUP($CZ52,'Audit Values'!$A$2:$BU$351,50,FALSE))) -> 18 | BD52: =IF(ISNA(VLOOKUP($CZ52,'Audit Values'!$A$2:$BV$351,2,FALSE)),"",VLOOKUP($CZ52,'Audit Values'!$A$2:$BV$351,51,FALSE)) -> A | BE52: =IF('Weighting Factors'!H52="","",IF('Weighting Factors'!J52="Pending","PX","R")) -> R | BF52: =SUM((S52+T52+Y52+AA52+AE52+AH52+AJ52++AO52+AP52+AQ52+AU52+AR52)*'Weighting Factors'!$Q$5)+'2019 Legal Max'!BA52+'2019 Legal Max'!BB52 -> 4190407 | BG52: =SUM((AV52+AR52)*'Weighting Factors'!$Q$5)+BA52+'2019 Legal Max'!BB52 -> 4796831 | BH52: =IF('Weighting Factors'!H52>0,'Weighting Factors'!H52,'Preliminary SO66'!AV51) -> 4847644 | BI52: 4796831 | BK52: ='Weighting Factors'!F52 -> 0 | BL52: ='Weighting Factors'!E52 -> 0 | BM52: 0 | BN52: 4796831 | BO52: =SUM((S52+T52+Y52+AA52+AE52+AH52+AJ52++AO52+AP52+AQ52+AR52)*'Weighting Factors'!Q$12)+(MAX(AS52,'Weighting Factors'!B52)) -> 5123717 | BP52: 0.33 | BQ52: 1690827 | BR52: 1701681 | BS52: 1690827 | BT52: 0.33 | BU52: 0 | BV52: FALSE | BW52: 0 | BX52: 0 | BY52: 0 | BZ52: TRUE | CA52: 363.33 | CB52: 0.384436 | CC52: 228.2 | CD52: 0 | CE52: 269.3 | CF52: 0.665 | CG52: =IF(CF52<0.06,1,IF(CF52>=18.29,52,MATCH(CF52-0.001,'Weighting Factors'!$Y$5:$Y$156)+1)) -> 28 | CH52: =VLOOKUP(CG52, 'Weighting Factors'!$W$5:$Z$56,4) -> 1030 | CI52: =('Weighting Factors'!$Q$5/'Weighting Factors'!$Q$14) -> 1 | CJ52: 184370 | CK52: =CJ52*'Weighting Factors'!$S$7 -> 184370 | CL52: 184370 | CM52: =AM52/'Weighting Factors'!$Q$5 -> 44.3 | CN52: 0 | CO52: 0 | CP52: 0 | CQ52: 0 | CR52: =SUM((AV52*'Weighting Factors'!$Q$5)+'2019 Legal Max'!BA52)*CQ52 -> 0 | CS52: 0 | CT52: 0.3878 | CU52: 0 | CV52: 6 | CW52: 1151.7 | CX52: ='LOB Transfers'!G51 -> 163672 | CY52: ='LOB Transfers'!J51 -> 0 | CZ52: D0240
A53: 241 | B53: Wallace | C53: Wallace County Schools | D53: 172.5 | E53: 0 | F53: 172.5 | G53: 200.5 | H53: 0 | I53: 200.5 | J53: 199.5 | K53: 0 | L53: 199.5 | M53: =IF(ISNA(VLOOKUP($CZ53,'Audit Values'!$A$2:$BW$363,2,FALSE)),'Preliminary SO66'!C52,VLOOKUP($CZ53,'Audit Values'!$A$2:$BW$363,73,FALSE)) -> 198 | N53: =IF(ISNA(VLOOKUP($CZ53,'Audit Values'!$A$2:$BW$363,2,FALSE)),'Preliminary SO66'!F52,VLOOKUP($CZ53,'Audit Values'!$A$2:$BW$363,4,FALSE)) -> 0 | O53: 198 | P53: =IF('Military Provision'!J54="YES", MAX('2019 Legal Max'!L53,'2019 Legal Max'!I53,AVERAGE('2019 Legal Max'!F53,'2019 Legal Max'!I53,'2019 Legal Max'!L53)), MAX(L53, I53)) -> 200.5 | Q53: =IF(ISNA(VLOOKUP($CZ53,'Audit Values'!$A$2:$BU$351,2,FALSE)),'Preliminary SO66'!AL52,VLOOKUP($CZ53,'Audit Values'!$A$2:$BU$3953,58,FALSE)) -> 0 | R53: 0 | S53: 200.5 | T53: 150 | U53: =IF(ISNA(VLOOKUP($CZ53,'Audit Values'!$A$2:$BW$315,2,FALSE)),'Preliminary SO66'!AM52,VLOOKUP($CZ53,'Audit Values'!$A$2:$BW$315,62,FALSE)) -> 0 | V53: =(U53/6)*'Weighting Factors'!$Q$7 -> 0 | W53: =IF(ISNA(VLOOKUP($CZ53,'Audit Values'!$A$2:$BW$351,2,FALSE)),'Preliminary SO66'!AN52,VLOOKUP($CZ53,'Audit Values'!$A$2:$BW$351,61,FALSE)) -> 2 | X53: =W53*'Weighting Factors'!$Q$8 -> 0.4 | Y53: 0.4 | Z53: =IF(ISNA(VLOOKUP($CZ53,'Audit Values'!$A$2:$BW$315,2,FALSE)),'Preliminary SO66'!AO52,VLOOKUP($CZ53,'Audit Values'!$A$2:$BW$315,60,FALSE)) -> 0 | AA53: =Z53/6*'Weighting Factors'!$Q$6 -> 0 | AB53: =IF(ISNA(VLOOKUP($CZ53,'Audit Values'!$A$2:$BU$351,2,FALSE)),'Preliminary SO66'!AS52,VLOOKUP($CZ53,'Audit Values'!$A$2:$BU$351,63,FALSE)) -> 200 | AC53: 0 | AD53: =IF(ISNA(VLOOKUP($CZ53,'Audit Values'!$A$2:$BU$351,2,FALSE)),'Preliminary SO66'!AP52,VLOOKUP($CZ53,'Audit Values'!$A$2:$BU$351,64,FALSE)) -> 50 | AE53: =IF(A53=207, AD53,MAX(AC53,AD53))*'Weighting Factors'!$Q$9 -> 24.2 | AF53: 0 | AG53: =IF(ISNA(VLOOKUP($CZ53,'Audit Values'!$A$2:$BW$351,2,FALSE)),'Preliminary SO66'!AG52,VLOOKUP($CZ53,'Audit Values'!$A$2:$BW$351,70,FALSE)) -> 0 | AH53: 0 | AI53: =IF(ISNA(VLOOKUP($CZ53,'Audit Values'!$A$2:$BU$351,2,FALSE)),'Preliminary SO66'!AQ52,VLOOKUP($CZ53,'Audit Values'!$A$2:$BU$351,65,FALSE)) -> 0 | AJ53: =AI53*'Weighting Factors'!$Q$10 -> 0 | AK53: =IF(ISNA(VLOOKUP($CZ53,'Audit Values'!$A$2:$BU$351,2,FALSE)),'Preliminary SO66'!AR52,VLOOKUP($CZ53,'Audit Values'!$A$2:$BU$351,66,FALSE)) -> 55 | AM53: 82500 | AN53: 107471 | AO53: =MAX(AN53, AM53)/'Weighting Factors'!$Q$5 -> 25.8 | AP53: =CN53/'Weighting Factors'!$Q$5 -> 0 | AQ53: 0 | AR53: =CS53/'Weighting Factors'!$Q$5 -> 0 | AS53: 156703 | AT53: =AS53/'Weighting Factors'!$Q$5 -> 37.6 | AU53: =IF(ISNA(VLOOKUP($CZ53,'Audit Values'!$A$2:$BU$351,2,FALSE)),'Preliminary SO66'!X52,VLOOKUP($CZ53,'Audit Values'!$A$2:$BU$351,47,FALSE)) -> 0 | AV53: 438.5 | AW53: 400.9 | AX53: =IF(ISNA(VLOOKUP($CZ53,'Audit Values'!$A$2:$BU$351,2,FALSE)),'Preliminary SO66'!AA52,VLOOKUP($CZ53,'Audit Values'!$A$2:$BU$351,41,FALSE)) -> 0 | AY53: =IF(ISNA(VLOOKUP($CZ53,'Audit Values'!$A$2:$BU$351,2,FALSE)),'Preliminary SO66'!AB52,VLOOKUP($CZ53,'Audit Values'!$A$2:$BU$351,42,FALSE)) -> 0 | AZ53: 0 | BA53: =SUM(AX53*'Weighting Factors'!$T$10)+('2019 Legal Max'!AY53*'Weighting Factors'!$T$11)+('2019 Legal Max'!AZ53*'Weighting Factors'!$T$12) -> 0 | BB53: 0 | BC53: =IF(ISNA(VLOOKUP($CZ53,'Audit Values'!$A$2:$BU$351,2,FALSE)),"",IF(AND('Weighting Factors'!H53>0,VLOOKUP($CZ53,'Audit Values'!$A$2:$BU$351,51,FALSE)<'Weighting Factors'!H53),'Weighting Factors'!H53,VLOOKUP($CZ53,'Audit Values'!$A$2:$BU$351,50,FALSE))) -> 16 | BD53: =IF(ISNA(VLOOKUP($CZ53,'Audit Values'!$A$2:$BV$351,2,FALSE)),"",VLOOKUP($CZ53,'Audit Values'!$A$2:$BV$351,51,FALSE)) -> A | BE53: =IF('Weighting Factors'!H53="","",IF('Weighting Factors'!J53="Pending","PX","R")) ->  | BF53: =SUM((S53+T53+Y53+AA53+AE53+AH53+AJ53++AO53+AP53+AQ53+AU53+AR53)*'Weighting Factors'!$Q$5)+'2019 Legal Max'!BA53+'2019 Legal Max'!BB53 -> 1669749 | BG53: =SUM((AV53+AR53)*'Weighting Factors'!$Q$5)+BA53+'2019 Legal Max'!BB53 -> 1826353 | BH53: =IF('Weighting Factors'!H53>0,'Weighting Factors'!H53,'Preliminary SO66'!AV52) -> 1917150 | BI53: 1826353 | BK53: ='Weighting Factors'!F53 -> -15913 | BL53: ='Weighting Factors'!E53 -> 0 | BM53: -15913 | BN53: 1810440 | BO53: =SUM((S53+T53+Y53+AA53+AE53+AH53+AJ53++AO53+AP53+AQ53+AR53)*'Weighting Factors'!Q$12)+(MAX(AS53,'Weighting Factors'!B53)) -> 1956815 | BP53: 0.3 | BQ53: 587045 | BR53: 616010 | BS53: 587045 | BT53: 0.3 | BU53: 0 | BV53: TRUE | BW53: 970.328 | BX53: 0.747933 | BY53: 150 | BZ53: FALSE | CA53: 0 | CB53: 0 | CC53: 0 | CD53: 0 | CE53: 681.5 | CF53: 0.081 | CG53: =IF(CF53<0.06,1,IF(CF53>=18.29,52,MATCH(CF53-0.001,'Weighting Factors'!$Y$5:$Y$156)+1)) -> 4 | CH53: =VLOOKUP(CG53, 'Weighting Factors'!$W$5:$Z$56,4) -> 1500 | CI53: =('Weighting Factors'!$Q$5/'Weighting Factors'!$Q$14) -> 1 | CJ53: 82500 | CK53: =CJ53*'Weighting Factors'!$S$7 -> 82500 | CL53: 82500 | CM53: =AM53/'Weighting Factors'!$Q$5 -> 19.8 | CN53: 0 | CO53: 0 | CP53: 0 | CQ53: 0 | CR53: =SUM((AV53*'Weighting Factors'!$Q$5)+'2019 Legal Max'!BA53)*CQ53 -> 0 | CS53: 0 | CT53: 0.25 | CU53: 0 | CV53: 0 | CW53: 438.5 | CX53: ='LOB Transfers'!G52 -> 32405 | CY53: ='LOB Transfers'!J52 -> 528 | CZ53: D0241
A54: 242 | B54: Wallace | C54: Weskan | D54: 92.5 | E54: 0 | F54: 92.5 | G54: 102.5 | H54: 0 | I54: 102.5 | J54: 103.5 | K54: 0 | L54: 103.5 | M54: =IF(ISNA(VLOOKUP($CZ54,'Audit Values'!$A$2:$BW$363,2,FALSE)),'Preliminary SO66'!C53,VLOOKUP($CZ54,'Audit Values'!$A$2:$BW$363,73,FALSE)) -> 99.5 | N54: =IF(ISNA(VLOOKUP($CZ54,'Audit Values'!$A$2:$BW$363,2,FALSE)),'Preliminary SO66'!F53,VLOOKUP($CZ54,'Audit Values'!$A$2:$BW$363,4,FALSE)) -> 0 | O54: 99.5 | P54: =IF('Military Provision'!J55="YES", MAX('2019 Legal Max'!L54,'2019 Legal Max'!I54,AVERAGE('2019 Legal Max'!F54,'2019 Legal Max'!I54,'2019 Legal Max'!L54)), MAX(L54, I54)) -> 103.5 | Q54: =IF(ISNA(VLOOKUP($CZ54,'Audit Values'!$A$2:$BU$351,2,FALSE)),'Preliminary SO66'!AL53,VLOOKUP($CZ54,'Audit Values'!$A$2:$BU$3953,58,FALSE)) -> 0 | R54: 0 | S54: 103.5 | T54: 104 | U54: =IF(ISNA(VLOOKUP($CZ54,'Audit Values'!$A$2:$BW$315,2,FALSE)),'Preliminary SO66'!AM53,VLOOKUP($CZ54,'Audit Values'!$A$2:$BW$315,62,FALSE)) -> 10.6 | V54: =(U54/6)*'Weighting Factors'!$Q$7 -> 0.7 | W54: =IF(ISNA(VLOOKUP($CZ54,'Audit Values'!$A$2:$BW$351,2,FALSE)),'Preliminary SO66'!AN53,VLOOKUP($CZ54,'Audit Values'!$A$2:$BW$351,61,FALSE)) -> 3 | X54: =W54*'Weighting Factors'!$Q$8 -> 0.6 | Y54: 0.7 | Z54: =IF(ISNA(VLOOKUP($CZ54,'Audit Values'!$A$2:$BW$315,2,FALSE)),'Preliminary SO66'!AO53,VLOOKUP($CZ54,'Audit Values'!$A$2:$BW$315,60,FALSE)) -> 21.9 | AA54: =Z54/6*'Weighting Factors'!$Q$6 -> 1.8 | AB54: =IF(ISNA(VLOOKUP($CZ54,'Audit Values'!$A$2:$BU$351,2,FALSE)),'Preliminary SO66'!AS53,VLOOKUP($CZ54,'Audit Values'!$A$2:$BU$351,63,FALSE)) -> 100 | AC54: 0 | AD54: =IF(ISNA(VLOOKUP($CZ54,'Audit Values'!$A$2:$BU$351,2,FALSE)),'Preliminary SO66'!AP53,VLOOKUP($CZ54,'Audit Values'!$A$2:$BU$351,64,FALSE)) -> 25 | AE54: =IF(A54=207, AD54,MAX(AC54,AD54))*'Weighting Factors'!$Q$9 -> 12.1 | AF54: 0 | AG54: =IF(ISNA(VLOOKUP($CZ54,'Audit Values'!$A$2:$BW$351,2,FALSE)),'Preliminary SO66'!AG53,VLOOKUP($CZ54,'Audit Values'!$A$2:$BW$351,70,FALSE)) -> 0 | AH54: 0 | AI54: =IF(ISNA(VLOOKUP($CZ54,'Audit Values'!$A$2:$BU$351,2,FALSE)),'Preliminary SO66'!AQ53,VLOOKUP($CZ54,'Audit Values'!$A$2:$BU$351,65,FALSE)) -> 0 | AJ54: =AI54*'Weighting Factors'!$Q$10 -> 0 | AK54: =IF(ISNA(VLOOKUP($CZ54,'Audit Values'!$A$2:$BU$351,2,FALSE)),'Preliminary SO66'!AR53,VLOOKUP($CZ54,'Audit Values'!$A$2:$BU$351,66,FALSE)) -> 27 | AM54: 38610 | AN54: 53158 | AO54: =MAX(AN54, AM54)/'Weighting Factors'!$Q$5 -> 12.8 | AP54: =CN54/'Weighting Factors'!$Q$5 -> 0 | AQ54: 0 | AR54: =CS54/'Weighting Factors'!$Q$5 -> 0 | AS54: 115291 | AT54: =AS54/'Weighting Factors'!$Q$5 -> 27.7 | AU54: =IF(ISNA(VLOOKUP($CZ54,'Audit Values'!$A$2:$BU$351,2,FALSE)),'Preliminary SO66'!X53,VLOOKUP($CZ54,'Audit Values'!$A$2:$BU$351,47,FALSE)) -> 0 | AV54: 262.6 | AW54: 234.9 | AX54: =IF(ISNA(VLOOKUP($CZ54,'Audit Values'!$A$2:$BU$351,2,FALSE)),'Preliminary SO66'!AA53,VLOOKUP($CZ54,'Audit Values'!$A$2:$BU$351,41,FALSE)) -> 0 | AY54: =IF(ISNA(VLOOKUP($CZ54,'Audit Values'!$A$2:$BU$351,2,FALSE)),'Preliminary SO66'!AB53,VLOOKUP($CZ54,'Audit Values'!$A$2:$BU$351,42,FALSE)) -> 0 | AZ54: 0 | BA54: =SUM(AX54*'Weighting Factors'!$T$10)+('2019 Legal Max'!AY54*'Weighting Factors'!$T$11)+('2019 Legal Max'!AZ54*'Weighting Factors'!$T$12) -> 0 | BB54: 0 | BC54: =IF(ISNA(VLOOKUP($CZ54,'Audit Values'!$A$2:$BU$351,2,FALSE)),"",IF(AND('Weighting Factors'!H54>0,VLOOKUP($CZ54,'Audit Values'!$A$2:$BU$351,51,FALSE)<'Weighting Factors'!H54),'Weighting Factors'!H54,VLOOKUP($CZ54,'Audit Values'!$A$2:$BU$351,50,FALSE))) -> 16 | BD54: =IF(ISNA(VLOOKUP($CZ54,'Audit Values'!$A$2:$BV$351,2,FALSE)),"",VLOOKUP($CZ54,'Audit Values'!$A$2:$BV$351,51,FALSE)) -> A | BE54: =IF('Weighting Factors'!H54="","",IF('Weighting Factors'!J54="Pending","PX","R")) ->  | BF54: =SUM((S54+T54+Y54+AA54+AE54+AH54+AJ54++AO54+AP54+AQ54+AU54+AR54)*'Weighting Factors'!$Q$5)+'2019 Legal Max'!BA54+'2019 Legal Max'!BB54 -> 978359 | BG54: =SUM((AV54+AR54)*'Weighting Factors'!$Q$5)+BA54+'2019 Legal Max'!BB54 -> 1093729 | BH54: =IF('Weighting Factors'!H54>0,'Weighting Factors'!H54,'Preliminary SO66'!AV53) -> 1135796 | BI54: 1093729 | BK54: ='Weighting Factors'!F54 -> -17394 | BL54: ='Weighting Factors'!E54 -> 0 | BM54: -17394 | BN54: 1076335 | BO54: =SUM((S54+T54+Y54+AA54+AE54+AH54+AJ54++AO54+AP54+AQ54+AR54)*'Weighting Factors'!Q$12)+(MAX(AS54,'Weighting Factors'!B54)) -> 1169992 | BP54: 0.33 | BQ54: 386097 | BR54: 400482 | BS54: 386097 | BT54: 0.33 | BU54: 0 | BV54: TRUE | BW54: 33.793 | BX54: 1.005054 | BY54: 104 | BZ54: FALSE | CA54: 0 | CB54: 0 | CC54: 0 | CD54: 0 | CE54: 243 | CF54: 0.111 | CG54: =IF(CF54<0.06,1,IF(CF54>=18.29,52,MATCH(CF54-0.001,'Weighting Factors'!$Y$5:$Y$156)+1)) -> 7 | CH54: =VLOOKUP(CG54, 'Weighting Factors'!$W$5:$Z$56,4) -> 1430 | CI54: =('Weighting Factors'!$Q$5/'Weighting Factors'!$Q$14) -> 1 | CJ54: 38610 | CK54: =CJ54*'Weighting Factors'!$S$7 -> 38610 | CL54: 38610 | CM54: =AM54/'Weighting Factors'!$Q$5 -> 9.3 | CN54: 0 | CO54: 0 | CP54: 0 | CQ54: 0 | CR54: =SUM((AV54*'Weighting Factors'!$Q$5)+'2019 Legal Max'!BA54)*CQ54 -> 0 | CS54: 0 | CT54: 0.25 | CU54: 0 | CV54: 0 | CW54: 262.6 | CX54: ='LOB Transfers'!G53 -> 17799 | CY54: ='LOB Transfers'!J53 -> 1042 | CZ54: D0242
A55: 243 | B55: Coffey | C55: Lebo-Waverly | D55: 414.7 | E55: 0 | F55: 414.7 | G55: 423 | H55: 0 | I55: 423 | J55: 415.5 | K55: 0 | L55: 415.5 | M55: =IF(ISNA(VLOOKUP($CZ55,'Audit Values'!$A$2:$BW$363,2,FALSE)),'Preliminary SO66'!C54,VLOOKUP($CZ55,'Audit Values'!$A$2:$BW$363,73,FALSE)) -> 423 | N55: =IF(ISNA(VLOOKUP($CZ55,'Audit Values'!$A$2:$BW$363,2,FALSE)),'Preliminary SO66'!F54,VLOOKUP($CZ55,'Audit Values'!$A$2:$BW$363,4,FALSE)) -> 0 | O55: 423 | P55: =IF('Military Provision'!J56="YES", MAX('2019 Legal Max'!L55,'2019 Legal Max'!I55,AVERAGE('2019 Legal Max'!F55,'2019 Legal Max'!I55,'2019 Legal Max'!L55)), MAX(L55, I55)) -> 423 | Q55: =IF(ISNA(VLOOKUP($CZ55,'Audit Values'!$A$2:$BU$351,2,FALSE)),'Preliminary SO66'!AL54,VLOOKUP($CZ55,'Audit Values'!$A$2:$BU$3953,58,FALSE)) -> 5 | R55: 0 | S55: 428 | T55: 188.6 | U55: =IF(ISNA(VLOOKUP($CZ55,'Audit Values'!$A$2:$BW$315,2,FALSE)),'Preliminary SO66'!AM54,VLOOKUP($CZ55,'Audit Values'!$A$2:$BW$315,62,FALSE)) -> 0 | V55: =(U55/6)*'Weighting Factors'!$Q$7 -> 0 | W55: =IF(ISNA(VLOOKUP($CZ55,'Audit Values'!$A$2:$BW$351,2,FALSE)),'Preliminary SO66'!AN54,VLOOKUP($CZ55,'Audit Values'!$A$2:$BW$351,61,FALSE)) -> 1 | X55: =W55*'Weighting Factors'!$Q$8 -> 0.2 | Y55: 0.2 | Z55: =IF(ISNA(VLOOKUP($CZ55,'Audit Values'!$A$2:$BW$315,2,FALSE)),'Preliminary SO66'!AO54,VLOOKUP($CZ55,'Audit Values'!$A$2:$BW$315,60,FALSE)) -> 141.7 | AA55: =Z55/6*'Weighting Factors'!$Q$6 -> 11.8 | AB55: =IF(ISNA(VLOOKUP($CZ55,'Audit Values'!$A$2:$BU$351,2,FALSE)),'Preliminary SO66'!AS54,VLOOKUP($CZ55,'Audit Values'!$A$2:$BU$351,63,FALSE)) -> 438 | AC55: 0 | AD55: =IF(ISNA(VLOOKUP($CZ55,'Audit Values'!$A$2:$BU$351,2,FALSE)),'Preliminary SO66'!AP54,VLOOKUP($CZ55,'Audit Values'!$A$2:$BU$351,64,FALSE)) -> 115 | AE55: =IF(A55=207, AD55,MAX(AC55,AD55))*'Weighting Factors'!$Q$9 -> 55.7 | AF55: 0 | AG55: =IF(ISNA(VLOOKUP($CZ55,'Audit Values'!$A$2:$BW$351,2,FALSE)),'Preliminary SO66'!AG54,VLOOKUP($CZ55,'Audit Values'!$A$2:$BW$351,70,FALSE)) -> 0 | AH55: 0 | AI55: =IF(ISNA(VLOOKUP($CZ55,'Audit Values'!$A$2:$BU$351,2,FALSE)),'Preliminary SO66'!AQ54,VLOOKUP($CZ55,'Audit Values'!$A$2:$BU$351,65,FALSE)) -> 0 | AJ55: =AI55*'Weighting Factors'!$Q$10 -> 0 | AK55: =IF(ISNA(VLOOKUP($CZ55,'Audit Values'!$A$2:$BU$351,2,FALSE)),'Preliminary SO66'!AR54,VLOOKUP($CZ55,'Audit Values'!$A$2:$BU$351,66,FALSE)) -> 97.5 | AM55: 110175 | AN55: 146376 | AO55: =MAX(AN55, AM55)/'Weighting Factors'!$Q$5 -> 35.1 | AP55: =CN55/'Weighting Factors'!$Q$5 -> 0 | AQ55: 0 | AR55: =CS55/'Weighting Factors'!$Q$5 -> 0 | AS55: 531150 | AT55: =AS55/'Weighting Factors'!$Q$5 -> 127.5 | AU55: =IF(ISNA(VLOOKUP($CZ55,'Audit Values'!$A$2:$BU$351,2,FALSE)),'Preliminary SO66'!X54,VLOOKUP($CZ55,'Audit Values'!$A$2:$BU$351,47,FALSE)) -> 0 | AV55: 846.9 | AW55: 719.4 | AX55: =IF(ISNA(VLOOKUP($CZ55,'Audit Values'!$A$2:$BU$351,2,FALSE)),'Preliminary SO66'!AA54,VLOOKUP($CZ55,'Audit Values'!$A$2:$BU$351,41,FALSE)) -> 0 | AY55: =IF(ISNA(VLOOKUP($CZ55,'Audit Values'!$A$2:$BU$351,2,FALSE)),'Preliminary SO66'!AB54,VLOOKUP($CZ55,'Audit Values'!$A$2:$BU$351,42,FALSE)) -> 0 | AZ55: 0 | BA55: =SUM(AX55*'Weighting Factors'!$T$10)+('2019 Legal Max'!AY55*'Weighting Factors'!$T$11)+('2019 Legal Max'!AZ55*'Weighting Factors'!$T$12) -> 0 | BB55: 0 | BC55: =IF(ISNA(VLOOKUP($CZ55,'Audit Values'!$A$2:$BU$351,2,FALSE)),"",IF(AND('Weighting Factors'!H55>0,VLOOKUP($CZ55,'Audit Values'!$A$2:$BU$351,51,FALSE)<'Weighting Factors'!H55),'Weighting Factors'!H55,VLOOKUP($CZ55,'Audit Values'!$A$2:$BU$351,50,FALSE))) -> 16 | BD55: =IF(ISNA(VLOOKUP($CZ55,'Audit Values'!$A$2:$BV$351,2,FALSE)),"",VLOOKUP($CZ55,'Audit Values'!$A$2:$BV$351,51,FALSE)) -> A | BE55: =IF('Weighting Factors'!H55="","",IF('Weighting Factors'!J55="Pending","PX","R")) ->  | BF55: =SUM((S55+T55+Y55+AA55+AE55+AH55+AJ55++AO55+AP55+AQ55+AU55+AR55)*'Weighting Factors'!$Q$5)+'2019 Legal Max'!BA55+'2019 Legal Max'!BB55 -> 2996301 | BG55: =SUM((AV55+AR55)*'Weighting Factors'!$Q$5)+BA55+'2019 Legal Max'!BB55 -> 3527339 | BH55: =IF('Weighting Factors'!H55>0,'Weighting Factors'!H55,'Preliminary SO66'!AV54) -> 3586065 | BI55: 3527339 | BK55: ='Weighting Factors'!F55 -> 0 | BL55: ='Weighting Factors'!E55 -> 0 | BM55: 0 | BN55: 3527339 | BO55: =SUM((S55+T55+Y55+AA55+AE55+AH55+AJ55++AO55+AP55+AQ55+AR55)*'Weighting Factors'!Q$12)+(MAX(AS55,'Weighting Factors'!B55)) -> 3761256 | BP55: 0.3 | BQ55: 1128377 | BR55: 1142009 | BS55: 1128377 | BT55: 0.3 | BU55: 0 | BV55: FALSE | BW55: 0 | BX55: 0 | BY55: 0 | BZ55: TRUE | CA55: 158.4 | CB55: 0.440698 | CC55: 188.6 | CD55: 0 | CE55: 248 | CF55: 0.393 | CG55: =IF(CF55<0.06,1,IF(CF55>=18.29,52,MATCH(CF55-0.001,'Weighting Factors'!$Y$5:$Y$156)+1)) -> 23 | CH55: =VLOOKUP(CG55, 'Weighting Factors'!$W$5:$Z$56,4) -> 1130 | CI55: =('Weighting Factors'!$Q$5/'Weighting Factors'!$Q$14) -> 1 | CJ55: 110175 | CK55: =CJ55*'Weighting Factors'!$S$7 -> 110175 | CL55: 110175 | CM55: =AM55/'Weighting Factors'!$Q$5 -> 26.5 | CN55: 0 | CO55: 0 | CP55: 0 | CQ55: 0 | CR55: =SUM((AV55*'Weighting Factors'!$Q$5)+'2019 Legal Max'!BA55)*CQ55 -> 0 | CS55: 0 | CT55: 0.2626 | CU55: 0 | CV55: 0 | CW55: 846.9 | CX55: ='LOB Transfers'!G54 -> 74699 | CY55: ='LOB Transfers'!J54 -> 226 | CZ55: D0243
A56: 244 | B56: Coffey | C56: Burlington | D56: 815.5 | E56: 0 | F56: 815.5 | G56: 847.5 | H56: 0 | I56: 847.5 | J56: 846 | K56: 0 | L56: 846 | M56: =IF(ISNA(VLOOKUP($CZ56,'Audit Values'!$A$2:$BW$363,2,FALSE)),'Preliminary SO66'!C55,VLOOKUP($CZ56,'Audit Values'!$A$2:$BW$363,73,FALSE)) -> 815 | N56: =IF(ISNA(VLOOKUP($CZ56,'Audit Values'!$A$2:$BW$363,2,FALSE)),'Preliminary SO66'!F55,VLOOKUP($CZ56,'Audit Values'!$A$2:$BW$363,4,FALSE)) -> 0 | O56: 815 | P56: =IF('Military Provision'!J57="YES", MAX('2019 Legal Max'!L56,'2019 Legal Max'!I56,AVERAGE('2019 Legal Max'!F56,'2019 Legal Max'!I56,'2019 Legal Max'!L56)), MAX(L56, I56)) -> 847.5 | Q56: =IF(ISNA(VLOOKUP($CZ56,'Audit Values'!$A$2:$BU$351,2,FALSE)),'Preliminary SO66'!AL55,VLOOKUP($CZ56,'Audit Values'!$A$2:$BU$3953,58,FALSE)) -> 5.5 | R56: 0 | S56: 853 | T56: 252.7 | U56: =IF(ISNA(VLOOKUP($CZ56,'Audit Values'!$A$2:$BW$315,2,FALSE)),'Preliminary SO66'!AM55,VLOOKUP($CZ56,'Audit Values'!$A$2:$BW$315,62,FALSE)) -> 1.5 | V56: =(U56/6)*'Weighting Factors'!$Q$7 -> 0.1 | W56: =IF(ISNA(VLOOKUP($CZ56,'Audit Values'!$A$2:$BW$351,2,FALSE)),'Preliminary SO66'!AN55,VLOOKUP($CZ56,'Audit Values'!$A$2:$BW$351,61,FALSE)) -> 5 | X56: =W56*'Weighting Factors'!$Q$8 -> 0.9 | Y56: 0.9 | Z56: =IF(ISNA(VLOOKUP($CZ56,'Audit Values'!$A$2:$BW$315,2,FALSE)),'Preliminary SO66'!AO55,VLOOKUP($CZ56,'Audit Values'!$A$2:$BW$315,60,FALSE)) -> 608.5 | AA56: =Z56/6*'Weighting Factors'!$Q$6 -> 50.7 | AB56: =IF(ISNA(VLOOKUP($CZ56,'Audit Values'!$A$2:$BU$351,2,FALSE)),'Preliminary SO66'!AS55,VLOOKUP($CZ56,'Audit Values'!$A$2:$BU$351,63,FALSE)) -> 833 | AC56: 0 | AD56: =IF(ISNA(VLOOKUP($CZ56,'Audit Values'!$A$2:$BU$351,2,FALSE)),'Preliminary SO66'!AP55,VLOOKUP($CZ56,'Audit Values'!$A$2:$BU$351,64,FALSE)) -> 258 | AE56: =IF(A56=207, AD56,MAX(AC56,AD56))*'Weighting Factors'!$Q$9 -> 124.9 | AF56: 0 | AG56: =IF(ISNA(VLOOKUP($CZ56,'Audit Values'!$A$2:$BW$351,2,FALSE)),'Preliminary SO66'!AG55,VLOOKUP($CZ56,'Audit Values'!$A$2:$BW$351,70,FALSE)) -> 0.6 | AH56: 0.6 | AI56: =IF(ISNA(VLOOKUP($CZ56,'Audit Values'!$A$2:$BU$351,2,FALSE)),'Preliminary SO66'!AQ55,VLOOKUP($CZ56,'Audit Values'!$A$2:$BU$351,65,FALSE)) -> 0 | AJ56: =AI56*'Weighting Factors'!$Q$10 -> 0 | AK56: =IF(ISNA(VLOOKUP($CZ56,'Audit Values'!$A$2:$BU$351,2,FALSE)),'Preliminary SO66'!AR55,VLOOKUP($CZ56,'Audit Values'!$A$2:$BU$351,66,FALSE)) -> 229 | AM56: 203810 | AN56: 224186 | AO56: =MAX(AN56, AM56)/'Weighting Factors'!$Q$5 -> 53.8 | AP56: =CN56/'Weighting Factors'!$Q$5 -> 0 | AQ56: 0 | AR56: =CS56/'Weighting Factors'!$Q$5 -> 0 | AS56: 1445387 | AT56: =AS56/'Weighting Factors'!$Q$5 -> 347 | AU56: =IF(ISNA(VLOOKUP($CZ56,'Audit Values'!$A$2:$BU$351,2,FALSE)),'Preliminary SO66'!X55,VLOOKUP($CZ56,'Audit Values'!$A$2:$BU$351,47,FALSE)) -> 0 | AV56: 1683.6 | AW56: 1336.6 | AX56: =IF(ISNA(VLOOKUP($CZ56,'Audit Values'!$A$2:$BU$351,2,FALSE)),'Preliminary SO66'!AA55,VLOOKUP($CZ56,'Audit Values'!$A$2:$BU$351,41,FALSE)) -> 0 | AY56: =IF(ISNA(VLOOKUP($CZ56,'Audit Values'!$A$2:$BU$351,2,FALSE)),'Preliminary SO66'!AB55,VLOOKUP($CZ56,'Audit Values'!$A$2:$BU$351,42,FALSE)) -> 0 | AZ56: 0 | BA56: =SUM(AX56*'Weighting Factors'!$T$10)+('2019 Legal Max'!AY56*'Weighting Factors'!$T$11)+('2019 Legal Max'!AZ56*'Weighting Factors'!$T$12) -> 0 | BB56: 0 | BC56: =IF(ISNA(VLOOKUP($CZ56,'Audit Values'!$A$2:$BU$351,2,FALSE)),"",IF(AND('Weighting Factors'!H56>0,VLOOKUP($CZ56,'Audit Values'!$A$2:$BU$351,51,FALSE)<'Weighting Factors'!H56),'Weighting Factors'!H56,VLOOKUP($CZ56,'Audit Values'!$A$2:$BU$351,50,FALSE))) -> 15 | BD56: =IF(ISNA(VLOOKUP($CZ56,'Audit Values'!$A$2:$BV$351,2,FALSE)),"",VLOOKUP($CZ56,'Audit Values'!$A$2:$BV$351,51,FALSE)) -> A | BE56: =IF('Weighting Factors'!H56="","",IF('Weighting Factors'!J56="Pending","PX","R")) ->  | BF56: =SUM((S56+T56+Y56+AA56+AE56+AH56+AJ56++AO56+AP56+AQ56+AU56+AR56)*'Weighting Factors'!$Q$5)+'2019 Legal Max'!BA56+'2019 Legal Max'!BB56 -> 5566939 | BG56: =SUM((AV56+AR56)*'Weighting Factors'!$Q$5)+BA56+'2019 Legal Max'!BB56 -> 7012194 | BH56: =IF('Weighting Factors'!H56>0,'Weighting Factors'!H56,'Preliminary SO66'!AV55) -> 7205034 | BI56: 7012194 | BK56: ='Weighting Factors'!F56 -> 0 | BL56: ='Weighting Factors'!E56 -> 0 | BM56: 0 | BN56: 7012194 | BO56: =SUM((S56+T56+Y56+AA56+AE56+AH56+AJ56++AO56+AP56+AQ56+AR56)*'Weighting Factors'!Q$12)+(MAX(AS56,'Weighting Factors'!B56)) -> 7446721 | BP56: 0.3 | BQ56: 2234016 | BR56: 2292410 | BS56: 2234016 | BT56: 0.3 | BU56: 0 | BV56: FALSE | BW56: 0 | BX56: 0 | BY56: 0 | BZ56: TRUE | CA56: 684.3375 | CB56: 0.296305 | CC56: 252.7 | CD56: 0 | CE56: 147 | CF56: 1.558 | CG56: =IF(CF56<0.06,1,IF(CF56>=18.29,52,MATCH(CF56-0.001,'Weighting Factors'!$Y$5:$Y$156)+1)) -> 35 | CH56: =VLOOKUP(CG56, 'Weighting Factors'!$W$5:$Z$56,4) -> 890 | CI56: =('Weighting Factors'!$Q$5/'Weighting Factors'!$Q$14) -> 1 | CJ56: 203810 | CK56: =CJ56*'Weighting Factors'!$S$7 -> 203810 | CL56: 203810 | CM56: =AM56/'Weighting Factors'!$Q$5 -> 48.9 | CN56: 0 | CO56: 0 | CP56: 0 | CQ56: 0 | CR56: =SUM((AV56*'Weighting Factors'!$Q$5)+'2019 Legal Max'!BA56)*CQ56 -> 0 | CS56: 0 | CT56: 0.3097 | CU56: 0 | CV56: 0 | CW56: 1683.6 | CX56: ='LOB Transfers'!G55 -> 166211 | CY56: ='LOB Transfers'!J55 -> 1117 | CZ56: D0244
A57: 245 | B57: Coffey | C57: LeRoy-Gridley | D57: 206.5 | E57: 0 | F57: 206.5 | G57: 200.5 | H57: 0 | I57: 200.5 | J57: 192 | K57: 0 | L57: 192 | M57: =IF(ISNA(VLOOKUP($CZ57,'Audit Values'!$A$2:$BW$363,2,FALSE)),'Preliminary SO66'!C56,VLOOKUP($CZ57,'Audit Values'!$A$2:$BW$363,73,FALSE)) -> 202 | N57: =IF(ISNA(VLOOKUP($CZ57,'Audit Values'!$A$2:$BW$363,2,FALSE)),'Preliminary SO66'!F56,VLOOKUP($CZ57,'Audit Values'!$A$2:$BW$363,4,FALSE)) -> 0 | O57: 202 | P57: =IF('Military Provision'!J58="YES", MAX('2019 Legal Max'!L57,'2019 Legal Max'!I57,AVERAGE('2019 Legal Max'!F57,'2019 Legal Max'!I57,'2019 Legal Max'!L57)), MAX(L57, I57)) -> 200.5 | Q57: =IF(ISNA(VLOOKUP($CZ57,'Audit Values'!$A$2:$BU$351,2,FALSE)),'Preliminary SO66'!AL56,VLOOKUP($CZ57,'Audit Values'!$A$2:$BU$3953,58,FALSE)) -> 0.5 | R57: 0 | S57: 201 | T57: 150.1 | U57: =IF(ISNA(VLOOKUP($CZ57,'Audit Values'!$A$2:$BW$315,2,FALSE)),'Preliminary SO66'!AM56,VLOOKUP($CZ57,'Audit Values'!$A$2:$BW$315,62,FALSE)) -> 0 | V57: =(U57/6)*'Weighting Factors'!$Q$7 -> 0 | W57: =IF(ISNA(VLOOKUP($CZ57,'Audit Values'!$A$2:$BW$351,2,FALSE)),'Preliminary SO66'!AN56,VLOOKUP($CZ57,'Audit Values'!$A$2:$BW$351,61,FALSE)) -> 0 | X57: =W57*'Weighting Factors'!$Q$8 -> 0 | Y57: 0 | Z57: =IF(ISNA(VLOOKUP($CZ57,'Audit Values'!$A$2:$BW$315,2,FALSE)),'Preliminary SO66'!AO56,VLOOKUP($CZ57,'Audit Values'!$A$2:$BW$315,60,FALSE)) -> 61.6 | AA57: =Z57/6*'Weighting Factors'!$Q$6 -> 5.1 | AB57: =IF(ISNA(VLOOKUP($CZ57,'Audit Values'!$A$2:$BU$351,2,FALSE)),'Preliminary SO66'!AS56,VLOOKUP($CZ57,'Audit Values'!$A$2:$BU$351,63,FALSE)) -> 205 | AC57: 0 | AD57: =IF(ISNA(VLOOKUP($CZ57,'Audit Values'!$A$2:$BU$351,2,FALSE)),'Preliminary SO66'!AP56,VLOOKUP($CZ57,'Audit Values'!$A$2:$BU$351,64,FALSE)) -> 72 | AE57: =IF(A57=207, AD57,MAX(AC57,AD57))*'Weighting Factors'!$Q$9 -> 34.8 | AF57: 0.1 | AG57: =IF(ISNA(VLOOKUP($CZ57,'Audit Values'!$A$2:$BW$351,2,FALSE)),'Preliminary SO66'!AG56,VLOOKUP($CZ57,'Audit Values'!$A$2:$BW$351,70,FALSE)) -> 1.7 | AH57: 1.7 | AI57: =IF(ISNA(VLOOKUP($CZ57,'Audit Values'!$A$2:$BU$351,2,FALSE)),'Preliminary SO66'!AQ56,VLOOKUP($CZ57,'Audit Values'!$A$2:$BU$351,65,FALSE)) -> 0 | AJ57: =AI57*'Weighting Factors'!$Q$10 -> 0 | AK57: =IF(ISNA(VLOOKUP($CZ57,'Audit Values'!$A$2:$BU$351,2,FALSE)),'Preliminary SO66'!AR56,VLOOKUP($CZ57,'Audit Values'!$A$2:$BU$351,66,FALSE)) -> 102 | AM57: 111180 | AN57: 132509 | AO57: =MAX(AN57, AM57)/'Weighting Factors'!$Q$5 -> 31.8 | AP57: =CN57/'Weighting Factors'!$Q$5 -> 0 | AQ57: 0 | AR57: =CS57/'Weighting Factors'!$Q$5 -> 0 | AS57: 227591 | AT57: =AS57/'Weighting Factors'!$Q$5 -> 54.6 | AU57: =IF(ISNA(VLOOKUP($CZ57,'Audit Values'!$A$2:$BU$351,2,FALSE)),'Preliminary SO66'!X56,VLOOKUP($CZ57,'Audit Values'!$A$2:$BU$351,47,FALSE)) -> 0 | AV57: 479.1 | AW57: 424.5 | AX57: =IF(ISNA(VLOOKUP($CZ57,'Audit Values'!$A$2:$BU$351,2,FALSE)),'Preliminary SO66'!AA56,VLOOKUP($CZ57,'Audit Values'!$A$2:$BU$351,41,FALSE)) -> 0 | AY57: =IF(ISNA(VLOOKUP($CZ57,'Audit Values'!$A$2:$BU$351,2,FALSE)),'Preliminary SO66'!AB56,VLOOKUP($CZ57,'Audit Values'!$A$2:$BU$351,42,FALSE)) -> 0 | AZ57: 0 | BA57: =SUM(AX57*'Weighting Factors'!$T$10)+('2019 Legal Max'!AY57*'Weighting Factors'!$T$11)+('2019 Legal Max'!AZ57*'Weighting Factors'!$T$12) -> 0 | BB57: 0 | BC57: =IF(ISNA(VLOOKUP($CZ57,'Audit Values'!$A$2:$BU$351,2,FALSE)),"",IF(AND('Weighting Factors'!H57>0,VLOOKUP($CZ57,'Audit Values'!$A$2:$BU$351,51,FALSE)<'Weighting Factors'!H57),'Weighting Factors'!H57,VLOOKUP($CZ57,'Audit Values'!$A$2:$BU$351,50,FALSE))) -> 16 | BD57: =IF(ISNA(VLOOKUP($CZ57,'Audit Values'!$A$2:$BV$351,2,FALSE)),"",VLOOKUP($CZ57,'Audit Values'!$A$2:$BV$351,51,FALSE)) -> A | BE57: =IF('Weighting Factors'!H57="","",IF('Weighting Factors'!J57="Pending","PX","R")) ->  | BF57: =SUM((S57+T57+Y57+AA57+AE57+AH57+AJ57++AO57+AP57+AQ57+AU57+AR57)*'Weighting Factors'!$Q$5)+'2019 Legal Max'!BA57+'2019 Legal Max'!BB57 -> 1768043 | BG57: =SUM((AV57+AR57)*'Weighting Factors'!$Q$5)+BA57+'2019 Legal Max'!BB57 -> 1995452 | BH57: =IF('Weighting Factors'!H57>0,'Weighting Factors'!H57,'Preliminary SO66'!AV56) -> 2032937 | BI57: 1995452 | BK57: ='Weighting Factors'!F57 -> 0 | BL57: ='Weighting Factors'!E57 -> 0 | BM57: 0 | BN57: 1995452 | BO57: =SUM((S57+T57+Y57+AA57+AE57+AH57+AJ57++AO57+AP57+AQ57+AR57)*'Weighting Factors'!Q$12)+(MAX(AS57,'Weighting Factors'!B57)) -> 2206556 | BP57: 0.3 | BQ57: 661967 | BR57: 663179 | BS57: 661967 | BT57: 0.3 | BU57: 0 | BV57: TRUE | BW57: 975.155 | BX57: 0.746608 | BY57: 150.1 | BZ57: FALSE | CA57: 0 | CB57: 0 | CC57: 0 | CD57: 0 | CE57: 207 | CF57: 0.493 | CG57: =IF(CF57<0.06,1,IF(CF57>=18.29,52,MATCH(CF57-0.001,'Weighting Factors'!$Y$5:$Y$156)+1)) -> 25 | CH57: =VLOOKUP(CG57, 'Weighting Factors'!$W$5:$Z$56,4) -> 1090 | CI57: =('Weighting Factors'!$Q$5/'Weighting Factors'!$Q$14) -> 1 | CJ57: 111180 | CK57: =CJ57*'Weighting Factors'!$S$7 -> 111180 | CL57: 111180 | CM57: =AM57/'Weighting Factors'!$Q$5 -> 26.7 | CN57: 0 | CO57: 0 | CP57: 0 | CQ57: 0 | CR57: =SUM((AV57*'Weighting Factors'!$Q$5)+'2019 Legal Max'!BA57)*CQ57 -> 0 | CS57: 0 | CT57: 0.3512 | CU57: 0 | CV57: 0.1 | CW57: 479.1 | CX57: ='LOB Transfers'!G56 -> 48125 | CY57: ='LOB Transfers'!J56 -> 0 | CZ57: D0245
A58: 246 | B58: Crawford | C58: Northeast | D58: 451.1 | E58: 0 | F58: 451.1 | G58: 463 | H58: 0 | I58: 463 | J58: 444.6 | K58: 0 | L58: 444.6 | M58: =IF(ISNA(VLOOKUP($CZ58,'Audit Values'!$A$2:$BW$363,2,FALSE)),'Preliminary SO66'!C57,VLOOKUP($CZ58,'Audit Values'!$A$2:$BW$363,73,FALSE)) -> 438.5 | N58: =IF(ISNA(VLOOKUP($CZ58,'Audit Values'!$A$2:$BW$363,2,FALSE)),'Preliminary SO66'!F57,VLOOKUP($CZ58,'Audit Values'!$A$2:$BW$363,4,FALSE)) -> 0 | O58: 438.5 | P58: =IF('Military Provision'!J59="YES", MAX('2019 Legal Max'!L58,'2019 Legal Max'!I58,AVERAGE('2019 Legal Max'!F58,'2019 Legal Max'!I58,'2019 Legal Max'!L58)), MAX(L58, I58)) -> 463 | Q58: =IF(ISNA(VLOOKUP($CZ58,'Audit Values'!$A$2:$BU$351,2,FALSE)),'Preliminary SO66'!AL57,VLOOKUP($CZ58,'Audit Values'!$A$2:$BU$3953,58,FALSE)) -> 7 | R58: 0 | S58: 470 | T58: 200.4 | U58: =IF(ISNA(VLOOKUP($CZ58,'Audit Values'!$A$2:$BW$315,2,FALSE)),'Preliminary SO66'!AM57,VLOOKUP($CZ58,'Audit Values'!$A$2:$BW$315,62,FALSE)) -> 0 | V58: =(U58/6)*'Weighting Factors'!$Q$7 -> 0 | W58: =IF(ISNA(VLOOKUP($CZ58,'Audit Values'!$A$2:$BW$351,2,FALSE)),'Preliminary SO66'!AN57,VLOOKUP($CZ58,'Audit Values'!$A$2:$BW$351,61,FALSE)) -> 0 | X58: =W58*'Weighting Factors'!$Q$8 -> 0 | Y58: 0 | Z58: =IF(ISNA(VLOOKUP($CZ58,'Audit Values'!$A$2:$BW$315,2,FALSE)),'Preliminary SO66'!AO57,VLOOKUP($CZ58,'Audit Values'!$A$2:$BW$315,60,FALSE)) -> 61.3 | AA58: =Z58/6*'Weighting Factors'!$Q$6 -> 5.1 | AB58: =IF(ISNA(VLOOKUP($CZ58,'Audit Values'!$A$2:$BU$351,2,FALSE)),'Preliminary SO66'!AS57,VLOOKUP($CZ58,'Audit Values'!$A$2:$BU$351,63,FALSE)) -> 455 | AC58: 0 | AD58: =IF(ISNA(VLOOKUP($CZ58,'Audit Values'!$A$2:$BU$351,2,FALSE)),'Preliminary SO66'!AP57,VLOOKUP($CZ58,'Audit Values'!$A$2:$BU$351,64,FALSE)) -> 252 | AE58: =IF(A58=207, AD58,MAX(AC58,AD58))*'Weighting Factors'!$Q$9 -> 122 | AF58: 26.5 | AG58: =IF(ISNA(VLOOKUP($CZ58,'Audit Values'!$A$2:$BW$351,2,FALSE)),'Preliminary SO66'!AG57,VLOOKUP($CZ58,'Audit Values'!$A$2:$BW$351,70,FALSE)) -> 24.5 | AH58: 26.5 | AI58: =IF(ISNA(VLOOKUP($CZ58,'Audit Values'!$A$2:$BU$351,2,FALSE)),'Preliminary SO66'!AQ57,VLOOKUP($CZ58,'Audit Values'!$A$2:$BU$351,65,FALSE)) -> 0 | AJ58: =AI58*'Weighting Factors'!$Q$10 -> 0 | AK58: =IF(ISNA(VLOOKUP($CZ58,'Audit Values'!$A$2:$BU$351,2,FALSE)),'Preliminary SO66'!AR57,VLOOKUP($CZ58,'Audit Values'!$A$2:$BU$351,66,FALSE)) -> 179 | AM58: 155730 | AN58: 176422 | AO58: =MAX(AN58, AM58)/'Weighting Factors'!$Q$5 -> 42.4 | AP58: =CN58/'Weighting Factors'!$Q$5 -> 0 | AQ58: 0 | AR58: =CS58/'Weighting Factors'!$Q$5 -> 0 | AS58: 525972 | AT58: =AS58/'Weighting Factors'!$Q$5 -> 126.3 | AU58: =IF(ISNA(VLOOKUP($CZ58,'Audit Values'!$A$2:$BU$351,2,FALSE)),'Preliminary SO66'!X57,VLOOKUP($CZ58,'Audit Values'!$A$2:$BU$351,47,FALSE)) -> 0 | AV58: 992.7 | AW58: 866.4 | AX58: =IF(ISNA(VLOOKUP($CZ58,'Audit Values'!$A$2:$BU$351,2,FALSE)),'Preliminary SO66'!AA57,VLOOKUP($CZ58,'Audit Values'!$A$2:$BU$351,41,FALSE)) -> 2 | AY58: =IF(ISNA(VLOOKUP($CZ58,'Audit Values'!$A$2:$BU$351,2,FALSE)),'Preliminary SO66'!AB57,VLOOKUP($CZ58,'Audit Values'!$A$2:$BU$351,42,FALSE)) -> 0 | AZ58: 2 | BA58: =SUM(AX58*'Weighting Factors'!$T$10)+('2019 Legal Max'!AY58*'Weighting Factors'!$T$11)+('2019 Legal Max'!AZ58*'Weighting Factors'!$T$12) -> 11418 | BB58: 0 | BC58: =IF(ISNA(VLOOKUP($CZ58,'Audit Values'!$A$2:$BU$351,2,FALSE)),"",IF(AND('Weighting Factors'!H58>0,VLOOKUP($CZ58,'Audit Values'!$A$2:$BU$351,51,FALSE)<'Weighting Factors'!H58),'Weighting Factors'!H58,VLOOKUP($CZ58,'Audit Values'!$A$2:$BU$351,50,FALSE))) -> 11 | BD58: =IF(ISNA(VLOOKUP($CZ58,'Audit Values'!$A$2:$BV$351,2,FALSE)),"",VLOOKUP($CZ58,'Audit Values'!$A$2:$BV$351,51,FALSE)) -> A | BE58: =IF('Weighting Factors'!H58="","",IF('Weighting Factors'!J58="Pending","PX","R")) ->  | BF58: =SUM((S58+T58+Y58+AA58+AE58+AH58+AJ58++AO58+AP58+AQ58+AU58+AR58)*'Weighting Factors'!$Q$5)+'2019 Legal Max'!BA58+'2019 Legal Max'!BB58 -> 3619974 | BG58: =SUM((AV58+AR58)*'Weighting Factors'!$Q$5)+BA58+'2019 Legal Max'!BB58 -> 4146014 | BH58: =IF('Weighting Factors'!H58>0,'Weighting Factors'!H58,'Preliminary SO66'!AV57) -> 4257477 | BI58: 4146014 | BK58: ='Weighting Factors'!F58 -> 0 | BL58: ='Weighting Factors'!E58 -> 0 | BM58: 0 | BN58: 4146014 | BO58: =SUM((S58+T58+Y58+AA58+AE58+AH58+AJ58++AO58+AP58+AQ58+AR58)*'Weighting Factors'!Q$12)+(MAX(AS58,'Weighting Factors'!B58)) -> 4416108 | BP58: 0.3 | BQ58: 1324832 | BR58: 1352211 | BS58: 1324832 | BT58: 0.3 | BU58: 0 | BV58: FALSE | BW58: 0 | BX58: 0 | BY58: 0 | BZ58: TRUE | CA58: 210.375 | CB58: 0.426429 | CC58: 200.4 | CD58: 0 | CE58: 106 | CF58: 1.689 | CG58: =IF(CF58<0.06,1,IF(CF58>=18.29,52,MATCH(CF58-0.001,'Weighting Factors'!$Y$5:$Y$156)+1)) -> 36 | CH58: =VLOOKUP(CG58, 'Weighting Factors'!$W$5:$Z$56,4) -> 870 | CI58: =('Weighting Factors'!$Q$5/'Weighting Factors'!$Q$14) -> 1 | CJ58: 155730 | CK58: =CJ58*'Weighting Factors'!$S$7 -> 155730 | CL58: 155730 | CM58: =AM58/'Weighting Factors'!$Q$5 -> 37.4 | CN58: 0 | CO58: 0 | CP58: 0 | CQ58: 0 | CR58: =SUM((AV58*'Weighting Factors'!$Q$5)+'2019 Legal Max'!BA58)*CQ58 -> 0 | CS58: 0 | CT58: 0.5538 | CU58: 26.5 | CV58: 0 | CW58: 992.7 | CX58: ='LOB Transfers'!G57 -> 164014 | CY58: ='LOB Transfers'!J57 -> 0 | CZ58: D0246
A59: 247 | B59: Crawford | C59: Cherokee | D59: 503.1 | E59: 0 | F59: 503.1 | G59: 471 | H59: 0 | I59: 471 | J59: 484 | K59: 0 | L59: 484 | M59: =IF(ISNA(VLOOKUP($CZ59,'Audit Values'!$A$2:$BW$363,2,FALSE)),'Preliminary SO66'!C58,VLOOKUP($CZ59,'Audit Values'!$A$2:$BW$363,73,FALSE)) -> 469.1 | N59: =IF(ISNA(VLOOKUP($CZ59,'Audit Values'!$A$2:$BW$363,2,FALSE)),'Preliminary SO66'!F58,VLOOKUP($CZ59,'Audit Values'!$A$2:$BW$363,4,FALSE)) -> 0 | O59: 469.1 | P59: =IF('Military Provision'!J60="YES", MAX('2019 Legal Max'!L59,'2019 Legal Max'!I59,AVERAGE('2019 Legal Max'!F59,'2019 Legal Max'!I59,'2019 Legal Max'!L59)), MAX(L59, I59)) -> 484 | Q59: =IF(ISNA(VLOOKUP($CZ59,'Audit Values'!$A$2:$BU$351,2,FALSE)),'Preliminary SO66'!AL58,VLOOKUP($CZ59,'Audit Values'!$A$2:$BU$3953,58,FALSE)) -> 5 | R59: 0 | S59: 489 | T59: 205.4 | U59: =IF(ISNA(VLOOKUP($CZ59,'Audit Values'!$A$2:$BW$315,2,FALSE)),'Preliminary SO66'!AM58,VLOOKUP($CZ59,'Audit Values'!$A$2:$BW$315,62,FALSE)) -> 0 | V59: =(U59/6)*'Weighting Factors'!$Q$7 -> 0 | W59: =IF(ISNA(VLOOKUP($CZ59,'Audit Values'!$A$2:$BW$351,2,FALSE)),'Preliminary SO66'!AN58,VLOOKUP($CZ59,'Audit Values'!$A$2:$BW$351,61,FALSE)) -> 0 | X59: =W59*'Weighting Factors'!$Q$8 -> 0 | Y59: 0 | Z59: =IF(ISNA(VLOOKUP($CZ59,'Audit Values'!$A$2:$BW$315,2,FALSE)),'Preliminary SO66'!AO58,VLOOKUP($CZ59,'Audit Values'!$A$2:$BW$315,60,FALSE)) -> 209.8 | AA59: =Z59/6*'Weighting Factors'!$Q$6 -> 17.5 | AB59: =IF(ISNA(VLOOKUP($CZ59,'Audit Values'!$A$2:$BU$351,2,FALSE)),'Preliminary SO66'!AS58,VLOOKUP($CZ59,'Audit Values'!$A$2:$BU$351,63,FALSE)) -> 483 | AC59: 0 | AD59: =IF(ISNA(VLOOKUP($CZ59,'Audit Values'!$A$2:$BU$351,2,FALSE)),'Preliminary SO66'!AP58,VLOOKUP($CZ59,'Audit Values'!$A$2:$BU$351,64,FALSE)) -> 256 | AE59: =IF(A59=207, AD59,MAX(AC59,AD59))*'Weighting Factors'!$Q$9 -> 123.9 | AF59: 26.9 | AG59: =IF(ISNA(VLOOKUP($CZ59,'Audit Values'!$A$2:$BW$351,2,FALSE)),'Preliminary SO66'!AG58,VLOOKUP($CZ59,'Audit Values'!$A$2:$BW$351,70,FALSE)) -> 14.9 | AH59: 26.9 | AI59: =IF(ISNA(VLOOKUP($CZ59,'Audit Values'!$A$2:$BU$351,2,FALSE)),'Preliminary SO66'!AQ58,VLOOKUP($CZ59,'Audit Values'!$A$2:$BU$351,65,FALSE)) -> 0 | AJ59: =AI59*'Weighting Factors'!$Q$10 -> 0 | AK59: =IF(ISNA(VLOOKUP($CZ59,'Audit Values'!$A$2:$BU$351,2,FALSE)),'Preliminary SO66'!AR58,VLOOKUP($CZ59,'Audit Values'!$A$2:$BU$351,66,FALSE)) -> 257 | AM59: 254430 | AN59: 367866 | AO59: =MAX(AN59, AM59)/'Weighting Factors'!$Q$5 -> 88.3 | AP59: =CN59/'Weighting Factors'!$Q$5 -> 0 | AQ59: 0 | AR59: =CS59/'Weighting Factors'!$Q$5 -> 0 | AS59: 504940 | AT59: =AS59/'Weighting Factors'!$Q$5 -> 121.2 | AU59: =IF(ISNA(VLOOKUP($CZ59,'Audit Values'!$A$2:$BU$351,2,FALSE)),'Preliminary SO66'!X58,VLOOKUP($CZ59,'Audit Values'!$A$2:$BU$351,47,FALSE)) -> 0 | AV59: 1072.2 | AW59: 951 | AX59: =IF(ISNA(VLOOKUP($CZ59,'Audit Values'!$A$2:$BU$351,2,FALSE)),'Preliminary SO66'!AA58,VLOOKUP($CZ59,'Audit Values'!$A$2:$BU$351,41,FALSE)) -> 3 | AY59: =IF(ISNA(VLOOKUP($CZ59,'Audit Values'!$A$2:$BU$351,2,FALSE)),'Preliminary SO66'!AB58,VLOOKUP($CZ59,'Audit Values'!$A$2:$BU$351,42,FALSE)) -> 0 | AZ59: 0 | BA59: =SUM(AX59*'Weighting Factors'!$T$10)+('2019 Legal Max'!AY59*'Weighting Factors'!$T$11)+('2019 Legal Max'!AZ59*'Weighting Factors'!$T$12) -> 15000 | BB59: 0 | BC59: =IF(ISNA(VLOOKUP($CZ59,'Audit Values'!$A$2:$BU$351,2,FALSE)),"",IF(AND('Weighting Factors'!H59>0,VLOOKUP($CZ59,'Audit Values'!$A$2:$BU$351,51,FALSE)<'Weighting Factors'!H59),'Weighting Factors'!H59,VLOOKUP($CZ59,'Audit Values'!$A$2:$BU$351,50,FALSE))) -> 11 | BD59: =IF(ISNA(VLOOKUP($CZ59,'Audit Values'!$A$2:$BV$351,2,FALSE)),"",VLOOKUP($CZ59,'Audit Values'!$A$2:$BV$351,51,FALSE)) -> A | BE59: =IF('Weighting Factors'!H59="","",IF('Weighting Factors'!J59="Pending","PX","R")) ->  | BF59: =SUM((S59+T59+Y59+AA59+AE59+AH59+AJ59++AO59+AP59+AQ59+AU59+AR59)*'Weighting Factors'!$Q$5)+'2019 Legal Max'!BA59+'2019 Legal Max'!BB59 -> 3975915 | BG59: =SUM((AV59+AR59)*'Weighting Factors'!$Q$5)+BA59+'2019 Legal Max'!BB59 -> 4480713 | BH59: =IF('Weighting Factors'!H59>0,'Weighting Factors'!H59,'Preliminary SO66'!AV58) -> 4580167 | BI59: 4480713 | BK59: ='Weighting Factors'!F59 -> 0 | BL59: ='Weighting Factors'!E59 -> 0 | BM59: 0 | BN59: 4480713 | BO59: =SUM((S59+T59+Y59+AA59+AE59+AH59+AJ59++AO59+AP59+AQ59+AR59)*'Weighting Factors'!Q$12)+(MAX(AS59,'Weighting Factors'!B59)) -> 4926630 | BP59: 0.3 | BQ59: 1477989 | BR59: 1489034 | BS59: 1477989 | BT59: 0.3 | BU59: 0 | BV59: FALSE | BW59: 0 | BX59: 0 | BY59: 0 | BZ59: TRUE | CA59: 233.8875 | CB59: 0.419974 | CC59: 205.4 | CD59: 0 | CE59: 300 | CF59: 0.857 | CG59: =IF(CF59<0.06,1,IF(CF59>=18.29,52,MATCH(CF59-0.001,'Weighting Factors'!$Y$5:$Y$156)+1)) -> 30 | CH59: =VLOOKUP(CG59, 'Weighting Factors'!$W$5:$Z$56,4) -> 990 | CI59: =('Weighting Factors'!$Q$5/'Weighting Factors'!$Q$14) -> 1 | CJ59: 254430 | CK59: =CJ59*'Weighting Factors'!$S$7 -> 254430 | CL59: 254430 | CM59: =AM59/'Weighting Factors'!$Q$5 -> 61.1 | CN59: 0 | CO59: 0 | CP59: 0 | CQ59: 0 | CR59: =SUM((AV59*'Weighting Factors'!$Q$5)+'2019 Legal Max'!BA59)*CQ59 -> 0 | CS59: 0 | CT59: 0.53 | CU59: 26.9 | CV59: 0 | CW59: 1072.2 | CX59: ='LOB Transfers'!G58 -> 171595 | CY59: ='LOB Transfers'!J58 -> 0 | CZ59: D0247
A60: 248 | B60: Crawford | C60: Girard | D60: 977.8 | E60: 0 | F60: 977.8 | G60: 994 | H60: 0 | I60: 994 | J60: 1003 | K60: 0 | L60: 1003 | M60: =IF(ISNA(VLOOKUP($CZ60,'Audit Values'!$A$2:$BW$363,2,FALSE)),'Preliminary SO66'!C59,VLOOKUP($CZ60,'Audit Values'!$A$2:$BW$363,73,FALSE)) -> 1005 | N60: =IF(ISNA(VLOOKUP($CZ60,'Audit Values'!$A$2:$BW$363,2,FALSE)),'Preliminary SO66'!F59,VLOOKUP($CZ60,'Audit Values'!$A$2:$BW$363,4,FALSE)) -> 0 | O60: 1005 | P60: =IF('Military Provision'!J61="YES", MAX('2019 Legal Max'!L60,'2019 Legal Max'!I60,AVERAGE('2019 Legal Max'!F60,'2019 Legal Max'!I60,'2019 Legal Max'!L60)), MAX(L60, I60)) -> 1003 | Q60: =IF(ISNA(VLOOKUP($CZ60,'Audit Values'!$A$2:$BU$351,2,FALSE)),'Preliminary SO66'!AL59,VLOOKUP($CZ60,'Audit Values'!$A$2:$BU$3953,58,FALSE)) -> 10.5 | R60: 0 | S60: 1013.5 | T60: 245 | U60: =IF(ISNA(VLOOKUP($CZ60,'Audit Values'!$A$2:$BW$315,2,FALSE)),'Preliminary SO66'!AM59,VLOOKUP($CZ60,'Audit Values'!$A$2:$BW$315,62,FALSE)) -> 35.3 | V60: =(U60/6)*'Weighting Factors'!$Q$7 -> 2.3 | W60: =IF(ISNA(VLOOKUP($CZ60,'Audit Values'!$A$2:$BW$351,2,FALSE)),'Preliminary SO66'!AN59,VLOOKUP($CZ60,'Audit Values'!$A$2:$BW$351,61,FALSE)) -> 21 | X60: =W60*'Weighting Factors'!$Q$8 -> 3.9 | Y60: 3.9 | Z60: =IF(ISNA(VLOOKUP($CZ60,'Audit Values'!$A$2:$BW$315,2,FALSE)),'Preliminary SO66'!AO59,VLOOKUP($CZ60,'Audit Values'!$A$2:$BW$315,60,FALSE)) -> 141.3 | AA60: =Z60/6*'Weighting Factors'!$Q$6 -> 11.8 | AB60: =IF(ISNA(VLOOKUP($CZ60,'Audit Values'!$A$2:$BU$351,2,FALSE)),'Preliminary SO66'!AS59,VLOOKUP($CZ60,'Audit Values'!$A$2:$BU$351,63,FALSE)) -> 1036 | AC60: 0 | AD60: =IF(ISNA(VLOOKUP($CZ60,'Audit Values'!$A$2:$BU$351,2,FALSE)),'Preliminary SO66'!AP59,VLOOKUP($CZ60,'Audit Values'!$A$2:$BU$351,64,FALSE)) -> 367 | AE60: =IF(A60=207, AD60,MAX(AC60,AD60))*'Weighting Factors'!$Q$9 -> 177.6 | AF60: 1.1 | AG60: =IF(ISNA(VLOOKUP($CZ60,'Audit Values'!$A$2:$BW$351,2,FALSE)),'Preliminary SO66'!AG59,VLOOKUP($CZ60,'Audit Values'!$A$2:$BW$351,70,FALSE)) -> 5.3 | AH60: 5.3 | AI60: =IF(ISNA(VLOOKUP($CZ60,'Audit Values'!$A$2:$BU$351,2,FALSE)),'Preliminary SO66'!AQ59,VLOOKUP($CZ60,'Audit Values'!$A$2:$BU$351,65,FALSE)) -> 0 | AJ60: =AI60*'Weighting Factors'!$Q$10 -> 0 | AK60: =IF(ISNA(VLOOKUP($CZ60,'Audit Values'!$A$2:$BU$351,2,FALSE)),'Preliminary SO66'!AR59,VLOOKUP($CZ60,'Audit Values'!$A$2:$BU$351,66,FALSE)) -> 307 | AM60: 285510 | AN60: 348221 | AO60: =MAX(AN60, AM60)/'Weighting Factors'!$Q$5 -> 83.6 | AP60: =CN60/'Weighting Factors'!$Q$5 -> 0 | AQ60: 0 | AR60: =CS60/'Weighting Factors'!$Q$5 -> 0 | AS60: 1054853 | AT60: =AS60/'Weighting Factors'!$Q$5 -> 253.3 | AU60: =IF(ISNA(VLOOKUP($CZ60,'Audit Values'!$A$2:$BU$351,2,FALSE)),'Preliminary SO66'!X59,VLOOKUP($CZ60,'Audit Values'!$A$2:$BU$351,47,FALSE)) -> 0 | AV60: 1794 | AW60: 1540.7 | AX60: =IF(ISNA(VLOOKUP($CZ60,'Audit Values'!$A$2:$BU$351,2,FALSE)),'Preliminary SO66'!AA59,VLOOKUP($CZ60,'Audit Values'!$A$2:$BU$351,41,FALSE)) -> 0 | AY60: =IF(ISNA(VLOOKUP($CZ60,'Audit Values'!$A$2:$BU$351,2,FALSE)),'Preliminary SO66'!AB59,VLOOKUP($CZ60,'Audit Values'!$A$2:$BU$351,42,FALSE)) -> 1.5 | AZ60: 0 | BA60: =SUM(AX60*'Weighting Factors'!$T$10)+('2019 Legal Max'!AY60*'Weighting Factors'!$T$11)+('2019 Legal Max'!AZ60*'Weighting Factors'!$T$12) -> 2550 | BB60: 0 | BC60: =IF(ISNA(VLOOKUP($CZ60,'Audit Values'!$A$2:$BU$351,2,FALSE)),"",IF(AND('Weighting Factors'!H60>0,VLOOKUP($CZ60,'Audit Values'!$A$2:$BU$351,51,FALSE)<'Weighting Factors'!H60),'Weighting Factors'!H60,VLOOKUP($CZ60,'Audit Values'!$A$2:$BU$351,50,FALSE))) -> 11 | BD60: =IF(ISNA(VLOOKUP($CZ60,'Audit Values'!$A$2:$BV$351,2,FALSE)),"",VLOOKUP($CZ60,'Audit Values'!$A$2:$BV$351,51,FALSE)) -> A | BE60: =IF('Weighting Factors'!H60="","",IF('Weighting Factors'!J60="Pending","PX","R")) ->  | BF60: =SUM((S60+T60+Y60+AA60+AE60+AH60+AJ60++AO60+AP60+AQ60+AU60+AR60)*'Weighting Factors'!$Q$5)+'2019 Legal Max'!BA60+'2019 Legal Max'!BB60 -> 6419566 | BG60: =SUM((AV60+AR60)*'Weighting Factors'!$Q$5)+BA60+'2019 Legal Max'!BB60 -> 7474560 | BH60: =IF('Weighting Factors'!H60>0,'Weighting Factors'!H60,'Preliminary SO66'!AV59) -> 7594467 | BI60: 7474560 | BK60: ='Weighting Factors'!F60 -> 0 | BL60: ='Weighting Factors'!E60 -> 0 | BM60: 0 | BN60: 7474560 | BO60: =SUM((S60+T60+Y60+AA60+AE60+AH60+AJ60++AO60+AP60+AQ60+AR60)*'Weighting Factors'!Q$12)+(MAX(AS60,'Weighting Factors'!B60)) -> 7972596 | BP60: 0.3 | BQ60: 2391779 | BR60: 2423822 | BS60: 2391779 | BT60: 0.3 | BU60: 0 | BV60: FALSE | BW60: 0 | BX60: 0 | BY60: 0 | BZ60: TRUE | CA60: 882.9563 | CB60: 0.241776 | CC60: 245 | CD60: 0 | CE60: 263 | CF60: 1.167 | CG60: =IF(CF60<0.06,1,IF(CF60>=18.29,52,MATCH(CF60-0.001,'Weighting Factors'!$Y$5:$Y$156)+1)) -> 33 | CH60: =VLOOKUP(CG60, 'Weighting Factors'!$W$5:$Z$56,4) -> 930 | CI60: =('Weighting Factors'!$Q$5/'Weighting Factors'!$Q$14) -> 1 | CJ60: 285510 | CK60: =CJ60*'Weighting Factors'!$S$7 -> 285510 | CL60: 285510 | CM60: =AM60/'Weighting Factors'!$Q$5 -> 68.5 | CN60: 0 | CO60: 0 | CP60: 0 | CQ60: 0 | CR60: =SUM((AV60*'Weighting Factors'!$Q$5)+'2019 Legal Max'!BA60)*CQ60 -> 0 | CS60: 0 | CT60: 0.3542 | CU60: 0 | CV60: 1.1 | CW60: 1794 | CX60: ='LOB Transfers'!G59 -> 238221 | CY60: ='LOB Transfers'!J59 -> 5262 | CZ60: D0248
